Workbook

Sheet 7PSourceSummary
C2: Measure: | D2: Demand Control Ventilation
C3: Item | D3: Methods & Sources | E3: Note
C4: Measures Described | D4: Evaluates retrofit Demand Control Ventilation (DCV), and new and retrofit Dedicated Outdoor Air Supply (DOAS). Both the DVC and the DOAS measures aim to reduce the amount of ventilation air that needs to be conditioned and the amount of distribution fan energy used to move cooling or heating to occupants. The single zone DOAS measures is a fleet strategy which involves designating some of the fleet of HVAC units as ventilation units and letting other units cycle on call for heating, cooling, or additional ventilation is needed. The designated units can be stand alone heat recovery ventilation (HRV) or rooftops with added HRV/ERVs where only a small fraction of units operate, or they can be standard rooftops where half the units operate to provide ventilation. | E4: Only retrofit measures included. Assume code covers new construction.
C5: Energy Savings Calculation Basis | D5: Aggregated DOE2 Simulation Runs for select Btype, Climate Zones, LPD, equipment efficiency.
C6: Applicable Stock | D6: Applies to a portion of the single-zone ducted systems. Excludes the buildings where the ARC measure is applied. See applicability tab. | E6: Applicable stock assumptions are in MMap. Summary data can be seen in Com_Master/APPLIC. Measure overlap and measure density are assigned in MMAP in the measure density column where each measure gets applied to the fraction of stock by building type and vintage cohort. For example the DCV measure applies to 100 percent of applicable new floor area minus any floor area assigned to the DOAS measure. Retrofit and at replacement DCV is split 50/50 for the existing floor area minus any floor area assigned to retrofit DOAS. For new big box retail, 70% of applicable floor area gets the fleet strategy DOAS measure and 30% gets the DCV measure. The fleet strategy DOAS applies only in retail spaces. For retrofit retail, 70% gets the DOAS measure and 30% are split 50/50 between NR and Retrofit.
C7: Baseline Saturation | D7: Baseline conditions are code level DCV and ASHRAE Standard 62 Ventilation requirements.
C8: Baseline HVAC Loads | D8: Estimated from several sources. EZ Sim cooling EUIs from 2002-2004 new building baseline, DOE2 runs. | E8: Sheet 'Cooling EUI'
C9: Permutations | D9: Modeled four LPDs, two equipment internal gain levels, four Climate Zones, two HVAC unit sizes, three HVAC cooling efficiency levels, three space heat types | E9: Sheet 'Cooling EUI'
C10: Costs | D10: From the Sixth Plan file. Converted from 2006 to 2012$ | E10: Capital costs summarized in sheet 'Config'. Detail in sheets 'Notes and Sources 2008'
C11: Measure Life | D11: 15 years for one-time fixes.
C12: Savings Shape | D12: C-All-HVAC-Vent-All-All-E
C13: Achievability Ramp Rate | D13: Retro12Med - strong accomplishments
C16: File Version:
C17: v2 | D17: Added the High/Low forecast option
C18: v3 | D18: Corrected errors identified by reviewers

Sheet forRPM
A1: Ramp Rate | B1: Resource Type | C1: Measure Category | D1: Sector | E1: End Use | F1: kW per unit | G1: kWh per unit | H1: TRC Net Levelized Cost (Net of All Benefits) | I1: segment | J1: measure | K1: 2016 | L1: 2017 | M1: 2018 | N1: 2019 | O1: 2020 | P1: 2021 | Q1: 2022 | R1: 2023 | S1: 2024 | T1: 2025 | U1: 2026 | V1: 2027 | W1: 2028 | X1: 2029 | Y1: 2030 | Z1: 2031 | AA1: 2032 | AB1: 2033 | AC1: 2034 | AD1: 2035 | AE1: MAX | AF1: Savings Allocation by Category and Month for Segments 1 | AS1: Savings Allocation by Category and Month for Segments 2
F2: Wholesale KW | G2: Busbar Savings | H2: lvlcost | I2: 1000 | K2: =CONCATENATE("aMW_",K$1) -> aMW_2016 | L2: aMW_2017 | M2: aMW_2018 | N2: aMW_2019 | O2: aMW_2020 | P2: aMW_2021 | Q2: aMW_2022 | R2: aMW_2023 | S2: aMW_2024 | T2: aMW_2025 | U2: aMW_2026 | V2: aMW_2027 | W2: aMW_2028 | X2: aMW_2029 | Y2: aMW_2030 | Z2: aMW_2031 | AA2: aMW_2032 | AB2: aMW_2033 | AC2: aMW_2034 | AD2: aMW_2035 | AE2: MAX | AF2: Jan | AG2: Feb | AH2: Mar | AI2: Apr | AJ2: May | AK2: Jun | AL2: Jul | AM2: Aug | AN2: Sep | AO2: Oct | AP2: Nov | AQ2: Dec | AS2: Jan | AT2: Feb | AU2: Mar | AV2: Apr | AW2: May | AX2: Jun | AY2: Jul | AZ2: Aug | BA2: Sep | BB2: Oct | BC2: Nov | BD2: Dec
A3: =VLOOKUP(CONCATENATE($C3,"-",$B3),[2]ACHIEV!$B$19:$C$100,2,FALSE) -> Retro12Med | B3: ='[3]SC-Retro'!$C$7 -> Retro | C3: ='7PSourceSummary'!$D$2 -> Demand Control Ventilation | D3: Commercial | E3: ='SC-RETRO'!$A$9 -> HVAC | F3: =VLOOKUP(J3,MeasureOutputR,14,FALSE) -> 0.02726718539 | G3: =INDEX('SC-RETRO'!$A$66:$D$83,MATCH($J3,'SC-RETRO'!$D$66:$D$83,0),1) -> 145.0487365 | H3: =INDEX('SC-RETRO'!$A$66:$D$83,MATCH($J3,'SC-RETRO'!$D$66:$D$83,0),2) -> 55.40847 | J3: ='SC-RETRO'!D66 -> Demand Control Ventilation-Retro-Large Off | K3: ='SC-RETRO'!E66 -> 0.06042306352 | L3: ='SC-RETRO'!F66 -> 0.06024179433 | M3: ='SC-RETRO'!G66 -> 0.06006106895 | N3: ='SC-RETRO'!H66 -> 0.05988088574 | O3: ='SC-RETRO'!I66 -> 0.05970124309 | P3: ='SC-RETRO'!J66 -> 0.05356992542 | Q3: ='SC-RETRO'!K66 -> 0.04272737252 | R3: ='SC-RETRO'!L66 -> 0.03407935232 | S3: ='SC-RETRO'!M66 -> 0.02718169141 | T3: ='SC-RETRO'!N66 -> 0.02168011707 | U3: ='SC-RETRO'!O66 -> 0.01729206137 | V3: ='SC-RETRO'!P66 -> 0.01379214815 | W3: ='SC-RETRO'!Q66 -> 0.01100061737 | X3: ='SC-RETRO'!R66 -> 0.008774092411 | Y3: ='SC-RETRO'!S66 -> 0.006998216107 | Z3: ='SC-RETRO'!T66 -> 0.005581777167 | AA3: ='SC-RETRO'!U66 -> 3.795778432e-05 | AB3: ='SC-RETRO'!V66 -> 1.351568249e-05 | AC3: ='SC-RETRO'!W66 -> 4.593796173e-06 | AD3: ='SC-RETRO'!X66 -> 1.493483082e-06 | AE3: ='SC-RETRO'!Y66 -> 0.5233583213 | AF3: =VLOOKUP($J3,MeasureOutputR,COLUMN()-17,FALSE) -> 9.095300461 | AG3: 8.178150501 | AH3: 9.410948825 | AI3: 8.755202956 | AJ3: 8.938543683 | AK3: 8.847948276 | AL3: 8.405701899 | AM3: 8.758422182 | AN3: 8.183165957 | AO3: 9.330364154 | AP3: =VLOOKUP($J3,MeasureOutputR,COLUMN()-17,FALSE) -> 8.256864993 | AQ3: 8.98956751 | AR3: 0 | AS3: 3.861497844 | AT3: 3.317685611 | AU3: 3.182358989 | AV3: 3.322913342 | AW3: 3.260223515 | AX3: 2.860755724 | AY3: 3.358890868 | AZ3: 2.754630263 | BA3: 3.391248652 | BB3: 3.045870299 | BC3: 3.654418465 | BD3: 3.888061524
A4: =VLOOKUP(CONCATENATE($C4,"-",$B4),[2]ACHIEV!$B$19:$C$100,2,FALSE) -> Retro12Med | B4: ='[3]SC-Retro'!$C$7 -> Retro | C4: ='7PSourceSummary'!$D$2 -> Demand Control Ventilation | D4: Commercial | E4: ='SC-RETRO'!$A$9 -> HVAC | F4: 0.02193353002 | G4: =INDEX('SC-RETRO'!$A$66:$D$83,MATCH($J4,'SC-RETRO'!$D$66:$D$83,0),1) -> 116.6761722 | H4: =INDEX('SC-RETRO'!$A$66:$D$83,MATCH($J4,'SC-RETRO'!$D$66:$D$83,0),2) -> 101.9515081 | J4: ='SC-RETRO'!D67 -> Demand Control Ventilation-Retro-Medium Off | K4: ='SC-RETRO'!E67 -> 0.1469230826 | L4: ='SC-RETRO'!F67 -> 0.1464823133 | M4: ='SC-RETRO'!G67 -> 0.1460428664 | N4: ='SC-RETRO'!H67 -> 0.1456047378 | O4: ='SC-RETRO'!I67 -> 0.1451679236 | P4: ='SC-RETRO'!J67 -> 0.1302591778 | Q4: ='SC-RETRO'!K67 -> 0.1038947202 | R4: ='SC-RETRO'!L67 -> 0.08286642886 | S4: ='SC-RETRO'!M67 -> 0.06609426366 | T4: ='SC-RETRO'!N67 -> 0.0527167847 | U4: ='SC-RETRO'!O67 -> 0.04204690747 | V4: ='SC-RETRO'!P67 -> 0.0335366134 | W4: ='SC-RETRO'!Q67 -> 0.02674880285 | X4: ='SC-RETRO'!R67 -> 0.02133484515 | Y4: ='SC-RETRO'!S67 -> 0.01701667249 | Z4: ='SC-RETRO'!T67 -> 0.01357249798 | AA4: ='SC-RETRO'!U67 -> 9.229711894e-05 | AB4: ='SC-RETRO'!V67 -> 3.286436699e-05 | AC4: ='SC-RETRO'!W67 -> 1.117015019e-05 | AD4: ='SC-RETRO'!X67 -> 3.631512959e-06 | AE4: ='SC-RETRO'!Y67 -> 1.2725839 | AF4: 7.316195011 | AG4: 6.578446106 | AH4: 7.570100311 | AI4: 7.042622997 | AJ4: 7.190100974 | AK4: 7.117226673 | AL4: 6.761486832 | AM4: 7.045212519 | AN4: 6.582480503 | AO4: 7.505278575 | AP4: 6.641763484 | AQ4: 7.231144177 | AR4: 0 | AS4: 3.106161406 | AT4: 2.668722712 | AU4: 2.559866941 | AV4: 2.672927862 | AW4: 2.622500611 | AX4: 2.301171561 | AY4: 2.701867928 | AZ4: 2.215804995 | BA4: 2.727896299 | BB4: 2.450076409 | BC4: 2.939588226 | BD4: 3.127529041
A5: =VLOOKUP(CONCATENATE($C5,"-",$B5),[2]ACHIEV!$B$19:$C$100,2,FALSE) -> Retro12Med | B5: ='[3]SC-Retro'!$C$7 -> Retro | C5: ='7PSourceSummary'!$D$2 -> Demand Control Ventilation | D5: Commercial | E5: ='SC-RETRO'!$A$9 -> HVAC | F5: 0.02814131621 | G5: =INDEX('SC-RETRO'!$A$66:$D$83,MATCH($J5,'SC-RETRO'!$D$66:$D$83,0),1) -> 149.6987056 | H5: =INDEX('SC-RETRO'!$A$66:$D$83,MATCH($J5,'SC-RETRO'!$D$66:$D$83,0),2) -> 71.20659921 | J5: ='SC-RETRO'!D68 -> Demand Control Ventilation-Retro-Small Off | K5: ='SC-RETRO'!E68 -> 0.2098892018 | L5: ='SC-RETRO'!F68 -> 0.2092595342 | M5: ='SC-RETRO'!G68 -> 0.2086317556 | N5: ='SC-RETRO'!H68 -> 0.2080058603 | O5: ='SC-RETRO'!I68 -> 0.2073818427 | P5: ='SC-RETRO'!J68 -> 0.1860837275 | Q5: ='SC-RETRO'!K68 -> 0.148420381 | R5: ='SC-RETRO'!L68 -> 0.1183800959 | S5: ='SC-RETRO'!M68 -> 0.09441996451 | T5: ='SC-RETRO'!N68 -> 0.07530936369 | U5: ='SC-RETRO'!O68 -> 0.06006674848 | V5: ='SC-RETRO'!P68 -> 0.04790923859 | W5: ='SC-RETRO'!Q68 -> 0.0382124087 | X5: ='SC-RETRO'!R68 -> 0.03047821718 | Y5: ='SC-RETRO'!S68 -> 0.02430942602 | Z5: ='SC-RETRO'!T68 -> 0.01938919819 | AA5: ='SC-RETRO'!U68 -> 0.0001318524515 | AB5: ='SC-RETRO'!V68 -> 4.694889077e-05 | AC5: ='SC-RETRO'!W68 -> 1.595728776e-05 | AD5: ='SC-RETRO'!X68 -> 5.18785301e-06 | AE5: ='SC-RETRO'!Y68 -> 1.817969065 | AF5: 9.386877398 | AG5: 8.440325465 | AH5: 9.71264481 | AI5: 9.035877055 | AJ5: 9.225095315 | AK5: 9.131595603 | AL5: 8.675171701 | AM5: 9.039199483 | AN5: 8.445501707 | AO5: 9.629476758 | AP5: 8.521563385 | AQ5: 9.277754862 | AR5: 0 | AS5: 3.985289655 | AT5: 3.424043902 | AU5: 3.284378982 | AV5: 3.429439223 | AW5: 3.364739687 | AX5: 2.952465767 | AY5: 3.466570116 | AZ5: 2.842938138 | BA5: 3.499965225 | BB5: 3.143514741 | BC5: 3.77157173 | BD5: 4.012704913
A6: =VLOOKUP(CONCATENATE($C6,"-",$B6),[2]ACHIEV!$B$19:$C$100,2,FALSE) -> Retro12Med | B6: ='[3]SC-Retro'!$C$7 -> Retro | C6: ='7PSourceSummary'!$D$2 -> Demand Control Ventilation | D6: Commercial | E6: ='SC-RETRO'!$A$9 -> HVAC | F6: 0.1431733099 | G6: =INDEX('SC-RETRO'!$A$66:$D$83,MATCH($J6,'SC-RETRO'!$D$66:$D$83,0),1) -> 761.6153775 | H6: =INDEX('SC-RETRO'!$A$66:$D$83,MATCH($J6,'SC-RETRO'!$D$66:$D$83,0),2) -> 67.50514378 | J6: ='SC-RETRO'!D69 -> Demand Control Ventilation-Retro-Xlarge Ret | K6: ='SC-RETRO'!E69 -> 0.7262046419 | L6: ='SC-RETRO'!F69 -> 0.7228641006 | M6: ='SC-RETRO'!G69 -> 0.7195389257 | N6: ='SC-RETRO'!H69 -> 0.7162290467 | O6: ='SC-RETRO'!I69 -> 0.7129343931 | P6: ='SC-RETRO'!J69 -> 0.6386894054 | Q6: ='SC-RETRO'!K69 -> 0.5086011473 | R6: ='SC-RETRO'!L69 -> 0.4050092656 | S6: ='SC-RETRO'!M69 -> 0.3225169784 | T6: ='SC-RETRO'!N69 -> 0.2568267202 | U6: ='SC-RETRO'!O69 -> 0.2045162539 | V6: ='SC-RETRO'!P69 -> 0.1628603833 | W6: ='SC-RETRO'!Q69 -> 0.1296889804 | X6: ='SC-RETRO'!R69 -> 0.1032739289 | Y6: ='SC-RETRO'!S69 -> 0.08223909504 | Z6: ='SC-RETRO'!T69 -> 0.06548863616 | AA6: ='SC-RETRO'!U69 -> 0.0004446279741 | AB6: ='SC-RETRO'!V69 -> 0.0001580652448 | AC6: ='SC-RETRO'!W69 -> 5.363800387e-05 | AD6: ='SC-RETRO'!X69 -> 1.741019643e-05 | AE6: ='SC-RETRO'!Y69 -> 6.110827429 | AF6: 47.75719431 | AG6: 42.94146458 | AH6: 49.41458654 | AI6: 45.97142564 | AJ6: 46.93410288 | AK6: 46.4584086 | AL6: 44.13628122 | AM6: 45.98832901 | AN6: 42.96779952 | AO6: 48.99145618 | AP6: 43.3547751 | AQ6: 47.20201649 | AR6: 0 | AS6: 20.27577909 | AT6: 17.42035429 | AU6: 16.70978736 | AV6: 17.44780383 | AW6: 17.1186349 | AX6: 15.02112741 | AY6: 17.636713 | AZ6: 14.46388861 | BA6: 17.80661579 | BB6: 15.99311868 | BC6: 19.188456 | BD6: 20.41525847
A7: =VLOOKUP(CONCATENATE($C7,"-",$B7),[2]ACHIEV!$B$19:$C$100,2,FALSE) -> Retro12Med | B7: ='[3]SC-Retro'!$C$7 -> Retro | C7: ='7PSourceSummary'!$D$2 -> Demand Control Ventilation | D7: Commercial | E7: ='SC-RETRO'!$A$9 -> HVAC | F7: 0.06583678508 | G7: =INDEX('SC-RETRO'!$A$66:$D$83,MATCH($J7,'SC-RETRO'!$D$66:$D$83,0),1) -> 350.2210571 | H7: =INDEX('SC-RETRO'!$A$66:$D$83,MATCH($J7,'SC-RETRO'!$D$66:$D$83,0),2) -> 107.5230995 | J7: ='SC-RETRO'!D70 -> Demand Control Ventilation-Retro-Large Ret | K7: ='SC-RETRO'!E70 -> 0.2916199292 | L7: ='SC-RETRO'!F70 -> 0.2902784775 | M7: ='SC-RETRO'!G70 -> 0.2889431965 | N7: ='SC-RETRO'!H70 -> 0.2876140578 | O7: ='SC-RETRO'!I70 -> 0.2862910331 | P7: ='SC-RETRO'!J70 -> 0.2564766849 | Q7: ='SC-RETRO'!K70 -> 0.2042375137 | R7: ='SC-RETRO'!L70 -> 0.1626384169 | S7: ='SC-RETRO'!M70 -> 0.1295122242 | T7: ='SC-RETRO'!N70 -> 0.1031331744 | U7: ='SC-RETRO'!O70 -> 0.08212700941 | V7: ='SC-RETRO'!P70 -> 0.06539938013 | W7: ='SC-RETRO'!Q70 -> 0.05207883438 | X7: ='SC-RETRO'!R70 -> 0.0414714174 | Y7: ='SC-RETRO'!S70 -> 0.0330245191 | Z7: ='SC-RETRO'!T70 -> 0.02629808505 | AA7: ='SC-RETRO'!U70 -> 0.0001785479888 | AB7: ='SC-RETRO'!V70 -> 6.347381004e-05 | AC7: ='SC-RETRO'!W70 -> 2.15392604e-05 | AD7: ='SC-RETRO'!X70 -> 6.991362979e-06 | AE7: ='SC-RETRO'!Y70 -> 2.453907561 | AF7: 21.96065832 | AG7: 19.74619416 | AH7: 22.72279321 | AI7: 21.13949082 | AJ7: 21.58216812 | AK7: 21.36342496 | AL7: 20.29561839 | AM7: 21.14726366 | AN7: 19.75830401 | AO7: 22.52822104 | AP7: 19.93625078 | AQ7: 21.70536546 | AR7: 0 | AS7: 9.323610047 | AT7: 8.0105721 | AU7: 7.683825148 | AV7: 8.023194489 | AW7: 7.87182952 | AX7: 6.907312108 | AY7: 8.110062443 | AZ7: 6.651071536 | BA7: 8.188190509 | BB7: 7.354272375 | BC7: 8.823615625 | BD7: 9.387748214
A8: =VLOOKUP(CONCATENATE($C8,"-",$B8),[2]ACHIEV!$B$19:$C$100,2,FALSE) -> Retro12Med | B8: ='[3]SC-Retro'!$C$7 -> Retro | C8: ='7PSourceSummary'!$D$2 -> Demand Control Ventilation | D8: Commercial | E8: ='SC-RETRO'!$A$9 -> HVAC | F8: 0.07086907964 | G8: =INDEX('SC-RETRO'!$A$66:$D$83,MATCH($J8,'SC-RETRO'!$D$66:$D$83,0),1) -> 376.9905221 | H8: =INDEX('SC-RETRO'!$A$66:$D$83,MATCH($J8,'SC-RETRO'!$D$66:$D$83,0),2) -> 69.94676696 | J8: ='SC-RETRO'!D71 -> Demand Control Ventilation-Retro-Medium Ret | K8: ='SC-RETRO'!E71 -> 0.2015101089 | L8: ='SC-RETRO'!F71 -> 0.2005831624 | M8: ='SC-RETRO'!G71 -> 0.1996604799 | N8: ='SC-RETRO'!H71 -> 0.1987420417 | O8: ='SC-RETRO'!I71 -> 0.1978278283 | P8: ='SC-RETRO'!J71 -> 0.1772260382 | Q8: ='SC-RETRO'!K71 -> 0.1411286388 | R8: ='SC-RETRO'!L71 -> 0.1123835576 | S8: ='SC-RETRO'!M71 -> 0.08949327461 | T8: ='SC-RETRO'!N71 -> 0.07126528444 | U8: ='SC-RETRO'!O71 -> 0.0567499713 | V8: ='SC-RETRO'!P71 -> 0.04519113715 | W8: ='SC-RETRO'!Q71 -> 0.03598660633 | X8: ='SC-RETRO'!R71 -> 0.02865685436 | Y8: ='SC-RETRO'!S71 -> 0.02282002626 | Z8: ='SC-RETRO'!T71 -> 0.01817204331 | AA8: ='SC-RETRO'!U71 -> 0.0001233771121 | AB8: ='SC-RETRO'!V71 -> 4.386056334e-05 | AC8: ='SC-RETRO'!W71 -> 1.488368344e-05 | AD8: ='SC-RETRO'!X71 -> 4.831049509e-06 | AE8: ='SC-RETRO'!Y71 -> 1.695656334 | AF8: 23.63924121 | AG8: 21.25551247 | AH8: 24.45963058 | AI8: 22.75530704 | AJ8: 23.23182078 | AK8: 22.99635778 | AL8: 21.84693245 | AM8: 22.763674 | AN8: 21.26854795 | AO8: 24.25018611 | AP8: 21.46009624 | AQ8: 23.36443482 | AR8: 0 | AS8: 10.03626866 | AT8: 8.622867465 | AU8: 8.271145314 | AV8: 8.636454658 | AW8: 8.47351997 | AX8: 7.435278792 | AY8: 8.729962444 | AZ8: 7.159452239 | BA8: 8.814062299 | BB8: 7.916402874 | BC8: 9.498056712 | BD8: 10.10530929
A9: =VLOOKUP(CONCATENATE($C9,"-",$B9),[2]ACHIEV!$B$19:$C$100,2,FALSE) -> Retro12Med | B9: ='[3]SC-Retro'!$C$7 -> Retro | C9: ='7PSourceSummary'!$D$2 -> Demand Control Ventilation | D9: Commercial | E9: ='SC-RETRO'!$A$9 -> HVAC | F9: 0.07097292051 | G9: =INDEX('SC-RETRO'!$A$66:$D$83,MATCH($J9,'SC-RETRO'!$D$66:$D$83,0),1) -> 377.5429073 | H9: =INDEX('SC-RETRO'!$A$66:$D$83,MATCH($J9,'SC-RETRO'!$D$66:$D$83,0),2) -> 36.98178816 | J9: ='SC-RETRO'!D72 -> Demand Control Ventilation-Retro-Small Ret | K9: ='SC-RETRO'!E72 -> 0.1853277269 | L9: ='SC-RETRO'!F72 -> 0.1844752194 | M9: ='SC-RETRO'!G72 -> 0.1836266334 | N9: ='SC-RETRO'!H72 -> 0.1827819508 | O9: ='SC-RETRO'!I72 -> 0.1819411539 | P9: ='SC-RETRO'!J72 -> 0.1629938021 | Q9: ='SC-RETRO'!K72 -> 0.1297952245 | R9: ='SC-RETRO'!L72 -> 0.1033585332 | S9: ='SC-RETRO'!M72 -> 0.08230646713 | T9: ='SC-RETRO'!N72 -> 0.06554228591 | U9: ='SC-RETRO'!O72 -> 0.05219263311 | V9: ='SC-RETRO'!P72 -> 0.0415620376 | W9: ='SC-RETRO'!Q72 -> 0.03309668178 | X9: ='SC-RETRO'!R72 -> 0.02635554964 | Y9: ='SC-RETRO'!S72 -> 0.02098745129 | Z9: ='SC-RETRO'!T72 -> 0.01671272721 | AA9: ='SC-RETRO'!U72 -> 0.0001134692441 | AB9: ='SC-RETRO'!V72 -> 4.033831627e-05 | AC9: ='SC-RETRO'!W72 -> 1.368844091e-05 | AD9: ='SC-RETRO'!X72 -> 4.443089376e-06 | AE9: ='SC-RETRO'!Y72 -> 1.559485704 | AF9: 23.6738786 | AG9: 21.2866571 | AH9: 24.49547004 | AI9: 22.78864924 | AJ9: 23.26586119 | AK9: 23.03005318 | AL9: 21.87894365 | AM9: 22.79702846 | AN9: 21.29971168 | AO9: 24.28571868 | AP9: 21.49154064 | AQ9: 23.39866954 | AR9: 0 | AS9: 10.0509743 | AT9: 8.635502117 | AU9: 8.283264604 | AV9: 8.649109218 | AW9: 8.48593579 | AX9: 7.44617333 | AY9: 8.742754016 | AZ9: 7.169942622 | BA9: 8.826977099 | BB9: 7.928002379 | BC9: 9.511973734 | BD9: 10.12011609
A10: =VLOOKUP(CONCATENATE($C10,"-",$B10),[2]ACHIEV!$B$19:$C$100,2,FALSE) -> Retro12Med | B10: ='[3]SC-Retro'!$C$7 -> Retro | C10: ='7PSourceSummary'!$D$2 -> Demand Control Ventilation | D10: Commercial | E10: ='SC-RETRO'!$A$9 -> HVAC | F10: 0 | G10: =INDEX('SC-RETRO'!$A$66:$D$83,MATCH($J10,'SC-RETRO'!$D$66:$D$83,0),1) -> 0 | H10: =INDEX('SC-RETRO'!$A$66:$D$83,MATCH($J10,'SC-RETRO'!$D$66:$D$83,0),2) -> 9999 | J10: ='SC-RETRO'!D73 -> Demand Control Ventilation-Retro-School K-12 | K10: ='SC-RETRO'!E73 -> 0 | L10: ='SC-RETRO'!F73 -> 0 | M10: ='SC-RETRO'!G73 -> 0 | N10: ='SC-RETRO'!H73 -> 0 | O10: ='SC-RETRO'!I73 -> 0 | P10: ='SC-RETRO'!J73 -> 0 | Q10: ='SC-RETRO'!K73 -> 0 | R10: ='SC-RETRO'!L73 -> 0 | S10: ='SC-RETRO'!M73 -> 0 | T10: ='SC-RETRO'!N73 -> 0 | U10: ='SC-RETRO'!O73 -> 0 | V10: ='SC-RETRO'!P73 -> 0 | W10: ='SC-RETRO'!Q73 -> 0 | X10: ='SC-RETRO'!R73 -> 0 | Y10: ='SC-RETRO'!S73 -> 0 | Z10: ='SC-RETRO'!T73 -> 0 | AA10: ='SC-RETRO'!U73 -> 0 | AB10: ='SC-RETRO'!V73 -> 0 | AC10: ='SC-RETRO'!W73 -> 0 | AD10: ='SC-RETRO'!X73 -> 0 | AE10: ='SC-RETRO'!Y73 -> 0 | AF10: 0 | AG10: 0 | AH10: 0 | AI10: 0 | AJ10: 0 | AK10: 0 | AL10: 0 | AM10: 0 | AN10: 0 | AO10: 0 | AP10: 0 | AQ10: 0 | AR10: 0 | AS10: 0 | AT10: 0 | AU10: 0 | AV10: 0 | AW10: 0 | AX10: 0 | AY10: 0 | AZ10: 0 | BA10: 0 | BB10: 0 | BC10: 0 | BD10: 0
A11: =VLOOKUP(CONCATENATE($C11,"-",$B11),[2]ACHIEV!$B$19:$C$100,2,FALSE) -> Retro12Med | B11: ='[3]SC-Retro'!$C$7 -> Retro | C11: ='7PSourceSummary'!$D$2 -> Demand Control Ventilation | D11: Commercial | E11: ='SC-RETRO'!$A$9 -> HVAC | F11: 0 | G11: =INDEX('SC-RETRO'!$A$66:$D$83,MATCH($J11,'SC-RETRO'!$D$66:$D$83,0),1) -> 0 | H11: =INDEX('SC-RETRO'!$A$66:$D$83,MATCH($J11,'SC-RETRO'!$D$66:$D$83,0),2) -> 9999 | J11: ='SC-RETRO'!D74 -> Demand Control Ventilation-Retro-University | K11: ='SC-RETRO'!E74 -> 0 | L11: ='SC-RETRO'!F74 -> 0 | M11: ='SC-RETRO'!G74 -> 0 | N11: ='SC-RETRO'!H74 -> 0 | O11: ='SC-RETRO'!I74 -> 0 | P11: ='SC-RETRO'!J74 -> 0 | Q11: ='SC-RETRO'!K74 -> 0 | R11: ='SC-RETRO'!L74 -> 0 | S11: ='SC-RETRO'!M74 -> 0 | T11: ='SC-RETRO'!N74 -> 0 | U11: ='SC-RETRO'!O74 -> 0 | V11: ='SC-RETRO'!P74 -> 0 | W11: ='SC-RETRO'!Q74 -> 0 | X11: ='SC-RETRO'!R74 -> 0 | Y11: ='SC-RETRO'!S74 -> 0 | Z11: ='SC-RETRO'!T74 -> 0 | AA11: ='SC-RETRO'!U74 -> 0 | AB11: ='SC-RETRO'!V74 -> 0 | AC11: ='SC-RETRO'!W74 -> 0 | AD11: ='SC-RETRO'!X74 -> 0 | AE11: ='SC-RETRO'!Y74 -> 0 | AF11: 0 | AG11: 0 | AH11: 0 | AI11: 0 | AJ11: 0 | AK11: 0 | AL11: 0 | AM11: 0 | AN11: 0 | AO11: 0 | AP11: 0 | AQ11: 0 | AR11: 0 | AS11: 0 | AT11: 0 | AU11: 0 | AV11: 0 | AW11: 0 | AX11: 0 | AY11: 0 | AZ11: 0 | BA11: 0 | BB11: 0 | BC11: 0 | BD11: 0
A12: =VLOOKUP(CONCATENATE($C12,"-",$B12),[2]ACHIEV!$B$19:$C$100,2,FALSE) -> Retro12Med | B12: ='[3]SC-Retro'!$C$7 -> Retro | C12: ='7PSourceSummary'!$D$2 -> Demand Control Ventilation | D12: Commercial | E12: ='SC-RETRO'!$A$9 -> HVAC | F12: 0.0002085759773 | G12: =INDEX('SC-RETRO'!$A$66:$D$83,MATCH($J12,'SC-RETRO'!$D$66:$D$83,0),1) -> 1.109527131 | H12: =INDEX('SC-RETRO'!$A$66:$D$83,MATCH($J12,'SC-RETRO'!$D$66:$D$83,0),2) -> 2159.502103 | J12: ='SC-RETRO'!D75 -> Demand Control Ventilation-Retro-Warehouse | K12: ='SC-RETRO'!E75 -> 0.001117198142 | L12: ='SC-RETRO'!F75 -> 0.001113064508 | M12: ='SC-RETRO'!G75 -> 0.00110894617 | N12: ='SC-RETRO'!H75 -> 0.001104843069 | O12: ='SC-RETRO'!I75 -> 0.00110075515 | P12: ='SC-RETRO'!J75 -> 0.00098701412 | Q12: ='SC-RETRO'!K75 -> 0.0007866897342 | R12: ='SC-RETRO'!L75 -> 0.0006270231858 | S12: ='SC-RETRO'!M75 -> 0.00049976256 | T12: ='SC-RETRO'!N75 -> 0.0003983307508 | U12: ='SC-RETRO'!O75 -> 0.0003174855416 | V12: ='SC-RETRO'!P75 -> 0.0002530486761 | W12: ='SC-RETRO'!Q75 -> 0.0002016899168 | X12: ='SC-RETRO'!R75 -> 0.0001607549313 | Y12: ='SC-RETRO'!S75 -> 0.0001281281104 | Z12: ='SC-RETRO'!T75 -> 0.0001021232291 | AA12: ='SC-RETRO'!U75 -> 6.939814624e-07 | AB12: ='SC-RETRO'!V75 -> 2.469334753e-07 | AC12: ='SC-RETRO'!W75 -> 8.387039369e-08 | AD12: ='SC-RETRO'!X75 -> 2.724784997e-08 | AE12: ='SC-RETRO'!Y75 -> 0.009555118858 | AF12: 0.06957304744 | AG12: 0.06255745538 | AH12: 0.07198754916 | AI12: 0.06697152593 | AJ12: 0.06837396152 | AK12: 0.06768096643 | AL12: 0.06429807344 | AM12: 0.06699615088 | AN12: 0.06259582032 | AO12: 0.0713711296 | AP12: 0.06315956931 | AQ12: 0.06876426013 | AR12: 0 | AS12: 0.02953791069 | AT12: 0.02537810591 | AU12: 0.02434294655 | AV12: 0.02541809461 | AW12: 0.02493855879 | AX12: 0.02188289376 | AY12: 0.02569329894 | AZ12: 0.02107110401 | BA12: 0.02594081464 | BB12: 0.02329889812 | BC12: 0.02795389007 | BD12: 0.02974110532
A13: =VLOOKUP(CONCATENATE($C13,"-",$B13),[2]ACHIEV!$B$19:$C$100,2,FALSE) -> Retro12Med | B13: ='[3]SC-Retro'!$C$7 -> Retro | C13: ='7PSourceSummary'!$D$2 -> Demand Control Ventilation | D13: Commercial | E13: ='SC-RETRO'!$A$9 -> HVAC | F13: 0.09631913081 | G13: =INDEX('SC-RETRO'!$A$66:$D$83,MATCH($J13,'SC-RETRO'!$D$66:$D$83,0),1) -> 512.3729503 | H13: =INDEX('SC-RETRO'!$A$66:$D$83,MATCH($J13,'SC-RETRO'!$D$66:$D$83,0),2) -> 51.38514174 | J13: ='SC-RETRO'!D76 -> Demand Control Ventilation-Retro-Supermarket | K13: ='SC-RETRO'!E76 -> 0.1267524332 | L13: ='SC-RETRO'!F76 -> 0.1256116613 | M13: ='SC-RETRO'!G76 -> 0.1244811564 | N13: ='SC-RETRO'!H76 -> 0.123360826 | O13: ='SC-RETRO'!I76 -> 0.1222505785 | P13: ='SC-RETRO'!J76 -> 0.109035291 | Q13: ='SC-RETRO'!K76 -> 0.08644317871 | R13: ='SC-RETRO'!L76 -> 0.06853215208 | S13: ='SC-RETRO'!M76 -> 0.05433229017 | T13: ='SC-RETRO'!N76 -> 0.04307463965 | U13: ='SC-RETRO'!O76 -> 0.03414957431 | V13: ='SC-RETRO'!P76 -> 0.02707378251 | W13: ='SC-RETRO'!Q76 -> 0.02146409478 | X13: ='SC-RETRO'!R76 -> 0.01701673434 | Y13: ='SC-RETRO'!S76 -> 0.01349086698 | Z13: ='SC-RETRO'!T76 -> 0.01069555934 | AA13: ='SC-RETRO'!U76 -> 7.229534873e-05 | AB13: ='SC-RETRO'!V76 -> 2.55873895e-05 | AC13: ='SC-RETRO'!W76 -> 8.644466929e-06 | AD13: ='SC-RETRO'!X76 -> 2.79347828e-06 | AE13: ='SC-RETRO'!Y76 -> 0.9848398861 | AF13: =VLOOKUP($J13,MeasureOutputR,COLUMN()-17,FALSE) -> 32.12841451 | AG13: 28.88865633 | AH13: 33.24341687 | AI13: 30.92704754 | AJ13: 31.57468385 | AK13: 31.25466289 | AL13: 29.69246327 | AM13: 30.93841919 | AN13: 28.90637303 | AO13: 32.95875803 | AP13: =VLOOKUP($J13,MeasureOutputR,COLUMN()-17,FALSE) -> 29.16670892 | AQ13: 31.7549214 | AR13: 0 | AS13: 13.64042935 | AT13: 11.71945655 | AU13: 11.24142618 | AV13: 11.73792309 | AW13: 11.51647633 | AX13: 10.10538862 | AY13: 11.86501079 | AZ13: 9.730508993 | BA13: 11.97931205 | BB13: 10.7592909 | BC13: 12.90893816 | BD13: 13.73426341
A14: =VLOOKUP(CONCATENATE($C14,"-",$B14),[2]ACHIEV!$B$19:$C$100,2,FALSE) -> Retro12Med | B14: ='[3]SC-Retro'!$C$7 -> Retro | C14: ='7PSourceSummary'!$D$2 -> Demand Control Ventilation | D14: Commercial | E14: ='SC-RETRO'!$A$9 -> HVAC | F14: 0.03487834634 | G14: =INDEX('SC-RETRO'!$A$66:$D$83,MATCH($J14,'SC-RETRO'!$D$66:$D$83,0),1) -> 185.5365706 | H14: =INDEX('SC-RETRO'!$A$66:$D$83,MATCH($J14,'SC-RETRO'!$D$66:$D$83,0),2) -> 124.7039373 | J14: ='SC-RETRO'!D77 -> Demand Control Ventilation-Retro-MiniMart | K14: ='SC-RETRO'!E77 -> 0.02546459373 | L14: ='SC-RETRO'!F77 -> 0.02534440085 | M14: ='SC-RETRO'!G77 -> 0.02522477527 | N14: ='SC-RETRO'!H77 -> 0.02510571433 | O14: ='SC-RETRO'!I77 -> 0.02498721536 | P14: ='SC-RETRO'!J77 -> 0.02238234814 | Q14: ='SC-RETRO'!K77 -> 0.01782136276 | R14: ='SC-RETRO'!L77 -> 0.01418979674 | S14: ='SC-RETRO'!M77 -> 0.01129825672 | T14: ='SC-RETRO'!N77 -> 0.008995943161 | U14: ='SC-RETRO'!O77 -> 0.007162785847 | V14: ='SC-RETRO'!P77 -> 0.005703181998 | W14: ='SC-RETRO'!Q77 -> 0.004541010383 | X14: ='SC-RETRO'!R77 -> 0.003615661452 | Y14: ='SC-RETRO'!S77 -> 0.002878876424 | Z14: ='SC-RETRO'!T77 -> 0.002292230502 | AA14: ='SC-RETRO'!U77 -> 1.556097356e-05 | AB14: ='SC-RETRO'!V77 -> 5.531259203e-06 | AC14: ='SC-RETRO'!W77 -> 1.876756248e-06 | AD14: ='SC-RETRO'!X77 -> 6.090971603e-07 | AE14: ='SC-RETRO'!Y77 -> 0.2138135786 | AF14: 11.63409552 | AG14: 10.46093909 | AH14: 12.03785164 | AI14: 11.19906571 | AJ14: 11.43358282 | AK14: 11.31769928 | AL14: 10.75200751 | AM14: 11.20318353 | AN14: 10.46735453 | AO14: 11.93477316 | AP14: 10.56162537 | AQ14: 11.49884906 | AR14: 0 | AS14: 4.939367862 | AT14: 4.243759894 | AU14: 4.070659198 | AV14: 4.250446855 | AW14: 4.170258253 | AX14: 3.65928597 | AY14: 4.296466882 | AZ14: 3.523537431 | BA14: 4.337856779 | BB14: 3.896072061 | BC14: 4.674485872 | BD14: 4.973346331
A15: =VLOOKUP(CONCATENATE($C15,"-",$B15),[2]ACHIEV!$B$19:$C$100,2,FALSE) -> Retro12Med | B15: ='[3]SC-Retro'!$C$7 -> Retro | C15: ='7PSourceSummary'!$D$2 -> Demand Control Ventilation | D15: Commercial | E15: ='SC-RETRO'!$A$9 -> HVAC | F15: 0.0911072814 | G15: =INDEX('SC-RETRO'!$A$66:$D$83,MATCH($J15,'SC-RETRO'!$D$66:$D$83,0),1) -> 484.6483369 | H15: =INDEX('SC-RETRO'!$A$66:$D$83,MATCH($J15,'SC-RETRO'!$D$66:$D$83,0),2) -> 58.49840254 | J15: ='SC-RETRO'!D78 -> Demand Control Ventilation-Retro-Restaurant | K15: ='SC-RETRO'!E78 -> 0.1193666056 | L15: ='SC-RETRO'!F78 -> 0.1188031952 | M15: ='SC-RETRO'!G78 -> 0.1182424442 | N15: ='SC-RETRO'!H78 -> 0.1176843398 | O15: ='SC-RETRO'!I78 -> 0.1171288697 | P15: ='SC-RETRO'!J78 -> 0.1049184193 | Q15: ='SC-RETRO'!K78 -> 0.08353856351 | R15: ='SC-RETRO'!L78 -> 0.06651540919 | S15: ='SC-RETRO'!M78 -> 0.05296116517 | T15: ='SC-RETRO'!N78 -> 0.04216895077 | U15: ='SC-RETRO'!O78 -> 0.03357593066 | V15: ='SC-RETRO'!P78 -> 0.02673396181 | W15: ='SC-RETRO'!Q78 -> 0.02128622201 | X15: ='SC-RETRO'!R78 -> 0.01694860084 | Y15: ='SC-RETRO'!S78 -> 0.01349488275 | Z15: ='SC-RETRO'!T78 -> 0.01074494952 | AA15: ='SC-RETRO'!U78 -> 7.294287175e-05 | AB15: ='SC-RETRO'!V78 -> 2.592806478e-05 | AC15: ='SC-RETRO'!W78 -> 8.797392381e-06 | AD15: ='SC-RETRO'!X78 -> 2.855174573e-06 | AE15: ='SC-RETRO'!Y78 -> 1.002262254 | AF15: 30.38993892 | AG15: 27.32548476 | AH15: 31.44460825 | AI15: 29.25357817 | AJ15: 29.86617075 | AK15: 29.56346619 | AL15: 28.08579753 | AM15: 29.26433451 | AN15: 27.34224281 | AO15: 31.17535236 | AP15: 27.58849187 | AQ15: 30.0366556 | AR15: 0 | AS15: 12.90234271 | AT15: 11.08531417 | AU15: 10.63315013 | AV15: 11.10278148 | AW15: 10.89331726 | AX15: 9.558583809 | AY15: 11.22299244 | AZ15: 9.203989005 | BA15: 11.33110883 | BB15: 10.1771033 | BC15: 12.21043267 | BD15: 12.99109939
A16: =VLOOKUP(CONCATENATE($C16,"-",$B16),[2]ACHIEV!$B$19:$C$100,2,FALSE) -> Retro12Med | B16: ='[3]SC-Retro'!$C$7 -> Retro | C16: ='7PSourceSummary'!$D$2 -> Demand Control Ventilation | D16: Commercial | E16: ='SC-RETRO'!$A$9 -> HVAC | F16: 0.03576498035 | G16: =INDEX('SC-RETRO'!$A$66:$D$83,MATCH($J16,'SC-RETRO'!$D$66:$D$83,0),1) -> 190.2530509 | H16: =INDEX('SC-RETRO'!$A$66:$D$83,MATCH($J16,'SC-RETRO'!$D$66:$D$83,0),2) -> 56.10620343 | J16: ='SC-RETRO'!D79 -> Demand Control Ventilation-Retro-Lodging | K16: ='SC-RETRO'!E79 -> 0.08316952729 | L16: ='SC-RETRO'!F79 -> 0.08296992042 | M16: ='SC-RETRO'!G79 -> 0.08277079261 | N16: ='SC-RETRO'!H79 -> 0.08257214271 | O16: ='SC-RETRO'!I79 -> 0.08237396957 | P16: ='SC-RETRO'!J79 -> 0.07395864484 | Q16: ='SC-RETRO'!K79 -> 0.05902491527 | R16: ='SC-RETRO'!L79 -> 0.04710660438 | S16: ='SC-RETRO'!M79 -> 0.03759483882 | T16: ='SC-RETRO'!N79 -> 0.03000368897 | U16: ='SC-RETRO'!O79 -> 0.02394534409 | V16: ='SC-RETRO'!P79 -> 0.01911030021 | W16: ='SC-RETRO'!Q79 -> 0.01525154839 | X16: ='SC-RETRO'!R79 -> 0.01217195574 | Y16: ='SC-RETRO'!S79 -> 0.009714194439 | Z16: ='SC-RETRO'!T79 -> 0.007752704298 | AA16: ='SC-RETRO'!U79 -> 5.275247747e-05 | AB16: ='SC-RETRO'!V79 -> 1.879495411e-05 | AC16: ='SC-RETRO'!W79 -> 6.391993031e-06 | AD16: ='SC-RETRO'!X79 -> 2.079343124e-06 | AE16: ='SC-RETRO'!Y79 -> 0.7282218488 | AF16: 11.92984305 | AG16: 10.72686409 | AH16: 12.34386296 | AI16: 11.48375445 | AJ16: 11.72423316 | AK16: 11.60540377 | AL16: 11.02533169 | AM16: 11.48797695 | AN16: 10.73344261 | AO16: 12.23816415 | AP16: 10.83010989 | AQ16: 11.79115852 | AR16: 0 | AS16: 5.064930338 | AT16: 4.351639488 | AU16: 4.174138441 | AV16: 4.358496437 | AW16: 4.276269379 | AX16: 3.752307794 | AY16: 4.405686328 | AZ16: 3.613108424 | BA16: 4.448128387 | BB16: 3.995113167 | BC16: 4.793314847 | BD16: 5.099772566
A17: =VLOOKUP(CONCATENATE($C17,"-",$B17),[2]ACHIEV!$B$19:$C$100,2,FALSE) -> Retro12Med | B17: ='[3]SC-Retro'!$C$7 -> Retro | C17: ='7PSourceSummary'!$D$2 -> Demand Control Ventilation | D17: Commercial | E17: ='SC-RETRO'!$A$9 -> HVAC | F17: 0.005600773384 | G17: =INDEX('SC-RETRO'!$A$66:$D$83,MATCH($J17,'SC-RETRO'!$D$66:$D$83,0),1) -> 29.79350788 | H17: =INDEX('SC-RETRO'!$A$66:$D$83,MATCH($J17,'SC-RETRO'!$D$66:$D$83,0),2) -> 418.3038632 | J17: ='SC-RETRO'!D80 -> Demand Control Ventilation-Retro-Hospital | K17: ='SC-RETRO'!E80 -> 0.004205384611 | L17: ='SC-RETRO'!F80 -> 0.004196553303 | M17: ='SC-RETRO'!G80 -> 0.004187740541 | N17: ='SC-RETRO'!H80 -> 0.004178946286 | O17: ='SC-RETRO'!I80 -> 0.004170170499 | P17: ='SC-RETRO'!J80 -> 0.003745271827 | Q17: ='SC-RETRO'!K80 -> 0.002989925405 | R17: ='SC-RETRO'!L80 -> 0.002386917249 | S17: ='SC-RETRO'!M80 -> 0.001905523778 | T17: ='SC-RETRO'!N80 -> 0.001521217743 | U17: ='SC-RETRO'!O80 -> 0.001214418548 | V17: ='SC-RETRO'!P80 -> 0.0009694946156 | W17: ='SC-RETRO'!Q80 -> 0.0007739669415 | X17: ='SC-RETRO'!R80 -> 0.0006178732887 | Y17: ='SC-RETRO'!S80 -> 0.0004932606039 | Z17: ='SC-RETRO'!T80 -> 0.0003937798053 | AA17: ='SC-RETRO'!U80 -> 2.68023987e-06 | AB17: ='SC-RETRO'!V80 -> 9.552183449e-07 | AC17: ='SC-RETRO'!W80 -> 3.249587681e-07 | AD17: ='SC-RETRO'!X80 -> 1.057422896e-07 | AE17: ='SC-RETRO'!Y80 -> 0.03702164157 | AF17: 1.868205904 | AG17: 1.679820157 | AH17: 1.933041161 | AI17: 1.798348711 | AJ17: 1.836007525 | AK17: 1.817398917 | AL17: 1.726559995 | AM17: 1.799009951 | AN17: 1.680850349 | AO17: 1.916488793 | AP17: 1.695988384 | AQ17: 1.846487994 | AR17: 0 | AS17: 0.7931648991 | AT17: 0.6814640015 | AU17: 0.6536674494 | AV17: 0.6825377955 | AW17: 0.66966109 | AX17: 0.5876090359 | AY17: 0.6899277026 | AZ17: 0.5658105023 | BA17: 0.6965741024 | BB17: 0.6256322044 | BC17: 0.7506300845 | BD17: 0.7986211701
A18: =VLOOKUP(CONCATENATE($C18,"-",$B18),[2]ACHIEV!$B$19:$C$100,2,FALSE) -> Retro12Med | B18: ='[3]SC-Retro'!$C$7 -> Retro | C18: ='7PSourceSummary'!$D$2 -> Demand Control Ventilation | D18: Commercial | E18: ='SC-RETRO'!$A$9 -> HVAC | F18: 0.02497017205 | G18: =INDEX('SC-RETRO'!$A$66:$D$83,MATCH($J18,'SC-RETRO'!$D$66:$D$83,0),1) -> 132.8296945 | H18: =INDEX('SC-RETRO'!$A$66:$D$83,MATCH($J18,'SC-RETRO'!$D$66:$D$83,0),2) -> 74.60396462 | J18: ='SC-RETRO'!D81 -> Demand Control Ventilation-Retro-Residential Care | K18: ='SC-RETRO'!E81 -> 0.05855489575 | L18: ='SC-RETRO'!F81 -> 0.058414364 | M18: ='SC-RETRO'!G81 -> 0.05827416953 | N18: ='SC-RETRO'!H81 -> 0.05813431152 | O18: ='SC-RETRO'!I81 -> 0.05799478917 | P18: ='SC-RETRO'!J81 -> 0.05207004151 | Q18: ='SC-RETRO'!K81 -> 0.04155605873 | R18: ='SC-RETRO'!L81 -> 0.03316505935 | S18: ='SC-RETRO'!M81 -> 0.02646837057 | T18: ='SC-RETRO'!N81 -> 0.02112387718 | U18: ='SC-RETRO'!O81 -> 0.0168585439 | V18: ='SC-RETRO'!P81 -> 0.01345446672 | W18: ='SC-RETRO'!Q81 -> 0.0107377408 | X18: ='SC-RETRO'!R81 -> 0.008569576176 | Y18: ='SC-RETRO'!S81 -> 0.006839207354 | Z18: ='SC-RETRO'!T81 -> 0.005458234605 | AA18: ='SC-RETRO'!U81 -> 3.713999489e-05 | AB18: ='SC-RETRO'!V81 -> 1.323244961e-05 | AC18: ='SC-RETRO'!W81 -> 4.500235817e-06 | AD18: ='SC-RETRO'!X81 -> 1.463946278e-06 | AE18: ='SC-RETRO'!Y81 -> 0.5126992521 | AF18: 8.329103797 | AG18: 7.489215412 | AH18: 8.618161646 | AI18: 8.017656426 | AJ18: 8.185552358 | AK18: 8.102588793 | AL18: 7.697597666 | AM18: 8.020604461 | AN18: 7.493808362 | AO18: 8.544365504 | AP18: 7.561298922 | AQ18: 8.232277889 | AR18: 0 | AS18: 3.536201635 | AT18: 3.038200655 | AU18: 2.914274076 | AV18: 3.042987998 | AW18: 2.985579221 | AX18: 2.619762972 | AY18: 3.075934743 | AZ18: 2.52257762 | BA18: 3.105566676 | BB18: 2.789283321 | BC18: 3.346566817 | BD18: 3.560527565
A19: =VLOOKUP(CONCATENATE($C19,"-",$B19),[2]ACHIEV!$B$19:$C$100,2,FALSE) -> Retro12Med | B19: ='[3]SC-Retro'!$C$7 -> Retro | C19: ='7PSourceSummary'!$D$2 -> Demand Control Ventilation | D19: Commercial | E19: ='SC-RETRO'!$A$9 -> HVAC | F19: 0.019567263 | G19: =INDEX('SC-RETRO'!$A$66:$D$83,MATCH($J19,'SC-RETRO'!$D$66:$D$83,0),1) -> 104.0887328 | H19: =INDEX('SC-RETRO'!$A$66:$D$83,MATCH($J19,'SC-RETRO'!$D$66:$D$83,0),2) -> 0 | J19: ='SC-RETRO'!D82 -> Demand Control Ventilation-Retro-Assembly | K19: ='SC-RETRO'!E82 -> 0.1954771689 | L19: ='SC-RETRO'!F82 -> 0.194600128 | M19: ='SC-RETRO'!G82 -> 0.1937270221 | N19: ='SC-RETRO'!H82 -> 0.1928578335 | O19: ='SC-RETRO'!I82 -> 0.1919925447 | P19: ='SC-RETRO'!J82 -> 0.1720180243 | Q19: ='SC-RETRO'!K82 -> 0.1369969894 | R19: ='SC-RETRO'!L82 -> 0.1091058637 | S19: ='SC-RETRO'!M82 -> 0.08689307363 | T19: ='SC-RETRO'!N82 -> 0.0692025707 | U19: ='SC-RETRO'!O82 -> 0.05511366547 | V19: ='SC-RETRO'!P82 -> 0.04389311106 | W19: ='SC-RETRO'!Q82 -> 0.03495694184 | X19: ='SC-RETRO'!R82 -> 0.02784008135 | Y19: ='SC-RETRO'!S82 -> 0.02217213775 | Z19: ='SC-RETRO'!T82 -> 0.01765812701 | AA19: ='SC-RETRO'!U82 -> 0.0001199015833 | AB19: ='SC-RETRO'!V82 -> 4.262986602e-05 | AC19: ='SC-RETRO'!W82 -> 1.446770455e-05 | AD19: ='SC-RETRO'!X82 -> 4.696562865e-06 | AE19: ='SC-RETRO'!Y82 -> 1.648265026 | AF19: 6.526897941 | AG19: 5.868740004 | AH19: 6.753411036 | AI19: 6.282839846 | AJ19: 6.414407376 | AK19: 6.349395013 | AL19: 6.032033648 | AM19: 6.285150001 | AN19: 5.872339157 | AO19: 6.695582499 | AP19: 5.925226479 | AQ19: 6.451022693 | AR19: 0 | AS19: 2.771057695 | AT19: 2.38081144 | AU19: 2.283699414 | AV19: 2.384562923 | AW19: 2.339575943 | AX19: 2.05291301 | AY19: 2.410380832 | AZ19: 1.976756092 | BA19: 2.43360117 | BB19: 2.185753475 | BC19: 2.62245502 | BD19: 2.790120114
A20: =VLOOKUP(CONCATENATE($C20,"-",$B20),[2]ACHIEV!$B$19:$C$100,2,FALSE) -> Retro12Med | B20: ='[3]SC-Retro'!$C$7 -> Retro | C20: ='7PSourceSummary'!$D$2 -> Demand Control Ventilation | D20: Commercial | E20: ='SC-RETRO'!$A$9 -> HVAC | F20: 0.0126211997 | G20: =INDEX('SC-RETRO'!$A$66:$D$83,MATCH($J20,'SC-RETRO'!$D$66:$D$83,0),1) -> 67.13890864 | H20: =INDEX('SC-RETRO'!$A$66:$D$83,MATCH($J20,'SC-RETRO'!$D$66:$D$83,0),2) -> 165.0468341 | J20: ='SC-RETRO'!D83 -> Demand Control Ventilation-Retro-Other | K20: ='SC-RETRO'!E83 -> 0.08465082955 | L20: ='SC-RETRO'!F83 -> 0.08388897209 | M20: ='SC-RETRO'!G83 -> 0.08313397134 | N20: ='SC-RETRO'!H83 -> 0.0823857656 | O20: ='SC-RETRO'!I83 -> 0.08164429371 | P20: ='SC-RETRO'!J83 -> 0.07281854556 | Q20: ='SC-RETRO'!K83 -> 0.05773054292 | R20: ='SC-RETRO'!L83 -> 0.04576877443 | S20: ='SC-RETRO'!M83 -> 0.03628548436 | T20: ='SC-RETRO'!N83 -> 0.028767132 | U20: ='SC-RETRO'!O83 -> 0.02280658225 | V20: ='SC-RETRO'!P83 -> 0.01808105841 | W20: ='SC-RETRO'!Q83 -> 0.01433466311 | X20: ='SC-RETRO'!R83 -> 0.01136452091 | Y20: ='SC-RETRO'!S83 -> 0.009009792179 | Z20: ='SC-RETRO'!T83 -> 0.007142963239 | AA20: ='SC-RETRO'!U83 -> 4.828200206e-05 | AB20: ='SC-RETRO'!V83 -> 1.708838001e-05 | AC20: ='SC-RETRO'!W83 -> 5.773153839e-06 | AD20: ='SC-RETRO'!X83 -> 1.865607213e-06 | AE20: ='SC-RETRO'!Y83 -> 0.6577192343 | AF20: 4.209954264 | AG20: 3.785431798 | AH20: 4.356058858 | AI20: 4.052532863 | AJ20: 4.137396039 | AK20: 4.095462018 | AL20: 3.890758827 | AM20: 4.054022951 | AN20: 3.787753309 | AO20: 4.31875852 | AP20: 3.821866483 | AQ20: 4.161013507 | AR20: 0 | AS20: 1.787376831 | AT20: 1.535661713 | AU20: 1.473022893 | AV20: 1.53808148 | AW20: 1.509064153 | AX20: 1.324161946 | AY20: 1.554734447 | AZ20: 1.275039508 | BA20: 1.569711939 | BB20: 1.409846185 | BC20: 1.691525713 | BD20: 1.799672398

Sheet SC-RETRO
A1: Units Methodology
A3: Forecast Version
B7: Vintage | C7: Retro | D7: Stock 2016
A8: End-Use: | B8: Measure Bundle | C8: =[2]MLIST!$D$40 -> Demand Control Ventilation-Retro | D8: =[5]!switch_ForecastState -> Region
A9: =INDEX([2]ACHIEV!$A$19:$B$100,MATCH(C8,[2]ACHIEV!$B$19:$B$100,0),1) -> HVAC | B9: Report Year | C9: =[2]FILES!$H$4 -> 2035 | D9: =[5]!switch_ForecastScenario -> Base
B10: Total Potential (aMW) | C10: =MIN(SUM(E85:X85),Y85) -> 21.22818615
A11: FLOOR AREA FOR EXISTING STOCK | E11: 2016 | F11: =E11+1 -> 2017 | G11: 2018 | H11: 2019 | I11: 2020 | J11: 2021 | K11: 2022 | L11: 2023 | M11: 2024 | N11: 2025 | O11: 2026 | P11: 2027 | Q11: 2028 | R11: 2029 | S11: 2030 | T11: 2031 | U11: 2032 | V11: 2033 | W11: 2034 | X11: 2035
A12: INCLUDES APPLICABILITY FACTOR | E12: =CONCATENATE("FLOOR_",E11) -> FLOOR_2016 | F12: FLOOR_2017 | G12: FLOOR_2018 | H12: FLOOR_2019 | I12: FLOOR_2020 | J12: FLOOR_2021 | K12: FLOOR_2022 | L12: FLOOR_2023 | M12: FLOOR_2024 | N12: FLOOR_2025 | O12: FLOOR_2026 | P12: FLOOR_2027 | Q12: FLOOR_2028 | R12: FLOOR_2029 | S12: FLOOR_2030 | T12: FLOOR_2031 | U12: FLOOR_2032 | V12: FLOOR_2033 | W12: FLOOR_2034 | X12: =CONCATENATE("FLOOR_",X11) -> FLOOR_2035
C13: Large Off | E13: =INDEX([5]!tbl_Forecast,MATCH($D$8&$C13&$D$7,[5]!rng_ForecastRowLookup,0),MATCH(E$11,[5]!rng_ForecastColumnLookup,0)) -> 380.0882848 | F13: =INDEX([5]!tbl_Forecast,MATCH($D$8&$C13&$D$7,[5]!rng_ForecastRowLookup,0),MATCH(F$11,[5]!rng_ForecastColumnLookup,0)) -> 378.9480199 | G13: =INDEX([5]!tbl_Forecast,MATCH($D$8&$C13&$D$7,[5]!rng_ForecastRowLookup,0),MATCH(G$11,[5]!rng_ForecastColumnLookup,0)) -> 377.8111759 | H13: =INDEX([5]!tbl_Forecast,MATCH($D$8&$C13&$D$7,[5]!rng_ForecastRowLookup,0),MATCH(H$11,[5]!rng_ForecastColumnLookup,0)) -> 376.6777423 | I13: =INDEX([5]!tbl_Forecast,MATCH($D$8&$C13&$D$7,[5]!rng_ForecastRowLookup,0),MATCH(I$11,[5]!rng_ForecastColumnLookup,0)) -> 375.5477091 | J13: =INDEX([5]!tbl_Forecast,MATCH($D$8&$C13&$D$7,[5]!rng_ForecastRowLookup,0),MATCH(J$11,[5]!rng_ForecastColumnLookup,0)) -> 374.421066 | K13: =INDEX([5]!tbl_Forecast,MATCH($D$8&$C13&$D$7,[5]!rng_ForecastRowLookup,0),MATCH(K$11,[5]!rng_ForecastColumnLookup,0)) -> 373.2978028 | L13: =INDEX([5]!tbl_Forecast,MATCH($D$8&$C13&$D$7,[5]!rng_ForecastRowLookup,0),MATCH(L$11,[5]!rng_ForecastColumnLookup,0)) -> 372.1779094 | M13: =INDEX([5]!tbl_Forecast,MATCH($D$8&$C13&$D$7,[5]!rng_ForecastRowLookup,0),MATCH(M$11,[5]!rng_ForecastColumnLookup,0)) -> 371.0613756 | N13: =INDEX([5]!tbl_Forecast,MATCH($D$8&$C13&$D$7,[5]!rng_ForecastRowLookup,0),MATCH(N$11,[5]!rng_ForecastColumnLookup,0)) -> 369.9481915 | O13: =INDEX([5]!tbl_Forecast,MATCH($D$8&$C13&$D$7,[5]!rng_ForecastRowLookup,0),MATCH(O$11,[5]!rng_ForecastColumnLookup,0)) -> 368.8383469 | P13: =INDEX([5]!tbl_Forecast,MATCH($D$8&$C13&$D$7,[5]!rng_ForecastRowLookup,0),MATCH(P$11,[5]!rng_ForecastColumnLookup,0)) -> 367.7318319 | Q13: =INDEX([5]!tbl_Forecast,MATCH($D$8&$C13&$D$7,[5]!rng_ForecastRowLookup,0),MATCH(Q$11,[5]!rng_ForecastColumnLookup,0)) -> 366.6286364 | R13: =INDEX([5]!tbl_Forecast,MATCH($D$8&$C13&$D$7,[5]!rng_ForecastRowLookup,0),MATCH(R$11,[5]!rng_ForecastColumnLookup,0)) -> 365.5287505 | S13: =INDEX([5]!tbl_Forecast,MATCH($D$8&$C13&$D$7,[5]!rng_ForecastRowLookup,0),MATCH(S$11,[5]!rng_ForecastColumnLookup,0)) -> 364.4321643 | T13: =INDEX([5]!tbl_Forecast,MATCH($D$8&$C13&$D$7,[5]!rng_ForecastRowLookup,0),MATCH(T$11,[5]!rng_ForecastColumnLookup,0)) -> 363.3388678 | U13: =INDEX([5]!tbl_Forecast,MATCH($D$8&$C13&$D$7,[5]!rng_ForecastRowLookup,0),MATCH(U$11,[5]!rng_ForecastColumnLookup,0)) -> 362.2488512 | V13: =INDEX([5]!tbl_Forecast,MATCH($D$8&$C13&$D$7,[5]!rng_ForecastRowLookup,0),MATCH(V$11,[5]!rng_ForecastColumnLookup,0)) -> 361.1621046 | W13: =INDEX([5]!tbl_Forecast,MATCH($D$8&$C13&$D$7,[5]!rng_ForecastRowLookup,0),MATCH(W$11,[5]!rng_ForecastColumnLookup,0)) -> 360.0786183 | X13: =INDEX([5]!tbl_Forecast,MATCH($D$8&$C13&$D$7,[5]!rng_ForecastRowLookup,0),MATCH(X$11,[5]!rng_ForecastColumnLookup,0)) -> 358.9983824
C14: Medium Off | E14: =INDEX([5]!tbl_Forecast,MATCH($D$8&$C14&$D$7,[5]!rng_ForecastRowLookup,0),MATCH(E$11,[5]!rng_ForecastColumnLookup,0)) -> 190.7368714 | F14: =INDEX([5]!tbl_Forecast,MATCH($D$8&$C14&$D$7,[5]!rng_ForecastRowLookup,0),MATCH(F$11,[5]!rng_ForecastColumnLookup,0)) -> 190.1646608 | G14: =INDEX([5]!tbl_Forecast,MATCH($D$8&$C14&$D$7,[5]!rng_ForecastRowLookup,0),MATCH(G$11,[5]!rng_ForecastColumnLookup,0)) -> 189.5941668 | H14: =INDEX([5]!tbl_Forecast,MATCH($D$8&$C14&$D$7,[5]!rng_ForecastRowLookup,0),MATCH(H$11,[5]!rng_ForecastColumnLookup,0)) -> 189.0253843 | I14: =INDEX([5]!tbl_Forecast,MATCH($D$8&$C14&$D$7,[5]!rng_ForecastRowLookup,0),MATCH(I$11,[5]!rng_ForecastColumnLookup,0)) -> 188.4583081 | J14: =INDEX([5]!tbl_Forecast,MATCH($D$8&$C14&$D$7,[5]!rng_ForecastRowLookup,0),MATCH(J$11,[5]!rng_ForecastColumnLookup,0)) -> 187.8929332 | K14: =INDEX([5]!tbl_Forecast,MATCH($D$8&$C14&$D$7,[5]!rng_ForecastRowLookup,0),MATCH(K$11,[5]!rng_ForecastColumnLookup,0)) -> 187.3292544 | L14: =INDEX([5]!tbl_Forecast,MATCH($D$8&$C14&$D$7,[5]!rng_ForecastRowLookup,0),MATCH(L$11,[5]!rng_ForecastColumnLookup,0)) -> 186.7672666 | M14: =INDEX([5]!tbl_Forecast,MATCH($D$8&$C14&$D$7,[5]!rng_ForecastRowLookup,0),MATCH(M$11,[5]!rng_ForecastColumnLookup,0)) -> 186.2069648 | N14: =INDEX([5]!tbl_Forecast,MATCH($D$8&$C14&$D$7,[5]!rng_ForecastRowLookup,0),MATCH(N$11,[5]!rng_ForecastColumnLookup,0)) -> 185.648344 | O14: =INDEX([5]!tbl_Forecast,MATCH($D$8&$C14&$D$7,[5]!rng_ForecastRowLookup,0),MATCH(O$11,[5]!rng_ForecastColumnLookup,0)) -> 185.0913989 | P14: =INDEX([5]!tbl_Forecast,MATCH($D$8&$C14&$D$7,[5]!rng_ForecastRowLookup,0),MATCH(P$11,[5]!rng_ForecastColumnLookup,0)) -> 184.5361247 | Q14: =INDEX([5]!tbl_Forecast,MATCH($D$8&$C14&$D$7,[5]!rng_ForecastRowLookup,0),MATCH(Q$11,[5]!rng_ForecastColumnLookup,0)) -> 183.9825163 | R14: =INDEX([5]!tbl_Forecast,MATCH($D$8&$C14&$D$7,[5]!rng_ForecastRowLookup,0),MATCH(R$11,[5]!rng_ForecastColumnLookup,0)) -> 183.4305688 | S14: =INDEX([5]!tbl_Forecast,MATCH($D$8&$C14&$D$7,[5]!rng_ForecastRowLookup,0),MATCH(S$11,[5]!rng_ForecastColumnLookup,0)) -> 182.8802771 | T14: =INDEX([5]!tbl_Forecast,MATCH($D$8&$C14&$D$7,[5]!rng_ForecastRowLookup,0),MATCH(T$11,[5]!rng_ForecastColumnLookup,0)) -> 182.3316363 | U14: =INDEX([5]!tbl_Forecast,MATCH($D$8&$C14&$D$7,[5]!rng_ForecastRowLookup,0),MATCH(U$11,[5]!rng_ForecastColumnLookup,0)) -> 181.7846414 | V14: =INDEX([5]!tbl_Forecast,MATCH($D$8&$C14&$D$7,[5]!rng_ForecastRowLookup,0),MATCH(V$11,[5]!rng_ForecastColumnLookup,0)) -> 181.2392874 | W14: =INDEX([5]!tbl_Forecast,MATCH($D$8&$C14&$D$7,[5]!rng_ForecastRowLookup,0),MATCH(W$11,[5]!rng_ForecastColumnLookup,0)) -> 180.6955696 | X14: =INDEX([5]!tbl_Forecast,MATCH($D$8&$C14&$D$7,[5]!rng_ForecastRowLookup,0),MATCH(X$11,[5]!rng_ForecastColumnLookup,0)) -> 180.1534829
C15: Small Off | E15: =INDEX([5]!tbl_Forecast,MATCH($D$8&$C15&$D$7,[5]!rng_ForecastRowLookup,0),MATCH(E$11,[5]!rng_ForecastColumnLookup,0)) -> 184.0913556 | F15: =INDEX([5]!tbl_Forecast,MATCH($D$8&$C15&$D$7,[5]!rng_ForecastRowLookup,0),MATCH(F$11,[5]!rng_ForecastColumnLookup,0)) -> 183.5390815 | G15: =INDEX([5]!tbl_Forecast,MATCH($D$8&$C15&$D$7,[5]!rng_ForecastRowLookup,0),MATCH(G$11,[5]!rng_ForecastColumnLookup,0)) -> 182.9884643 | H15: =INDEX([5]!tbl_Forecast,MATCH($D$8&$C15&$D$7,[5]!rng_ForecastRowLookup,0),MATCH(H$11,[5]!rng_ForecastColumnLookup,0)) -> 182.4394989 | I15: =INDEX([5]!tbl_Forecast,MATCH($D$8&$C15&$D$7,[5]!rng_ForecastRowLookup,0),MATCH(I$11,[5]!rng_ForecastColumnLookup,0)) -> 181.8921804 | J15: =INDEX([5]!tbl_Forecast,MATCH($D$8&$C15&$D$7,[5]!rng_ForecastRowLookup,0),MATCH(J$11,[5]!rng_ForecastColumnLookup,0)) -> 181.3465039 | K15: =INDEX([5]!tbl_Forecast,MATCH($D$8&$C15&$D$7,[5]!rng_ForecastRowLookup,0),MATCH(K$11,[5]!rng_ForecastColumnLookup,0)) -> 180.8024644 | L15: =INDEX([5]!tbl_Forecast,MATCH($D$8&$C15&$D$7,[5]!rng_ForecastRowLookup,0),MATCH(L$11,[5]!rng_ForecastColumnLookup,0)) -> 180.260057 | M15: =INDEX([5]!tbl_Forecast,MATCH($D$8&$C15&$D$7,[5]!rng_ForecastRowLookup,0),MATCH(M$11,[5]!rng_ForecastColumnLookup,0)) -> 179.7192768 | N15: =INDEX([5]!tbl_Forecast,MATCH($D$8&$C15&$D$7,[5]!rng_ForecastRowLookup,0),MATCH(N$11,[5]!rng_ForecastColumnLookup,0)) -> 179.180119 | O15: =INDEX([5]!tbl_Forecast,MATCH($D$8&$C15&$D$7,[5]!rng_ForecastRowLookup,0),MATCH(O$11,[5]!rng_ForecastColumnLookup,0)) -> 178.6425786 | P15: =INDEX([5]!tbl_Forecast,MATCH($D$8&$C15&$D$7,[5]!rng_ForecastRowLookup,0),MATCH(P$11,[5]!rng_ForecastColumnLookup,0)) -> 178.1066509 | Q15: =INDEX([5]!tbl_Forecast,MATCH($D$8&$C15&$D$7,[5]!rng_ForecastRowLookup,0),MATCH(Q$11,[5]!rng_ForecastColumnLookup,0)) -> 177.5723309 | R15: =INDEX([5]!tbl_Forecast,MATCH($D$8&$C15&$D$7,[5]!rng_ForecastRowLookup,0),MATCH(R$11,[5]!rng_ForecastColumnLookup,0)) -> 177.0396139 | S15: =INDEX([5]!tbl_Forecast,MATCH($D$8&$C15&$D$7,[5]!rng_ForecastRowLookup,0),MATCH(S$11,[5]!rng_ForecastColumnLookup,0)) -> 176.5084951 | T15: =INDEX([5]!tbl_Forecast,MATCH($D$8&$C15&$D$7,[5]!rng_ForecastRowLookup,0),MATCH(T$11,[5]!rng_ForecastColumnLookup,0)) -> 175.9789696 | U15: =INDEX([5]!tbl_Forecast,MATCH($D$8&$C15&$D$7,[5]!rng_ForecastRowLookup,0),MATCH(U$11,[5]!rng_ForecastColumnLookup,0)) -> 175.4510327 | V15: =INDEX([5]!tbl_Forecast,MATCH($D$8&$C15&$D$7,[5]!rng_ForecastRowLookup,0),MATCH(V$11,[5]!rng_ForecastColumnLookup,0)) -> 174.9246796 | W15: =INDEX([5]!tbl_Forecast,MATCH($D$8&$C15&$D$7,[5]!rng_ForecastRowLookup,0),MATCH(W$11,[5]!rng_ForecastColumnLookup,0)) -> 174.3999055 | X15: =INDEX([5]!tbl_Forecast,MATCH($D$8&$C15&$D$7,[5]!rng_ForecastRowLookup,0),MATCH(X$11,[5]!rng_ForecastColumnLookup,0)) -> 173.8767058
C16: Xlarge Ret | E16: =INDEX([5]!tbl_Forecast,MATCH($D$8&$C16&$D$7,[5]!rng_ForecastRowLookup,0),MATCH(E$11,[5]!rng_ForecastColumnLookup,0)) -> 138.3573406 | F16: =INDEX([5]!tbl_Forecast,MATCH($D$8&$C16&$D$7,[5]!rng_ForecastRowLookup,0),MATCH(F$11,[5]!rng_ForecastColumnLookup,0)) -> 137.7208969 | G16: =INDEX([5]!tbl_Forecast,MATCH($D$8&$C16&$D$7,[5]!rng_ForecastRowLookup,0),MATCH(G$11,[5]!rng_ForecastColumnLookup,0)) -> 137.0873807 | H16: =INDEX([5]!tbl_Forecast,MATCH($D$8&$C16&$D$7,[5]!rng_ForecastRowLookup,0),MATCH(H$11,[5]!rng_ForecastColumnLookup,0)) -> 136.4567788 | I16: =INDEX([5]!tbl_Forecast,MATCH($D$8&$C16&$D$7,[5]!rng_ForecastRowLookup,0),MATCH(I$11,[5]!rng_ForecastColumnLookup,0)) -> 135.8290776 | J16: =INDEX([5]!tbl_Forecast,MATCH($D$8&$C16&$D$7,[5]!rng_ForecastRowLookup,0),MATCH(J$11,[5]!rng_ForecastColumnLookup,0)) -> 135.2042638 | K16: =INDEX([5]!tbl_Forecast,MATCH($D$8&$C16&$D$7,[5]!rng_ForecastRowLookup,0),MATCH(K$11,[5]!rng_ForecastColumnLookup,0)) -> 134.5823242 | L16: =INDEX([5]!tbl_Forecast,MATCH($D$8&$C16&$D$7,[5]!rng_ForecastRowLookup,0),MATCH(L$11,[5]!rng_ForecastColumnLookup,0)) -> 133.9632455 | M16: =INDEX([5]!tbl_Forecast,MATCH($D$8&$C16&$D$7,[5]!rng_ForecastRowLookup,0),MATCH(M$11,[5]!rng_ForecastColumnLookup,0)) -> 133.3470146 | N16: =INDEX([5]!tbl_Forecast,MATCH($D$8&$C16&$D$7,[5]!rng_ForecastRowLookup,0),MATCH(N$11,[5]!rng_ForecastColumnLookup,0)) -> 132.7336183 | O16: =INDEX([5]!tbl_Forecast,MATCH($D$8&$C16&$D$7,[5]!rng_ForecastRowLookup,0),MATCH(O$11,[5]!rng_ForecastColumnLookup,0)) -> 132.1230437 | P16: =INDEX([5]!tbl_Forecast,MATCH($D$8&$C16&$D$7,[5]!rng_ForecastRowLookup,0),MATCH(P$11,[5]!rng_ForecastColumnLookup,0)) -> 131.5152777 | Q16: =INDEX([5]!tbl_Forecast,MATCH($D$8&$C16&$D$7,[5]!rng_ForecastRowLookup,0),MATCH(Q$11,[5]!rng_ForecastColumnLookup,0)) -> 130.9103074 | R16: =INDEX([5]!tbl_Forecast,MATCH($D$8&$C16&$D$7,[5]!rng_ForecastRowLookup,0),MATCH(R$11,[5]!rng_ForecastColumnLookup,0)) -> 130.30812 | S16: =INDEX([5]!tbl_Forecast,MATCH($D$8&$C16&$D$7,[5]!rng_ForecastRowLookup,0),MATCH(S$11,[5]!rng_ForecastColumnLookup,0)) -> 129.7087026 | T16: =INDEX([5]!tbl_Forecast,MATCH($D$8&$C16&$D$7,[5]!rng_ForecastRowLookup,0),MATCH(T$11,[5]!rng_ForecastColumnLookup,0)) -> 129.1120426 | U16: =INDEX([5]!tbl_Forecast,MATCH($D$8&$C16&$D$7,[5]!rng_ForecastRowLookup,0),MATCH(U$11,[5]!rng_ForecastColumnLookup,0)) -> 128.5181272 | V16: =INDEX([5]!tbl_Forecast,MATCH($D$8&$C16&$D$7,[5]!rng_ForecastRowLookup,0),MATCH(V$11,[5]!rng_ForecastColumnLookup,0)) -> 127.9269438 | W16: =INDEX([5]!tbl_Forecast,MATCH($D$8&$C16&$D$7,[5]!rng_ForecastRowLookup,0),MATCH(W$11,[5]!rng_ForecastColumnLookup,0)) -> 127.3384799 | X16: =INDEX([5]!tbl_Forecast,MATCH($D$8&$C16&$D$7,[5]!rng_ForecastRowLookup,0),MATCH(X$11,[5]!rng_ForecastColumnLookup,0)) -> 126.7527229
C17: Large Ret | E17: =INDEX([5]!tbl_Forecast,MATCH($D$8&$C17&$D$7,[5]!rng_ForecastRowLookup,0),MATCH(E$11,[5]!rng_ForecastColumnLookup,0)) -> 208.957451 | F17: =INDEX([5]!tbl_Forecast,MATCH($D$8&$C17&$D$7,[5]!rng_ForecastRowLookup,0),MATCH(F$11,[5]!rng_ForecastColumnLookup,0)) -> 207.9962467 | G17: =INDEX([5]!tbl_Forecast,MATCH($D$8&$C17&$D$7,[5]!rng_ForecastRowLookup,0),MATCH(G$11,[5]!rng_ForecastColumnLookup,0)) -> 207.039464 | H17: =INDEX([5]!tbl_Forecast,MATCH($D$8&$C17&$D$7,[5]!rng_ForecastRowLookup,0),MATCH(H$11,[5]!rng_ForecastColumnLookup,0)) -> 206.0870824 | I17: =INDEX([5]!tbl_Forecast,MATCH($D$8&$C17&$D$7,[5]!rng_ForecastRowLookup,0),MATCH(I$11,[5]!rng_ForecastColumnLookup,0)) -> 205.1390819 | J17: =INDEX([5]!tbl_Forecast,MATCH($D$8&$C17&$D$7,[5]!rng_ForecastRowLookup,0),MATCH(J$11,[5]!rng_ForecastColumnLookup,0)) -> 204.1954421 | K17: =INDEX([5]!tbl_Forecast,MATCH($D$8&$C17&$D$7,[5]!rng_ForecastRowLookup,0),MATCH(K$11,[5]!rng_ForecastColumnLookup,0)) -> 203.2561431 | L17: =INDEX([5]!tbl_Forecast,MATCH($D$8&$C17&$D$7,[5]!rng_ForecastRowLookup,0),MATCH(L$11,[5]!rng_ForecastColumnLookup,0)) -> 202.3211648 | M17: =INDEX([5]!tbl_Forecast,MATCH($D$8&$C17&$D$7,[5]!rng_ForecastRowLookup,0),MATCH(M$11,[5]!rng_ForecastColumnLookup,0)) -> 201.3904874 | N17: =INDEX([5]!tbl_Forecast,MATCH($D$8&$C17&$D$7,[5]!rng_ForecastRowLookup,0),MATCH(N$11,[5]!rng_ForecastColumnLookup,0)) -> 200.4640912 | O17: =INDEX([5]!tbl_Forecast,MATCH($D$8&$C17&$D$7,[5]!rng_ForecastRowLookup,0),MATCH(O$11,[5]!rng_ForecastColumnLookup,0)) -> 199.5419564 | P17: =INDEX([5]!tbl_Forecast,MATCH($D$8&$C17&$D$7,[5]!rng_ForecastRowLookup,0),MATCH(P$11,[5]!rng_ForecastColumnLookup,0)) -> 198.6240634 | Q17: =INDEX([5]!tbl_Forecast,MATCH($D$8&$C17&$D$7,[5]!rng_ForecastRowLookup,0),MATCH(Q$11,[5]!rng_ForecastColumnLookup,0)) -> 197.7103927 | R17: =INDEX([5]!tbl_Forecast,MATCH($D$8&$C17&$D$7,[5]!rng_ForecastRowLookup,0),MATCH(R$11,[5]!rng_ForecastColumnLookup,0)) -> 196.8009249 | S17: =INDEX([5]!tbl_Forecast,MATCH($D$8&$C17&$D$7,[5]!rng_ForecastRowLookup,0),MATCH(S$11,[5]!rng_ForecastColumnLookup,0)) -> 195.8956406 | T17: =INDEX([5]!tbl_Forecast,MATCH($D$8&$C17&$D$7,[5]!rng_ForecastRowLookup,0),MATCH(T$11,[5]!rng_ForecastColumnLookup,0)) -> 194.9945207 | U17: =INDEX([5]!tbl_Forecast,MATCH($D$8&$C17&$D$7,[5]!rng_ForecastRowLookup,0),MATCH(U$11,[5]!rng_ForecastColumnLookup,0)) -> 194.0975459 | V17: =INDEX([5]!tbl_Forecast,MATCH($D$8&$C17&$D$7,[5]!rng_ForecastRowLookup,0),MATCH(V$11,[5]!rng_ForecastColumnLookup,0)) -> 193.2046972 | W17: =INDEX([5]!tbl_Forecast,MATCH($D$8&$C17&$D$7,[5]!rng_ForecastRowLookup,0),MATCH(W$11,[5]!rng_ForecastColumnLookup,0)) -> 192.3159556 | X17: =INDEX([5]!tbl_Forecast,MATCH($D$8&$C17&$D$7,[5]!rng_ForecastRowLookup,0),MATCH(X$11,[5]!rng_ForecastColumnLookup,0)) -> 191.4313022
C18: Medium Ret | E18: =INDEX([5]!tbl_Forecast,MATCH($D$8&$C18&$D$7,[5]!rng_ForecastRowLookup,0),MATCH(E$11,[5]!rng_ForecastColumnLookup,0)) -> 97.11568991 | F18: =INDEX([5]!tbl_Forecast,MATCH($D$8&$C18&$D$7,[5]!rng_ForecastRowLookup,0),MATCH(F$11,[5]!rng_ForecastColumnLookup,0)) -> 96.66895774 | G18: =INDEX([5]!tbl_Forecast,MATCH($D$8&$C18&$D$7,[5]!rng_ForecastRowLookup,0),MATCH(G$11,[5]!rng_ForecastColumnLookup,0)) -> 96.22428053 | H18: =INDEX([5]!tbl_Forecast,MATCH($D$8&$C18&$D$7,[5]!rng_ForecastRowLookup,0),MATCH(H$11,[5]!rng_ForecastColumnLookup,0)) -> 95.78164884 | I18: =INDEX([5]!tbl_Forecast,MATCH($D$8&$C18&$D$7,[5]!rng_ForecastRowLookup,0),MATCH(I$11,[5]!rng_ForecastColumnLookup,0)) -> 95.34105326 | J18: =INDEX([5]!tbl_Forecast,MATCH($D$8&$C18&$D$7,[5]!rng_ForecastRowLookup,0),MATCH(J$11,[5]!rng_ForecastColumnLookup,0)) -> 94.90248441 | K18: =INDEX([5]!tbl_Forecast,MATCH($D$8&$C18&$D$7,[5]!rng_ForecastRowLookup,0),MATCH(K$11,[5]!rng_ForecastColumnLookup,0)) -> 94.46593299 | L18: =INDEX([5]!tbl_Forecast,MATCH($D$8&$C18&$D$7,[5]!rng_ForecastRowLookup,0),MATCH(L$11,[5]!rng_ForecastColumnLookup,0)) -> 94.03138969 | M18: =INDEX([5]!tbl_Forecast,MATCH($D$8&$C18&$D$7,[5]!rng_ForecastRowLookup,0),MATCH(M$11,[5]!rng_ForecastColumnLookup,0)) -> 93.5988453 | N18: =INDEX([5]!tbl_Forecast,MATCH($D$8&$C18&$D$7,[5]!rng_ForecastRowLookup,0),MATCH(N$11,[5]!rng_ForecastColumnLookup,0)) -> 93.16829061 | O18: =INDEX([5]!tbl_Forecast,MATCH($D$8&$C18&$D$7,[5]!rng_ForecastRowLookup,0),MATCH(O$11,[5]!rng_ForecastColumnLookup,0)) -> 92.73971648 | P18: =INDEX([5]!tbl_Forecast,MATCH($D$8&$C18&$D$7,[5]!rng_ForecastRowLookup,0),MATCH(P$11,[5]!rng_ForecastColumnLookup,0)) -> 92.31311378 | Q18: =INDEX([5]!tbl_Forecast,MATCH($D$8&$C18&$D$7,[5]!rng_ForecastRowLookup,0),MATCH(Q$11,[5]!rng_ForecastColumnLookup,0)) -> 91.88847346 | R18: =INDEX([5]!tbl_Forecast,MATCH($D$8&$C18&$D$7,[5]!rng_ForecastRowLookup,0),MATCH(R$11,[5]!rng_ForecastColumnLookup,0)) -> 91.46578648 | S18: =INDEX([5]!tbl_Forecast,MATCH($D$8&$C18&$D$7,[5]!rng_ForecastRowLookup,0),MATCH(S$11,[5]!rng_ForecastColumnLookup,0)) -> 91.04504386 | T18: =INDEX([5]!tbl_Forecast,MATCH($D$8&$C18&$D$7,[5]!rng_ForecastRowLookup,0),MATCH(T$11,[5]!rng_ForecastColumnLookup,0)) -> 90.62623666 | U18: =INDEX([5]!tbl_Forecast,MATCH($D$8&$C18&$D$7,[5]!rng_ForecastRowLookup,0),MATCH(U$11,[5]!rng_ForecastColumnLookup,0)) -> 90.20935597 | V18: =INDEX([5]!tbl_Forecast,MATCH($D$8&$C18&$D$7,[5]!rng_ForecastRowLookup,0),MATCH(V$11,[5]!rng_ForecastColumnLookup,0)) -> 89.79439293 | W18: =INDEX([5]!tbl_Forecast,MATCH($D$8&$C18&$D$7,[5]!rng_ForecastRowLookup,0),MATCH(W$11,[5]!rng_ForecastColumnLookup,0)) -> 89.38133873 | X18: =INDEX([5]!tbl_Forecast,MATCH($D$8&$C18&$D$7,[5]!rng_ForecastRowLookup,0),MATCH(X$11,[5]!rng_ForecastColumnLookup,0)) -> 88.97018457
C19: Small Ret | E19: =INDEX([5]!tbl_Forecast,MATCH($D$8&$C19&$D$7,[5]!rng_ForecastRowLookup,0),MATCH(E$11,[5]!rng_ForecastColumnLookup,0)) -> 109.4796609 | F19: =INDEX([5]!tbl_Forecast,MATCH($D$8&$C19&$D$7,[5]!rng_ForecastRowLookup,0),MATCH(F$11,[5]!rng_ForecastColumnLookup,0)) -> 108.9760545 | G19: =INDEX([5]!tbl_Forecast,MATCH($D$8&$C19&$D$7,[5]!rng_ForecastRowLookup,0),MATCH(G$11,[5]!rng_ForecastColumnLookup,0)) -> 108.4747646 | H19: =INDEX([5]!tbl_Forecast,MATCH($D$8&$C19&$D$7,[5]!rng_ForecastRowLookup,0),MATCH(H$11,[5]!rng_ForecastColumnLookup,0)) -> 107.9757807 | I19: =INDEX([5]!tbl_Forecast,MATCH($D$8&$C19&$D$7,[5]!rng_ForecastRowLookup,0),MATCH(I$11,[5]!rng_ForecastColumnLookup,0)) -> 107.4790921 | J19: =INDEX([5]!tbl_Forecast,MATCH($D$8&$C19&$D$7,[5]!rng_ForecastRowLookup,0),MATCH(J$11,[5]!rng_ForecastColumnLookup,0)) -> 106.9846883 | K19: =INDEX([5]!tbl_Forecast,MATCH($D$8&$C19&$D$7,[5]!rng_ForecastRowLookup,0),MATCH(K$11,[5]!rng_ForecastColumnLookup,0)) -> 106.4925587 | L19: =INDEX([5]!tbl_Forecast,MATCH($D$8&$C19&$D$7,[5]!rng_ForecastRowLookup,0),MATCH(L$11,[5]!rng_ForecastColumnLookup,0)) -> 106.002693 | M19: =INDEX([5]!tbl_Forecast,MATCH($D$8&$C19&$D$7,[5]!rng_ForecastRowLookup,0),MATCH(M$11,[5]!rng_ForecastColumnLookup,0)) -> 105.5150806 | N19: =INDEX([5]!tbl_Forecast,MATCH($D$8&$C19&$D$7,[5]!rng_ForecastRowLookup,0),MATCH(N$11,[5]!rng_ForecastColumnLookup,0)) -> 105.0297112 | O19: =INDEX([5]!tbl_Forecast,MATCH($D$8&$C19&$D$7,[5]!rng_ForecastRowLookup,0),MATCH(O$11,[5]!rng_ForecastColumnLookup,0)) -> 104.5465745 | P19: =INDEX([5]!tbl_Forecast,MATCH($D$8&$C19&$D$7,[5]!rng_ForecastRowLookup,0),MATCH(P$11,[5]!rng_ForecastColumnLookup,0)) -> 104.0656603 | Q19: =INDEX([5]!tbl_Forecast,MATCH($D$8&$C19&$D$7,[5]!rng_ForecastRowLookup,0),MATCH(Q$11,[5]!rng_ForecastColumnLookup,0)) -> 103.5869583 | R19: =INDEX([5]!tbl_Forecast,MATCH($D$8&$C19&$D$7,[5]!rng_ForecastRowLookup,0),MATCH(R$11,[5]!rng_ForecastColumnLookup,0)) -> 103.1104582 | S19: =INDEX([5]!tbl_Forecast,MATCH($D$8&$C19&$D$7,[5]!rng_ForecastRowLookup,0),MATCH(S$11,[5]!rng_ForecastColumnLookup,0)) -> 102.6361501 | T19: =INDEX([5]!tbl_Forecast,MATCH($D$8&$C19&$D$7,[5]!rng_ForecastRowLookup,0),MATCH(T$11,[5]!rng_ForecastColumnLookup,0)) -> 102.1640239 | U19: =INDEX([5]!tbl_Forecast,MATCH($D$8&$C19&$D$7,[5]!rng_ForecastRowLookup,0),MATCH(U$11,[5]!rng_ForecastColumnLookup,0)) -> 101.6940693 | V19: =INDEX([5]!tbl_Forecast,MATCH($D$8&$C19&$D$7,[5]!rng_ForecastRowLookup,0),MATCH(V$11,[5]!rng_ForecastColumnLookup,0)) -> 101.2262766 | W19: =INDEX([5]!tbl_Forecast,MATCH($D$8&$C19&$D$7,[5]!rng_ForecastRowLookup,0),MATCH(W$11,[5]!rng_ForecastColumnLookup,0)) -> 100.7606358 | X19: =INDEX([5]!tbl_Forecast,MATCH($D$8&$C19&$D$7,[5]!rng_ForecastRowLookup,0),MATCH(X$11,[5]!rng_ForecastColumnLookup,0)) -> 100.2971368
C20: School K-12 | E20: =INDEX([5]!tbl_Forecast,MATCH($D$8&$C20&$D$7,[5]!rng_ForecastRowLookup,0),MATCH(E$11,[5]!rng_ForecastColumnLookup,0)) -> 241.1176398 | F20: =INDEX([5]!tbl_Forecast,MATCH($D$8&$C20&$D$7,[5]!rng_ForecastRowLookup,0),MATCH(F$11,[5]!rng_ForecastColumnLookup,0)) -> 240.1290574 | G20: =INDEX([5]!tbl_Forecast,MATCH($D$8&$C20&$D$7,[5]!rng_ForecastRowLookup,0),MATCH(G$11,[5]!rng_ForecastColumnLookup,0)) -> 239.1445283 | H20: =INDEX([5]!tbl_Forecast,MATCH($D$8&$C20&$D$7,[5]!rng_ForecastRowLookup,0),MATCH(H$11,[5]!rng_ForecastColumnLookup,0)) -> 238.1640357 | I20: =INDEX([5]!tbl_Forecast,MATCH($D$8&$C20&$D$7,[5]!rng_ForecastRowLookup,0),MATCH(I$11,[5]!rng_ForecastColumnLookup,0)) -> 237.1875632 | J20: =INDEX([5]!tbl_Forecast,MATCH($D$8&$C20&$D$7,[5]!rng_ForecastRowLookup,0),MATCH(J$11,[5]!rng_ForecastColumnLookup,0)) -> 236.2150942 | K20: =INDEX([5]!tbl_Forecast,MATCH($D$8&$C20&$D$7,[5]!rng_ForecastRowLookup,0),MATCH(K$11,[5]!rng_ForecastColumnLookup,0)) -> 235.2466123 | L20: =INDEX([5]!tbl_Forecast,MATCH($D$8&$C20&$D$7,[5]!rng_ForecastRowLookup,0),MATCH(L$11,[5]!rng_ForecastColumnLookup,0)) -> 234.2821012 | M20: =INDEX([5]!tbl_Forecast,MATCH($D$8&$C20&$D$7,[5]!rng_ForecastRowLookup,0),MATCH(M$11,[5]!rng_ForecastColumnLookup,0)) -> 233.3215446 | N20: =INDEX([5]!tbl_Forecast,MATCH($D$8&$C20&$D$7,[5]!rng_ForecastRowLookup,0),MATCH(N$11,[5]!rng_ForecastColumnLookup,0)) -> 232.3649262 | O20: =INDEX([5]!tbl_Forecast,MATCH($D$8&$C20&$D$7,[5]!rng_ForecastRowLookup,0),MATCH(O$11,[5]!rng_ForecastColumnLookup,0)) -> 231.41223 | P20: =INDEX([5]!tbl_Forecast,MATCH($D$8&$C20&$D$7,[5]!rng_ForecastRowLookup,0),MATCH(P$11,[5]!rng_ForecastColumnLookup,0)) -> 230.4634399 | Q20: =INDEX([5]!tbl_Forecast,MATCH($D$8&$C20&$D$7,[5]!rng_ForecastRowLookup,0),MATCH(Q$11,[5]!rng_ForecastColumnLookup,0)) -> 229.5185398 | R20: =INDEX([5]!tbl_Forecast,MATCH($D$8&$C20&$D$7,[5]!rng_ForecastRowLookup,0),MATCH(R$11,[5]!rng_ForecastColumnLookup,0)) -> 228.5775138 | S20: =INDEX([5]!tbl_Forecast,MATCH($D$8&$C20&$D$7,[5]!rng_ForecastRowLookup,0),MATCH(S$11,[5]!rng_ForecastColumnLookup,0)) -> 227.640346 | T20: =INDEX([5]!tbl_Forecast,MATCH($D$8&$C20&$D$7,[5]!rng_ForecastRowLookup,0),MATCH(T$11,[5]!rng_ForecastColumnLookup,0)) -> 226.7070206 | U20: =INDEX([5]!tbl_Forecast,MATCH($D$8&$C20&$D$7,[5]!rng_ForecastRowLookup,0),MATCH(U$11,[5]!rng_ForecastColumnLookup,0)) -> 225.7775218 | V20: =INDEX([5]!tbl_Forecast,MATCH($D$8&$C20&$D$7,[5]!rng_ForecastRowLookup,0),MATCH(V$11,[5]!rng_ForecastColumnLookup,0)) -> 224.8518339 | W20: =INDEX([5]!tbl_Forecast,MATCH($D$8&$C20&$D$7,[5]!rng_ForecastRowLookup,0),MATCH(W$11,[5]!rng_ForecastColumnLookup,0)) -> 223.9299414 | X20: =INDEX([5]!tbl_Forecast,MATCH($D$8&$C20&$D$7,[5]!rng_ForecastRowLookup,0),MATCH(X$11,[5]!rng_ForecastColumnLookup,0)) -> 223.0118286
C21: University | E21: =INDEX([5]!tbl_Forecast,MATCH($D$8&$C21&$D$7,[5]!rng_ForecastRowLookup,0),MATCH(E$11,[5]!rng_ForecastColumnLookup,0)) -> 122.1534063 | F21: =INDEX([5]!tbl_Forecast,MATCH($D$8&$C21&$D$7,[5]!rng_ForecastRowLookup,0),MATCH(F$11,[5]!rng_ForecastColumnLookup,0)) -> 121.6525773 | G21: =INDEX([5]!tbl_Forecast,MATCH($D$8&$C21&$D$7,[5]!rng_ForecastRowLookup,0),MATCH(G$11,[5]!rng_ForecastColumnLookup,0)) -> 121.1538017 | H21: =INDEX([5]!tbl_Forecast,MATCH($D$8&$C21&$D$7,[5]!rng_ForecastRowLookup,0),MATCH(H$11,[5]!rng_ForecastColumnLookup,0)) -> 120.6570712 | I21: =INDEX([5]!tbl_Forecast,MATCH($D$8&$C21&$D$7,[5]!rng_ForecastRowLookup,0),MATCH(I$11,[5]!rng_ForecastColumnLookup,0)) -> 120.1623772 | J21: =INDEX([5]!tbl_Forecast,MATCH($D$8&$C21&$D$7,[5]!rng_ForecastRowLookup,0),MATCH(J$11,[5]!rng_ForecastColumnLookup,0)) -> 119.6697114 | K21: =INDEX([5]!tbl_Forecast,MATCH($D$8&$C21&$D$7,[5]!rng_ForecastRowLookup,0),MATCH(K$11,[5]!rng_ForecastColumnLookup,0)) -> 119.1790656 | L21: =INDEX([5]!tbl_Forecast,MATCH($D$8&$C21&$D$7,[5]!rng_ForecastRowLookup,0),MATCH(L$11,[5]!rng_ForecastColumnLookup,0)) -> 118.6904314 | M21: =INDEX([5]!tbl_Forecast,MATCH($D$8&$C21&$D$7,[5]!rng_ForecastRowLookup,0),MATCH(M$11,[5]!rng_ForecastColumnLookup,0)) -> 118.2038007 | N21: =INDEX([5]!tbl_Forecast,MATCH($D$8&$C21&$D$7,[5]!rng_ForecastRowLookup,0),MATCH(N$11,[5]!rng_ForecastColumnLookup,0)) -> 117.7191651 | O21: =INDEX([5]!tbl_Forecast,MATCH($D$8&$C21&$D$7,[5]!rng_ForecastRowLookup,0),MATCH(O$11,[5]!rng_ForecastColumnLookup,0)) -> 117.2365165 | P21: =INDEX([5]!tbl_Forecast,MATCH($D$8&$C21&$D$7,[5]!rng_ForecastRowLookup,0),MATCH(P$11,[5]!rng_ForecastColumnLookup,0)) -> 116.7558468 | Q21: =INDEX([5]!tbl_Forecast,MATCH($D$8&$C21&$D$7,[5]!rng_ForecastRowLookup,0),MATCH(Q$11,[5]!rng_ForecastColumnLookup,0)) -> 116.2771478 | R21: =INDEX([5]!tbl_Forecast,MATCH($D$8&$C21&$D$7,[5]!rng_ForecastRowLookup,0),MATCH(R$11,[5]!rng_ForecastColumnLookup,0)) -> 115.8004115 | S21: =INDEX([5]!tbl_Forecast,MATCH($D$8&$C21&$D$7,[5]!rng_ForecastRowLookup,0),MATCH(S$11,[5]!rng_ForecastColumnLookup,0)) -> 115.3256298 | T21: =INDEX([5]!tbl_Forecast,MATCH($D$8&$C21&$D$7,[5]!rng_ForecastRowLookup,0),MATCH(T$11,[5]!rng_ForecastColumnLookup,0)) -> 114.8527947 | U21: =INDEX([5]!tbl_Forecast,MATCH($D$8&$C21&$D$7,[5]!rng_ForecastRowLookup,0),MATCH(U$11,[5]!rng_ForecastColumnLookup,0)) -> 114.3818983 | V21: =INDEX([5]!tbl_Forecast,MATCH($D$8&$C21&$D$7,[5]!rng_ForecastRowLookup,0),MATCH(V$11,[5]!rng_ForecastColumnLookup,0)) -> 113.9129325 | W21: =INDEX([5]!tbl_Forecast,MATCH($D$8&$C21&$D$7,[5]!rng_ForecastRowLookup,0),MATCH(W$11,[5]!rng_ForecastColumnLookup,0)) -> 113.4458895 | X21: =INDEX([5]!tbl_Forecast,MATCH($D$8&$C21&$D$7,[5]!rng_ForecastRowLookup,0),MATCH(X$11,[5]!rng_ForecastColumnLookup,0)) -> 112.9807613
C22: Warehouse | E22: =INDEX([5]!tbl_Forecast,MATCH($D$8&$C22&$D$7,[5]!rng_ForecastRowLookup,0),MATCH(E$11,[5]!rng_ForecastColumnLookup,0)) -> 448.698296 | F22: =INDEX([5]!tbl_Forecast,MATCH($D$8&$C22&$D$7,[5]!rng_ForecastRowLookup,0),MATCH(F$11,[5]!rng_ForecastColumnLookup,0)) -> 447.0381123 | G22: =INDEX([5]!tbl_Forecast,MATCH($D$8&$C22&$D$7,[5]!rng_ForecastRowLookup,0),MATCH(G$11,[5]!rng_ForecastColumnLookup,0)) -> 445.3840713 | H22: =INDEX([5]!tbl_Forecast,MATCH($D$8&$C22&$D$7,[5]!rng_ForecastRowLookup,0),MATCH(H$11,[5]!rng_ForecastColumnLookup,0)) -> 443.7361502 | I22: =INDEX([5]!tbl_Forecast,MATCH($D$8&$C22&$D$7,[5]!rng_ForecastRowLookup,0),MATCH(I$11,[5]!rng_ForecastColumnLookup,0)) -> 442.0943265 | J22: =INDEX([5]!tbl_Forecast,MATCH($D$8&$C22&$D$7,[5]!rng_ForecastRowLookup,0),MATCH(J$11,[5]!rng_ForecastColumnLookup,0)) -> 440.4585775 | K22: =INDEX([5]!tbl_Forecast,MATCH($D$8&$C22&$D$7,[5]!rng_ForecastRowLookup,0),MATCH(K$11,[5]!rng_ForecastColumnLookup,0)) -> 438.8288807 | L22: =INDEX([5]!tbl_Forecast,MATCH($D$8&$C22&$D$7,[5]!rng_ForecastRowLookup,0),MATCH(L$11,[5]!rng_ForecastColumnLookup,0)) -> 437.2052139 | M22: =INDEX([5]!tbl_Forecast,MATCH($D$8&$C22&$D$7,[5]!rng_ForecastRowLookup,0),MATCH(M$11,[5]!rng_ForecastColumnLookup,0)) -> 435.5875546 | N22: =INDEX([5]!tbl_Forecast,MATCH($D$8&$C22&$D$7,[5]!rng_ForecastRowLookup,0),MATCH(N$11,[5]!rng_ForecastColumnLookup,0)) -> 433.9758806 | O22: =INDEX([5]!tbl_Forecast,MATCH($D$8&$C22&$D$7,[5]!rng_ForecastRowLookup,0),MATCH(O$11,[5]!rng_ForecastColumnLookup,0)) -> 432.3701699 | P22: =INDEX([5]!tbl_Forecast,MATCH($D$8&$C22&$D$7,[5]!rng_ForecastRowLookup,0),MATCH(P$11,[5]!rng_ForecastColumnLookup,0)) -> 430.7704002 | Q22: =INDEX([5]!tbl_Forecast,MATCH($D$8&$C22&$D$7,[5]!rng_ForecastRowLookup,0),MATCH(Q$11,[5]!rng_ForecastColumnLookup,0)) -> 429.1765498 | R22: =INDEX([5]!tbl_Forecast,MATCH($D$8&$C22&$D$7,[5]!rng_ForecastRowLookup,0),MATCH(R$11,[5]!rng_ForecastColumnLookup,0)) -> 427.5885965 | S22: =INDEX([5]!tbl_Forecast,MATCH($D$8&$C22&$D$7,[5]!rng_ForecastRowLookup,0),MATCH(S$11,[5]!rng_ForecastColumnLookup,0)) -> 426.0065187 | T22: =INDEX([5]!tbl_Forecast,MATCH($D$8&$C22&$D$7,[5]!rng_ForecastRowLookup,0),MATCH(T$11,[5]!rng_ForecastColumnLookup,0)) -> 424.4302946 | U22: =INDEX([5]!tbl_Forecast,MATCH($D$8&$C22&$D$7,[5]!rng_ForecastRowLookup,0),MATCH(U$11,[5]!rng_ForecastColumnLookup,0)) -> 422.8599025 | V22: =INDEX([5]!tbl_Forecast,MATCH($D$8&$C22&$D$7,[5]!rng_ForecastRowLookup,0),MATCH(V$11,[5]!rng_ForecastColumnLookup,0)) -> 421.2953209 | W22: =INDEX([5]!tbl_Forecast,MATCH($D$8&$C22&$D$7,[5]!rng_ForecastRowLookup,0),MATCH(W$11,[5]!rng_ForecastColumnLookup,0)) -> 419.7365282 | X22: =INDEX([5]!tbl_Forecast,MATCH($D$8&$C22&$D$7,[5]!rng_ForecastRowLookup,0),MATCH(X$11,[5]!rng_ForecastColumnLookup,0)) -> 418.183503
C23: Supermarket | E23: =INDEX([5]!tbl_Forecast,MATCH($D$8&$C23&$D$7,[5]!rng_ForecastRowLookup,0),MATCH(E$11,[5]!rng_ForecastColumnLookup,0)) -> 53.72093953 | F23: =INDEX([5]!tbl_Forecast,MATCH($D$8&$C23&$D$7,[5]!rng_ForecastRowLookup,0),MATCH(F$11,[5]!rng_ForecastColumnLookup,0)) -> 53.23745107 | G23: =INDEX([5]!tbl_Forecast,MATCH($D$8&$C23&$D$7,[5]!rng_ForecastRowLookup,0),MATCH(G$11,[5]!rng_ForecastColumnLookup,0)) -> 52.75831401 | H23: =INDEX([5]!tbl_Forecast,MATCH($D$8&$C23&$D$7,[5]!rng_ForecastRowLookup,0),MATCH(H$11,[5]!rng_ForecastColumnLookup,0)) -> 52.28348919 | I23: =INDEX([5]!tbl_Forecast,MATCH($D$8&$C23&$D$7,[5]!rng_ForecastRowLookup,0),MATCH(I$11,[5]!rng_ForecastColumnLookup,0)) -> 51.81293778 | J23: =INDEX([5]!tbl_Forecast,MATCH($D$8&$C23&$D$7,[5]!rng_ForecastRowLookup,0),MATCH(J$11,[5]!rng_ForecastColumnLookup,0)) -> 51.34662134 | K23: =INDEX([5]!tbl_Forecast,MATCH($D$8&$C23&$D$7,[5]!rng_ForecastRowLookup,0),MATCH(K$11,[5]!rng_ForecastColumnLookup,0)) -> 50.88450175 | L23: =INDEX([5]!tbl_Forecast,MATCH($D$8&$C23&$D$7,[5]!rng_ForecastRowLookup,0),MATCH(L$11,[5]!rng_ForecastColumnLookup,0)) -> 50.42654123 | M23: =INDEX([5]!tbl_Forecast,MATCH($D$8&$C23&$D$7,[5]!rng_ForecastRowLookup,0),MATCH(M$11,[5]!rng_ForecastColumnLookup,0)) -> 49.97270236 | N23: =INDEX([5]!tbl_Forecast,MATCH($D$8&$C23&$D$7,[5]!rng_ForecastRowLookup,0),MATCH(N$11,[5]!rng_ForecastColumnLookup,0)) -> 49.52294804 | O23: =INDEX([5]!tbl_Forecast,MATCH($D$8&$C23&$D$7,[5]!rng_ForecastRowLookup,0),MATCH(O$11,[5]!rng_ForecastColumnLookup,0)) -> 49.07724151 | P23: =INDEX([5]!tbl_Forecast,MATCH($D$8&$C23&$D$7,[5]!rng_ForecastRowLookup,0),MATCH(P$11,[5]!rng_ForecastColumnLookup,0)) -> 48.63554634 | Q23: =INDEX([5]!tbl_Forecast,MATCH($D$8&$C23&$D$7,[5]!rng_ForecastRowLookup,0),MATCH(Q$11,[5]!rng_ForecastColumnLookup,0)) -> 48.19782642 | R23: =INDEX([5]!tbl_Forecast,MATCH($D$8&$C23&$D$7,[5]!rng_ForecastRowLookup,0),MATCH(R$11,[5]!rng_ForecastColumnLookup,0)) -> 47.76404598 | S23: =INDEX([5]!tbl_Forecast,MATCH($D$8&$C23&$D$7,[5]!rng_ForecastRowLookup,0),MATCH(S$11,[5]!rng_ForecastColumnLookup,0)) -> 47.33416957 | T23: =INDEX([5]!tbl_Forecast,MATCH($D$8&$C23&$D$7,[5]!rng_ForecastRowLookup,0),MATCH(T$11,[5]!rng_ForecastColumnLookup,0)) -> 46.90816204 | U23: =INDEX([5]!tbl_Forecast,MATCH($D$8&$C23&$D$7,[5]!rng_ForecastRowLookup,0),MATCH(U$11,[5]!rng_ForecastColumnLookup,0)) -> 46.48598858 | V23: =INDEX([5]!tbl_Forecast,MATCH($D$8&$C23&$D$7,[5]!rng_ForecastRowLookup,0),MATCH(V$11,[5]!rng_ForecastColumnLookup,0)) -> 46.06761469 | W23: =INDEX([5]!tbl_Forecast,MATCH($D$8&$C23&$D$7,[5]!rng_ForecastRowLookup,0),MATCH(W$11,[5]!rng_ForecastColumnLookup,0)) -> 45.65300615 | X23: =INDEX([5]!tbl_Forecast,MATCH($D$8&$C23&$D$7,[5]!rng_ForecastRowLookup,0),MATCH(X$11,[5]!rng_ForecastColumnLookup,0)) -> 45.2421291
C24: MiniMart | E24: =INDEX([5]!tbl_Forecast,MATCH($D$8&$C24&$D$7,[5]!rng_ForecastRowLookup,0),MATCH(E$11,[5]!rng_ForecastColumnLookup,0)) -> 22.49101706 | F24: =INDEX([5]!tbl_Forecast,MATCH($D$8&$C24&$D$7,[5]!rng_ForecastRowLookup,0),MATCH(F$11,[5]!rng_ForecastColumnLookup,0)) -> 22.38485946 | G24: =INDEX([5]!tbl_Forecast,MATCH($D$8&$C24&$D$7,[5]!rng_ForecastRowLookup,0),MATCH(G$11,[5]!rng_ForecastColumnLookup,0)) -> 22.27920292 | H24: =INDEX([5]!tbl_Forecast,MATCH($D$8&$C24&$D$7,[5]!rng_ForecastRowLookup,0),MATCH(H$11,[5]!rng_ForecastColumnLookup,0)) -> 22.17404509 | I24: =INDEX([5]!tbl_Forecast,MATCH($D$8&$C24&$D$7,[5]!rng_ForecastRowLookup,0),MATCH(I$11,[5]!rng_ForecastColumnLookup,0)) -> 22.06938359 | J24: =INDEX([5]!tbl_Forecast,MATCH($D$8&$C24&$D$7,[5]!rng_ForecastRowLookup,0),MATCH(J$11,[5]!rng_ForecastColumnLookup,0)) -> 21.9652161 | K24: =INDEX([5]!tbl_Forecast,MATCH($D$8&$C24&$D$7,[5]!rng_ForecastRowLookup,0),MATCH(K$11,[5]!rng_ForecastColumnLookup,0)) -> 21.86154028 | L24: =INDEX([5]!tbl_Forecast,MATCH($D$8&$C24&$D$7,[5]!rng_ForecastRowLookup,0),MATCH(L$11,[5]!rng_ForecastColumnLookup,0)) -> 21.75835381 | M24: =INDEX([5]!tbl_Forecast,MATCH($D$8&$C24&$D$7,[5]!rng_ForecastRowLookup,0),MATCH(M$11,[5]!rng_ForecastColumnLookup,0)) -> 21.65565438 | N24: =INDEX([5]!tbl_Forecast,MATCH($D$8&$C24&$D$7,[5]!rng_ForecastRowLookup,0),MATCH(N$11,[5]!rng_ForecastColumnLookup,0)) -> 21.55343969 | O24: =INDEX([5]!tbl_Forecast,MATCH($D$8&$C24&$D$7,[5]!rng_ForecastRowLookup,0),MATCH(O$11,[5]!rng_ForecastColumnLookup,0)) -> 21.45170746 | P24: =INDEX([5]!tbl_Forecast,MATCH($D$8&$C24&$D$7,[5]!rng_ForecastRowLookup,0),MATCH(P$11,[5]!rng_ForecastColumnLookup,0)) -> 21.3504554 | Q24: =INDEX([5]!tbl_Forecast,MATCH($D$8&$C24&$D$7,[5]!rng_ForecastRowLookup,0),MATCH(Q$11,[5]!rng_ForecastColumnLookup,0)) -> 21.24968125 | R24: =INDEX([5]!tbl_Forecast,MATCH($D$8&$C24&$D$7,[5]!rng_ForecastRowLookup,0),MATCH(R$11,[5]!rng_ForecastColumnLookup,0)) -> 21.14938275 | S24: =INDEX([5]!tbl_Forecast,MATCH($D$8&$C24&$D$7,[5]!rng_ForecastRowLookup,0),MATCH(S$11,[5]!rng_ForecastColumnLookup,0)) -> 21.04955767 | T24: =INDEX([5]!tbl_Forecast,MATCH($D$8&$C24&$D$7,[5]!rng_ForecastRowLookup,0),MATCH(T$11,[5]!rng_ForecastColumnLookup,0)) -> 20.95020376 | U24: =INDEX([5]!tbl_Forecast,MATCH($D$8&$C24&$D$7,[5]!rng_ForecastRowLookup,0),MATCH(U$11,[5]!rng_ForecastColumnLookup,0)) -> 20.85131879 | V24: =INDEX([5]!tbl_Forecast,MATCH($D$8&$C24&$D$7,[5]!rng_ForecastRowLookup,0),MATCH(V$11,[5]!rng_ForecastColumnLookup,0)) -> 20.75290057 | W24: =INDEX([5]!tbl_Forecast,MATCH($D$8&$C24&$D$7,[5]!rng_ForecastRowLookup,0),MATCH(W$11,[5]!rng_ForecastColumnLookup,0)) -> 20.65494688 | X24: =INDEX([5]!tbl_Forecast,MATCH($D$8&$C24&$D$7,[5]!rng_ForecastRowLookup,0),MATCH(X$11,[5]!rng_ForecastColumnLookup,0)) -> 20.55745553
C25: Restaurant | E25: =INDEX([5]!tbl_Forecast,MATCH($D$8&$C25&$D$7,[5]!rng_ForecastRowLookup,0),MATCH(E$11,[5]!rng_ForecastColumnLookup,0)) -> 51.55085721 | F25: =INDEX([5]!tbl_Forecast,MATCH($D$8&$C25&$D$7,[5]!rng_ForecastRowLookup,0),MATCH(F$11,[5]!rng_ForecastColumnLookup,0)) -> 51.30753716 | G25: =INDEX([5]!tbl_Forecast,MATCH($D$8&$C25&$D$7,[5]!rng_ForecastRowLookup,0),MATCH(G$11,[5]!rng_ForecastColumnLookup,0)) -> 51.06536559 | H25: =INDEX([5]!tbl_Forecast,MATCH($D$8&$C25&$D$7,[5]!rng_ForecastRowLookup,0),MATCH(H$11,[5]!rng_ForecastColumnLookup,0)) -> 50.82433706 | I25: =INDEX([5]!tbl_Forecast,MATCH($D$8&$C25&$D$7,[5]!rng_ForecastRowLookup,0),MATCH(I$11,[5]!rng_ForecastColumnLookup,0)) -> 50.58444619 | J25: =INDEX([5]!tbl_Forecast,MATCH($D$8&$C25&$D$7,[5]!rng_ForecastRowLookup,0),MATCH(J$11,[5]!rng_ForecastColumnLookup,0)) -> 50.3456876 | K25: =INDEX([5]!tbl_Forecast,MATCH($D$8&$C25&$D$7,[5]!rng_ForecastRowLookup,0),MATCH(K$11,[5]!rng_ForecastColumnLookup,0)) -> 50.10805596 | L25: =INDEX([5]!tbl_Forecast,MATCH($D$8&$C25&$D$7,[5]!rng_ForecastRowLookup,0),MATCH(L$11,[5]!rng_ForecastColumnLookup,0)) -> 49.87154594 | M25: =INDEX([5]!tbl_Forecast,MATCH($D$8&$C25&$D$7,[5]!rng_ForecastRowLookup,0),MATCH(M$11,[5]!rng_ForecastColumnLookup,0)) -> 49.63615224 | N25: =INDEX([5]!tbl_Forecast,MATCH($D$8&$C25&$D$7,[5]!rng_ForecastRowLookup,0),MATCH(N$11,[5]!rng_ForecastColumnLookup,0)) -> 49.4018696 | O25: =INDEX([5]!tbl_Forecast,MATCH($D$8&$C25&$D$7,[5]!rng_ForecastRowLookup,0),MATCH(O$11,[5]!rng_ForecastColumnLookup,0)) -> 49.16869278 | P25: =INDEX([5]!tbl_Forecast,MATCH($D$8&$C25&$D$7,[5]!rng_ForecastRowLookup,0),MATCH(P$11,[5]!rng_ForecastColumnLookup,0)) -> 48.93661655 | Q25: =INDEX([5]!tbl_Forecast,MATCH($D$8&$C25&$D$7,[5]!rng_ForecastRowLookup,0),MATCH(Q$11,[5]!rng_ForecastColumnLookup,0)) -> 48.70563572 | R25: =INDEX([5]!tbl_Forecast,MATCH($D$8&$C25&$D$7,[5]!rng_ForecastRowLookup,0),MATCH(R$11,[5]!rng_ForecastColumnLookup,0)) -> 48.47574511 | S25: =INDEX([5]!tbl_Forecast,MATCH($D$8&$C25&$D$7,[5]!rng_ForecastRowLookup,0),MATCH(S$11,[5]!rng_ForecastColumnLookup,0)) -> 48.2469396 | T25: =INDEX([5]!tbl_Forecast,MATCH($D$8&$C25&$D$7,[5]!rng_ForecastRowLookup,0),MATCH(T$11,[5]!rng_ForecastColumnLookup,0)) -> 48.01921404 | U25: =INDEX([5]!tbl_Forecast,MATCH($D$8&$C25&$D$7,[5]!rng_ForecastRowLookup,0),MATCH(U$11,[5]!rng_ForecastColumnLookup,0)) -> 47.79256335 | V25: =INDEX([5]!tbl_Forecast,MATCH($D$8&$C25&$D$7,[5]!rng_ForecastRowLookup,0),MATCH(V$11,[5]!rng_ForecastColumnLookup,0)) -> 47.56698245 | W25: =INDEX([5]!tbl_Forecast,MATCH($D$8&$C25&$D$7,[5]!rng_ForecastRowLookup,0),MATCH(W$11,[5]!rng_ForecastColumnLookup,0)) -> 47.3424663 | X25: =INDEX([5]!tbl_Forecast,MATCH($D$8&$C25&$D$7,[5]!rng_ForecastRowLookup,0),MATCH(X$11,[5]!rng_ForecastColumnLookup,0)) -> 47.11900986
C26: Lodging | E26: =INDEX([5]!tbl_Forecast,MATCH($D$8&$C26&$D$7,[5]!rng_ForecastRowLookup,0),MATCH(E$11,[5]!rng_ForecastColumnLookup,0)) -> 170.1518959 | F26: =INDEX([5]!tbl_Forecast,MATCH($D$8&$C26&$D$7,[5]!rng_ForecastRowLookup,0),MATCH(F$11,[5]!rng_ForecastColumnLookup,0)) -> 169.7435313 | G26: =INDEX([5]!tbl_Forecast,MATCH($D$8&$C26&$D$7,[5]!rng_ForecastRowLookup,0),MATCH(G$11,[5]!rng_ForecastColumnLookup,0)) -> 169.3361469 | H26: =INDEX([5]!tbl_Forecast,MATCH($D$8&$C26&$D$7,[5]!rng_ForecastRowLookup,0),MATCH(H$11,[5]!rng_ForecastColumnLookup,0)) -> 168.9297401 | I26: =INDEX([5]!tbl_Forecast,MATCH($D$8&$C26&$D$7,[5]!rng_ForecastRowLookup,0),MATCH(I$11,[5]!rng_ForecastColumnLookup,0)) -> 168.5243087 | J26: =INDEX([5]!tbl_Forecast,MATCH($D$8&$C26&$D$7,[5]!rng_ForecastRowLookup,0),MATCH(J$11,[5]!rng_ForecastColumnLookup,0)) -> 168.1198504 | K26: =INDEX([5]!tbl_Forecast,MATCH($D$8&$C26&$D$7,[5]!rng_ForecastRowLookup,0),MATCH(K$11,[5]!rng_ForecastColumnLookup,0)) -> 167.7163628 | L26: =INDEX([5]!tbl_Forecast,MATCH($D$8&$C26&$D$7,[5]!rng_ForecastRowLookup,0),MATCH(L$11,[5]!rng_ForecastColumnLookup,0)) -> 167.3138435 | M26: =INDEX([5]!tbl_Forecast,MATCH($D$8&$C26&$D$7,[5]!rng_ForecastRowLookup,0),MATCH(M$11,[5]!rng_ForecastColumnLookup,0)) -> 166.9122903 | N26: =INDEX([5]!tbl_Forecast,MATCH($D$8&$C26&$D$7,[5]!rng_ForecastRowLookup,0),MATCH(N$11,[5]!rng_ForecastColumnLookup,0)) -> 166.5117008 | O26: =INDEX([5]!tbl_Forecast,MATCH($D$8&$C26&$D$7,[5]!rng_ForecastRowLookup,0),MATCH(O$11,[5]!rng_ForecastColumnLookup,0)) -> 166.1120727 | P26: =INDEX([5]!tbl_Forecast,MATCH($D$8&$C26&$D$7,[5]!rng_ForecastRowLookup,0),MATCH(P$11,[5]!rng_ForecastColumnLookup,0)) -> 165.7134037 | Q26: =INDEX([5]!tbl_Forecast,MATCH($D$8&$C26&$D$7,[5]!rng_ForecastRowLookup,0),MATCH(Q$11,[5]!rng_ForecastColumnLookup,0)) -> 165.3156915 | R26: =INDEX([5]!tbl_Forecast,MATCH($D$8&$C26&$D$7,[5]!rng_ForecastRowLookup,0),MATCH(R$11,[5]!rng_ForecastColumnLookup,0)) -> 164.9189339 | S26: =INDEX([5]!tbl_Forecast,MATCH($D$8&$C26&$D$7,[5]!rng_ForecastRowLookup,0),MATCH(S$11,[5]!rng_ForecastColumnLookup,0)) -> 164.5231284 | T26: =INDEX([5]!tbl_Forecast,MATCH($D$8&$C26&$D$7,[5]!rng_ForecastRowLookup,0),MATCH(T$11,[5]!rng_ForecastColumnLookup,0)) -> 164.1282729 | U26: =INDEX([5]!tbl_Forecast,MATCH($D$8&$C26&$D$7,[5]!rng_ForecastRowLookup,0),MATCH(U$11,[5]!rng_ForecastColumnLookup,0)) -> 163.7343651 | V26: =INDEX([5]!tbl_Forecast,MATCH($D$8&$C26&$D$7,[5]!rng_ForecastRowLookup,0),MATCH(V$11,[5]!rng_ForecastColumnLookup,0)) -> 163.3414026 | W26: =INDEX([5]!tbl_Forecast,MATCH($D$8&$C26&$D$7,[5]!rng_ForecastRowLookup,0),MATCH(W$11,[5]!rng_ForecastColumnLookup,0)) -> 162.9493832 | X26: =INDEX([5]!tbl_Forecast,MATCH($D$8&$C26&$D$7,[5]!rng_ForecastRowLookup,0),MATCH(X$11,[5]!rng_ForecastColumnLookup,0)) -> 162.5583047
C27: Hospital | E27: =INDEX([5]!tbl_Forecast,MATCH($D$8&$C27&$D$7,[5]!rng_ForecastRowLookup,0),MATCH(E$11,[5]!rng_ForecastColumnLookup,0)) -> 105.0294795 | F27: =INDEX([5]!tbl_Forecast,MATCH($D$8&$C27&$D$7,[5]!rng_ForecastRowLookup,0),MATCH(F$11,[5]!rng_ForecastColumnLookup,0)) -> 104.8089176 | G27: =INDEX([5]!tbl_Forecast,MATCH($D$8&$C27&$D$7,[5]!rng_ForecastRowLookup,0),MATCH(G$11,[5]!rng_ForecastColumnLookup,0)) -> 104.5888189 | H27: =INDEX([5]!tbl_Forecast,MATCH($D$8&$C27&$D$7,[5]!rng_ForecastRowLookup,0),MATCH(H$11,[5]!rng_ForecastColumnLookup,0)) -> 104.3691824 | I27: =INDEX([5]!tbl_Forecast,MATCH($D$8&$C27&$D$7,[5]!rng_ForecastRowLookup,0),MATCH(I$11,[5]!rng_ForecastColumnLookup,0)) -> 104.1500071 | J27: =INDEX([5]!tbl_Forecast,MATCH($D$8&$C27&$D$7,[5]!rng_ForecastRowLookup,0),MATCH(J$11,[5]!rng_ForecastColumnLookup,0)) -> 103.9312921 | K27: =INDEX([5]!tbl_Forecast,MATCH($D$8&$C27&$D$7,[5]!rng_ForecastRowLookup,0),MATCH(K$11,[5]!rng_ForecastColumnLookup,0)) -> 103.7130364 | L27: =INDEX([5]!tbl_Forecast,MATCH($D$8&$C27&$D$7,[5]!rng_ForecastRowLookup,0),MATCH(L$11,[5]!rng_ForecastColumnLookup,0)) -> 103.495239 | M27: =INDEX([5]!tbl_Forecast,MATCH($D$8&$C27&$D$7,[5]!rng_ForecastRowLookup,0),MATCH(M$11,[5]!rng_ForecastColumnLookup,0)) -> 103.277899 | N27: =INDEX([5]!tbl_Forecast,MATCH($D$8&$C27&$D$7,[5]!rng_ForecastRowLookup,0),MATCH(N$11,[5]!rng_ForecastColumnLookup,0)) -> 103.0610154 | O27: =INDEX([5]!tbl_Forecast,MATCH($D$8&$C27&$D$7,[5]!rng_ForecastRowLookup,0),MATCH(O$11,[5]!rng_ForecastColumnLookup,0)) -> 102.8445873 | P27: =INDEX([5]!tbl_Forecast,MATCH($D$8&$C27&$D$7,[5]!rng_ForecastRowLookup,0),MATCH(P$11,[5]!rng_ForecastColumnLookup,0)) -> 102.6286136 | Q27: =INDEX([5]!tbl_Forecast,MATCH($D$8&$C27&$D$7,[5]!rng_ForecastRowLookup,0),MATCH(Q$11,[5]!rng_ForecastColumnLookup,0)) -> 102.4130935 | R27: =INDEX([5]!tbl_Forecast,MATCH($D$8&$C27&$D$7,[5]!rng_ForecastRowLookup,0),MATCH(R$11,[5]!rng_ForecastColumnLookup,0)) -> 102.1980261 | S27: =INDEX([5]!tbl_Forecast,MATCH($D$8&$C27&$D$7,[5]!rng_ForecastRowLookup,0),MATCH(S$11,[5]!rng_ForecastColumnLookup,0)) -> 101.9834102 | T27: =INDEX([5]!tbl_Forecast,MATCH($D$8&$C27&$D$7,[5]!rng_ForecastRowLookup,0),MATCH(T$11,[5]!rng_ForecastColumnLookup,0)) -> 101.769245 | U27: =INDEX([5]!tbl_Forecast,MATCH($D$8&$C27&$D$7,[5]!rng_ForecastRowLookup,0),MATCH(U$11,[5]!rng_ForecastColumnLookup,0)) -> 101.5555296 | V27: =INDEX([5]!tbl_Forecast,MATCH($D$8&$C27&$D$7,[5]!rng_ForecastRowLookup,0),MATCH(V$11,[5]!rng_ForecastColumnLookup,0)) -> 101.342263 | W27: =INDEX([5]!tbl_Forecast,MATCH($D$8&$C27&$D$7,[5]!rng_ForecastRowLookup,0),MATCH(W$11,[5]!rng_ForecastColumnLookup,0)) -> 101.1294443 | X27: =INDEX([5]!tbl_Forecast,MATCH($D$8&$C27&$D$7,[5]!rng_ForecastRowLookup,0),MATCH(X$11,[5]!rng_ForecastColumnLookup,0)) -> 100.9170724
C28: Residential Care | E28: =INDEX([5]!tbl_Forecast,MATCH($D$8&$C28&$D$7,[5]!rng_ForecastRowLookup,0),MATCH(E$11,[5]!rng_ForecastColumnLookup,0)) -> 128.7482092 | F28: =INDEX([5]!tbl_Forecast,MATCH($D$8&$C28&$D$7,[5]!rng_ForecastRowLookup,0),MATCH(F$11,[5]!rng_ForecastColumnLookup,0)) -> 128.4392135 | G28: =INDEX([5]!tbl_Forecast,MATCH($D$8&$C28&$D$7,[5]!rng_ForecastRowLookup,0),MATCH(G$11,[5]!rng_ForecastColumnLookup,0)) -> 128.1309594 | H28: =INDEX([5]!tbl_Forecast,MATCH($D$8&$C28&$D$7,[5]!rng_ForecastRowLookup,0),MATCH(H$11,[5]!rng_ForecastColumnLookup,0)) -> 127.8234451 | I28: =INDEX([5]!tbl_Forecast,MATCH($D$8&$C28&$D$7,[5]!rng_ForecastRowLookup,0),MATCH(I$11,[5]!rng_ForecastColumnLookup,0)) -> 127.5166688 | J28: =INDEX([5]!tbl_Forecast,MATCH($D$8&$C28&$D$7,[5]!rng_ForecastRowLookup,0),MATCH(J$11,[5]!rng_ForecastColumnLookup,0)) -> 127.2106288 | K28: =INDEX([5]!tbl_Forecast,MATCH($D$8&$C28&$D$7,[5]!rng_ForecastRowLookup,0),MATCH(K$11,[5]!rng_ForecastColumnLookup,0)) -> 126.9053233 | L28: =INDEX([5]!tbl_Forecast,MATCH($D$8&$C28&$D$7,[5]!rng_ForecastRowLookup,0),MATCH(L$11,[5]!rng_ForecastColumnLookup,0)) -> 126.6007505 | M28: =INDEX([5]!tbl_Forecast,MATCH($D$8&$C28&$D$7,[5]!rng_ForecastRowLookup,0),MATCH(M$11,[5]!rng_ForecastColumnLookup,0)) -> 126.2969087 | N28: =INDEX([5]!tbl_Forecast,MATCH($D$8&$C28&$D$7,[5]!rng_ForecastRowLookup,0),MATCH(N$11,[5]!rng_ForecastColumnLookup,0)) -> 125.9937961 | O28: =INDEX([5]!tbl_Forecast,MATCH($D$8&$C28&$D$7,[5]!rng_ForecastRowLookup,0),MATCH(O$11,[5]!rng_ForecastColumnLookup,0)) -> 125.691411 | P28: =INDEX([5]!tbl_Forecast,MATCH($D$8&$C28&$D$7,[5]!rng_ForecastRowLookup,0),MATCH(P$11,[5]!rng_ForecastColumnLookup,0)) -> 125.3897516 | Q28: =INDEX([5]!tbl_Forecast,MATCH($D$8&$C28&$D$7,[5]!rng_ForecastRowLookup,0),MATCH(Q$11,[5]!rng_ForecastColumnLookup,0)) -> 125.0888162 | R28: =INDEX([5]!tbl_Forecast,MATCH($D$8&$C28&$D$7,[5]!rng_ForecastRowLookup,0),MATCH(R$11,[5]!rng_ForecastColumnLookup,0)) -> 124.7886031 | S28: =INDEX([5]!tbl_Forecast,MATCH($D$8&$C28&$D$7,[5]!rng_ForecastRowLookup,0),MATCH(S$11,[5]!rng_ForecastColumnLookup,0)) -> 124.4891104 | T28: =INDEX([5]!tbl_Forecast,MATCH($D$8&$C28&$D$7,[5]!rng_ForecastRowLookup,0),MATCH(T$11,[5]!rng_ForecastColumnLookup,0)) -> 124.1903365 | U28: =INDEX([5]!tbl_Forecast,MATCH($D$8&$C28&$D$7,[5]!rng_ForecastRowLookup,0),MATCH(U$11,[5]!rng_ForecastColumnLookup,0)) -> 123.8922797 | V28: =INDEX([5]!tbl_Forecast,MATCH($D$8&$C28&$D$7,[5]!rng_ForecastRowLookup,0),MATCH(V$11,[5]!rng_ForecastColumnLookup,0)) -> 123.5949383 | W28: =INDEX([5]!tbl_Forecast,MATCH($D$8&$C28&$D$7,[5]!rng_ForecastRowLookup,0),MATCH(W$11,[5]!rng_ForecastColumnLookup,0)) -> 123.2983104 | X28: =INDEX([5]!tbl_Forecast,MATCH($D$8&$C28&$D$7,[5]!rng_ForecastRowLookup,0),MATCH(X$11,[5]!rng_ForecastColumnLookup,0)) -> 123.0023945
C29: Assembly | E29: =INDEX([5]!tbl_Forecast,MATCH($D$8&$C29&$D$7,[5]!rng_ForecastRowLookup,0),MATCH(E$11,[5]!rng_ForecastColumnLookup,0)) -> 375.902249 | F29: =INDEX([5]!tbl_Forecast,MATCH($D$8&$C29&$D$7,[5]!rng_ForecastRowLookup,0),MATCH(F$11,[5]!rng_ForecastColumnLookup,0)) -> 374.2157009 | G29: =INDEX([5]!tbl_Forecast,MATCH($D$8&$C29&$D$7,[5]!rng_ForecastRowLookup,0),MATCH(G$11,[5]!rng_ForecastColumnLookup,0)) -> 372.5367198 | H29: =INDEX([5]!tbl_Forecast,MATCH($D$8&$C29&$D$7,[5]!rng_ForecastRowLookup,0),MATCH(H$11,[5]!rng_ForecastColumnLookup,0)) -> 370.8652717 | I29: =INDEX([5]!tbl_Forecast,MATCH($D$8&$C29&$D$7,[5]!rng_ForecastRowLookup,0),MATCH(I$11,[5]!rng_ForecastColumnLookup,0)) -> 369.2013229 | J29: =INDEX([5]!tbl_Forecast,MATCH($D$8&$C29&$D$7,[5]!rng_ForecastRowLookup,0),MATCH(J$11,[5]!rng_ForecastColumnLookup,0)) -> 367.5448396 | K29: =INDEX([5]!tbl_Forecast,MATCH($D$8&$C29&$D$7,[5]!rng_ForecastRowLookup,0),MATCH(K$11,[5]!rng_ForecastColumnLookup,0)) -> 365.8957884 | L29: =INDEX([5]!tbl_Forecast,MATCH($D$8&$C29&$D$7,[5]!rng_ForecastRowLookup,0),MATCH(L$11,[5]!rng_ForecastColumnLookup,0)) -> 364.254136 | M29: =INDEX([5]!tbl_Forecast,MATCH($D$8&$C29&$D$7,[5]!rng_ForecastRowLookup,0),MATCH(M$11,[5]!rng_ForecastColumnLookup,0)) -> 362.6198491 | N29: =INDEX([5]!tbl_Forecast,MATCH($D$8&$C29&$D$7,[5]!rng_ForecastRowLookup,0),MATCH(N$11,[5]!rng_ForecastColumnLookup,0)) -> 360.9928947 | O29: =INDEX([5]!tbl_Forecast,MATCH($D$8&$C29&$D$7,[5]!rng_ForecastRowLookup,0),MATCH(O$11,[5]!rng_ForecastColumnLookup,0)) -> 359.3732399 | P29: =INDEX([5]!tbl_Forecast,MATCH($D$8&$C29&$D$7,[5]!rng_ForecastRowLookup,0),MATCH(P$11,[5]!rng_ForecastColumnLookup,0)) -> 357.760852 | Q29: =INDEX([5]!tbl_Forecast,MATCH($D$8&$C29&$D$7,[5]!rng_ForecastRowLookup,0),MATCH(Q$11,[5]!rng_ForecastColumnLookup,0)) -> 356.1556983 | R29: =INDEX([5]!tbl_Forecast,MATCH($D$8&$C29&$D$7,[5]!rng_ForecastRowLookup,0),MATCH(R$11,[5]!rng_ForecastColumnLookup,0)) -> 354.5577464 | S29: =INDEX([5]!tbl_Forecast,MATCH($D$8&$C29&$D$7,[5]!rng_ForecastRowLookup,0),MATCH(S$11,[5]!rng_ForecastColumnLookup,0)) -> 352.966964 | T29: =INDEX([5]!tbl_Forecast,MATCH($D$8&$C29&$D$7,[5]!rng_ForecastRowLookup,0),MATCH(T$11,[5]!rng_ForecastColumnLookup,0)) -> 351.3833189 | U29: =INDEX([5]!tbl_Forecast,MATCH($D$8&$C29&$D$7,[5]!rng_ForecastRowLookup,0),MATCH(U$11,[5]!rng_ForecastColumnLookup,0)) -> 349.806779 | V29: =INDEX([5]!tbl_Forecast,MATCH($D$8&$C29&$D$7,[5]!rng_ForecastRowLookup,0),MATCH(V$11,[5]!rng_ForecastColumnLookup,0)) -> 348.2373126 | W29: =INDEX([5]!tbl_Forecast,MATCH($D$8&$C29&$D$7,[5]!rng_ForecastRowLookup,0),MATCH(W$11,[5]!rng_ForecastColumnLookup,0)) -> 346.6748879 | X29: =INDEX([5]!tbl_Forecast,MATCH($D$8&$C29&$D$7,[5]!rng_ForecastRowLookup,0),MATCH(X$11,[5]!rng_ForecastColumnLookup,0)) -> 345.1194732
C30: Other | E30: =INDEX([5]!tbl_Forecast,MATCH($D$8&$C30&$D$7,[5]!rng_ForecastRowLookup,0),MATCH(E$11,[5]!rng_ForecastColumnLookup,0)) -> 342.6498833 | F30: =INDEX([5]!tbl_Forecast,MATCH($D$8&$C30&$D$7,[5]!rng_ForecastRowLookup,0),MATCH(F$11,[5]!rng_ForecastColumnLookup,0)) -> 339.5660344 | G30: =INDEX([5]!tbl_Forecast,MATCH($D$8&$C30&$D$7,[5]!rng_ForecastRowLookup,0),MATCH(G$11,[5]!rng_ForecastColumnLookup,0)) -> 336.50994 | H30: =INDEX([5]!tbl_Forecast,MATCH($D$8&$C30&$D$7,[5]!rng_ForecastRowLookup,0),MATCH(H$11,[5]!rng_ForecastColumnLookup,0)) -> 333.4813506 | I30: =INDEX([5]!tbl_Forecast,MATCH($D$8&$C30&$D$7,[5]!rng_ForecastRowLookup,0),MATCH(I$11,[5]!rng_ForecastColumnLookup,0)) -> 330.4800184 | J30: =INDEX([5]!tbl_Forecast,MATCH($D$8&$C30&$D$7,[5]!rng_ForecastRowLookup,0),MATCH(J$11,[5]!rng_ForecastColumnLookup,0)) -> 327.5056983 | K30: =INDEX([5]!tbl_Forecast,MATCH($D$8&$C30&$D$7,[5]!rng_ForecastRowLookup,0),MATCH(K$11,[5]!rng_ForecastColumnLookup,0)) -> 324.558147 | L30: =INDEX([5]!tbl_Forecast,MATCH($D$8&$C30&$D$7,[5]!rng_ForecastRowLookup,0),MATCH(L$11,[5]!rng_ForecastColumnLookup,0)) -> 321.6371237 | M30: =INDEX([5]!tbl_Forecast,MATCH($D$8&$C30&$D$7,[5]!rng_ForecastRowLookup,0),MATCH(M$11,[5]!rng_ForecastColumnLookup,0)) -> 318.7423895 | N30: =INDEX([5]!tbl_Forecast,MATCH($D$8&$C30&$D$7,[5]!rng_ForecastRowLookup,0),MATCH(N$11,[5]!rng_ForecastColumnLookup,0)) -> 315.873708 | O30: =INDEX([5]!tbl_Forecast,MATCH($D$8&$C30&$D$7,[5]!rng_ForecastRowLookup,0),MATCH(O$11,[5]!rng_ForecastColumnLookup,0)) -> 313.0308447 | P30: =INDEX([5]!tbl_Forecast,MATCH($D$8&$C30&$D$7,[5]!rng_ForecastRowLookup,0),MATCH(P$11,[5]!rng_ForecastColumnLookup,0)) -> 310.2135671 | Q30: =INDEX([5]!tbl_Forecast,MATCH($D$8&$C30&$D$7,[5]!rng_ForecastRowLookup,0),MATCH(Q$11,[5]!rng_ForecastColumnLookup,0)) -> 307.421645 | R30: =INDEX([5]!tbl_Forecast,MATCH($D$8&$C30&$D$7,[5]!rng_ForecastRowLookup,0),MATCH(R$11,[5]!rng_ForecastColumnLookup,0)) -> 304.6548502 | S30: =INDEX([5]!tbl_Forecast,MATCH($D$8&$C30&$D$7,[5]!rng_ForecastRowLookup,0),MATCH(S$11,[5]!rng_ForecastColumnLookup,0)) -> 301.9129565 | T30: =INDEX([5]!tbl_Forecast,MATCH($D$8&$C30&$D$7,[5]!rng_ForecastRowLookup,0),MATCH(T$11,[5]!rng_ForecastColumnLookup,0)) -> 299.1957399 | U30: =INDEX([5]!tbl_Forecast,MATCH($D$8&$C30&$D$7,[5]!rng_ForecastRowLookup,0),MATCH(U$11,[5]!rng_ForecastColumnLookup,0)) -> 296.5029782 | V30: =INDEX([5]!tbl_Forecast,MATCH($D$8&$C30&$D$7,[5]!rng_ForecastRowLookup,0),MATCH(V$11,[5]!rng_ForecastColumnLookup,0)) -> 293.8344514 | W30: =INDEX([5]!tbl_Forecast,MATCH($D$8&$C30&$D$7,[5]!rng_ForecastRowLookup,0),MATCH(W$11,[5]!rng_ForecastColumnLookup,0)) -> 291.1899414 | X30: =INDEX([5]!tbl_Forecast,MATCH($D$8&$C30&$D$7,[5]!rng_ForecastRowLookup,0),MATCH(X$11,[5]!rng_ForecastColumnLookup,0)) -> 288.5692319
C32: Total Regional Stock | E32: =SUM(E13:E30) -> 3371.040527 | F32: 3356.53691 | G32: 3342.107566 | H32: 3327.752035 | I32: 3313.469863 | J32: 3299.260599 | K32: 3285.123795 | L32: 3271.059006 | M32: 3257.065791 | N32: 3243.14371 | O32: 3229.292329 | P32: 3215.511216 | Q32: 3201.799941 | R32: 3188.158078 | S32: 3174.585205 | T32: 3161.0809 | U32: 3147.644749 | V32: 3134.276335 | W32: 3120.975249 | X32: =SUM(X13:X30) -> 3107.741082
A37: APPLY MEASURE APPLICABILITY, AND ACHIEVABLE PENETRATION RATE FOR MAX ANNUAL RATE | Y37: Achievability
A38: Appicability | C38: =C8 -> Demand Control Ventilation-Retro | D38: =VLOOKUP(C38,[2]ACHIEV!$B$14:$C$96,2,FALSE) -> Retro12Med | E38: =VLOOKUP($C$38,[2]!ACHIEV,MATCH(E$11,$E$11:$X$11,0)+2,FALSE) -> 0.1093745947 | F38: =VLOOKUP($C$38,[2]!ACHIEV,MATCH(F$11,$E$11:$X$11,0)+2,FALSE) -> 0.1093745947 | G38: =VLOOKUP($C$38,[2]!ACHIEV,MATCH(G$11,$E$11:$X$11,0)+2,FALSE) -> 0.1093745947 | H38: =VLOOKUP($C$38,[2]!ACHIEV,MATCH(H$11,$E$11:$X$11,0)+2,FALSE) -> 0.1093745947 | I38: =VLOOKUP($C$38,[2]!ACHIEV,MATCH(I$11,$E$11:$X$11,0)+2,FALSE) -> 0.1093745947 | J38: =VLOOKUP($C$38,[2]!ACHIEV,MATCH(J$11,$E$11:$X$11,0)+2,FALSE) -> 0.09843713521 | K38: =VLOOKUP($C$38,[2]!ACHIEV,MATCH(K$11,$E$11:$X$11,0)+2,FALSE) -> 0.07874970817 | L38: =VLOOKUP($C$38,[2]!ACHIEV,MATCH(L$11,$E$11:$X$11,0)+2,FALSE) -> 0.06299976654 | M38: =VLOOKUP($C$38,[2]!ACHIEV,MATCH(M$11,$E$11:$X$11,0)+2,FALSE) -> 0.05039981323 | N38: =VLOOKUP($C$38,[2]!ACHIEV,MATCH(N$11,$E$11:$X$11,0)+2,FALSE) -> 0.04031985058 | O38: =VLOOKUP($C$38,[2]!ACHIEV,MATCH(O$11,$E$11:$X$11,0)+2,FALSE) -> 0.03225588047 | P38: =VLOOKUP($C$38,[2]!ACHIEV,MATCH(P$11,$E$11:$X$11,0)+2,FALSE) -> 0.02580470437 | Q38: =VLOOKUP($C$38,[2]!ACHIEV,MATCH(Q$11,$E$11:$X$11,0)+2,FALSE) -> 0.0206437635 | R38: =VLOOKUP($C$38,[2]!ACHIEV,MATCH(R$11,$E$11:$X$11,0)+2,FALSE) -> 0.0165150108 | S38: =VLOOKUP($C$38,[2]!ACHIEV,MATCH(S$11,$E$11:$X$11,0)+2,FALSE) -> 0.01321200864 | T38: =VLOOKUP($C$38,[2]!ACHIEV,MATCH(T$11,$E$11:$X$11,0)+2,FALSE) -> 0.01056960691 | U38: =VLOOKUP($C$38,[2]!ACHIEV,MATCH(U$11,$E$11:$X$11,0)+2,FALSE) -> 7.209282379e-05 | V38: =VLOOKUP($C$38,[2]!ACHIEV,MATCH(V$11,$E$11:$X$11,0)+2,FALSE) -> 2.574743707e-05 | W38: =VLOOKUP($C$38,[2]!ACHIEV,MATCH(W$11,$E$11:$X$11,0)+2,FALSE) -> 8.777535365e-06 | X38: =VLOOKUP($C$38,[2]!ACHIEV,MATCH(X$11,$E$11:$X$11,0)+2,FALSE) -> 2.862239793e-06 | Y38: 0.85
A39: =VLOOKUP($C$38,[2]!APPLIC,MATCH(C39,BLDGTYP,0)+1,FALSE) -> 0.1032697274 | C39: Large Off | E39: =E13*E$38*$Y$38*$A39 -> 3.649159925 | F39: 3.638212446 | G39: 3.627297808 | H39: 3.616415915 | I39: 3.605566667 | J39: 3.23527497 | K39: 2.580455316 | L39: 2.05817116 | M39: 1.641597318 | N39: 1.30933802 | O39: 1.044328005 | P39: 0.8329560169 | Q39: 0.6643657191 | R39: 0.5298980975 | S39: 0.4226467226 | T39: 0.3371030259 | U39: 0.00229240322 | V39: 0.0008162592896 | W39: 0.0002774354017 | X39: 9.019666158e-05 | Y39: =W13*$Y$38*A39 -> 31.60743765
A40: =VLOOKUP($C$38,[2]!APPLIC,MATCH(C40,BLDGTYP,0)+1,FALSE) -> 0.6220738254 | C40: Medium Off | E40: =E14*E$38*$Y$38*$A40 -> 11.03092585 | F40: 10.99783307 | G40: 10.96483957 | H40: 10.93194505 | I40: 10.89914922 | J40: 9.779806594 | K40: 7.80037374 | L40: 6.221578095 | M40: 4.962330688 | N40: 3.957954957 | O40: 3.156864874 | P40: 2.517915423 | Q40: 2.008289342 | R40: 1.601811579 | S40: 1.277604915 | T40: 1.01901768 | U40: 0.006929630506 | V40: 0.002467443434 | W40: 0.0008386503762 | X40: 0.0002726525299 | Y40: 95.54508656
A41: =VLOOKUP($C$38,[2]!APPLIC,MATCH(C41,BLDGTYP,0)+1,FALSE) -> 0.7176412249 | C41: Small Off | E41: =E15*E$38*$Y$38*$A41 -> 12.28219977 | F41: 12.24535317 | G41: 12.20861711 | H41: 12.17199126 | I41: 12.13547529 | J41: 10.88916197 | K41: 8.685195591 | L41: 6.927312003 | M41: 5.525224054 | N41: 4.406918705 | O41: 3.514958359 | P41: 2.803530787 | Q41: 2.236096156 | R41: 1.783510294 | S41: 1.422527811 | T41: 1.134608182 | U41: 0.007715681111 | V41: 0.002747333595 | W41: 0.0009337812255 | X41: 0.0003035803962 | Y41: 106.3830776
A42: =VLOOKUP($C$38,[2]!APPLIC,MATCH(C42,BLDGTYP,0)+1,FALSE) -> 0.6493664317 | C42: Xlarge Ret | E42: =E16*E$38*$Y$38*$A42 -> 8.352710373 | F42: 8.314287905 | G42: 8.27604218 | H42: 8.237972386 | I42: 8.200077713 | J42: 7.34612162 | K42: 5.849863569 | L42: 4.658363357 | M42: 3.709547908 | N42: 2.95398719 | O42: 2.35231908 | P42: 1.873198729 | Q42: 1.491665612 | R42: 1.18784316 | S42: 0.9459032654 | T42: 0.7532416883 | U42: 0.005114052537 | V42: 0.001818045677 | W42: 0.0006169372727 | X42: 0.0002002497917 | Y42: 70.28593416
A43: =VLOOKUP($C$38,[2]!APPLIC,MATCH(C43,BLDGTYP,0)+1,FALSE) -> 0.3754791341 | C43: Large Ret | E43: =E17*E$38*$Y$38*$A43 -> 7.294223257 | F43: 7.26066983 | G43: 7.227270749 | H43: 7.194025303 | I43: 7.160932787 | J43: 6.415193246 | K43: 5.108546686 | L43: 4.068037897 | M43: 3.239459938 | N43: 2.579646738 | O43: 2.05422429 | P43: 1.635819887 | Q43: 1.302636092 | R43: 1.037315173 | S43: 0.8260348186 | T43: 0.6577880467 | U43: 0.004465980417 | V43: 0.001587656038 | W43: 0.0005387566433 | X43: 0.0001748733792 | Y43: 61.3790342
A44: =VLOOKUP($C$38,[2]!APPLIC,MATCH(C44,BLDGTYP,0)+1,FALSE) -> 0.5186157836 | C44: Medium Ret | E44: =E18*E$38*$Y$38*$A44 -> 4.682421574 | F44: 4.660882435 | G44: 4.639442376 | H44: 4.618100941 | I44: 4.596857677 | J44: 4.118140918 | K44: 3.279357976 | L44: 2.611418343 | M44: 2.079524655 | N44: 1.655967073 | O44: 1.3186797 | P44: 1.050091019 | Q44: 0.83620848 | R44: 0.6658895368 | S44: 0.5302611559 | T44: 0.4222575637 | U44: 0.002866871813 | V44: 0.00101917293 | W44: 0.0003458470684 | X44: 0.0001122574474 | Y44: 39.40138707
A45: =VLOOKUP($C$38,[2]!APPLIC,MATCH(C45,BLDGTYP,0)+1,FALSE) -> 0.4224831216 | C45: Small Ret | E45: =E19*E$38*$Y$38*$A45 -> 4.300096377 | F45: 4.280315933 | G45: 4.26062648 | H45: 4.241027598 | I45: 4.221518871 | J45: 3.781889896 | K45: 3.011594562 | L45: 2.398192982 | M45: 1.909729035 | N45: 1.520755425 | O45: 1.21100796 | P45: 0.9643498589 | Q45: 0.7679310796 | R45: 0.6115188773 | S45: 0.4869647124 | T45: 0.3877797398 | U45: 0.002632788377 | V45: 0.000935956268 | W45: 0.0003176082508 | X45: 0.0001030914955 | Y45: 36.18421774
A46: =VLOOKUP($C$38,[2]!APPLIC,MATCH(C46,BLDGTYP,0)+1,FALSE) -> 0.3230785716 | C46: School K-12 | E46: =E20*E$38*$Y$38*$A46 -> 7.242233455 | F46: 7.212540298 | G46: 7.182968883 | H46: 7.15351871 | I46: 7.124189283 | J46: 6.385482097 | K46: 5.087441296 | L46: 4.053266229 | M46: 3.22931827 | N46: 2.572862452 | O46: 2.049850973 | P46: 1.633157267 | Q46: 1.301169058 | R46: 1.036667412 | S46: 0.8259336604 | T46: 0.6580378659 | U46: 0.004469920698 | V46: 0.001589855008 | W46: 0.0005397738418 | X46: 0.0001752915551 | Y46: 61.49492077
A47: =VLOOKUP($C$38,[2]!APPLIC,MATCH(C47,BLDGTYP,0)+1,FALSE) -> 0.1921304443 | C47: University | E47: =E21*E$38*$Y$38*$A47 -> 2.181911601 | F47: 2.172965763 | G47: 2.164056604 | H47: 2.155183972 | I47: 2.146347717 | J47: 1.923792923 | K47: 1.532724297 | L47: 1.221152102 | M47: 0.9729163028 | N47: 0.7751418768 | O47: 0.617571036 | P47: 0.4920311958 | Q47: 0.3920110943 | R47: 0.3123230791 | S47: 0.2488340436 | T47: 0.1982510592 | U47: 0.001346680121 | V47: 0.0004789852616 | W47: 0.0001626209393 | X47: 5.281115005e-05 | Y47: 18.52694778
A48: =VLOOKUP($C$38,[2]!APPLIC,MATCH(C48,BLDGTYP,0)+1,FALSE) -> 0.2114494607 | C48: Warehouse | E48: =E22*E$38*$Y$38*$A48 -> 8.820564588 | F48: 8.787928499 | G48: 8.755413163 | H48: 8.723018135 | I48: 8.690742968 | J48: 7.792728497 | K48: 6.211116321 | L48: 4.950508153 | M48: 3.945753018 | N48: 3.144922985 | O48: 2.506629416 | P48: 1.99788391 | Q48: 1.592393392 | R48: 1.269201229 | S48: 1.011604147 | T48: 0.8062889697 | U48: 0.005479160843 | V48: 0.001949602839 | W48: 0.0006621781732 | X48: 0.0002151287328 | Y48: 75.44010314
A49: =VLOOKUP($C$38,[2]!APPLIC,MATCH(C49,BLDGTYP,0)+1,FALSE) -> 0.4339055804 | C49: Supermarket | E49: =E23*E$38*$Y$38*$A49 -> 2.167076374 | F49: 2.147572687 | G49: 2.128244532 | H49: 2.109090332 | I49: 2.090108519 | J49: 1.864167788 | K49: 1.477912222 | L49: 1.17168881 | M49: 0.9289148883 | N49: 0.7364437235 | O49: 0.583852584 | P49: 0.4628783286 | Q49: 0.3669699389 | R49: 0.2909337676 | S49: 0.2306522909 | T49: 0.1828611362 | U49: 0.001236027887 | V49: 0.0004374655841 | W49: 0.0001477937706 | X49: 4.775987828e-05 | Y49: 16.83773001
A50: =VLOOKUP($C$38,[2]!APPLIC,MATCH(C50,BLDGTYP,0)+1,FALSE) -> 0.5749986904 | C50: MiniMart | E50: =E24*E$38*$Y$38*$A50 -> 1.202295808 | F50: 1.196620972 | G50: 1.190972921 | H50: 1.185351529 | I50: 1.179756669 | J50: 1.056769396 | K50: 0.8414251557 | L50: 0.6699629032 | M50: 0.5334405426 | N50: 0.4247381626 | O50: 0.3381867188 | P50: 0.269272382 | Q50: 0.2144011331 | R50: 0.1707113278 | S50: 0.1359244562 | T50: 0.1082263142 | U50: 0.0007347022099 | V50: 0.0002611551484 | W50: 8.860994184e-05 | X50: 2.8758164e-05 | Y50: 10.09508229
A51: =VLOOKUP($C$38,[2]!APPLIC,MATCH(C51,BLDGTYP,0)+1,FALSE) -> 0.4501828538 | C51: Restaurant | E51: =E25*E$38*$Y$38*$A51 -> 2.157546793 | F51: 2.147363172 | G51: 2.137227618 | H51: 2.127139904 | I51: 2.117099804 | J51: 1.896396383 | K51: 1.509956314 | L51: 1.202263456 | M51: 0.957271018 | N51: 0.7622021591 | O51: 0.6068836519 | P51: 0.4832153288 | Q51: 0.384747642 | R51: 0.3063453065 | S51: 0.2439194853 | T51: 0.1942145483 | U51: 0.001318439594 | V51: 0.0004686487711 | W51: 0.000159012528 | X51: 5.160717029e-05 | Y51: 18.11585159
A52: =VLOOKUP($C$38,[2]!APPLIC,MATCH(C52,BLDGTYP,0)+1,FALSE) -> 0.2420831348 | C52: Lodging | E52: =E26*E$38*$Y$38*$A52 -> 3.829452698 | F52: 3.820262011 | G52: 3.811093383 | H52: 3.801946759 | I52: 3.792822086 | J52: 3.405347382 | K52: 2.717739639 | L52: 2.168973651 | M52: 1.731014491 | N52: 1.381488045 | O52: 1.102537979 | P52: 0.8799135103 | Q52: 0.7022413743 | R52: 0.560444796 | S52: 0.4472797828 | T52: 0.3569650491 | U52: 0.002428931891 | V52: 0.0008653937336 | W52: 0.0002943125416 | X52: 9.57411494e-05 | Y52: 33.53020288
A53: =VLOOKUP($C$38,[2]!APPLIC,MATCH(C53,BLDGTYP,0)+1,FALSE) -> 0.1266314534 | C53: Hospital | E53: =E27*E$38*$Y$38*$A53 -> 1.236483107 | F53: 1.233886493 | G53: 1.231295331 | H53: 1.228709611 | I53: 1.226129321 | J53: 1.101199004 | K53: 0.8791091889 | L53: 0.7018104477 | M53: 0.5602693166 | N53: 0.4472742008 | O53: 0.35706794 | P53: 0.2850544779 | Q53: 0.2275646908 | R53: 0.1816694439 | S53: 0.1450303505 | T53: 0.1157806294 | U53: 0.0007880542752 | V53: 0.0002808569147 | W53: 9.554560746e-05 | X53: 3.109074837e-05 | Y53: 10.88524324
A54: =VLOOKUP($C$38,[2]!APPLIC,MATCH(C54,BLDGTYP,0)+1,FALSE) -> 0.3226231782 | C54: Residential Care | E54: =E28*E$38*$Y$38*$A54 -> 3.861643201 | F54: 3.852375257 | G54: 3.843129557 | H54: 3.833906046 | I54: 3.824704671 | J54: 3.433972842 | K54: 2.740585046 | L54: 2.187206113 | M54: 1.745565455 | N54: 1.393100878 | O54: 1.111805949 | P54: 0.8873100917 | Q54: 0.708144438 | R54: 0.5651559131 | S54: 0.4510396311 | T54: 0.3599657088 | U54: 0.002449349571 | V54: 0.0008726682613 | W54: 0.0002967865423 | X54: 9.654595259e-05 | Y54: 33.81205885
A55: =VLOOKUP($C$38,[2]!APPLIC,MATCH(C55,BLDGTYP,0)+1,FALSE) -> 0.4707454367 | C55: Assembly | E55: =E29*E$38*$Y$38*$A55 -> 16.45115617 | F55: 16.37734532 | G55: 16.30386563 | H55: 16.23071562 | I55: 16.15789381 | J55: 14.47685885 | K55: 11.52952481 | L55: 9.18223654 | M55: 7.312831124 | N55: 5.824016711 | O55: 4.638309031 | P55: 3.693998788 | Q55: 2.941940037 | R55: 2.342992426 | S55: 1.86598416 | T55: 1.486089689 | U55: 0.01009079313 | V55: 0.003587685393 | W55: 0.001217587038 | X55: 0.0003952578688 | Y55: 138.7162783
A56: =VLOOKUP($C$38,[2]!APPLIC,MATCH(C56,BLDGTYP,0)+1,FALSE) -> 0.3467169524 | C56: Other | E56: =E30*E$38*$Y$38*$A56 -> 11.04488116 | F56: 10.94547723 | G56: 10.84696793 | H56: 10.74934522 | I56: 10.65260111 | J56: 9.501054932 | K56: 7.53243635 | L56: 5.971715538 | M56: 4.734376079 | N56: 3.753413355 | O56: 2.975706108 | P56: 2.359139802 | Q56: 1.870326035 | R56: 1.482794481 | S56: 1.175559464 | T56: 0.9319835434 | U56: 0.006299630819 | V56: 0.002229619336 | W56: 0.0007532566235 | X56: 0.0002434165154 | Y56: 85.81641568
C58: Applicable Retrofit Floor | E58: =SUM(E39:E56) -> 111.7869821 | F58: 111.2918925 | G58: 110.7993718 | H58: 110.3094043 | I58: 109.8219742 | J58: 98.40335931 | K58: 78.37535808 | L58: 62.42385778 | M58: 49.7190841 | N58: 39.60017266 | O58: 31.54078366 | P58: 25.1217168 | Q58: 20.00910131 | R58: 15.9370259 | S58: 12.69370487 | T58: 10.11046044 | U58: 0.06865909902 | V58: 0.02441380348 | W58: 0.008286493787 | X58: =SUM(X39:X56) -> 0.002690310587
A63: SUPPLY CURVE SAVINGS BY BUNDLE | C63: Retro | D63: aMW
A64: kWh per 1000 SF | B64: TRC Net Levelized Cost (Net of All Benefits) in mills/kWh | C64: 1000 | E64: =E11 -> 2016 | F64: 2017 | G64: 2018 | H64: 2019 | I64: 2020 | J64: 2021 | K64: 2022 | L64: 2023 | M64: 2024 | N64: 2025 | O64: 2026 | P64: 2027 | Q64: 2028 | R64: 2029 | S64: 2030 | T64: 2031 | U64: 2032 | V64: 2033 | W64: 2034 | X64: =X11 -> 2035 | Y64: MAX
A65: Busbar Savings | B65: lvlcost | C65: =C8 -> Demand Control Ventilation-Retro | E65: =CONCATENATE("aMW_",E$11) -> aMW_2016 | F65: =CONCATENATE("aMW_",F$11) -> aMW_2017 | G65: aMW_2018 | H65: aMW_2019 | I65: aMW_2020 | J65: aMW_2021 | K65: aMW_2022 | L65: aMW_2023 | M65: aMW_2024 | N65: aMW_2025 | O65: aMW_2026 | P65: aMW_2027 | Q65: aMW_2028 | R65: aMW_2029 | S65: aMW_2030 | T65: aMW_2031 | U65: aMW_2032 | V65: aMW_2033 | W65: aMW_2034 | X65: aMW_2035 | Y65: MAX
A66: =VLOOKUP(CONCATENATE($C$65,"-",$C66),Outshapesave,3,FALSE) -> 145.0487365 | B66: =VLOOKUP(CONCATENATE($C$65,"-",$C66),Outshapesave,11,FALSE) -> 55.40847 | C66: =C13 -> Large Off | D66: =CONCATENATE($C$65,"-",C66) -> Demand Control Ventilation-Retro-Large Off | E66: =E39*1000*$A66/8760/1000 -> 0.06042306352 | F66: =F39*1000*$A66/8760/1000 -> 0.06024179433 | G66: 0.06006106895 | H66: 0.05988088574 | I66: 0.05970124309 | J66: 0.05356992542 | K66: 0.04272737252 | L66: 0.03407935232 | M66: 0.02718169141 | N66: 0.02168011707 | O66: 0.01729206137 | P66: 0.01379214815 | Q66: 0.01100061737 | R66: 0.008774092411 | S66: 0.006998216107 | T66: 0.005581777167 | U66: 3.795778432e-05 | V66: 1.351568249e-05 | W66: 4.593796173e-06 | X66: =X39*1000*$A66/8760/1000 -> 1.493483082e-06 | Y66: =Y39*A66/8760 -> 0.5233583213
A67: 116.6761722 | B67: 101.9515081 | C67: Medium Off | D67: =CONCATENATE($C$65,"-",C67) -> Demand Control Ventilation-Retro-Medium Off | E67: =E40*1000*$A67/8760/1000 -> 0.1469230826 | F67: 0.1464823133 | G67: 0.1460428664 | H67: 0.1456047378 | I67: 0.1451679236 | J67: 0.1302591778 | K67: 0.1038947202 | L67: 0.08286642886 | M67: 0.06609426366 | N67: 0.0527167847 | O67: 0.04204690747 | P67: 0.0335366134 | Q67: 0.02674880285 | R67: 0.02133484515 | S67: 0.01701667249 | T67: 0.01357249798 | U67: 9.229711894e-05 | V67: 3.286436699e-05 | W67: 1.117015019e-05 | X67: =X40*1000*$A67/8760/1000 -> 3.631512959e-06 | Y67: 1.2725839
A68: 149.6987056 | B68: 71.20659921 | C68: Small Off | D68: Demand Control Ventilation-Retro-Small Off | E68: =E41*1000*$A68/8760/1000 -> 0.2098892018 | F68: 0.2092595342 | G68: 0.2086317556 | H68: 0.2080058603 | I68: 0.2073818427 | J68: 0.1860837275 | K68: 0.148420381 | L68: 0.1183800959 | M68: 0.09441996451 | N68: 0.07530936369 | O68: 0.06006674848 | P68: 0.04790923859 | Q68: 0.0382124087 | R68: 0.03047821718 | S68: 0.02430942602 | T68: 0.01938919819 | U68: 0.0001318524515 | V68: 4.694889077e-05 | W68: 1.595728776e-05 | X68: =X41*1000*$A68/8760/1000 -> 5.18785301e-06 | Y68: 1.817969065
A69: 761.6153775 | B69: 67.50514378 | C69: Xlarge Ret | D69: Demand Control Ventilation-Retro-Xlarge Ret | E69: =E42*1000*$A69/8760/1000 -> 0.7262046419 | F69: 0.7228641006 | G69: 0.7195389257 | H69: 0.7162290467 | I69: 0.7129343931 | J69: 0.6386894054 | K69: 0.5086011473 | L69: 0.4050092656 | M69: 0.3225169784 | N69: 0.2568267202 | O69: 0.2045162539 | P69: 0.1628603833 | Q69: 0.1296889804 | R69: 0.1032739289 | S69: 0.08223909504 | T69: 0.06548863616 | U69: 0.0004446279741 | V69: 0.0001580652448 | W69: 5.363800387e-05 | X69: =X42*1000*$A69/8760/1000 -> 1.741019643e-05 | Y69: 6.110827429
A70: 350.2210571 | B70: 107.5230995 | C70: Large Ret | D70: Demand Control Ventilation-Retro-Large Ret | E70: =E43*1000*$A70/8760/1000 -> 0.2916199292 | F70: 0.2902784775 | G70: 0.2889431965 | H70: 0.2876140578 | I70: 0.2862910331 | J70: 0.2564766849 | K70: 0.2042375137 | L70: 0.1626384169 | M70: 0.1295122242 | N70: 0.1031331744 | O70: 0.08212700941 | P70: 0.06539938013 | Q70: 0.05207883438 | R70: 0.0414714174 | S70: 0.0330245191 | T70: 0.02629808505 | U70: 0.0001785479888 | V70: 6.347381004e-05 | W70: 2.15392604e-05 | X70: =X43*1000*$A70/8760/1000 -> 6.991362979e-06 | Y70: 2.453907561
A71: 376.9905221 | B71: 69.94676696 | C71: Medium Ret | D71: Demand Control Ventilation-Retro-Medium Ret | E71: =E44*1000*$A71/8760/1000 -> 0.2015101089 | F71: 0.2005831624 | G71: 0.1996604799 | H71: 0.1987420417 | I71: 0.1978278283 | J71: 0.1772260382 | K71: 0.1411286388 | L71: 0.1123835576 | M71: 0.08949327461 | N71: 0.07126528444 | O71: 0.0567499713 | P71: 0.04519113715 | Q71: 0.03598660633 | R71: 0.02865685436 | S71: 0.02282002626 | T71: 0.01817204331 | U71: 0.0001233771121 | V71: 4.386056334e-05 | W71: 1.488368344e-05 | X71: =X44*1000*$A71/8760/1000 -> 4.831049509e-06 | Y71: 1.695656334
A72: 377.5429073 | B72: 36.98178816 | C72: Small Ret | D72: Demand Control Ventilation-Retro-Small Ret | E72: =E45*1000*$A72/8760/1000 -> 0.1853277269 | F72: 0.1844752194 | G72: 0.1836266334 | H72: 0.1827819508 | I72: 0.1819411539 | J72: 0.1629938021 | K72: 0.1297952245 | L72: 0.1033585332 | M72: 0.08230646713 | N72: 0.06554228591 | O72: 0.05219263311 | P72: 0.0415620376 | Q72: 0.03309668178 | R72: 0.02635554964 | S72: 0.02098745129 | T72: 0.01671272721 | U72: 0.0001134692441 | V72: 4.033831627e-05 | W72: 1.368844091e-05 | X72: =X45*1000*$A72/8760/1000 -> 4.443089376e-06 | Y72: 1.559485704
A73: 0 | B73: 9999 | C73: School K-12 | D73: Demand Control Ventilation-Retro-School K-12 | E73: =E46*1000*$A73/8760/1000 -> 0 | F73: 0 | G73: 0 | H73: 0 | I73: 0 | J73: 0 | K73: 0 | L73: 0 | M73: 0 | N73: 0 | O73: 0 | P73: 0 | Q73: 0 | R73: 0 | S73: 0 | T73: 0 | U73: 0 | V73: 0 | W73: 0 | X73: =X46*1000*$A73/8760/1000 -> 0 | Y73: 0
A74: 0 | B74: 9999 | C74: University | D74: Demand Control Ventilation-Retro-University | E74: =E47*1000*$A74/8760/1000 -> 0 | F74: 0 | G74: 0 | H74: 0 | I74: 0 | J74: 0 | K74: 0 | L74: 0 | M74: 0 | N74: 0 | O74: 0 | P74: 0 | Q74: 0 | R74: 0 | S74: 0 | T74: 0 | U74: 0 | V74: 0 | W74: 0 | X74: =X47*1000*$A74/8760/1000 -> 0 | Y74: 0
A75: 1.109527131 | B75: 2159.502103 | C75: Warehouse | D75: Demand Control Ventilation-Retro-Warehouse | E75: =E48*1000*$A75/8760/1000 -> 0.001117198142 | F75: 0.001113064508 | G75: 0.00110894617 | H75: 0.001104843069 | I75: 0.00110075515 | J75: 0.00098701412 | K75: 0.0007866897342 | L75: 0.0006270231858 | M75: 0.00049976256 | N75: 0.0003983307508 | O75: 0.0003174855416 | P75: 0.0002530486761 | Q75: 0.0002016899168 | R75: 0.0001607549313 | S75: 0.0001281281104 | T75: 0.0001021232291 | U75: 6.939814624e-07 | V75: 2.469334753e-07 | W75: 8.387039369e-08 | X75: =X48*1000*$A75/8760/1000 -> 2.724784997e-08 | Y75: 0.009555118858
A76: 512.3729503 | B76: 51.38514174 | C76: Supermarket | D76: Demand Control Ventilation-Retro-Supermarket | E76: =E49*1000*$A76/8760/1000 -> 0.1267524332 | F76: 0.1256116613 | G76: 0.1244811564 | H76: 0.123360826 | I76: 0.1222505785 | J76: 0.109035291 | K76: 0.08644317871 | L76: 0.06853215208 | M76: 0.05433229017 | N76: 0.04307463965 | O76: 0.03414957431 | P76: 0.02707378251 | Q76: 0.02146409478 | R76: 0.01701673434 | S76: 0.01349086698 | T76: 0.01069555934 | U76: 7.229534873e-05 | V76: 2.55873895e-05 | W76: 8.644466929e-06 | X76: =X49*1000*$A76/8760/1000 -> 2.79347828e-06 | Y76: 0.9848398861
A77: 185.5365706 | B77: 124.7039373 | C77: MiniMart | D77: Demand Control Ventilation-Retro-MiniMart | E77: =E50*1000*$A77/8760/1000 -> 0.02546459373 | F77: 0.02534440085 | G77: 0.02522477527 | H77: 0.02510571433 | I77: 0.02498721536 | J77: 0.02238234814 | K77: 0.01782136276 | L77: 0.01418979674 | M77: 0.01129825672 | N77: 0.008995943161 | O77: 0.007162785847 | P77: 0.005703181998 | Q77: 0.004541010383 | R77: 0.003615661452 | S77: 0.002878876424 | T77: 0.002292230502 | U77: 1.556097356e-05 | V77: 5.531259203e-06 | W77: 1.876756248e-06 | X77: =X50*1000*$A77/8760/1000 -> 6.090971603e-07 | Y77: 0.2138135786
A78: 484.6483369 | B78: 58.49840254 | C78: Restaurant | D78: Demand Control Ventilation-Retro-Restaurant | E78: =E51*1000*$A78/8760/1000 -> 0.1193666056 | F78: 0.1188031952 | G78: 0.1182424442 | H78: 0.1176843398 | I78: 0.1171288697 | J78: 0.1049184193 | K78: 0.08353856351 | L78: 0.06651540919 | M78: 0.05296116517 | N78: 0.04216895077 | O78: 0.03357593066 | P78: 0.02673396181 | Q78: 0.02128622201 | R78: 0.01694860084 | S78: 0.01349488275 | T78: 0.01074494952 | U78: 7.294287175e-05 | V78: 2.592806478e-05 | W78: 8.797392381e-06 | X78: =X51*1000*$A78/8760/1000 -> 2.855174573e-06 | Y78: 1.002262254
A79: 190.2530509 | B79: 56.10620343 | C79: Lodging | D79: Demand Control Ventilation-Retro-Lodging | E79: =E52*1000*$A79/8760/1000 -> 0.08316952729 | F79: 0.08296992042 | G79: 0.08277079261 | H79: 0.08257214271 | I79: 0.08237396957 | J79: 0.07395864484 | K79: 0.05902491527 | L79: 0.04710660438 | M79: 0.03759483882 | N79: 0.03000368897 | O79: 0.02394534409 | P79: 0.01911030021 | Q79: 0.01525154839 | R79: 0.01217195574 | S79: 0.009714194439 | T79: 0.007752704298 | U79: 5.275247747e-05 | V79: 1.879495411e-05 | W79: 6.391993031e-06 | X79: =X52*1000*$A79/8760/1000 -> 2.079343124e-06 | Y79: 0.7282218488
A80: 29.79350788 | B80: 418.3038632 | C80: Hospital | D80: Demand Control Ventilation-Retro-Hospital | E80: =E53*1000*$A80/8760/1000 -> 0.004205384611 | F80: 0.004196553303 | G80: 0.004187740541 | H80: 0.004178946286 | I80: 0.004170170499 | J80: 0.003745271827 | K80: 0.002989925405 | L80: 0.002386917249 | M80: 0.001905523778 | N80: 0.001521217743 | O80: 0.001214418548 | P80: 0.0009694946156 | Q80: 0.0007739669415 | R80: 0.0006178732887 | S80: 0.0004932606039 | T80: 0.0003937798053 | U80: 2.68023987e-06 | V80: 9.552183449e-07 | W80: 3.249587681e-07 | X80: =X53*1000*$A80/8760/1000 -> 1.057422896e-07 | Y80: 0.03702164157
A81: 132.8296945 | B81: 74.60396462 | C81: Residential Care | D81: Demand Control Ventilation-Retro-Residential Care | E81: =E54*1000*$A81/8760/1000 -> 0.05855489575 | F81: 0.058414364 | G81: 0.05827416953 | H81: 0.05813431152 | I81: 0.05799478917 | J81: 0.05207004151 | K81: 0.04155605873 | L81: 0.03316505935 | M81: 0.02646837057 | N81: 0.02112387718 | O81: 0.0168585439 | P81: 0.01345446672 | Q81: 0.0107377408 | R81: 0.008569576176 | S81: 0.006839207354 | T81: 0.005458234605 | U81: 3.713999489e-05 | V81: 1.323244961e-05 | W81: 4.500235817e-06 | X81: =X54*1000*$A81/8760/1000 -> 1.463946278e-06 | Y81: 0.5126992521
A82: 104.0887328 | B82: 0 | C82: Assembly | D82: Demand Control Ventilation-Retro-Assembly | E82: =E55*1000*$A82/8760/1000 -> 0.1954771689 | F82: 0.194600128 | G82: 0.1937270221 | H82: 0.1928578335 | I82: 0.1919925447 | J82: 0.1720180243 | K82: 0.1369969894 | L82: 0.1091058637 | M82: 0.08689307363 | N82: 0.0692025707 | O82: 0.05511366547 | P82: 0.04389311106 | Q82: 0.03495694184 | R82: 0.02784008135 | S82: 0.02217213775 | T82: 0.01765812701 | U82: 0.0001199015833 | V82: 4.262986602e-05 | W82: 1.446770455e-05 | X82: =X55*1000*$A82/8760/1000 -> 4.696562865e-06 | Y82: 1.648265026
A83: 67.13890864 | B83: =VLOOKUP(CONCATENATE($C$65,"-",$C83),Outshapesave,11,FALSE) -> 165.0468341 | C83: Other | D83: Demand Control Ventilation-Retro-Other | E83: =E56*1000*$A83/8760/1000 -> 0.08465082955 | F83: 0.08388897209 | G83: 0.08313397134 | H83: 0.0823857656 | I83: 0.08164429371 | J83: 0.07281854556 | K83: 0.05773054292 | L83: 0.04576877443 | M83: 0.03628548436 | N83: 0.028767132 | O83: 0.02280658225 | P83: 0.01808105841 | Q83: 0.01433466311 | R83: 0.01136452091 | S83: 0.009009792179 | T83: 0.007142963239 | U83: 4.828200206e-05 | V83: 1.708838001e-05 | W83: 5.773153839e-06 | X83: =X56*1000*$A83/8760/1000 -> 1.865607213e-06 | Y83: 0.6577192343
A85: =SUM(A66:A83) -> 3985.564758 | B85: =SUMPRODUCT(A66:A83,B66:B83)/A85 -> 71.34084167 | E85: =SUM(E66:E83) -> 2.520656392 | F85: 2.509126861 | G85: 2.497655944 | H85: 2.486243304 | I85: 2.474888604 | J85: 2.217232362 | K85: 1.765693225 | L85: 1.406113251 | M85: 1.11976363 | N85: 0.8917300813 | O85: 0.7101359156 | P85: 0.5655233443 | Q85: 0.45036081 | R85: 0.358650664 | S85: 0.2856167529 | T85: 0.2274556366 | U85: 0.001544379147 | V85: 0.0005490613898 | W85: 0.0001863311547 | X85: =SUM(X66:X83) -> 6.048474698e-05 | Y85: =SUM(Y66:Y83) -> 21.22818615
A88: RECOMBINE MEASURE BUNDLES INTO SUPPLY CURVE CUMULATIVE
E89: =E64 -> 2016 | F89: =F64 -> 2017 | G89: 2018 | H89: 2019 | I89: 2020 | J89: 2021 | K89: 2022 | L89: 2023 | M89: 2024 | N89: 2025 | O89: 2026 | P89: 2027 | Q89: 2028 | R89: 2029 | S89: 2030 | T89: 2031 | U89: 2032 | V89: 2033 | W89: 2034 | X89: 2035 | Y89: Max
C90: lvlcost | D90: lvlcost | E90: =CONCATENATE("aMW_",E$11) -> aMW_2016 | F90: =CONCATENATE("aMW_",F$11) -> aMW_2017 | G90: aMW_2018 | H90: aMW_2019 | I90: aMW_2020 | J90: aMW_2021 | K90: aMW_2022 | L90: aMW_2023 | M90: aMW_2024 | N90: aMW_2025 | O90: aMW_2026 | P90: aMW_2027 | Q90: aMW_2028 | R90: aMW_2029 | S90: aMW_2030 | T90: aMW_2031 | U90: aMW_2032 | V90: aMW_2033 | W90: aMW_2034 | X90: aMW_2035 | Y90: max
B91: Block 1: <= 0 mills/kWh | C91: >=-9999 | D91: <=0 | E91: =DSUM($B$65:$Y$83,E$65,$C$90:$D91) -> 0.1954771689 | F91: =DSUM($B$65:$Y$83,F$65,$C$90:$D91) -> 0.194600128 | G91: =DSUM($B$65:$Y$83,G$65,$C$90:$D91) -> 0.1937270221 | H91: =DSUM($B$65:$Y$83,H$65,$C$90:$D91) -> 0.1928578335 | I91: =DSUM($B$65:$Y$83,I$65,$C$90:$D91) -> 0.1919925447 | J91: =DSUM($B$65:$Y$83,J$65,$C$90:$D91) -> 0.1720180243 | K91: =DSUM($B$65:$Y$83,K$65,$C$90:$D91) -> 0.1369969894 | L91: =DSUM($B$65:$Y$83,L$65,$C$90:$D91) -> 0.1091058637 | M91: =DSUM($B$65:$Y$83,M$65,$C$90:$D91) -> 0.08689307363 | N91: =DSUM($B$65:$Y$83,N$65,$C$90:$D91) -> 0.0692025707 | O91: =DSUM($B$65:$Y$83,O$65,$C$90:$D91) -> 0.05511366547 | P91: =DSUM($B$65:$Y$83,P$65,$C$90:$D91) -> 0.04389311106 | Q91: =DSUM($B$65:$Y$83,Q$65,$C$90:$D91) -> 0.03495694184 | R91: =DSUM($B$65:$Y$83,R$65,$C$90:$D91) -> 0.02784008135 | S91: =DSUM($B$65:$Y$83,S$65,$C$90:$D91) -> 0.02217213775 | T91: =DSUM($B$65:$Y$83,T$65,$C$90:$D91) -> 0.01765812701 | U91: =DSUM($B$65:$Y$83,U$65,$C$90:$D91) -> 0.0001199015833 | V91: =DSUM($B$65:$Y$83,V$65,$C$90:$D91) -> 4.262986602e-05 | W91: =DSUM($B$65:$Y$83,W$65,$C$90:$D91) -> 1.446770455e-05 | X91: =DSUM($B$65:$Y$83,X$65,$C$90:$D91) -> 4.696562865e-06 | Y91: =DSUM($B$65:$Y$83,Y$65,$C$90:$D91) -> 1.648265026
B92: Block 2: <= 10 mills/kWh | C92: >0 | D92: <=10 | E92: =DSUM($B$65:$Y$83,E$65,$C$90:$D92) -> 0.1954771689 | F92: =DSUM($B$65:$Y$83,F$65,$C$90:$D92) -> 0.194600128 | G92: =DSUM($B$65:$Y$83,G$65,$C$90:$D92) -> 0.1937270221 | H92: =DSUM($B$65:$Y$83,H$65,$C$90:$D92) -> 0.1928578335 | I92: =DSUM($B$65:$Y$83,I$65,$C$90:$D92) -> 0.1919925447 | J92: =DSUM($B$65:$Y$83,J$65,$C$90:$D92) -> 0.1720180243 | K92: =DSUM($B$65:$Y$83,K$65,$C$90:$D92) -> 0.1369969894 | L92: =DSUM($B$65:$Y$83,L$65,$C$90:$D92) -> 0.1091058637 | M92: =DSUM($B$65:$Y$83,M$65,$C$90:$D92) -> 0.08689307363 | N92: =DSUM($B$65:$Y$83,N$65,$C$90:$D92) -> 0.0692025707 | O92: =DSUM($B$65:$Y$83,O$65,$C$90:$D92) -> 0.05511366547 | P92: =DSUM($B$65:$Y$83,P$65,$C$90:$D92) -> 0.04389311106 | Q92: =DSUM($B$65:$Y$83,Q$65,$C$90:$D92) -> 0.03495694184 | R92: =DSUM($B$65:$Y$83,R$65,$C$90:$D92) -> 0.02784008135 | S92: =DSUM($B$65:$Y$83,S$65,$C$90:$D92) -> 0.02217213775 | T92: =DSUM($B$65:$Y$83,T$65,$C$90:$D92) -> 0.01765812701 | U92: =DSUM($B$65:$Y$83,U$65,$C$90:$D92) -> 0.0001199015833 | V92: =DSUM($B$65:$Y$83,V$65,$C$90:$D92) -> 4.262986602e-05 | W92: =DSUM($B$65:$Y$83,W$65,$C$90:$D92) -> 1.446770455e-05 | X92: =DSUM($B$65:$Y$83,X$65,$C$90:$D92) -> 4.696562865e-06 | Y92: =DSUM($B$65:$Y$83,Y$65,$C$90:$D92) -> 1.648265026
B93: Block 3: 10-20 mills/kWh | C93: >10 | D93: <=20 | E93: =DSUM($B$65:$Y$83,E$65,$C$90:$D93) -> 0.1954771689 | F93: =DSUM($B$65:$Y$83,F$65,$C$90:$D93) -> 0.194600128 | G93: =DSUM($B$65:$Y$83,G$65,$C$90:$D93) -> 0.1937270221 | H93: =DSUM($B$65:$Y$83,H$65,$C$90:$D93) -> 0.1928578335 | I93: =DSUM($B$65:$Y$83,I$65,$C$90:$D93) -> 0.1919925447 | J93: =DSUM($B$65:$Y$83,J$65,$C$90:$D93) -> 0.1720180243 | K93: =DSUM($B$65:$Y$83,K$65,$C$90:$D93) -> 0.1369969894 | L93: =DSUM($B$65:$Y$83,L$65,$C$90:$D93) -> 0.1091058637 | M93: =DSUM($B$65:$Y$83,M$65,$C$90:$D93) -> 0.08689307363 | N93: =DSUM($B$65:$Y$83,N$65,$C$90:$D93) -> 0.0692025707 | O93: =DSUM($B$65:$Y$83,O$65,$C$90:$D93) -> 0.05511366547 | P93: =DSUM($B$65:$Y$83,P$65,$C$90:$D93) -> 0.04389311106 | Q93: =DSUM($B$65:$Y$83,Q$65,$C$90:$D93) -> 0.03495694184 | R93: =DSUM($B$65:$Y$83,R$65,$C$90:$D93) -> 0.02784008135 | S93: =DSUM($B$65:$Y$83,S$65,$C$90:$D93) -> 0.02217213775 | T93: =DSUM($B$65:$Y$83,T$65,$C$90:$D93) -> 0.01765812701 | U93: =DSUM($B$65:$Y$83,U$65,$C$90:$D93) -> 0.0001199015833 | V93: =DSUM($B$65:$Y$83,V$65,$C$90:$D93) -> 4.262986602e-05 | W93: =DSUM($B$65:$Y$83,W$65,$C$90:$D93) -> 1.446770455e-05 | X93: =DSUM($B$65:$Y$83,X$65,$C$90:$D93) -> 4.696562865e-06 | Y93: =DSUM($B$65:$Y$83,Y$65,$C$90:$D93) -> 1.648265026
B94: Block 4: 20-30 mills/kWh | C94: >20 | D94: <=30 | E94: =DSUM($B$65:$Y$83,E$65,$C$90:$D94) -> 0.1954771689 | F94: =DSUM($B$65:$Y$83,F$65,$C$90:$D94) -> 0.194600128 | G94: =DSUM($B$65:$Y$83,G$65,$C$90:$D94) -> 0.1937270221 | H94: =DSUM($B$65:$Y$83,H$65,$C$90:$D94) -> 0.1928578335 | I94: =DSUM($B$65:$Y$83,I$65,$C$90:$D94) -> 0.1919925447 | J94: =DSUM($B$65:$Y$83,J$65,$C$90:$D94) -> 0.1720180243 | K94: =DSUM($B$65:$Y$83,K$65,$C$90:$D94) -> 0.1369969894 | L94: =DSUM($B$65:$Y$83,L$65,$C$90:$D94) -> 0.1091058637 | M94: =DSUM($B$65:$Y$83,M$65,$C$90:$D94) -> 0.08689307363 | N94: =DSUM($B$65:$Y$83,N$65,$C$90:$D94) -> 0.0692025707 | O94: =DSUM($B$65:$Y$83,O$65,$C$90:$D94) -> 0.05511366547 | P94: =DSUM($B$65:$Y$83,P$65,$C$90:$D94) -> 0.04389311106 | Q94: =DSUM($B$65:$Y$83,Q$65,$C$90:$D94) -> 0.03495694184 | R94: =DSUM($B$65:$Y$83,R$65,$C$90:$D94) -> 0.02784008135 | S94: =DSUM($B$65:$Y$83,S$65,$C$90:$D94) -> 0.02217213775 | T94: =DSUM($B$65:$Y$83,T$65,$C$90:$D94) -> 0.01765812701 | U94: =DSUM($B$65:$Y$83,U$65,$C$90:$D94) -> 0.0001199015833 | V94: =DSUM($B$65:$Y$83,V$65,$C$90:$D94) -> 4.262986602e-05 | W94: =DSUM($B$65:$Y$83,W$65,$C$90:$D94) -> 1.446770455e-05 | X94: =DSUM($B$65:$Y$83,X$65,$C$90:$D94) -> 4.696562865e-06 | Y94: =DSUM($B$65:$Y$83,Y$65,$C$90:$D94) -> 1.648265026
B95: Block 5: 30-40 mills/kWh | C95: >30 | D95: <=40 | E95: =DSUM($B$65:$Y$83,E$65,$C$90:$D95) -> 0.3808048958 | F95: =DSUM($B$65:$Y$83,F$65,$C$90:$D95) -> 0.3790753473 | G95: =DSUM($B$65:$Y$83,G$65,$C$90:$D95) -> 0.3773536554 | H95: =DSUM($B$65:$Y$83,H$65,$C$90:$D95) -> 0.3756397843 | I95: =DSUM($B$65:$Y$83,I$65,$C$90:$D95) -> 0.3739336986 | J95: =DSUM($B$65:$Y$83,J$65,$C$90:$D95) -> 0.3350118264 | K95: =DSUM($B$65:$Y$83,K$65,$C$90:$D95) -> 0.2667922139 | L95: =DSUM($B$65:$Y$83,L$65,$C$90:$D95) -> 0.2124643969 | M95: =DSUM($B$65:$Y$83,M$65,$C$90:$D95) -> 0.1691995408 | N95: =DSUM($B$65:$Y$83,N$65,$C$90:$D95) -> 0.1347448566 | O95: =DSUM($B$65:$Y$83,O$65,$C$90:$D95) -> 0.1073062986 | P95: =DSUM($B$65:$Y$83,P$65,$C$90:$D95) -> 0.08545514866 | Q95: =DSUM($B$65:$Y$83,Q$65,$C$90:$D95) -> 0.06805362362 | R95: =DSUM($B$65:$Y$83,R$65,$C$90:$D95) -> 0.05419563099 | S95: =DSUM($B$65:$Y$83,S$65,$C$90:$D95) -> 0.04315958904 | T95: =DSUM($B$65:$Y$83,T$65,$C$90:$D95) -> 0.03437085422 | U95: =DSUM($B$65:$Y$83,U$65,$C$90:$D95) -> 0.0002333708274 | V95: =DSUM($B$65:$Y$83,V$65,$C$90:$D95) -> 8.296818229e-05 | W95: =DSUM($B$65:$Y$83,W$65,$C$90:$D95) -> 2.815614547e-05 | X95: =DSUM($B$65:$Y$83,X$65,$C$90:$D95) -> 9.139652241e-06 | Y95: =DSUM($B$65:$Y$83,Y$65,$C$90:$D95) -> 3.207750729
B96: Block 6: 40-50 mills/kWh | C96: >40 | D96: <=50 | E96: =DSUM($B$65:$Y$83,E$65,$C$90:$D96) -> 0.3808048958 | F96: =DSUM($B$65:$Y$83,F$65,$C$90:$D96) -> 0.3790753473 | G96: =DSUM($B$65:$Y$83,G$65,$C$90:$D96) -> 0.3773536554 | H96: =DSUM($B$65:$Y$83,H$65,$C$90:$D96) -> 0.3756397843 | I96: =DSUM($B$65:$Y$83,I$65,$C$90:$D96) -> 0.3739336986 | J96: =DSUM($B$65:$Y$83,J$65,$C$90:$D96) -> 0.3350118264 | K96: =DSUM($B$65:$Y$83,K$65,$C$90:$D96) -> 0.2667922139 | L96: =DSUM($B$65:$Y$83,L$65,$C$90:$D96) -> 0.2124643969 | M96: =DSUM($B$65:$Y$83,M$65,$C$90:$D96) -> 0.1691995408 | N96: =DSUM($B$65:$Y$83,N$65,$C$90:$D96) -> 0.1347448566 | O96: =DSUM($B$65:$Y$83,O$65,$C$90:$D96) -> 0.1073062986 | P96: =DSUM($B$65:$Y$83,P$65,$C$90:$D96) -> 0.08545514866 | Q96: =DSUM($B$65:$Y$83,Q$65,$C$90:$D96) -> 0.06805362362 | R96: =DSUM($B$65:$Y$83,R$65,$C$90:$D96) -> 0.05419563099 | S96: =DSUM($B$65:$Y$83,S$65,$C$90:$D96) -> 0.04315958904 | T96: =DSUM($B$65:$Y$83,T$65,$C$90:$D96) -> 0.03437085422 | U96: =DSUM($B$65:$Y$83,U$65,$C$90:$D96) -> 0.0002333708274 | V96: =DSUM($B$65:$Y$83,V$65,$C$90:$D96) -> 8.296818229e-05 | W96: =DSUM($B$65:$Y$83,W$65,$C$90:$D96) -> 2.815614547e-05 | X96: =DSUM($B$65:$Y$83,X$65,$C$90:$D96) -> 9.139652241e-06 | Y96: =DSUM($B$65:$Y$83,Y$65,$C$90:$D96) -> 3.207750729
B97: Block 7: 50-60 mills/kWh | C97: >50 | D97: <=60 | E97: =DSUM($B$65:$Y$83,E$65,$C$90:$D97) -> 0.7705165254 | F97: =DSUM($B$65:$Y$83,F$65,$C$90:$D97) -> 0.7667019187 | G97: =DSUM($B$65:$Y$83,G$65,$C$90:$D97) -> 0.7629091175 | H97: =DSUM($B$65:$Y$83,H$65,$C$90:$D97) -> 0.7591379786 | I97: =DSUM($B$65:$Y$83,I$65,$C$90:$D97) -> 0.7553883595 | J97: =DSUM($B$65:$Y$83,J$65,$C$90:$D97) -> 0.676494107 | K97: =DSUM($B$65:$Y$83,K$65,$C$90:$D97) -> 0.5385262439 | L97: =DSUM($B$65:$Y$83,L$65,$C$90:$D97) -> 0.4286979148 | M97: =DSUM($B$65:$Y$83,M$65,$C$90:$D97) -> 0.3412695263 | N97: =DSUM($B$65:$Y$83,N$65,$C$90:$D97) -> 0.2716722531 | O97: =DSUM($B$65:$Y$83,O$65,$C$90:$D97) -> 0.216269209 | P97: =DSUM($B$65:$Y$83,P$65,$C$90:$D97) -> 0.1721653413 | Q97: =DSUM($B$65:$Y$83,Q$65,$C$90:$D97) -> 0.1370561062 | R97: =DSUM($B$65:$Y$83,R$65,$C$90:$D97) -> 0.1091070143 | S97: =DSUM($B$65:$Y$83,S$65,$C$90:$D97) -> 0.08685774932 | T97: =DSUM($B$65:$Y$83,T$65,$C$90:$D97) -> 0.06914584455 | U97: =DSUM($B$65:$Y$83,U$65,$C$90:$D97) -> 0.0004693193096 | V97: =DSUM($B$65:$Y$83,V$65,$C$90:$D97) -> 0.0001667942732 | W97: =DSUM($B$65:$Y$83,W$65,$C$90:$D97) -> 5.658379398e-05 | X97: =DSUM($B$65:$Y$83,X$65,$C$90:$D97) -> 1.83611313e-05 | Y97: =DSUM($B$65:$Y$83,Y$65,$C$90:$D97) -> 6.44643304
B98: Block 8: 60-70 mills/kWh | C98: >60 | D98: <=70 | E98: =DSUM($B$65:$Y$83,E$65,$C$90:$D98) -> 1.698231276 | F98: =DSUM($B$65:$Y$83,F$65,$C$90:$D98) -> 1.690149182 | G98: =DSUM($B$65:$Y$83,G$65,$C$90:$D98) -> 1.682108523 | H98: =DSUM($B$65:$Y$83,H$65,$C$90:$D98) -> 1.674109067 | I98: =DSUM($B$65:$Y$83,I$65,$C$90:$D98) -> 1.666150581 | J98: =DSUM($B$65:$Y$83,J$65,$C$90:$D98) -> 1.492409551 | K98: =DSUM($B$65:$Y$83,K$65,$C$90:$D98) -> 1.18825603 | L98: =DSUM($B$65:$Y$83,L$65,$C$90:$D98) -> 0.946090738 | M98: =DSUM($B$65:$Y$83,M$65,$C$90:$D98) -> 0.7532797793 | N98: =DSUM($B$65:$Y$83,N$65,$C$90:$D98) -> 0.5997642577 | O98: =DSUM($B$65:$Y$83,O$65,$C$90:$D98) -> 0.4775354342 | P98: =DSUM($B$65:$Y$83,P$65,$C$90:$D98) -> 0.3802168618 | Q98: =DSUM($B$65:$Y$83,Q$65,$C$90:$D98) -> 0.3027316929 | R98: =DSUM($B$65:$Y$83,R$65,$C$90:$D98) -> 0.2410377975 | S98: =DSUM($B$65:$Y$83,S$65,$C$90:$D98) -> 0.1919168706 | T98: =DSUM($B$65:$Y$83,T$65,$C$90:$D98) -> 0.152806524 | U98: =DSUM($B$65:$Y$83,U$65,$C$90:$D98) -> 0.001037324396 | V98: =DSUM($B$65:$Y$83,V$65,$C$90:$D98) -> 0.0003687200813 | W98: =DSUM($B$65:$Y$83,W$65,$C$90:$D98) -> 0.0001251054813 | X98: =DSUM($B$65:$Y$83,X$65,$C$90:$D98) -> 4.060237724e-05 | Y98: =DSUM($B$65:$Y$83,Y$65,$C$90:$D98) -> 14.2529168
B99: Block 9: 70-80 mills/kWh | C99: >70 | D99: <=80 | E99: =DSUM($B$65:$Y$83,E$65,$C$90:$D99) -> 1.966675374 | F99: =DSUM($B$65:$Y$83,F$65,$C$90:$D99) -> 1.95782308 | G99: =DSUM($B$65:$Y$83,G$65,$C$90:$D99) -> 1.949014448 | H99: =DSUM($B$65:$Y$83,H$65,$C$90:$D99) -> 1.940249239 | I99: =DSUM($B$65:$Y$83,I$65,$C$90:$D99) -> 1.931527213 | J99: =DSUM($B$65:$Y$83,J$65,$C$90:$D99) -> 1.73056332 | K99: =DSUM($B$65:$Y$83,K$65,$C$90:$D99) -> 1.37823247 | L99: =DSUM($B$65:$Y$83,L$65,$C$90:$D99) -> 1.097635893 | M99: =DSUM($B$65:$Y$83,M$65,$C$90:$D99) -> 0.8741681144 | N99: =DSUM($B$65:$Y$83,N$65,$C$90:$D99) -> 0.6961974986 | O99: =DSUM($B$65:$Y$83,O$65,$C$90:$D99) -> 0.5544607266 | P99: =DSUM($B$65:$Y$83,P$65,$C$90:$D99) -> 0.4415805671 | Q99: =DSUM($B$65:$Y$83,Q$65,$C$90:$D99) -> 0.3516818424 | R99: =DSUM($B$65:$Y$83,R$65,$C$90:$D99) -> 0.2800855909 | S99: =DSUM($B$65:$Y$83,S$65,$C$90:$D99) -> 0.223065504 | T99: =DSUM($B$65:$Y$83,T$65,$C$90:$D99) -> 0.1776539568 | U99: =DSUM($B$65:$Y$83,U$65,$C$90:$D99) -> 0.001206316842 | V99: =DSUM($B$65:$Y$83,V$65,$C$90:$D99) -> 0.0004289014217 | W99: =DSUM($B$65:$Y$83,W$65,$C$90:$D99) -> 0.0001455630049 | X99: =DSUM($B$65:$Y$83,X$65,$C$90:$D99) -> 4.725417653e-05 | Y99: =DSUM($B$65:$Y$83,Y$65,$C$90:$D99) -> 16.58358512
B100: Block 10: 80-90 mills/kWh | C100: >80 | D100: <=90 | E100: =DSUM($B$65:$Y$83,E$65,$C$90:$D100) -> 1.966675374 | F100: =DSUM($B$65:$Y$83,F$65,$C$90:$D100) -> 1.95782308 | G100: =DSUM($B$65:$Y$83,G$65,$C$90:$D100) -> 1.949014448 | H100: =DSUM($B$65:$Y$83,H$65,$C$90:$D100) -> 1.940249239 | I100: =DSUM($B$65:$Y$83,I$65,$C$90:$D100) -> 1.931527213 | J100: =DSUM($B$65:$Y$83,J$65,$C$90:$D100) -> 1.73056332 | K100: =DSUM($B$65:$Y$83,K$65,$C$90:$D100) -> 1.37823247 | L100: =DSUM($B$65:$Y$83,L$65,$C$90:$D100) -> 1.097635893 | M100: =DSUM($B$65:$Y$83,M$65,$C$90:$D100) -> 0.8741681144 | N100: =DSUM($B$65:$Y$83,N$65,$C$90:$D100) -> 0.6961974986 | O100: =DSUM($B$65:$Y$83,O$65,$C$90:$D100) -> 0.5544607266 | P100: =DSUM($B$65:$Y$83,P$65,$C$90:$D100) -> 0.4415805671 | Q100: =DSUM($B$65:$Y$83,Q$65,$C$90:$D100) -> 0.3516818424 | R100: =DSUM($B$65:$Y$83,R$65,$C$90:$D100) -> 0.2800855909 | S100: =DSUM($B$65:$Y$83,S$65,$C$90:$D100) -> 0.223065504 | T100: =DSUM($B$65:$Y$83,T$65,$C$90:$D100) -> 0.1776539568 | U100: =DSUM($B$65:$Y$83,U$65,$C$90:$D100) -> 0.001206316842 | V100: =DSUM($B$65:$Y$83,V$65,$C$90:$D100) -> 0.0004289014217 | W100: =DSUM($B$65:$Y$83,W$65,$C$90:$D100) -> 0.0001455630049 | X100: =DSUM($B$65:$Y$83,X$65,$C$90:$D100) -> 4.725417653e-05 | Y100: =DSUM($B$65:$Y$83,Y$65,$C$90:$D100) -> 16.58358512
B101: Block 11: 90-100 mills/kWh | C101: >90 | D101: <=100 | E101: =DSUM($B$65:$Y$83,E$65,$C$90:$D101) -> 1.966675374 | F101: =DSUM($B$65:$Y$83,F$65,$C$90:$D101) -> 1.95782308 | G101: =DSUM($B$65:$Y$83,G$65,$C$90:$D101) -> 1.949014448 | H101: =DSUM($B$65:$Y$83,H$65,$C$90:$D101) -> 1.940249239 | I101: =DSUM($B$65:$Y$83,I$65,$C$90:$D101) -> 1.931527213 | J101: =DSUM($B$65:$Y$83,J$65,$C$90:$D101) -> 1.73056332 | K101: =DSUM($B$65:$Y$83,K$65,$C$90:$D101) -> 1.37823247 | L101: =DSUM($B$65:$Y$83,L$65,$C$90:$D101) -> 1.097635893 | M101: =DSUM($B$65:$Y$83,M$65,$C$90:$D101) -> 0.8741681144 | N101: =DSUM($B$65:$Y$83,N$65,$C$90:$D101) -> 0.6961974986 | O101: =DSUM($B$65:$Y$83,O$65,$C$90:$D101) -> 0.5544607266 | P101: =DSUM($B$65:$Y$83,P$65,$C$90:$D101) -> 0.4415805671 | Q101: =DSUM($B$65:$Y$83,Q$65,$C$90:$D101) -> 0.3516818424 | R101: =DSUM($B$65:$Y$83,R$65,$C$90:$D101) -> 0.2800855909 | S101: =DSUM($B$65:$Y$83,S$65,$C$90:$D101) -> 0.223065504 | T101: =DSUM($B$65:$Y$83,T$65,$C$90:$D101) -> 0.1776539568 | U101: =DSUM($B$65:$Y$83,U$65,$C$90:$D101) -> 0.001206316842 | V101: =DSUM($B$65:$Y$83,V$65,$C$90:$D101) -> 0.0004289014217 | W101: =DSUM($B$65:$Y$83,W$65,$C$90:$D101) -> 0.0001455630049 | X101: =DSUM($B$65:$Y$83,X$65,$C$90:$D101) -> 4.725417653e-05 | Y101: =DSUM($B$65:$Y$83,Y$65,$C$90:$D101) -> 16.58358512
B102: Block 12: 100-110 mills/kWh | C102: >100 | D102: <=110 | E102: =DSUM($B$65:$Y$83,E$65,$C$90:$D102) -> 2.405218386 | F102: =DSUM($B$65:$Y$83,F$65,$C$90:$D102) -> 2.394583871 | G102: =DSUM($B$65:$Y$83,G$65,$C$90:$D102) -> 2.384000511 | H102: =DSUM($B$65:$Y$83,H$65,$C$90:$D102) -> 2.373468034 | I102: =DSUM($B$65:$Y$83,I$65,$C$90:$D102) -> 2.362986169 | J102: =DSUM($B$65:$Y$83,J$65,$C$90:$D102) -> 2.117299182 | K102: =DSUM($B$65:$Y$83,K$65,$C$90:$D102) -> 1.686364704 | L102: =DSUM($B$65:$Y$83,L$65,$C$90:$D102) -> 1.343140739 | M102: =DSUM($B$65:$Y$83,M$65,$C$90:$D102) -> 1.069774602 | N102: =DSUM($B$65:$Y$83,N$65,$C$90:$D102) -> 0.8520474577 | O102: =DSUM($B$65:$Y$83,O$65,$C$90:$D102) -> 0.6786346434 | P102: =DSUM($B$65:$Y$83,P$65,$C$90:$D102) -> 0.5405165606 | Q102: =DSUM($B$65:$Y$83,Q$65,$C$90:$D102) -> 0.4305094796 | R102: =DSUM($B$65:$Y$83,R$65,$C$90:$D102) -> 0.3428918535 | S102: =DSUM($B$65:$Y$83,S$65,$C$90:$D102) -> 0.2731066956 | T102: =DSUM($B$65:$Y$83,T$65,$C$90:$D102) -> 0.2175245399 | U102: =DSUM($B$65:$Y$83,U$65,$C$90:$D102) -> 0.00147716195 | V102: =DSUM($B$65:$Y$83,V$65,$C$90:$D102) -> 0.0005252395987 | W102: =DSUM($B$65:$Y$83,W$65,$C$90:$D102) -> 0.0001782724155 | X102: =DSUM($B$65:$Y$83,X$65,$C$90:$D102) -> 5.787705246e-05 | Y102: =DSUM($B$65:$Y$83,Y$65,$C$90:$D102) -> 20.31007658
B103: Block 13: 110-120 mills/kWh | C103: >110 | D103: <=120 | E103: =DSUM($B$65:$Y$83,E$65,$C$90:$D103) -> 2.405218386 | F103: =DSUM($B$65:$Y$83,F$65,$C$90:$D103) -> 2.394583871 | G103: =DSUM($B$65:$Y$83,G$65,$C$90:$D103) -> 2.384000511 | H103: =DSUM($B$65:$Y$83,H$65,$C$90:$D103) -> 2.373468034 | I103: =DSUM($B$65:$Y$83,I$65,$C$90:$D103) -> 2.362986169 | J103: =DSUM($B$65:$Y$83,J$65,$C$90:$D103) -> 2.117299182 | K103: =DSUM($B$65:$Y$83,K$65,$C$90:$D103) -> 1.686364704 | L103: =DSUM($B$65:$Y$83,L$65,$C$90:$D103) -> 1.343140739 | M103: =DSUM($B$65:$Y$83,M$65,$C$90:$D103) -> 1.069774602 | N103: =DSUM($B$65:$Y$83,N$65,$C$90:$D103) -> 0.8520474577 | O103: =DSUM($B$65:$Y$83,O$65,$C$90:$D103) -> 0.6786346434 | P103: =DSUM($B$65:$Y$83,P$65,$C$90:$D103) -> 0.5405165606 | Q103: =DSUM($B$65:$Y$83,Q$65,$C$90:$D103) -> 0.4305094796 | R103: =DSUM($B$65:$Y$83,R$65,$C$90:$D103) -> 0.3428918535 | S103: =DSUM($B$65:$Y$83,S$65,$C$90:$D103) -> 0.2731066956 | T103: =DSUM($B$65:$Y$83,T$65,$C$90:$D103) -> 0.2175245399 | U103: =DSUM($B$65:$Y$83,U$65,$C$90:$D103) -> 0.00147716195 | V103: =DSUM($B$65:$Y$83,V$65,$C$90:$D103) -> 0.0005252395987 | W103: =DSUM($B$65:$Y$83,W$65,$C$90:$D103) -> 0.0001782724155 | X103: =DSUM($B$65:$Y$83,X$65,$C$90:$D103) -> 5.787705246e-05 | Y103: =DSUM($B$65:$Y$83,Y$65,$C$90:$D103) -> 20.31007658
B104: Block 14: 120-130 mills/kWh | C104: >120 | D104: <=130 | E104: =DSUM($B$65:$Y$83,E$65,$C$90:$D104) -> 2.430682979 | F104: =DSUM($B$65:$Y$83,F$65,$C$90:$D104) -> 2.419928272 | G104: =DSUM($B$65:$Y$83,G$65,$C$90:$D104) -> 2.409225286 | H104: =DSUM($B$65:$Y$83,H$65,$C$90:$D104) -> 2.398573749 | I104: =DSUM($B$65:$Y$83,I$65,$C$90:$D104) -> 2.387973385 | J104: =DSUM($B$65:$Y$83,J$65,$C$90:$D104) -> 2.139681531 | K104: =DSUM($B$65:$Y$83,K$65,$C$90:$D104) -> 1.704186066 | L104: =DSUM($B$65:$Y$83,L$65,$C$90:$D104) -> 1.357330536 | M104: =DSUM($B$65:$Y$83,M$65,$C$90:$D104) -> 1.081072859 | N104: =DSUM($B$65:$Y$83,N$65,$C$90:$D104) -> 0.8610434008 | O104: =DSUM($B$65:$Y$83,O$65,$C$90:$D104) -> 0.6857974293 | P104: =DSUM($B$65:$Y$83,P$65,$C$90:$D104) -> 0.5462197426 | Q104: =DSUM($B$65:$Y$83,Q$65,$C$90:$D104) -> 0.43505049 | R104: =DSUM($B$65:$Y$83,R$65,$C$90:$D104) -> 0.3465075149 | S104: =DSUM($B$65:$Y$83,S$65,$C$90:$D104) -> 0.275985572 | T104: =DSUM($B$65:$Y$83,T$65,$C$90:$D104) -> 0.2198167704 | U104: =DSUM($B$65:$Y$83,U$65,$C$90:$D104) -> 0.001492722924 | V104: =DSUM($B$65:$Y$83,V$65,$C$90:$D104) -> 0.0005307708579 | W104: =DSUM($B$65:$Y$83,W$65,$C$90:$D104) -> 0.0001801491717 | X104: =DSUM($B$65:$Y$83,X$65,$C$90:$D104) -> 5.848614962e-05 | Y104: =DSUM($B$65:$Y$83,Y$65,$C$90:$D104) -> 20.52389016
B105: Block 15: 130-140 mills/kWh | C105: >130 | D105: <=140 | E105: =DSUM($B$65:$Y$83,E$65,$C$90:$D105) -> 2.430682979 | F105: =DSUM($B$65:$Y$83,F$65,$C$90:$D105) -> 2.419928272 | G105: =DSUM($B$65:$Y$83,G$65,$C$90:$D105) -> 2.409225286 | H105: =DSUM($B$65:$Y$83,H$65,$C$90:$D105) -> 2.398573749 | I105: =DSUM($B$65:$Y$83,I$65,$C$90:$D105) -> 2.387973385 | J105: =DSUM($B$65:$Y$83,J$65,$C$90:$D105) -> 2.139681531 | K105: =DSUM($B$65:$Y$83,K$65,$C$90:$D105) -> 1.704186066 | L105: =DSUM($B$65:$Y$83,L$65,$C$90:$D105) -> 1.357330536 | M105: =DSUM($B$65:$Y$83,M$65,$C$90:$D105) -> 1.081072859 | N105: =DSUM($B$65:$Y$83,N$65,$C$90:$D105) -> 0.8610434008 | O105: =DSUM($B$65:$Y$83,O$65,$C$90:$D105) -> 0.6857974293 | P105: =DSUM($B$65:$Y$83,P$65,$C$90:$D105) -> 0.5462197426 | Q105: =DSUM($B$65:$Y$83,Q$65,$C$90:$D105) -> 0.43505049 | R105: =DSUM($B$65:$Y$83,R$65,$C$90:$D105) -> 0.3465075149 | S105: =DSUM($B$65:$Y$83,S$65,$C$90:$D105) -> 0.275985572 | T105: =DSUM($B$65:$Y$83,T$65,$C$90:$D105) -> 0.2198167704 | U105: =DSUM($B$65:$Y$83,U$65,$C$90:$D105) -> 0.001492722924 | V105: =DSUM($B$65:$Y$83,V$65,$C$90:$D105) -> 0.0005307708579 | W105: =DSUM($B$65:$Y$83,W$65,$C$90:$D105) -> 0.0001801491717 | X105: =DSUM($B$65:$Y$83,X$65,$C$90:$D105) -> 5.848614962e-05 | Y105: =DSUM($B$65:$Y$83,Y$65,$C$90:$D105) -> 20.52389016
B106: Block 16: 140-150 mills/kWh | C106: >140 | D106: <=150 | E106: =DSUM($B$65:$Y$83,E$65,$C$90:$D106) -> 2.430682979 | F106: =DSUM($B$65:$Y$83,F$65,$C$90:$D106) -> 2.419928272 | G106: =DSUM($B$65:$Y$83,G$65,$C$90:$D106) -> 2.409225286 | H106: =DSUM($B$65:$Y$83,H$65,$C$90:$D106) -> 2.398573749 | I106: =DSUM($B$65:$Y$83,I$65,$C$90:$D106) -> 2.387973385 | J106: =DSUM($B$65:$Y$83,J$65,$C$90:$D106) -> 2.139681531 | K106: =DSUM($B$65:$Y$83,K$65,$C$90:$D106) -> 1.704186066 | L106: =DSUM($B$65:$Y$83,L$65,$C$90:$D106) -> 1.357330536 | M106: =DSUM($B$65:$Y$83,M$65,$C$90:$D106) -> 1.081072859 | N106: =DSUM($B$65:$Y$83,N$65,$C$90:$D106) -> 0.8610434008 | O106: =DSUM($B$65:$Y$83,O$65,$C$90:$D106) -> 0.6857974293 | P106: =DSUM($B$65:$Y$83,P$65,$C$90:$D106) -> 0.5462197426 | Q106: =DSUM($B$65:$Y$83,Q$65,$C$90:$D106) -> 0.43505049 | R106: =DSUM($B$65:$Y$83,R$65,$C$90:$D106) -> 0.3465075149 | S106: =DSUM($B$65:$Y$83,S$65,$C$90:$D106) -> 0.275985572 | T106: =DSUM($B$65:$Y$83,T$65,$C$90:$D106) -> 0.2198167704 | U106: =DSUM($B$65:$Y$83,U$65,$C$90:$D106) -> 0.001492722924 | V106: =DSUM($B$65:$Y$83,V$65,$C$90:$D106) -> 0.0005307708579 | W106: =DSUM($B$65:$Y$83,W$65,$C$90:$D106) -> 0.0001801491717 | X106: =DSUM($B$65:$Y$83,X$65,$C$90:$D106) -> 5.848614962e-05 | Y106: =DSUM($B$65:$Y$83,Y$65,$C$90:$D106) -> 20.52389016
B107: Block 17: 150-160 mills/kWh | C107: >150 | D107: <=160 | E107: =DSUM($B$65:$Y$83,E$65,$C$90:$D107) -> 2.430682979 | F107: =DSUM($B$65:$Y$83,F$65,$C$90:$D107) -> 2.419928272 | G107: =DSUM($B$65:$Y$83,G$65,$C$90:$D107) -> 2.409225286 | H107: =DSUM($B$65:$Y$83,H$65,$C$90:$D107) -> 2.398573749 | I107: =DSUM($B$65:$Y$83,I$65,$C$90:$D107) -> 2.387973385 | J107: =DSUM($B$65:$Y$83,J$65,$C$90:$D107) -> 2.139681531 | K107: =DSUM($B$65:$Y$83,K$65,$C$90:$D107) -> 1.704186066 | L107: =DSUM($B$65:$Y$83,L$65,$C$90:$D107) -> 1.357330536 | M107: =DSUM($B$65:$Y$83,M$65,$C$90:$D107) -> 1.081072859 | N107: =DSUM($B$65:$Y$83,N$65,$C$90:$D107) -> 0.8610434008 | O107: =DSUM($B$65:$Y$83,O$65,$C$90:$D107) -> 0.6857974293 | P107: =DSUM($B$65:$Y$83,P$65,$C$90:$D107) -> 0.5462197426 | Q107: =DSUM($B$65:$Y$83,Q$65,$C$90:$D107) -> 0.43505049 | R107: =DSUM($B$65:$Y$83,R$65,$C$90:$D107) -> 0.3465075149 | S107: =DSUM($B$65:$Y$83,S$65,$C$90:$D107) -> 0.275985572 | T107: =DSUM($B$65:$Y$83,T$65,$C$90:$D107) -> 0.2198167704 | U107: =DSUM($B$65:$Y$83,U$65,$C$90:$D107) -> 0.001492722924 | V107: =DSUM($B$65:$Y$83,V$65,$C$90:$D107) -> 0.0005307708579 | W107: =DSUM($B$65:$Y$83,W$65,$C$90:$D107) -> 0.0001801491717 | X107: =DSUM($B$65:$Y$83,X$65,$C$90:$D107) -> 5.848614962e-05 | Y107: =DSUM($B$65:$Y$83,Y$65,$C$90:$D107) -> 20.52389016
B108: Block 18: 160-170 mills/kWh | C108: >160 | D108: <=170 | E108: =DSUM($B$65:$Y$83,E$65,$C$90:$D108) -> 2.515333809 | F108: =DSUM($B$65:$Y$83,F$65,$C$90:$D108) -> 2.503817244 | G108: =DSUM($B$65:$Y$83,G$65,$C$90:$D108) -> 2.492359258 | H108: =DSUM($B$65:$Y$83,H$65,$C$90:$D108) -> 2.480959514 | I108: =DSUM($B$65:$Y$83,I$65,$C$90:$D108) -> 2.469617679 | J108: =DSUM($B$65:$Y$83,J$65,$C$90:$D108) -> 2.212500076 | K108: =DSUM($B$65:$Y$83,K$65,$C$90:$D108) -> 1.761916609 | L108: =DSUM($B$65:$Y$83,L$65,$C$90:$D108) -> 1.40309931 | M108: =DSUM($B$65:$Y$83,M$65,$C$90:$D108) -> 1.117358343 | N108: =DSUM($B$65:$Y$83,N$65,$C$90:$D108) -> 0.8898105328 | O108: =DSUM($B$65:$Y$83,O$65,$C$90:$D108) -> 0.7086040115 | P108: =DSUM($B$65:$Y$83,P$65,$C$90:$D108) -> 0.564300801 | Q108: =DSUM($B$65:$Y$83,Q$65,$C$90:$D108) -> 0.4493851531 | R108: =DSUM($B$65:$Y$83,R$65,$C$90:$D108) -> 0.3578720358 | S108: =DSUM($B$65:$Y$83,S$65,$C$90:$D108) -> 0.2849953642 | T108: =DSUM($B$65:$Y$83,T$65,$C$90:$D108) -> 0.2269597336 | U108: =DSUM($B$65:$Y$83,U$65,$C$90:$D108) -> 0.001541004926 | V108: =DSUM($B$65:$Y$83,V$65,$C$90:$D108) -> 0.0005478592379 | W108: =DSUM($B$65:$Y$83,W$65,$C$90:$D108) -> 0.0001859223255 | X108: =DSUM($B$65:$Y$83,X$65,$C$90:$D108) -> 6.035175684e-05 | Y108: =DSUM($B$65:$Y$83,Y$65,$C$90:$D108) -> 21.18160939
B109: Block 19: 170-180 mills/kWh | C109: >170 | D109: <=180 | E109: =DSUM($B$65:$Y$83,E$65,$C$90:$D109) -> 2.515333809 | F109: =DSUM($B$65:$Y$83,F$65,$C$90:$D109) -> 2.503817244 | G109: =DSUM($B$65:$Y$83,G$65,$C$90:$D109) -> 2.492359258 | H109: =DSUM($B$65:$Y$83,H$65,$C$90:$D109) -> 2.480959514 | I109: =DSUM($B$65:$Y$83,I$65,$C$90:$D109) -> 2.469617679 | J109: =DSUM($B$65:$Y$83,J$65,$C$90:$D109) -> 2.212500076 | K109: =DSUM($B$65:$Y$83,K$65,$C$90:$D109) -> 1.761916609 | L109: =DSUM($B$65:$Y$83,L$65,$C$90:$D109) -> 1.40309931 | M109: =DSUM($B$65:$Y$83,M$65,$C$90:$D109) -> 1.117358343 | N109: =DSUM($B$65:$Y$83,N$65,$C$90:$D109) -> 0.8898105328 | O109: =DSUM($B$65:$Y$83,O$65,$C$90:$D109) -> 0.7086040115 | P109: =DSUM($B$65:$Y$83,P$65,$C$90:$D109) -> 0.564300801 | Q109: =DSUM($B$65:$Y$83,Q$65,$C$90:$D109) -> 0.4493851531 | R109: =DSUM($B$65:$Y$83,R$65,$C$90:$D109) -> 0.3578720358 | S109: =DSUM($B$65:$Y$83,S$65,$C$90:$D109) -> 0.2849953642 | T109: =DSUM($B$65:$Y$83,T$65,$C$90:$D109) -> 0.2269597336 | U109: =DSUM($B$65:$Y$83,U$65,$C$90:$D109) -> 0.001541004926 | V109: =DSUM($B$65:$Y$83,V$65,$C$90:$D109) -> 0.0005478592379 | W109: =DSUM($B$65:$Y$83,W$65,$C$90:$D109) -> 0.0001859223255 | X109: =DSUM($B$65:$Y$83,X$65,$C$90:$D109) -> 6.035175684e-05 | Y109: =DSUM($B$65:$Y$83,Y$65,$C$90:$D109) -> 21.18160939
B110: Block 20: 180-190 mills/kWh | C110: >180 | D110: <=190 | E110: =DSUM($B$65:$Y$83,E$65,$C$90:$D110) -> 2.515333809 | F110: =DSUM($B$65:$Y$83,F$65,$C$90:$D110) -> 2.503817244 | G110: =DSUM($B$65:$Y$83,G$65,$C$90:$D110) -> 2.492359258 | H110: =DSUM($B$65:$Y$83,H$65,$C$90:$D110) -> 2.480959514 | I110: =DSUM($B$65:$Y$83,I$65,$C$90:$D110) -> 2.469617679 | J110: =DSUM($B$65:$Y$83,J$65,$C$90:$D110) -> 2.212500076 | K110: =DSUM($B$65:$Y$83,K$65,$C$90:$D110) -> 1.761916609 | L110: =DSUM($B$65:$Y$83,L$65,$C$90:$D110) -> 1.40309931 | M110: =DSUM($B$65:$Y$83,M$65,$C$90:$D110) -> 1.117358343 | N110: =DSUM($B$65:$Y$83,N$65,$C$90:$D110) -> 0.8898105328 | O110: =DSUM($B$65:$Y$83,O$65,$C$90:$D110) -> 0.7086040115 | P110: =DSUM($B$65:$Y$83,P$65,$C$90:$D110) -> 0.564300801 | Q110: =DSUM($B$65:$Y$83,Q$65,$C$90:$D110) -> 0.4493851531 | R110: =DSUM($B$65:$Y$83,R$65,$C$90:$D110) -> 0.3578720358 | S110: =DSUM($B$65:$Y$83,S$65,$C$90:$D110) -> 0.2849953642 | T110: =DSUM($B$65:$Y$83,T$65,$C$90:$D110) -> 0.2269597336 | U110: =DSUM($B$65:$Y$83,U$65,$C$90:$D110) -> 0.001541004926 | V110: =DSUM($B$65:$Y$83,V$65,$C$90:$D110) -> 0.0005478592379 | W110: =DSUM($B$65:$Y$83,W$65,$C$90:$D110) -> 0.0001859223255 | X110: =DSUM($B$65:$Y$83,X$65,$C$90:$D110) -> 6.035175684e-05 | Y110: =DSUM($B$65:$Y$83,Y$65,$C$90:$D110) -> 21.18160939
B111: Block 21: 190-200 mills/kWh | C111: >190 | D111: <=200 | E111: =DSUM($B$65:$Y$83,E$65,$C$90:$D111) -> 2.515333809 | F111: =DSUM($B$65:$Y$83,F$65,$C$90:$D111) -> 2.503817244 | G111: =DSUM($B$65:$Y$83,G$65,$C$90:$D111) -> 2.492359258 | H111: =DSUM($B$65:$Y$83,H$65,$C$90:$D111) -> 2.480959514 | I111: =DSUM($B$65:$Y$83,I$65,$C$90:$D111) -> 2.469617679 | J111: =DSUM($B$65:$Y$83,J$65,$C$90:$D111) -> 2.212500076 | K111: =DSUM($B$65:$Y$83,K$65,$C$90:$D111) -> 1.761916609 | L111: =DSUM($B$65:$Y$83,L$65,$C$90:$D111) -> 1.40309931 | M111: =DSUM($B$65:$Y$83,M$65,$C$90:$D111) -> 1.117358343 | N111: =DSUM($B$65:$Y$83,N$65,$C$90:$D111) -> 0.8898105328 | O111: =DSUM($B$65:$Y$83,O$65,$C$90:$D111) -> 0.7086040115 | P111: =DSUM($B$65:$Y$83,P$65,$C$90:$D111) -> 0.564300801 | Q111: =DSUM($B$65:$Y$83,Q$65,$C$90:$D111) -> 0.4493851531 | R111: =DSUM($B$65:$Y$83,R$65,$C$90:$D111) -> 0.3578720358 | S111: =DSUM($B$65:$Y$83,S$65,$C$90:$D111) -> 0.2849953642 | T111: =DSUM($B$65:$Y$83,T$65,$C$90:$D111) -> 0.2269597336 | U111: =DSUM($B$65:$Y$83,U$65,$C$90:$D111) -> 0.001541004926 | V111: =DSUM($B$65:$Y$83,V$65,$C$90:$D111) -> 0.0005478592379 | W111: =DSUM($B$65:$Y$83,W$65,$C$90:$D111) -> 0.0001859223255 | X111: =DSUM($B$65:$Y$83,X$65,$C$90:$D111) -> 6.035175684e-05 | Y111: =DSUM($B$65:$Y$83,Y$65,$C$90:$D111) -> 21.18160939
B112: Block 22: 200-210 mills/kWh | C112: >200 | D112: <=210 | E112: =DSUM($B$65:$Y$83,E$65,$C$90:$D112) -> 2.515333809 | F112: =DSUM($B$65:$Y$83,F$65,$C$90:$D112) -> 2.503817244 | G112: =DSUM($B$65:$Y$83,G$65,$C$90:$D112) -> 2.492359258 | H112: =DSUM($B$65:$Y$83,H$65,$C$90:$D112) -> 2.480959514 | I112: =DSUM($B$65:$Y$83,I$65,$C$90:$D112) -> 2.469617679 | J112: =DSUM($B$65:$Y$83,J$65,$C$90:$D112) -> 2.212500076 | K112: =DSUM($B$65:$Y$83,K$65,$C$90:$D112) -> 1.761916609 | L112: =DSUM($B$65:$Y$83,L$65,$C$90:$D112) -> 1.40309931 | M112: =DSUM($B$65:$Y$83,M$65,$C$90:$D112) -> 1.117358343 | N112: =DSUM($B$65:$Y$83,N$65,$C$90:$D112) -> 0.8898105328 | O112: =DSUM($B$65:$Y$83,O$65,$C$90:$D112) -> 0.7086040115 | P112: =DSUM($B$65:$Y$83,P$65,$C$90:$D112) -> 0.564300801 | Q112: =DSUM($B$65:$Y$83,Q$65,$C$90:$D112) -> 0.4493851531 | R112: =DSUM($B$65:$Y$83,R$65,$C$90:$D112) -> 0.3578720358 | S112: =DSUM($B$65:$Y$83,S$65,$C$90:$D112) -> 0.2849953642 | T112: =DSUM($B$65:$Y$83,T$65,$C$90:$D112) -> 0.2269597336 | U112: =DSUM($B$65:$Y$83,U$65,$C$90:$D112) -> 0.001541004926 | V112: =DSUM($B$65:$Y$83,V$65,$C$90:$D112) -> 0.0005478592379 | W112: =DSUM($B$65:$Y$83,W$65,$C$90:$D112) -> 0.0001859223255 | X112: =DSUM($B$65:$Y$83,X$65,$C$90:$D112) -> 6.035175684e-05 | Y112: =DSUM($B$65:$Y$83,Y$65,$C$90:$D112) -> 21.18160939
B113: Block 23: 210-220 mills/kWh | C113: >210 | D113: <=220 | E113: =DSUM($B$65:$Y$83,E$65,$C$90:$D113) -> 2.515333809 | F113: =DSUM($B$65:$Y$83,F$65,$C$90:$D113) -> 2.503817244 | G113: =DSUM($B$65:$Y$83,G$65,$C$90:$D113) -> 2.492359258 | H113: =DSUM($B$65:$Y$83,H$65,$C$90:$D113) -> 2.480959514 | I113: =DSUM($B$65:$Y$83,I$65,$C$90:$D113) -> 2.469617679 | J113: =DSUM($B$65:$Y$83,J$65,$C$90:$D113) -> 2.212500076 | K113: =DSUM($B$65:$Y$83,K$65,$C$90:$D113) -> 1.761916609 | L113: =DSUM($B$65:$Y$83,L$65,$C$90:$D113) -> 1.40309931 | M113: =DSUM($B$65:$Y$83,M$65,$C$90:$D113) -> 1.117358343 | N113: =DSUM($B$65:$Y$83,N$65,$C$90:$D113) -> 0.8898105328 | O113: =DSUM($B$65:$Y$83,O$65,$C$90:$D113) -> 0.7086040115 | P113: =DSUM($B$65:$Y$83,P$65,$C$90:$D113) -> 0.564300801 | Q113: =DSUM($B$65:$Y$83,Q$65,$C$90:$D113) -> 0.4493851531 | R113: =DSUM($B$65:$Y$83,R$65,$C$90:$D113) -> 0.3578720358 | S113: =DSUM($B$65:$Y$83,S$65,$C$90:$D113) -> 0.2849953642 | T113: =DSUM($B$65:$Y$83,T$65,$C$90:$D113) -> 0.2269597336 | U113: =DSUM($B$65:$Y$83,U$65,$C$90:$D113) -> 0.001541004926 | V113: =DSUM($B$65:$Y$83,V$65,$C$90:$D113) -> 0.0005478592379 | W113: =DSUM($B$65:$Y$83,W$65,$C$90:$D113) -> 0.0001859223255 | X113: =DSUM($B$65:$Y$83,X$65,$C$90:$D113) -> 6.035175684e-05 | Y113: =DSUM($B$65:$Y$83,Y$65,$C$90:$D113) -> 21.18160939
B114: Block 24: 220-230 mills/kWh | C114: >220 | D114: <=230 | E114: =DSUM($B$65:$Y$83,E$65,$C$90:$D114) -> 2.515333809 | F114: =DSUM($B$65:$Y$83,F$65,$C$90:$D114) -> 2.503817244 | G114: =DSUM($B$65:$Y$83,G$65,$C$90:$D114) -> 2.492359258 | H114: =DSUM($B$65:$Y$83,H$65,$C$90:$D114) -> 2.480959514 | I114: =DSUM($B$65:$Y$83,I$65,$C$90:$D114) -> 2.469617679 | J114: =DSUM($B$65:$Y$83,J$65,$C$90:$D114) -> 2.212500076 | K114: =DSUM($B$65:$Y$83,K$65,$C$90:$D114) -> 1.761916609 | L114: =DSUM($B$65:$Y$83,L$65,$C$90:$D114) -> 1.40309931 | M114: =DSUM($B$65:$Y$83,M$65,$C$90:$D114) -> 1.117358343 | N114: =DSUM($B$65:$Y$83,N$65,$C$90:$D114) -> 0.8898105328 | O114: =DSUM($B$65:$Y$83,O$65,$C$90:$D114) -> 0.7086040115 | P114: =DSUM($B$65:$Y$83,P$65,$C$90:$D114) -> 0.564300801 | Q114: =DSUM($B$65:$Y$83,Q$65,$C$90:$D114) -> 0.4493851531 | R114: =DSUM($B$65:$Y$83,R$65,$C$90:$D114) -> 0.3578720358 | S114: =DSUM($B$65:$Y$83,S$65,$C$90:$D114) -> 0.2849953642 | T114: =DSUM($B$65:$Y$83,T$65,$C$90:$D114) -> 0.2269597336 | U114: =DSUM($B$65:$Y$83,U$65,$C$90:$D114) -> 0.001541004926 | V114: =DSUM($B$65:$Y$83,V$65,$C$90:$D114) -> 0.0005478592379 | W114: =DSUM($B$65:$Y$83,W$65,$C$90:$D114) -> 0.0001859223255 | X114: =DSUM($B$65:$Y$83,X$65,$C$90:$D114) -> 6.035175684e-05 | Y114: =DSUM($B$65:$Y$83,Y$65,$C$90:$D114) -> 21.18160939
B115: Block 25: 230-240 mills/kWh | C115: >230 | D115: <=240 | E115: =DSUM($B$65:$Y$83,E$65,$C$90:$D115) -> 2.515333809 | F115: =DSUM($B$65:$Y$83,F$65,$C$90:$D115) -> 2.503817244 | G115: =DSUM($B$65:$Y$83,G$65,$C$90:$D115) -> 2.492359258 | H115: =DSUM($B$65:$Y$83,H$65,$C$90:$D115) -> 2.480959514 | I115: =DSUM($B$65:$Y$83,I$65,$C$90:$D115) -> 2.469617679 | J115: =DSUM($B$65:$Y$83,J$65,$C$90:$D115) -> 2.212500076 | K115: =DSUM($B$65:$Y$83,K$65,$C$90:$D115) -> 1.761916609 | L115: =DSUM($B$65:$Y$83,L$65,$C$90:$D115) -> 1.40309931 | M115: =DSUM($B$65:$Y$83,M$65,$C$90:$D115) -> 1.117358343 | N115: =DSUM($B$65:$Y$83,N$65,$C$90:$D115) -> 0.8898105328 | O115: =DSUM($B$65:$Y$83,O$65,$C$90:$D115) -> 0.7086040115 | P115: =DSUM($B$65:$Y$83,P$65,$C$90:$D115) -> 0.564300801 | Q115: =DSUM($B$65:$Y$83,Q$65,$C$90:$D115) -> 0.4493851531 | R115: =DSUM($B$65:$Y$83,R$65,$C$90:$D115) -> 0.3578720358 | S115: =DSUM($B$65:$Y$83,S$65,$C$90:$D115) -> 0.2849953642 | T115: =DSUM($B$65:$Y$83,T$65,$C$90:$D115) -> 0.2269597336 | U115: =DSUM($B$65:$Y$83,U$65,$C$90:$D115) -> 0.001541004926 | V115: =DSUM($B$65:$Y$83,V$65,$C$90:$D115) -> 0.0005478592379 | W115: =DSUM($B$65:$Y$83,W$65,$C$90:$D115) -> 0.0001859223255 | X115: =DSUM($B$65:$Y$83,X$65,$C$90:$D115) -> 6.035175684e-05 | Y115: =DSUM($B$65:$Y$83,Y$65,$C$90:$D115) -> 21.18160939
B116: Block 26: 240-250 mills/kWh | C116: >240 | D116: <=250 | E116: =DSUM($B$65:$Y$83,E$65,$C$90:$D116) -> 2.515333809 | F116: =DSUM($B$65:$Y$83,F$65,$C$90:$D116) -> 2.503817244 | G116: =DSUM($B$65:$Y$83,G$65,$C$90:$D116) -> 2.492359258 | H116: =DSUM($B$65:$Y$83,H$65,$C$90:$D116) -> 2.480959514 | I116: =DSUM($B$65:$Y$83,I$65,$C$90:$D116) -> 2.469617679 | J116: =DSUM($B$65:$Y$83,J$65,$C$90:$D116) -> 2.212500076 | K116: =DSUM($B$65:$Y$83,K$65,$C$90:$D116) -> 1.761916609 | L116: =DSUM($B$65:$Y$83,L$65,$C$90:$D116) -> 1.40309931 | M116: =DSUM($B$65:$Y$83,M$65,$C$90:$D116) -> 1.117358343 | N116: =DSUM($B$65:$Y$83,N$65,$C$90:$D116) -> 0.8898105328 | O116: =DSUM($B$65:$Y$83,O$65,$C$90:$D116) -> 0.7086040115 | P116: =DSUM($B$65:$Y$83,P$65,$C$90:$D116) -> 0.564300801 | Q116: =DSUM($B$65:$Y$83,Q$65,$C$90:$D116) -> 0.4493851531 | R116: =DSUM($B$65:$Y$83,R$65,$C$90:$D116) -> 0.3578720358 | S116: =DSUM($B$65:$Y$83,S$65,$C$90:$D116) -> 0.2849953642 | T116: =DSUM($B$65:$Y$83,T$65,$C$90:$D116) -> 0.2269597336 | U116: =DSUM($B$65:$Y$83,U$65,$C$90:$D116) -> 0.001541004926 | V116: =DSUM($B$65:$Y$83,V$65,$C$90:$D116) -> 0.0005478592379 | W116: =DSUM($B$65:$Y$83,W$65,$C$90:$D116) -> 0.0001859223255 | X116: =DSUM($B$65:$Y$83,X$65,$C$90:$D116) -> 6.035175684e-05 | Y116: =DSUM($B$65:$Y$83,Y$65,$C$90:$D116) -> 21.18160939
B117: Block 27: 250-260 mills/kWh | C117: >250 | D117: <=260 | E117: =DSUM($B$65:$Y$83,E$65,$C$90:$D117) -> 2.515333809 | F117: =DSUM($B$65:$Y$83,F$65,$C$90:$D117) -> 2.503817244 | G117: =DSUM($B$65:$Y$83,G$65,$C$90:$D117) -> 2.492359258 | H117: =DSUM($B$65:$Y$83,H$65,$C$90:$D117) -> 2.480959514 | I117: =DSUM($B$65:$Y$83,I$65,$C$90:$D117) -> 2.469617679 | J117: =DSUM($B$65:$Y$83,J$65,$C$90:$D117) -> 2.212500076 | K117: =DSUM($B$65:$Y$83,K$65,$C$90:$D117) -> 1.761916609 | L117: =DSUM($B$65:$Y$83,L$65,$C$90:$D117) -> 1.40309931 | M117: =DSUM($B$65:$Y$83,M$65,$C$90:$D117) -> 1.117358343 | N117: =DSUM($B$65:$Y$83,N$65,$C$90:$D117) -> 0.8898105328 | O117: =DSUM($B$65:$Y$83,O$65,$C$90:$D117) -> 0.7086040115 | P117: =DSUM($B$65:$Y$83,P$65,$C$90:$D117) -> 0.564300801 | Q117: =DSUM($B$65:$Y$83,Q$65,$C$90:$D117) -> 0.4493851531 | R117: =DSUM($B$65:$Y$83,R$65,$C$90:$D117) -> 0.3578720358 | S117: =DSUM($B$65:$Y$83,S$65,$C$90:$D117) -> 0.2849953642 | T117: =DSUM($B$65:$Y$83,T$65,$C$90:$D117) -> 0.2269597336 | U117: =DSUM($B$65:$Y$83,U$65,$C$90:$D117) -> 0.001541004926 | V117: =DSUM($B$65:$Y$83,V$65,$C$90:$D117) -> 0.0005478592379 | W117: =DSUM($B$65:$Y$83,W$65,$C$90:$D117) -> 0.0001859223255 | X117: =DSUM($B$65:$Y$83,X$65,$C$90:$D117) -> 6.035175684e-05 | Y117: =DSUM($B$65:$Y$83,Y$65,$C$90:$D117) -> 21.18160939
B118: Block 28: 260-270 mills/kWh | C118: >260 | D118: <=270 | E118: =DSUM($B$65:$Y$83,E$65,$C$90:$D118) -> 2.515333809 | F118: =DSUM($B$65:$Y$83,F$65,$C$90:$D118) -> 2.503817244 | G118: =DSUM($B$65:$Y$83,G$65,$C$90:$D118) -> 2.492359258 | H118: =DSUM($B$65:$Y$83,H$65,$C$90:$D118) -> 2.480959514 | I118: =DSUM($B$65:$Y$83,I$65,$C$90:$D118) -> 2.469617679 | J118: =DSUM($B$65:$Y$83,J$65,$C$90:$D118) -> 2.212500076 | K118: =DSUM($B$65:$Y$83,K$65,$C$90:$D118) -> 1.761916609 | L118: =DSUM($B$65:$Y$83,L$65,$C$90:$D118) -> 1.40309931 | M118: =DSUM($B$65:$Y$83,M$65,$C$90:$D118) -> 1.117358343 | N118: =DSUM($B$65:$Y$83,N$65,$C$90:$D118) -> 0.8898105328 | O118: =DSUM($B$65:$Y$83,O$65,$C$90:$D118) -> 0.7086040115 | P118: =DSUM($B$65:$Y$83,P$65,$C$90:$D118) -> 0.564300801 | Q118: =DSUM($B$65:$Y$83,Q$65,$C$90:$D118) -> 0.4493851531 | R118: =DSUM($B$65:$Y$83,R$65,$C$90:$D118) -> 0.3578720358 | S118: =DSUM($B$65:$Y$83,S$65,$C$90:$D118) -> 0.2849953642 | T118: =DSUM($B$65:$Y$83,T$65,$C$90:$D118) -> 0.2269597336 | U118: =DSUM($B$65:$Y$83,U$65,$C$90:$D118) -> 0.001541004926 | V118: =DSUM($B$65:$Y$83,V$65,$C$90:$D118) -> 0.0005478592379 | W118: =DSUM($B$65:$Y$83,W$65,$C$90:$D118) -> 0.0001859223255 | X118: =DSUM($B$65:$Y$83,X$65,$C$90:$D118) -> 6.035175684e-05 | Y118: =DSUM($B$65:$Y$83,Y$65,$C$90:$D118) -> 21.18160939
B119: Block 29: 270-280 mills/kWh | C119: >270 | D119: <=280 | E119: =DSUM($B$65:$Y$83,E$65,$C$90:$D119) -> 2.515333809 | F119: =DSUM($B$65:$Y$83,F$65,$C$90:$D119) -> 2.503817244 | G119: =DSUM($B$65:$Y$83,G$65,$C$90:$D119) -> 2.492359258 | H119: =DSUM($B$65:$Y$83,H$65,$C$90:$D119) -> 2.480959514 | I119: =DSUM($B$65:$Y$83,I$65,$C$90:$D119) -> 2.469617679 | J119: =DSUM($B$65:$Y$83,J$65,$C$90:$D119) -> 2.212500076 | K119: =DSUM($B$65:$Y$83,K$65,$C$90:$D119) -> 1.761916609 | L119: =DSUM($B$65:$Y$83,L$65,$C$90:$D119) -> 1.40309931 | M119: =DSUM($B$65:$Y$83,M$65,$C$90:$D119) -> 1.117358343 | N119: =DSUM($B$65:$Y$83,N$65,$C$90:$D119) -> 0.8898105328 | O119: =DSUM($B$65:$Y$83,O$65,$C$90:$D119) -> 0.7086040115 | P119: =DSUM($B$65:$Y$83,P$65,$C$90:$D119) -> 0.564300801 | Q119: =DSUM($B$65:$Y$83,Q$65,$C$90:$D119) -> 0.4493851531 | R119: =DSUM($B$65:$Y$83,R$65,$C$90:$D119) -> 0.3578720358 | S119: =DSUM($B$65:$Y$83,S$65,$C$90:$D119) -> 0.2849953642 | T119: =DSUM($B$65:$Y$83,T$65,$C$90:$D119) -> 0.2269597336 | U119: =DSUM($B$65:$Y$83,U$65,$C$90:$D119) -> 0.001541004926 | V119: =DSUM($B$65:$Y$83,V$65,$C$90:$D119) -> 0.0005478592379 | W119: =DSUM($B$65:$Y$83,W$65,$C$90:$D119) -> 0.0001859223255 | X119: =DSUM($B$65:$Y$83,X$65,$C$90:$D119) -> 6.035175684e-05 | Y119: =DSUM($B$65:$Y$83,Y$65,$C$90:$D119) -> 21.18160939
B120: Block 30: 280-290 mills/kWh | C120: >280 | D120: <=290 | E120: =DSUM($B$65:$Y$83,E$65,$C$90:$D120) -> 2.515333809 | F120: =DSUM($B$65:$Y$83,F$65,$C$90:$D120) -> 2.503817244 | G120: =DSUM($B$65:$Y$83,G$65,$C$90:$D120) -> 2.492359258 | H120: =DSUM($B$65:$Y$83,H$65,$C$90:$D120) -> 2.480959514 | I120: =DSUM($B$65:$Y$83,I$65,$C$90:$D120) -> 2.469617679 | J120: =DSUM($B$65:$Y$83,J$65,$C$90:$D120) -> 2.212500076 | K120: =DSUM($B$65:$Y$83,K$65,$C$90:$D120) -> 1.761916609 | L120: =DSUM($B$65:$Y$83,L$65,$C$90:$D120) -> 1.40309931 | M120: =DSUM($B$65:$Y$83,M$65,$C$90:$D120) -> 1.117358343 | N120: =DSUM($B$65:$Y$83,N$65,$C$90:$D120) -> 0.8898105328 | O120: =DSUM($B$65:$Y$83,O$65,$C$90:$D120) -> 0.7086040115 | P120: =DSUM($B$65:$Y$83,P$65,$C$90:$D120) -> 0.564300801 | Q120: =DSUM($B$65:$Y$83,Q$65,$C$90:$D120) -> 0.4493851531 | R120: =DSUM($B$65:$Y$83,R$65,$C$90:$D120) -> 0.3578720358 | S120: =DSUM($B$65:$Y$83,S$65,$C$90:$D120) -> 0.2849953642 | T120: =DSUM($B$65:$Y$83,T$65,$C$90:$D120) -> 0.2269597336 | U120: =DSUM($B$65:$Y$83,U$65,$C$90:$D120) -> 0.001541004926 | V120: =DSUM($B$65:$Y$83,V$65,$C$90:$D120) -> 0.0005478592379 | W120: =DSUM($B$65:$Y$83,W$65,$C$90:$D120) -> 0.0001859223255 | X120: =DSUM($B$65:$Y$83,X$65,$C$90:$D120) -> 6.035175684e-05 | Y120: =DSUM($B$65:$Y$83,Y$65,$C$90:$D120) -> 21.18160939
B121: Block 31: 290-300 mills/kWh | C121: >290 | D121: <=300 | E121: =DSUM($B$65:$Y$83,E$65,$C$90:$D121) -> 2.515333809 | F121: =DSUM($B$65:$Y$83,F$65,$C$90:$D121) -> 2.503817244 | G121: =DSUM($B$65:$Y$83,G$65,$C$90:$D121) -> 2.492359258 | H121: =DSUM($B$65:$Y$83,H$65,$C$90:$D121) -> 2.480959514 | I121: =DSUM($B$65:$Y$83,I$65,$C$90:$D121) -> 2.469617679 | J121: =DSUM($B$65:$Y$83,J$65,$C$90:$D121) -> 2.212500076 | K121: =DSUM($B$65:$Y$83,K$65,$C$90:$D121) -> 1.761916609 | L121: =DSUM($B$65:$Y$83,L$65,$C$90:$D121) -> 1.40309931 | M121: =DSUM($B$65:$Y$83,M$65,$C$90:$D121) -> 1.117358343 | N121: =DSUM($B$65:$Y$83,N$65,$C$90:$D121) -> 0.8898105328 | O121: =DSUM($B$65:$Y$83,O$65,$C$90:$D121) -> 0.7086040115 | P121: =DSUM($B$65:$Y$83,P$65,$C$90:$D121) -> 0.564300801 | Q121: =DSUM($B$65:$Y$83,Q$65,$C$90:$D121) -> 0.4493851531 | R121: =DSUM($B$65:$Y$83,R$65,$C$90:$D121) -> 0.3578720358 | S121: =DSUM($B$65:$Y$83,S$65,$C$90:$D121) -> 0.2849953642 | T121: =DSUM($B$65:$Y$83,T$65,$C$90:$D121) -> 0.2269597336 | U121: =DSUM($B$65:$Y$83,U$65,$C$90:$D121) -> 0.001541004926 | V121: =DSUM($B$65:$Y$83,V$65,$C$90:$D121) -> 0.0005478592379 | W121: =DSUM($B$65:$Y$83,W$65,$C$90:$D121) -> 0.0001859223255 | X121: =DSUM($B$65:$Y$83,X$65,$C$90:$D121) -> 6.035175684e-05 | Y121: =DSUM($B$65:$Y$83,Y$65,$C$90:$D121) -> 21.18160939
B122: Block 32: >300 mills/kWh | C122: >300 | D122: <=999 | E122: =DSUM($B$65:$Y$83,E$65,$C$90:$D122) -> 2.519539194 | F122: =DSUM($B$65:$Y$83,F$65,$C$90:$D122) -> 2.508013797 | G122: =DSUM($B$65:$Y$83,G$65,$C$90:$D122) -> 2.496546998 | H122: =DSUM($B$65:$Y$83,H$65,$C$90:$D122) -> 2.485138461 | I122: =DSUM($B$65:$Y$83,I$65,$C$90:$D122) -> 2.473787849 | J122: =DSUM($B$65:$Y$83,J$65,$C$90:$D122) -> 2.216245348 | K122: =DSUM($B$65:$Y$83,K$65,$C$90:$D122) -> 1.764906535 | L122: =DSUM($B$65:$Y$83,L$65,$C$90:$D122) -> 1.405486228 | M122: =DSUM($B$65:$Y$83,M$65,$C$90:$D122) -> 1.119263867 | N122: =DSUM($B$65:$Y$83,N$65,$C$90:$D122) -> 0.8913317506 | O122: =DSUM($B$65:$Y$83,O$65,$C$90:$D122) -> 0.7098184301 | P122: =DSUM($B$65:$Y$83,P$65,$C$90:$D122) -> 0.5652702956 | Q122: =DSUM($B$65:$Y$83,Q$65,$C$90:$D122) -> 0.4501591201 | R122: =DSUM($B$65:$Y$83,R$65,$C$90:$D122) -> 0.3584899091 | S122: =DSUM($B$65:$Y$83,S$65,$C$90:$D122) -> 0.2854886248 | T122: =DSUM($B$65:$Y$83,T$65,$C$90:$D122) -> 0.2273535134 | U122: =DSUM($B$65:$Y$83,U$65,$C$90:$D122) -> 0.001543685166 | V122: =DSUM($B$65:$Y$83,V$65,$C$90:$D122) -> 0.0005488144563 | W122: =DSUM($B$65:$Y$83,W$65,$C$90:$D122) -> 0.0001862472843 | X122: =DSUM($B$65:$Y$83,X$65,$C$90:$D122) -> 6.045749913e-05 | Y122: =DSUM($B$65:$Y$83,Y$65,$C$90:$D122) -> 21.21863104
E124: =E122 -> 2.519539194 | F124: =F122 -> 2.508013797 | G124: 2.496546998 | H124: 2.485138461 | I124: 2.473787849 | J124: 2.216245348 | K124: 1.764906535 | L124: 1.405486228 | M124: 1.119263867 | N124: 0.8913317506 | O124: 0.7098184301 | P124: 0.5652702956 | Q124: 0.4501591201 | R124: 0.3584899091 | S124: 0.2854886248 | T124: 0.2273535134 | U124: 0.001543685166 | V124: 0.0005488144563 | W124: 0.0001862472843 | X124: 6.045749913e-05 | Y124: =DSUM($B$65:$Y$83,Y$65,$C$90:$D124) -> 21.22818615
A125: RECOMBINE MEASURE BUNDLES INTO SUPPLY CURVE INCREMENTAL
D126: =C8 -> Demand Control Ventilation-Retro | E126: =E89 -> 2016 | F126: =F89 -> 2017 | G126: 2018 | H126: 2019 | I126: 2020 | J126: 2021 | K126: 2022 | L126: 2023 | M126: 2024 | N126: 2025 | O126: 2026 | P126: 2027 | Q126: 2028 | R126: 2029 | S126: 2030 | T126: 2031 | U126: 2032 | V126: 2033 | W126: 2034 | X126: 2035 | Y126: Max
E127: =CONCATENATE("aMW_",E$11) -> aMW_2016 | F127: =CONCATENATE("aMW_",F$11) -> aMW_2017 | G127: aMW_2018 | H127: aMW_2019 | I127: aMW_2020 | J127: aMW_2021 | K127: aMW_2022 | L127: aMW_2023 | M127: aMW_2024 | N127: aMW_2025 | O127: aMW_2026 | P127: aMW_2027 | Q127: aMW_2028 | R127: aMW_2029 | S127: aMW_2030 | T127: aMW_2031 | U127: aMW_2032 | V127: aMW_2033 | W127: aMW_2034 | X127: aMW_2035 | Y127: aMW_
C128: Block 1: <= 0 mills/kWh | E128: =E91 -> 0.1954771689 | F128: =F91 -> 0.194600128 | G128: 0.1937270221 | H128: 0.1928578335 | I128: 0.1919925447 | J128: 0.1720180243 | K128: 0.1369969894 | L128: 0.1091058637 | M128: 0.08689307363 | N128: 0.0692025707 | O128: 0.05511366547 | P128: 0.04389311106 | Q128: 0.03495694184 | R128: 0.02784008135 | S128: 0.02217213775 | T128: 0.01765812701 | U128: 0.0001199015833 | V128: 4.262986602e-05 | W128: =W91 -> 1.446770455e-05 | X128: =X91 -> 4.696562865e-06 | Y128: 1.648265026
C129: Block 2: <= 10 mills/kWh | E129: =E92-E91 -> 0 | F129: 0 | G129: 0 | H129: 0 | I129: 0 | J129: 0 | K129: 0 | L129: 0 | M129: 0 | N129: 0 | O129: 0 | P129: 0 | Q129: 0 | R129: 0 | S129: 0 | T129: 0 | U129: 0 | V129: 0 | W129: 0 | X129: 0 | Y129: 0
C130: Block 3: 10-20 mills/kWh | E130: 0 | F130: 0 | G130: 0 | H130: 0 | I130: 0 | J130: 0 | K130: 0 | L130: 0 | M130: 0 | N130: 0 | O130: 0 | P130: 0 | Q130: 0 | R130: 0 | S130: 0 | T130: 0 | U130: 0 | V130: 0 | W130: 0 | X130: 0 | Y130: 0
C131: Block 4: 20-30 mills/kWh | E131: 0 | F131: 0 | G131: 0 | H131: 0 | I131: 0 | J131: 0 | K131: 0 | L131: 0 | M131: 0 | N131: 0 | O131: 0 | P131: 0 | Q131: 0 | R131: 0 | S131: 0 | T131: 0 | U131: 0 | V131: 0 | W131: 0 | X131: 0 | Y131: 0
C132: Block 5: 30-40 mills/kWh | E132: 0.1853277269 | F132: 0.1844752194 | G132: 0.1836266334 | H132: 0.1827819508 | I132: 0.1819411539 | J132: 0.1629938021 | K132: 0.1297952245 | L132: 0.1033585332 | M132: 0.08230646713 | N132: 0.06554228591 | O132: 0.05219263311 | P132: 0.0415620376 | Q132: 0.03309668178 | R132: 0.02635554964 | S132: 0.02098745129 | T132: 0.01671272721 | U132: 0.0001134692441 | V132: 4.033831627e-05 | W132: 1.368844091e-05 | X132: 4.443089376e-06 | Y132: 1.559485704
C133: Block 6: 40-50 mills/kWh | E133: 0 | F133: 0 | G133: 0 | H133: 0 | I133: 0 | J133: 0 | K133: 0 | L133: 0 | M133: 0 | N133: 0 | O133: 0 | P133: 0 | Q133: 0 | R133: 0 | S133: 0 | T133: 0 | U133: 0 | V133: 0 | W133: 0 | X133: 0 | Y133: 0
C134: Block 7: 50-60 mills/kWh | E134: 0.3897116297 | F134: 0.3876265713 | G134: 0.3855554621 | H134: 0.3834981943 | I134: 0.3814546609 | J134: 0.3414822806 | K134: 0.27173403 | L134: 0.216233518 | M134: 0.1720699856 | N134: 0.1369273965 | O134: 0.1089629104 | P134: 0.08671019269 | Q134: 0.06900248255 | R134: 0.05491138333 | S134: 0.04369816028 | T134: 0.03477499033 | U134: 0.0002359484823 | V134: 8.382609088e-05 | W134: 2.842764851e-05 | X134: 9.221479059e-06 | Y134: 3.23868231
C135: Block 8: 60-70 mills/kWh | E135: 0.9277147509 | F135: 0.923447263 | G135: 0.9191994056 | H135: 0.9149710883 | I135: 0.9107622213 | J135: 0.8159154436 | K135: 0.6497297861 | L135: 0.5173928232 | M135: 0.412010253 | N135: 0.3280920047 | O135: 0.2612662252 | P135: 0.2080515204 | Q135: 0.1656755867 | R135: 0.1319307832 | S135: 0.1050591213 | T135: 0.08366067948 | U135: 0.0005680050862 | V135: 0.0002019258081 | W135: 6.85216873e-05 | X135: 2.224124594e-05 | Y135: 7.806483763
C136: Block 9: 70-80 mills/kWh | E136: 0.2684440975 | F136: 0.2676738982 | G136: 0.2669059251 | H136: 0.2661401718 | I136: 0.2653766319 | J136: 0.238153769 | K136: 0.1899764398 | L136: 0.1515451553 | M136: 0.1208883351 | N136: 0.09643324087 | O136: 0.07692529238 | P136: 0.0613637053 | Q136: 0.0489501495 | R136: 0.03904779335 | S136: 0.03114863337 | T136: 0.0248474328 | U136: 0.0001689924464 | V136: 6.018134038e-05 | W136: 2.045752358e-05 | X136: 6.651799288e-06 | Y136: 2.330668317
C137: Block 10: 80-90 mills/kWh | E137: 0 | F137: 0 | G137: 0 | H137: 0 | I137: 0 | J137: 0 | K137: 0 | L137: 0 | M137: 0 | N137: 0 | O137: 0 | P137: 0 | Q137: 0 | R137: 0 | S137: 0 | T137: 0 | U137: 0 | V137: 0 | W137: 0 | X137: 0 | Y137: 0
C138: Block 11: 90-100 mills/kWh | E138: 0 | F138: 0 | G138: 0 | H138: 0 | I138: 0 | J138: 0 | K138: 0 | L138: 0 | M138: 0 | N138: 0 | O138: 0 | P138: 0 | Q138: 0 | R138: 0 | S138: 0 | T138: 0 | U138: 0 | V138: 0 | W138: 0 | X138: 0 | Y138: 0
C139: Block 12: 100-110 mills/kWh | E139: 0.4385430117 | F139: 0.4367607908 | G139: 0.4349860629 | H139: 0.4332187956 | I139: 0.4314589567 | J139: 0.3867358628 | K139: 0.308132234 | L139: 0.2455048458 | M139: 0.1956064878 | N139: 0.1558499591 | O139: 0.1241739169 | P139: 0.09893599353 | Q139: 0.07882763723 | R139: 0.06280626255 | S139: 0.0500411916 | T139: 0.03987058303 | U139: 0.0002708451078 | V139: 9.633817703e-05 | W139: 3.270941059e-05 | X139: 1.062287594e-05 | Y139: 3.726491462
C140: Block 13: 110-120 mills/kWh | E140: 0 | F140: 0 | G140: 0 | H140: 0 | I140: 0 | J140: 0 | K140: 0 | L140: 0 | M140: 0 | N140: 0 | O140: 0 | P140: 0 | Q140: 0 | R140: 0 | S140: 0 | T140: 0 | U140: 0 | V140: 0 | W140: 0 | X140: 0 | Y140: 0
C141: Block 14: 120-130 mills/kWh | E141: 0.02546459373 | F141: 0.02534440085 | G141: 0.02522477527 | H141: =H104-H103 -> 0.02510571433 | I141: 0.02498721536 | J141: 0.02238234814 | K141: 0.01782136276 | L141: 0.01418979674 | M141: 0.01129825672 | N141: 0.008995943161 | O141: 0.007162785847 | P141: 0.005703181998 | Q141: 0.004541010383 | R141: 0.003615661452 | S141: 0.002878876424 | T141: 0.002292230502 | U141: 1.556097356e-05 | V141: 5.531259203e-06 | W141: 1.876756248e-06 | X141: 6.090971603e-07 | Y141: 0.2138135786
C142: Block 15: 130-140 mills/kWh | E142: =E105-E104 -> 0 | F142: 0 | G142: 0 | H142: 0 | I142: 0 | J142: 0 | K142: 0 | L142: 0 | M142: 0 | N142: 0 | O142: 0 | P142: 0 | Q142: 0 | R142: 0 | S142: 0 | T142: 0 | U142: 0 | V142: 0 | W142: 0 | X142: 0 | Y142: 0
C143: Block 16: 140-150 mills/kWh | E143: 0 | F143: 0 | G143: 0 | H143: 0 | I143: 0 | J143: 0 | K143: 0 | L143: 0 | M143: 0 | N143: 0 | O143: 0 | P143: 0 | Q143: 0 | R143: 0 | S143: 0 | T143: 0 | U143: 0 | V143: 0 | W143: 0 | X143: 0 | Y143: 0
C144: Block 17: 150-160 mills/kWh | E144: 0 | F144: 0 | G144: 0 | H144: 0 | I144: 0 | J144: 0 | K144: 0 | L144: 0 | M144: 0 | N144: 0 | O144: 0 | P144: 0 | Q144: 0 | R144: 0 | S144: 0 | T144: 0 | U144: 0 | V144: 0 | W144: 0 | X144: 0 | Y144: 0
C145: Block 18: 160-170 mills/kWh | E145: 0.08465082955 | F145: 0.08388897209 | G145: 0.08313397134 | H145: 0.0823857656 | I145: 0.08164429371 | J145: 0.07281854556 | K145: 0.05773054292 | L145: 0.04576877443 | M145: 0.03628548436 | N145: 0.028767132 | O145: 0.02280658225 | P145: 0.01808105841 | Q145: 0.01433466311 | R145: 0.01136452091 | S145: 0.009009792179 | T145: 0.007142963239 | U145: 4.828200206e-05 | V145: 1.708838001e-05 | W145: 5.773153839e-06 | X145: 1.865607213e-06 | Y145: 0.6577192343
C146: Block 19: 170-180 mills/kWh | E146: 0 | F146: 0 | G146: 0 | H146: 0 | I146: 0 | J146: 0 | K146: 0 | L146: 0 | M146: 0 | N146: 0 | O146: 0 | P146: 0 | Q146: 0 | R146: 0 | S146: 0 | T146: 0 | U146: 0 | V146: 0 | W146: 0 | X146: 0 | Y146: 0
C147: Block 20: 180-190 mills/kWh | E147: 0 | F147: 0 | G147: 0 | H147: 0 | I147: 0 | J147: 0 | K147: 0 | L147: 0 | M147: 0 | N147: 0 | O147: 0 | P147: 0 | Q147: 0 | R147: 0 | S147: 0 | T147: 0 | U147: 0 | V147: 0 | W147: 0 | X147: 0 | Y147: 0
C148: Block 21: 190-200 mills/kWh | E148: 0 | F148: 0 | G148: 0 | H148: 0 | I148: 0 | J148: 0 | K148: 0 | L148: 0 | M148: 0 | N148: 0 | O148: 0 | P148: 0 | Q148: 0 | R148: 0 | S148: 0 | T148: 0 | U148: 0 | V148: 0 | W148: 0 | X148: 0 | Y148: 0
C149: Block 22: 200-210 mills/kWh | E149: 0 | F149: 0 | G149: 0 | H149: 0 | I149: 0 | J149: 0 | K149: 0 | L149: 0 | M149: 0 | N149: 0 | O149: 0 | P149: 0 | Q149: 0 | R149: 0 | S149: 0 | T149: 0 | U149: 0 | V149: 0 | W149: 0 | X149: 0 | Y149: 0
C150: Block 23: 210-220 mills/kWh | E150: 0 | F150: 0 | G150: 0 | H150: 0 | I150: 0 | J150: 0 | K150: 0 | L150: 0 | M150: 0 | N150: 0 | O150: 0 | P150: 0 | Q150: 0 | R150: 0 | S150: 0 | T150: 0 | U150: 0 | V150: 0 | W150: 0 | X150: 0 | Y150: 0
C151: Block 24: 220-230 mills/kWh | E151: 0 | F151: 0 | G151: 0 | H151: 0 | I151: 0 | J151: 0 | K151: 0 | L151: 0 | M151: 0 | N151: 0 | O151: 0 | P151: 0 | Q151: 0 | R151: 0 | S151: 0 | T151: 0 | U151: 0 | V151: 0 | W151: 0 | X151: 0 | Y151: 0
C152: Block 25: 230-240 mills/kWh | E152: 0 | F152: 0 | G152: 0 | H152: 0 | I152: 0 | J152: 0 | K152: 0 | L152: 0 | M152: 0 | N152: 0 | O152: 0 | P152: 0 | Q152: 0 | R152: 0 | S152: 0 | T152: 0 | U152: 0 | V152: 0 | W152: 0 | X152: 0 | Y152: 0
C153: Block 26: 240-250 mills/kWh | E153: 0 | F153: 0 | G153: 0 | H153: 0 | I153: 0 | J153: 0 | K153: 0 | L153: 0 | M153: 0 | N153: 0 | O153: 0 | P153: 0 | Q153: 0 | R153: 0 | S153: 0 | T153: 0 | U153: 0 | V153: 0 | W153: 0 | X153: 0 | Y153: 0
C154: Block 27: 250-260 mills/kWh | E154: 0 | F154: 0 | G154: 0 | H154: =H117-H116 -> 0 | I154: 0 | J154: 0 | K154: 0 | L154: 0 | M154: 0 | N154: 0 | O154: 0 | P154: 0 | Q154: 0 | R154: 0 | S154: 0 | T154: 0 | U154: 0 | V154: 0 | W154: 0 | X154: 0 | Y154: 0
C155: Block 28: 260-270 mills/kWh | E155: =E118-E117 -> 0 | F155: 0 | G155: 0 | H155: 0 | I155: 0 | J155: 0 | K155: 0 | L155: 0 | M155: 0 | N155: 0 | O155: 0 | P155: 0 | Q155: 0 | R155: 0 | S155: 0 | T155: 0 | U155: 0 | V155: 0 | W155: 0 | X155: 0 | Y155: 0
C156: Block 29: 270-280 mills/kWh | E156: 0 | F156: 0 | G156: 0 | H156: 0 | I156: 0 | J156: 0 | K156: 0 | L156: 0 | M156: 0 | N156: 0 | O156: 0 | P156: 0 | Q156: 0 | R156: 0 | S156: 0 | T156: 0 | U156: 0 | V156: 0 | W156: 0 | X156: 0 | Y156: 0
C157: Block 30: 280-290 mills/kWh | E157: 0 | F157: 0 | G157: 0 | H157: 0 | I157: 0 | J157: 0 | K157: 0 | L157: 0 | M157: 0 | N157: 0 | O157: 0 | P157: 0 | Q157: 0 | R157: 0 | S157: 0 | T157: 0 | U157: 0 | V157: 0 | W157: 0 | X157: 0 | Y157: 0
C158: Block 31: 290-300 mills/kWh | E158: 0 | F158: 0 | G158: 0 | H158: 0 | I158: 0 | J158: 0 | K158: 0 | L158: 0 | M158: 0 | N158: 0 | O158: 0 | P158: 0 | Q158: 0 | R158: 0 | S158: 0 | T158: 0 | U158: 0 | V158: 0 | W158: 0 | X158: 0 | Y158: 0
C159: Block 32: >300 mills/kWh | E159: 0.004205384611 | F159: 0.004196553303 | G159: 0.004187740541 | H159: 0.004178946286 | I159: 0.004170170499 | J159: 0.003745271827 | K159: 0.002989925405 | L159: 0.002386917249 | M159: 0.001905523778 | N159: 0.001521217743 | O159: 0.001214418548 | P159: 0.0009694946156 | Q159: 0.0007739669415 | R159: 0.0006178732887 | S159: 0.0004932606039 | T159: 0.0003937798053 | U159: 2.68023987e-06 | V159: 9.552183449e-07 | W159: 3.249587681e-07 | X159: 1.057422896e-07 | Y159: 0.03702164157
C161: Total per Year | E161: =SUM(E128:E159) -> 2.519539194 | F161: 2.508013797 | G161: 2.496546998 | H161: 2.485138461 | I161: 2.473787849 | J161: 2.216245348 | K161: 1.764906535 | L161: 1.405486228 | M161: 1.119263867 | N161: 0.8913317506 | O161: 0.7098184301 | P161: 0.5652702956 | Q161: 0.4501591201 | R161: 0.3584899091 | S161: 0.2854886248 | T161: 0.2273535134 | U161: 0.001543685166 | V161: 0.0005488144563 | W161: 0.0001862472843 | X161: 6.045749913e-05
C162: Total Cumulative | E162: =D162+E161 -> 2.519539194 | F162: 5.02755299 | G162: 7.524099989 | H162: 10.00923845 | I162: 12.4830263 | J162: 14.69927165 | K162: 16.46417818 | L162: 17.86966441 | M162: 18.98892828 | N162: 19.88026003 | O162: 20.59007846 | P162: 21.15534875 | Q162: 21.60550787 | R162: 21.96399778 | S162: 22.24948641 | T162: 22.47683992 | U162: 22.4783836 | V162: 22.47893242 | W162: 22.47911867 | X162: 22.47917912 | Y162: =SUM(Y128:Y159) -> 21.21863104
C164: Ramp Rate | D164: =D38 -> Retro12Med | E164: =E38 -> 0.1093745947 | F164: 0.1093745947 | G164: 0.1093745947 | H164: 0.1093745947 | I164: 0.1093745947 | J164: 0.09843713521 | K164: 0.07874970817 | L164: 0.06299976654 | M164: 0.05039981323 | N164: 0.04031985058 | O164: 0.03225588047 | P164: 0.02580470437 | Q164: 0.0206437635 | R164: 0.0165150108 | S164: 0.01321200864 | T164: 0.01056960691 | U164: 7.209282379e-05 | V164: 2.574743707e-05 | W164: 8.777535365e-06 | X164: 2.862239793e-06

Sheet Measure InputOutput (hidden)
A1: Data Set Name
A2: Measure Index Name
A3: Costs must be denominated in the same year as 'Input Cost Reference Year' = | C3: 2012
A5: Retrofit Data | C5: name | D5: column | E5: referenece
B6: Weighting Factor in MMap | C6: WT BTYPE | D6: =MATCH(C6,MMap!$A$9:$BP$9,0) -> 13 | E6: =LEFT(ADDRESS(11,MATCH(C6,MMap!$A$9:$BR$9,0),4,1),1) -> M
B7: Units are per thousand feet floor area for activity | C7: 1000
A8: 1 | B8: 2 | C8: 3 | D8: 4 | E8: 5 | F8: 6 | G8: 7 | H8: 8 | I8: 9 | J8: 10 | K8: 11 | L8: 12 | M8: 13 | N8: 14 | O8: 15 | P8: 16 | Q8: 17 | R8: 18 | S8: 19 | T8: 20 | U8: 21 | V8: 22 | W8: 23 | X8: 24 | Y8: 25 | Z8: 26 | AA8: 27 | AB8: 28 | AC8: 29 | AD8: 30 | AE8: 31 | AF8: 32 | AG8: 33 | AH8: 34 | AI8: 35 | AJ8: 36 | AK8: 37 | AL8: 38 | AM8: 39 | AN8: 40 | AO8: 41 | AP8: 42 | AQ8: 43 | AR8: 44 | AS8: 45 | AT8: 46 | AU8: 47 | AV8: 48 | AW8: 49 | AX8: 50 | AY8: 51 | AZ8: 52 | BA8: 53 | BB8: 54 | BC8: 55 | BD8: 56 | BE8: 57 | BF8: 58 | BG8: 59 | BH8: 60 | BI8: 61 | BJ8: 62 | BK8: 63 | BL8: 64 | BM8: 65 | BN8: 66 | BO8: 67 | BP8: 68 | BQ8: 69 | BR8: 70 | BS8: 71 | BT8: 72 | BU8: 73 | BV8: 74 | BW8: 75 | BX8: 76 | BY8: 77 | BZ8: 78 | CA8: 79 | CB8: 80 | CC8: 81 | CD8: 82 | CE8: 83 | CF8: 84 | CG8: 85 | CH8: 86 | CI8: 87 | CJ8: 88 | CK8: 89 | CL8: 90 | CM8: 91 | CN8: 92 | CO8: 93 | CP8: 94 | CQ8: 95 | CR8: 96 | CS8: 97 | CT8: 98 | CU8: 99 | CV8: 100 | CW8: 101 | CX8: 102 | CY8: 103 | CZ8: 104 | DA8: 105
A9: Input Data | I9: Periodic Replacement Costs and Savings and Replacement Period | O9: Gas Inputs | Q9: Retro or LO | R9: Early Retrofit Parameters
A10: Category Name | B10: Measure Name | C10: Savings (kwh/yr) | D10: Life (yrs) | E10: Capital Cost | F10: Annual O&M | G10: Shape Pointer | H10: Non-E Val ($/yr) | I10: Cost 1 ($) | J10: Period 1 | K10: Cost 2 ($) | L10: Period 2 | M10: Cost 3 ($) | N10: Period 3 | O10: Savings (therms/yr) | P10: Shape Pointer | Q10: R or L | R10: Savings 2 (kWh) | S10: Remaining Life (yrs) | T10: Salvage Value ($)
A11: Demand Control Ventilation-Retro-Large Off | B11: Demand Control Ventilation-DCV Only-Large Off-ElecHt-Vent-Retro | C11: =MMap!#REF!*MMap!M266*$C$7 ->  | D11: 15 | E11: =MMap!Q266*MMap!M266*$C$7 -> 0 | G11: ComEconoMizer | O11: 1 | P11: SmComWX | Q11: R
A12: Demand Control Ventilation-Retro-Medium Off | B12: Demand Control Ventilation-DCV Only-Medium Off-ElecHt-Vent-Retro | C12: =MMap!#REF!*MMap!M267*$C$7 ->  | D12: 15 | E12: =MMap!Q267*MMap!M267*$C$7 -> 0 | G12: ComEconoMizer | O12: 1 | P12: SmComWX | Q12: R
A13: Demand Control Ventilation-Retro-Small Off | B13: Demand Control Ventilation-DCV Only-Small Off-ElecHt-Vent-Retro | C13: =MMap!#REF!*MMap!M268*$C$7 ->  | D13: 15 | E13: =MMap!Q268*MMap!M268*$C$7 -> 0 | G13: ComEconoMizer | O13: 1 | P13: SmComWX | Q13: R
A14: Demand Control Ventilation-Retro-Big Box | B14: Demand Control Ventilation-DCV Only-Big Box-ElecHt-Vent-Retro | C14: =MMap!#REF!*MMap!M269*$C$7 ->  | D14: 15 | E14: =MMap!Q269*MMap!M269*$C$7 -> 0 | G14: ComEconoMizer | O14: 1 | P14: SmComWX
A15: Demand Control Ventilation-Retro-Small Box | B15: Demand Control Ventilation-DCV Only-Small Box-ElecHt-Vent-Retro | C15: =MMap!#REF!*MMap!M270*$C$7 ->  | D15: 15 | E15: =MMap!Q270*MMap!M270*$C$7 -> 0 | G15: ComEconoMizer | O15: 1 | P15: SmComWX
A16: Demand Control Ventilation-Retro-High End | B16: Demand Control Ventilation-DCV Only-High End-ElecHt-Vent-Retro | C16: =MMap!#REF!*MMap!M271*$C$7 ->  | D16: 15 | E16: =MMap!Q271*MMap!M271*$C$7 -> 0 | G16: ComEconoMizer | O16: 1 | P16: SmComWX
A17: Demand Control Ventilation-Retro-Anchor | B17: Demand Control Ventilation-DCV Only-Anchor-ElecHt-Vent-Retro | C17: =MMap!#REF!*MMap!M272*$C$7 ->  | D17: 15 | E17: =MMap!Q272*MMap!M272*$C$7 -> 0 | G17: ComEconoMizer | O17: 1 | P17: SmComWX
A18: Demand Control Ventilation-Retro-K-12 | B18: Demand Control Ventilation-DCV Only-K-12-ElecHt-Vent-Retro | C18: =MMap!#REF!*MMap!M273*$C$7 ->  | D18: 15 | E18: =MMap!Q273*MMap!M273*$C$7 -> 0 | G18: ComEconoMizer | O18: 1 | P18: SmComWX
A19: Demand Control Ventilation-Retro-University | B19: Demand Control Ventilation-DCV Only-University-ElecHt-Vent-Retro | C19: =MMap!#REF!*MMap!M274*$C$7 ->  | D19: 15 | E19: =MMap!Q274*MMap!M274*$C$7 -> 0 | G19: ComEconoMizer | O19: 1 | P19: SmComWX
A20: Demand Control Ventilation-Retro-Warehouse | B20: Demand Control Ventilation-DCV Only-Warehouse-ElecHt-Vent-Retro | C20: =MMap!#REF!*MMap!M275*$C$7 ->  | D20: 15 | E20: =MMap!Q275*MMap!M275*$C$7 -> 0 | G20: ComEconoMizer | O20: 1 | P20: SmComWX
A21: Demand Control Ventilation-Retro-Supermarket | B21: Demand Control Ventilation-DCV Only-Supermarket-ElecHt-Vent-Retro | C21: =MMap!#REF!*MMap!M276*$C$7 ->  | D21: 15 | E21: =MMap!Q276*MMap!M276*$C$7 -> 0 | G21: ComEconoMizer | O21: 1 | P21: SmComWX
A22: Demand Control Ventilation-Retro-MIniMart | B22: Demand Control Ventilation-DCV Only-MIniMart-ElecHt-Vent-Retro | C22: =MMap!#REF!*MMap!M277*$C$7 ->  | D22: 15 | E22: =MMap!Q277*MMap!M277*$C$7 -> 0 | G22: ComEconoMizer | O22: 1 | P22: SmComWX
A23: Demand Control Ventilation-Retro-Restaurant | B23: Demand Control Ventilation-DCV Only-Restaurant-ElecHt-Vent-Retro | C23: =MMap!#REF!*MMap!M278*$C$7 ->  | D23: 15 | E23: =MMap!Q278*MMap!M278*$C$7 -> 0 | G23: ComEconoMizer | O23: 1 | P23: SmComWX
A24: Demand Control Ventilation-Retro-Lodging | B24: Demand Control Ventilation-DCV Only-Lodging-ElecHt-Vent-Retro | C24: =MMap!#REF!*MMap!M279*$C$7 ->  | D24: 15 | E24: =MMap!Q279*MMap!M279*$C$7 -> 0 | G24: ComEconoMizer | O24: 1 | P24: SmComWX
A25: Demand Control Ventilation-Retro-Hospital | B25: Demand Control Ventilation-DCV Only-Hospital-ElecHt-Vent-Retro | C25: =MMap!#REF!*MMap!M280*$C$7 ->  | D25: 15 | E25: =MMap!Q280*MMap!M280*$C$7 -> 0 | G25: ComEconoMizer | O25: 1 | P25: SmComWX
A26: Demand Control Ventilation-Retro-OtherHealth | B26: Demand Control Ventilation-DCV Only-OtherHealth-ElecHt-Vent-Retro | C26: =MMap!#REF!*MMap!M281*$C$7 ->  | D26: 15 | E26: =MMap!Q281*MMap!M281*$C$7 -> 23.90034695 | G26: ComEconoMizer | O26: 1 | P26: SmComWX
A27: Demand Control Ventilation-Retro-Other | B27: Demand Control Ventilation-DCV Only-Other-ElecHt-Vent-Retro | C27: =MMap!#REF!*MMap!M282*$C$7 ->  | D27: 15 | E27: =MMap!Q282*MMap!M282*$C$7 -> 25.92955617 | G27: ComEconoMizer | O27: 1 | P27: SmComWX
A28: Demand Control Ventilation-Retro-Large Off | B28: Demand Control Ventilation-DCV Only-Large Off-ElecHt-Heat-Retro | C28: =MMap!#REF!*MMap!M283*$C$7 ->  | D28: 15 | E28: =MMap!Q283*MMap!M283*$C$7 -> 33.49471071 | G28: ExCOMM | O28: 1 | P28: SmComWX
A29: Demand Control Ventilation-Retro-Medium Off | B29: Demand Control Ventilation-DCV Only-Medium Off-ElecHt-Heat-Retro | C29: =MMap!#REF!*MMap!M284*$C$7 ->  | D29: 15 | E29: =MMap!Q284*MMap!M284*$C$7 -> 1.88072678 | G29: ExCOMM | O29: 1 | P29: SmComWX
A30: Demand Control Ventilation-Retro-Small Off | B30: Demand Control Ventilation-DCV Only-Small Off-ElecHt-Heat-Retro | C30: =MMap!#REF!*MMap!M285*$C$7 ->  | D30: 15 | E30: =MMap!Q285*MMap!M285*$C$7 -> 0.3923237691 | G30: ExCOMM | O30: 1 | P30: SmComWX
A31: Demand Control Ventilation-Retro-Big Box | B31: Demand Control Ventilation-DCV Only-Big Box-ElecHt-Heat-Retro | C31: =MMap!#REF!*MMap!M286*$C$7 ->  | D31: 15 | E31: =MMap!Q286*MMap!M286*$C$7 -> 9.12711987 | G31: ExCOMM | O31: 1 | P31: SmComWX
A32: Demand Control Ventilation-Retro-Small Box | B32: Demand Control Ventilation-DCV Only-Small Box-ElecHt-Heat-Retro | C32: =MMap!#REF!*MMap!M287*$C$7 ->  | D32: 15 | E32: =MMap!Q287*MMap!M287*$C$7 -> 12.31656633 | G32: ExCOMM | O32: 1 | P32: SmComWX
A33: Demand Control Ventilation-Retro-High End | B33: Demand Control Ventilation-DCV Only-High End-ElecHt-Heat-Retro | C33: =MMap!#REF!*MMap!M288*$C$7 ->  | D33: 15 | E33: =MMap!Q288*MMap!M288*$C$7 -> 0 | G33: ExCOMM | O33: 1 | P33: SmComWX
A34: Demand Control Ventilation-Retro-Anchor | B34: Demand Control Ventilation-DCV Only-Anchor-ElecHt-Heat-Retro | C34: =MMap!#REF!*MMap!M289*$C$7 ->  | D34: 15 | E34: =MMap!Q289*MMap!M289*$C$7 -> 0 | G34: ExCOMM | O34: 1 | P34: SmComWX
A35: Demand Control Ventilation-Retro-K-12 | B35: Demand Control Ventilation-DCV Only-K-12-ElecHt-Heat-Retro | C35: =MMap!#REF!*MMap!M290*$C$7 ->  | D35: 15 | E35: =MMap!Q290*MMap!M290*$C$7 -> 0.1392890458 | G35: ExCOMM | O35: 1 | P35: SmComWX
A36: Demand Control Ventilation-Retro-University | B36: Demand Control Ventilation-DCV Only-University-ElecHt-Heat-Retro | C36: =MMap!#REF!*MMap!M291*$C$7 ->  | D36: 15 | E36: =MMap!Q291*MMap!M291*$C$7 -> 1.299416871 | G36: ExCOMM | O36: 1 | P36: SmComWX
A37: Demand Control Ventilation-Retro-Warehouse | B37: Demand Control Ventilation-DCV Only-Warehouse-ElecHt-Heat-Retro | C37: =MMap!#REF!*MMap!M292*$C$7 ->  | D37: 15 | E37: =MMap!Q292*MMap!M292*$C$7 -> 0.6968209785 | G37: ExCOMM | O37: 1 | P37: SmComWX
A38: Demand Control Ventilation-Retro-Supermarket | B38: Demand Control Ventilation-DCV Only-Supermarket-ElecHt-Heat-Retro | C38: =MMap!#REF!*MMap!M293*$C$7 ->  | D38: 15 | E38: =MMap!Q293*MMap!M293*$C$7 -> 2.523472067 | G38: ExCOMM | O38: 1 | P38: SmComWX
A39: Demand Control Ventilation-Retro-MIniMart | B39: Demand Control Ventilation-DCV Only-MIniMart-ElecHt-Heat-Retro | C39: =MMap!#REF!*MMap!M294*$C$7 ->  | D39: 15 | E39: =MMap!Q294*MMap!M294*$C$7 -> 50.61787776 | G39: ExCOMM | O39: 1 | P39: SmComWX
A40: Demand Control Ventilation-Retro-Restaurant | B40: Demand Control Ventilation-DCV Only-Restaurant-ElecHt-Heat-Retro | C40: =MMap!#REF!*MMap!M295*$C$7 ->  | D40: 15 | E40: =MMap!Q295*MMap!M295*$C$7 -> 9.117201512 | G40: ExCOMM | O40: 1 | P40: SmComWX
A41: Demand Control Ventilation-Retro-Lodging | B41: Demand Control Ventilation-DCV Only-Lodging-ElecHt-Heat-Retro | C41: =MMap!#REF!*MMap!M296*$C$7 ->  | D41: 15 | E41: =MMap!Q296*MMap!M296*$C$7 -> 34.34241257 | G41: ExCOMM | O41: 1 | P41: SmComWX
A42: Demand Control Ventilation-Retro-Hospital | B42: Demand Control Ventilation-DCV Only-Hospital-ElecHt-Heat-Retro | C42: =MMap!#REF!*MMap!M297*$C$7 ->  | D42: 15 | E42: =MMap!Q297*MMap!M297*$C$7 -> 23.27629257 | G42: ExCOMM | O42: 1 | P42: SmComWX
A43: Demand Control Ventilation-Retro-OtherHealth | B43: Demand Control Ventilation-DCV Only-OtherHealth-ElecHt-Heat-Retro | C43: =MMap!#REF!*MMap!M298*$C$7 ->  | D43: 15 | E43: =MMap!Q298*MMap!M298*$C$7 -> 17.82528131 | G43: ExCOMM | O43: 1 | P43: SmComWX
A44: Demand Control Ventilation-Retro-Other | B44: Demand Control Ventilation-DCV Only-Other-ElecHt-Heat-Retro | C44: =MMap!#REF!*MMap!M299*$C$7 ->  | D44: 15 | E44: =MMap!Q299*MMap!M299*$C$7 -> 0 | G44: ExCOMM | O44: 1 | P44: SmComWX
A45: Demand Control Ventilation-Retro-Large Off | B45: Demand Control Ventilation-DCV Only-Large Off-GasHt-Vent-Retro | C45: =MMap!#REF!*MMap!M300*$C$7 ->  | D45: 15 | E45: =MMap!Q300*MMap!M300*$C$7 -> 0 | G45: ComEconoMizer | O45: 1 | P45: SmComWX
A46: Demand Control Ventilation-Retro-Medium Off | B46: Demand Control Ventilation-DCV Only-Medium Off-GasHt-Vent-Retro | C46: =MMap!#REF!*MMap!M301*$C$7 ->  | D46: 15 | E46: =MMap!Q301*MMap!M301*$C$7 -> 0 | G46: ComEconoMizer | O46: 1 | P46: SmComWX
A47: Demand Control Ventilation-Retro-Small Off | B47: Demand Control Ventilation-DCV Only-Small Off-GasHt-Vent-Retro | C47: =MMap!#REF!*MMap!M302*$C$7 ->  | D47: 15 | E47: =MMap!Q302*MMap!M302*$C$7 -> 0 | G47: ComEconoMizer | O47: 1 | P47: SmComWX
A48: Demand Control Ventilation-Retro-Big Box | B48: Demand Control Ventilation-DCV Only-Big Box-GasHt-Vent-Retro | C48: =MMap!#REF!*MMap!M303*$C$7 ->  | D48: 15 | E48: =MMap!Q303*MMap!M303*$C$7 -> 0 | G48: ComEconoMizer | O48: 1 | P48: SmComWX
A49: Demand Control Ventilation-Retro-Small Box | B49: Demand Control Ventilation-DCV Only-Small Box-GasHt-Vent-Retro | C49: =MMap!#REF!*MMap!M304*$C$7 ->  | D49: 15 | E49: =MMap!Q304*MMap!M304*$C$7 -> 0 | G49: ComEconoMizer | O49: 1 | P49: SmComWX
A50: Demand Control Ventilation-Retro-High End | B50: Demand Control Ventilation-DCV Only-High End-GasHt-Vent-Retro | C50: =MMap!#REF!*MMap!M305*$C$7 ->  | D50: 15 | E50: =MMap!Q305*MMap!M305*$C$7 -> 0 | G50: ComEconoMizer | O50: 1 | P50: SmComWX
A51: Demand Control Ventilation-Retro-Anchor | B51: Demand Control Ventilation-DCV Only-Anchor-GasHt-Vent-Retro | C51: =MMap!#REF!*MMap!M306*$C$7 ->  | D51: 15 | E51: =MMap!Q306*MMap!M306*$C$7 -> 0 | G51: ComEconoMizer | O51: 1 | P51: SmComWX
A52: Demand Control Ventilation-Retro-K-12 | B52: Demand Control Ventilation-DCV Only-K-12-GasHt-Vent-Retro | C52: =MMap!#REF!*MMap!M307*$C$7 ->  | D52: 15 | E52: =MMap!Q307*MMap!M307*$C$7 -> 0 | G52: ComEconoMizer | O52: 1 | P52: SmComWX
A53: Demand Control Ventilation-Retro-University | B53: Demand Control Ventilation-DCV Only-University-GasHt-Vent-Retro | C53: =MMap!#REF!*MMap!M308*$C$7 ->  | D53: 15 | E53: =MMap!Q308*MMap!M308*$C$7 -> 0 | G53: ComEconoMizer | O53: 1 | P53: SmComWX
A54: Demand Control Ventilation-Retro-Warehouse | B54: Demand Control Ventilation-DCV Only-Warehouse-GasHt-Vent-Retro | C54: =MMap!#REF!*MMap!M309*$C$7 ->  | D54: 15 | E54: =MMap!Q309*MMap!M309*$C$7 -> 0 | G54: ComEconoMizer | O54: 1 | P54: SmComWX
A55: Demand Control Ventilation-Retro-Supermarket | B55: Demand Control Ventilation-DCV Only-Supermarket-GasHt-Vent-Retro | C55: =MMap!#REF!*MMap!M310*$C$7 ->  | D55: 15 | E55: =MMap!Q310*MMap!M310*$C$7 -> 0 | G55: ComEconoMizer | O55: 1 | P55: SmComWX
A56: Demand Control Ventilation-Retro-MIniMart | B56: Demand Control Ventilation-DCV Only-MIniMart-GasHt-Vent-Retro | C56: =MMap!#REF!*MMap!M311*$C$7 ->  | D56: 15 | E56: =MMap!Q311*MMap!M311*$C$7 -> 0 | G56: ComEconoMizer | O56: 1 | P56: SmComWX
A57: Demand Control Ventilation-Retro-Restaurant | B57: Demand Control Ventilation-DCV Only-Restaurant-GasHt-Vent-Retro | C57: =MMap!#REF!*MMap!M312*$C$7 ->  | D57: 15 | E57: =MMap!Q312*MMap!M312*$C$7 -> 0 | G57: ComEconoMizer | O57: 1 | P57: SmComWX
A58: Demand Control Ventilation-Retro-Lodging | B58: Demand Control Ventilation-DCV Only-Lodging-GasHt-Vent-Retro | C58: =MMap!#REF!*MMap!M313*$C$7 ->  | D58: 15 | E58: =MMap!Q313*MMap!M313*$C$7 -> 0 | G58: ComEconoMizer | O58: 1 | P58: SmComWX
A59: Demand Control Ventilation-Retro-Hospital | B59: Demand Control Ventilation-DCV Only-Hospital-GasHt-Vent-Retro | C59: =MMap!#REF!*MMap!M314*$C$7 ->  | D59: 15 | E59: =MMap!Q314*MMap!M314*$C$7 -> 0 | G59: ComEconoMizer | O59: 1 | P59: SmComWX
A60: Demand Control Ventilation-Retro-OtherHealth | B60: Demand Control Ventilation-DCV Only-OtherHealth-GasHt-Vent-Retro | C60: =MMap!#REF!*MMap!M315*$C$7 ->  | D60: 15 | E60: =MMap!Q315*MMap!M315*$C$7 -> 0 | G60: ComEconoMizer | O60: 1 | P60: SmComWX
A61: Demand Control Ventilation-Retro-Other | B61: Demand Control Ventilation-DCV Only-Other-GasHt-Vent-Retro | C61: =MMap!#REF!*MMap!M316*$C$7 ->  | D61: 15 | E61: =MMap!Q316*MMap!M316*$C$7 -> 0 | G61: ComEconoMizer | O61: 1 | P61: SmComWX
A62: Demand Control Ventilation-Retro-Large Off | B62: Demand Control Ventilation-DCV Only-Large Off-HtPmpHt-Vent-Retro | C62: =MMap!#REF!*MMap!M317*$C$7 ->  | D62: 15 | E62: =MMap!Q317*MMap!M317*$C$7 -> 61.66677176 | G62: ComEconoMizer | O62: 1 | P62: SmComWX
A63: Demand Control Ventilation-Retro-Medium Off | B63: Demand Control Ventilation-DCV Only-Medium Off-HtPmpHt-Vent-Retro | C63: =MMap!#REF!*MMap!M318*$C$7 ->  | D63: 15 | E63: =MMap!Q318*MMap!M318*$C$7 -> 60.25707142 | G63: ComEconoMizer | O63: 1 | P63: SmComWX
A64: Demand Control Ventilation-Retro-Small Off | B64: Demand Control Ventilation-DCV Only-Small Off-HtPmpHt-Vent-Retro | C64: =MMap!#REF!*MMap!M319*$C$7 ->  | D64: 15 | E64: =MMap!Q319*MMap!M319*$C$7 -> 35.80477915 | G64: ComEconoMizer | O64: 1 | P64: SmComWX
A65: Demand Control Ventilation-Retro-Big Box | B65: Demand Control Ventilation-DCV Only-Big Box-HtPmpHt-Vent-Retro | C65: =MMap!#REF!*MMap!M320*$C$7 ->  | D65: 15 | E65: =MMap!Q320*MMap!M320*$C$7 -> 32.50955066 | G65: ComEconoMizer | O65: 1 | P65: SmComWX
A66: Demand Control Ventilation-Retro-Small Box | B66: Demand Control Ventilation-DCV Only-Small Box-HtPmpHt-Vent-Retro | C66: =MMap!#REF!*MMap!M321*$C$7 ->  | D66: 15 | E66: =MMap!Q321*MMap!M321*$C$7 -> 36.41441121 | G66: ComEconoMizer | O66: 1 | P66: SmComWX
A67: Demand Control Ventilation-Retro-High End | B67: Demand Control Ventilation-DCV Only-High End-HtPmpHt-Vent-Retro | C67: =MMap!#REF!*MMap!M322*$C$7 ->  | D67: 15 | E67: =MMap!Q322*MMap!M322*$C$7 -> 61.56463845 | G67: ComEconoMizer | O67: 1 | P67: SmComWX
A68: Demand Control Ventilation-Retro-Anchor | B68: Demand Control Ventilation-DCV Only-Anchor-HtPmpHt-Vent-Retro | C68: =MMap!#REF!*MMap!M323*$C$7 ->  | D68: 15 | E68: =MMap!Q323*MMap!M323*$C$7 -> 25.56099627 | G68: ComEconoMizer | O68: 1 | P68: SmComWX
A69: Demand Control Ventilation-Retro-K-12 | B69: Demand Control Ventilation-DCV Only-K-12-HtPmpHt-Vent-Retro | C69: =MMap!#REF!*MMap!M324*$C$7 ->  | D69: 15 | E69: =MMap!Q324*MMap!M324*$C$7 -> 0 | G69: ComEconoMizer | O69: 1 | P69: SmComWX
A70: Demand Control Ventilation-Retro-University | B70: Demand Control Ventilation-DCV Only-University-HtPmpHt-Vent-Retro | C70: =MMap!#REF!*MMap!M325*$C$7 ->  | D70: 15 | E70: =MMap!Q325*MMap!M325*$C$7 -> 0 | G70: ComEconoMizer | O70: 1 | P70: SmComWX
A71: Demand Control Ventilation-Retro-Warehouse | B71: Demand Control Ventilation-DCV Only-Warehouse-HtPmpHt-Vent-Retro | C71: =MMap!#REF!*MMap!M326*$C$7 ->  | D71: 15 | E71: =MMap!Q326*MMap!M326*$C$7 -> 21.50487668 | G71: ComEconoMizer | O71: 1 | P71: SmComWX
A72: Demand Control Ventilation-Retro-Supermarket | B72: Demand Control Ventilation-DCV Only-Supermarket-HtPmpHt-Vent-Retro | C72: =MMap!#REF!*MMap!M327*$C$7 ->  | D72: 15 | E72: =MMap!Q327*MMap!M327*$C$7 -> 15.57245182 | G72: ComEconoMizer | O72: 1 | P72: SmComWX
A73: Demand Control Ventilation-Retro-MIniMart | B73: Demand Control Ventilation-DCV Only-MIniMart-HtPmpHt-Vent-Retro | C73: =MMap!#REF!*MMap!M328*$C$7 ->  | D73: 15 | E73: =MMap!Q328*MMap!M328*$C$7 -> 60.99524878 | G73: ComEconoMizer | O73: 1 | P73: SmComWX
A74: Demand Control Ventilation-Retro-Restaurant | B74: Demand Control Ventilation-DCV Only-Restaurant-HtPmpHt-Vent-Retro | C74: =MMap!#REF!*MMap!M329*$C$7 ->  | D74: 15 | E74: =MMap!Q329*MMap!M329*$C$7 -> 66.64638086 | G74: ComEconoMizer | O74: 1 | P74: SmComWX
A75: Demand Control Ventilation-Retro-Lodging | B75: Demand Control Ventilation-DCV Only-Lodging-HtPmpHt-Vent-Retro | C75: =MMap!#REF!*MMap!M330*$C$7 ->  | D75: 15 | E75: =MMap!Q330*MMap!M330*$C$7 -> 28.25696993 | G75: ComEconoMizer | O75: 1 | P75: SmComWX
A76: Demand Control Ventilation-Retro-Hospital | B76: Demand Control Ventilation-DCV Only-Hospital-HtPmpHt-Vent-Retro | C76: =MMap!#REF!*MMap!M331*$C$7 ->  | D76: 15 | E76: =MMap!Q331*MMap!M331*$C$7 -> 103.7081672 | G76: ComEconoMizer | O76: 1 | P76: SmComWX
A77: Demand Control Ventilation-Retro-OtherHealth | B77: Demand Control Ventilation-DCV Only-OtherHealth-HtPmpHt-Vent-Retro | C77: =MMap!#REF!*MMap!M332*$C$7 ->  | D77: 15 | E77: =MMap!Q332*MMap!M332*$C$7 -> 40.98231266 | G77: ComEconoMizer | O77: 1 | P77: SmComWX
A78: Demand Control Ventilation-Retro-Other | B78: Demand Control Ventilation-DCV Only-Other-HtPmpHt-Vent-Retro | C78: =MMap!#REF!*MMap!M333*$C$7 ->  | D78: 15 | E78: =MMap!Q333*MMap!M333*$C$7 -> 170.2275593 | G78: ComEconoMizer | O78: 1 | P78: SmComWX
A79: Demand Control Ventilation-Retro-Large Off | B79: Demand Control Ventilation-DCV Only-Large Off-HtPmpHt-Heat-Retro | C79: =MMap!#REF!*MMap!M334*$C$7 ->  | D79: 15 | E79: =MMap!Q334*MMap!M334*$C$7 -> 76.3663752 | G79: SmComHP | O79: 1 | P79: SmComWX
A80: Demand Control Ventilation-Retro-Medium Off | B80: Demand Control Ventilation-DCV Only-Medium Off-HtPmpHt-Heat-Retro | C80: =MMap!#REF!*MMap!M335*$C$7 ->  | D80: 15 | E80: =MMap!Q335*MMap!M335*$C$7 -> 0 | G80: SmComHP | O80: 1 | P80: SmComWX
A81: Demand Control Ventilation-Retro-Small Off | B81: Demand Control Ventilation-DCV Only-Small Off-HtPmpHt-Heat-Retro | C81: =MMap!#REF!*MMap!M336*$C$7 ->  | D81: 15 | E81: =MMap!Q336*MMap!M336*$C$7 -> 30.97645915 | G81: SmComHP | O81: 1 | P81: SmComWX
A82: Demand Control Ventilation-Retro-Big Box | B82: Demand Control Ventilation-DCV Only-Big Box-HtPmpHt-Heat-Retro | C82: =MMap!#REF!*MMap!M337*$C$7 ->  | D82: 15 | E82: =MMap!Q337*MMap!M337*$C$7 -> 40.01408782 | G82: SmComHP | O82: 1 | P82: SmComWX
A83: Demand Control Ventilation-Retro-Small Box | B83: Demand Control Ventilation-DCV Only-Small Box-HtPmpHt-Heat-Retro | C83: =MMap!#REF!*MMap!M338*$C$7 ->  | D83: 15 | E83: =MMap!Q338*MMap!M338*$C$7 -> 1.097891017 | G83: SmComHP | O83: 1 | P83: SmComWX
A84: Demand Control Ventilation-Retro-High End | B84: Demand Control Ventilation-DCV Only-High End-HtPmpHt-Heat-Retro | C84: =MMap!#REF!*MMap!M339*$C$7 ->  | D84: 15 | E84: =MMap!Q339*MMap!M339*$C$7 -> 0.2290224962 | G84: SmComHP | O84: 1 | P84: SmComWX
A85: Demand Control Ventilation-Retro-Anchor | B85: Demand Control Ventilation-DCV Only-Anchor-HtPmpHt-Heat-Retro | C85: =MMap!#REF!*MMap!M340*$C$7 ->  | D85: 15 | E85: =MMap!Q340*MMap!M340*$C$7 -> 5.328037556 | G85: SmComHP | O85: 1 | P85: SmComWX
A86: Demand Control Ventilation-Retro-K-12 | B86: Demand Control Ventilation-DCV Only-K-12-HtPmpHt-Heat-Retro | C86: =MMap!#REF!*MMap!M341*$C$7 ->  | D86: 15 | E86: =MMap!Q341*MMap!M341*$C$7 -> 7.189905347 | G86: SmComHP | O86: 1 | P86: SmComWX
A87: Demand Control Ventilation-Retro-University | B87: Demand Control Ventilation-DCV Only-University-HtPmpHt-Heat-Retro | C87: =MMap!#REF!*MMap!M342*$C$7 ->  | D87: 15 | E87: =MMap!Q342*MMap!M342*$C$7 -> 0 | G87: SmComHP | O87: 1 | P87: SmComWX
A88: Demand Control Ventilation-Retro-Warehouse | B88: Demand Control Ventilation-DCV Only-Warehouse-HtPmpHt-Heat-Retro | C88: =MMap!#REF!*MMap!M343*$C$7 ->  | D88: 15 | E88: =MMap!Q343*MMap!M343*$C$7 -> 0 | G88: SmComHP | O88: 1 | P88: SmComWX
A89: Demand Control Ventilation-Retro-Supermarket | B89: Demand Control Ventilation-DCV Only-Supermarket-HtPmpHt-Heat-Retro | C89: =MMap!#REF!*MMap!M344*$C$7 ->  | D89: 15 | E89: =MMap!Q344*MMap!M344*$C$7 -> 0.1438721443 | G89: SmComHP | O89: 1 | P89: SmComWX
A90: Demand Control Ventilation-Retro-MIniMart | B90: Demand Control Ventilation-DCV Only-MIniMart-HtPmpHt-Heat-Retro | C90: =MMap!#REF!*MMap!M345*$C$7 ->  | D90: 15 | E90: =MMap!Q345*MMap!M345*$C$7 -> 2.067637414 | G90: SmComHP | O90: 1 | P90: SmComWX
A91: Demand Control Ventilation-Retro-Restaurant | B91: Demand Control Ventilation-DCV Only-Restaurant-HtPmpHt-Heat-Retro | C91: =MMap!#REF!*MMap!M346*$C$7 ->  | D91: 15 | E91: =MMap!Q346*MMap!M346*$C$7 -> 1.108784377 | G91: SmComHP | O91: 1 | P91: SmComWX
A92: Demand Control Ventilation-Retro-Lodging | B92: Demand Control Ventilation-DCV Only-Lodging-HtPmpHt-Heat-Retro | C92: =MMap!#REF!*MMap!M347*$C$7 ->  | D92: 15 | E92: =MMap!Q347*MMap!M347*$C$7 -> 14.80436944 | G92: SmComHP | O92: 1 | P92: SmComWX
A93: Demand Control Ventilation-Retro-Hospital | B93: Demand Control Ventilation-DCV Only-Hospital-HtPmpHt-Heat-Retro | C93: =MMap!#REF!*MMap!M348*$C$7 ->  | D93: 15 | E93: =MMap!Q348*MMap!M348*$C$7 -> 34.41700872 | G93: SmComHP | O93: 1 | P93: SmComWX
A94: Demand Control Ventilation-Retro-OtherHealth | B94: Demand Control Ventilation-DCV Only-OtherHealth-HtPmpHt-Heat-Retro | C94: =MMap!#REF!*MMap!M349*$C$7 ->  | D94: 15 | E94: =MMap!Q349*MMap!M349*$C$7 -> 1.139650189 | G94: SmComHP | O94: 1 | P94: SmComWX
A95: Demand Control Ventilation-Retro-Other | B95: Demand Control Ventilation-DCV Only-Other-HtPmpHt-Heat-Retro | C95: =MMap!#REF!*MMap!M350*$C$7 ->  | D95: 15 | E95: =MMap!Q350*MMap!M350*$C$7 -> 25.7248972 | G95: SmComHP | O95: 1 | P95: SmComWX
A96: Demand Control Ventilation-Retro-Large Off | B96: Demand Control Ventilation-DOAS-Large Off-ElecHt-Vent-Retro | C96: =MMap!#REF!*MMap!M351*$C$7 ->  | D96: 15 | E96: =MMap!Q351*MMap!M351*$C$7 -> 25.25436452 | G96: SmComCAC | O96: 1 | P96: SmComWX
A97: Demand Control Ventilation-Retro-Medium Off | B97: Demand Control Ventilation-DOAS-Medium Off-ElecHt-Vent-Retro | C97: =MMap!#REF!*MMap!M352*$C$7 ->  | D97: 15 | E97: =MMap!Q352*MMap!M352*$C$7 -> 11.0373458 | G97: SmComCAC | O97: 1 | P97: SmComWX
A98: Demand Control Ventilation-Retro-Small Off | B98: Demand Control Ventilation-DOAS-Small Off-ElecHt-Vent-Retro | C98: =MMap!#REF!*MMap!M371*$C$7 ->  | D98: 15 | E98: =MMap!Q371*MMap!M371*$C$7 -> 0 | G98: SmComCAC | O98: 1 | P98: SmComWX
A99: Demand Control Ventilation-Retro-Big Box | B99: Demand Control Ventilation-DOAS-Big Box-ElecHt-Vent-Retro | C99: =MMap!#REF!*MMap!M372*$C$7 ->  | D99: 15 | E99: =MMap!Q372*MMap!M372*$C$7 -> 0 | G99: SmComCAC | O99: 1 | P99: SmComWX
A100: Demand Control Ventilation-Retro-Small Box | B100: Demand Control Ventilation-DOAS-Small Box-ElecHt-Vent-Retro | C100: =MMap!#REF!*MMap!M373*$C$7 ->  | D100: 15 | E100: =MMap!Q373*MMap!M373*$C$7 -> 0 | G100: SmComCAC | O100: 1 | P100: SmComWX
A101: Demand Control Ventilation-Retro-High End | B101: Demand Control Ventilation-DOAS-High End-ElecHt-Vent-Retro | C101: =MMap!#REF!*MMap!M374*$C$7 ->  | D101: 15 | E101: =MMap!Q374*MMap!M374*$C$7 -> 0 | G101: SmComCAC | O101: 1 | P101: SmComWX
A102: Demand Control Ventilation-Retro-Anchor | B102: Demand Control Ventilation-DOAS-Anchor-ElecHt-Vent-Retro | C102: =MMap!#REF!*MMap!M375*$C$7 ->  | D102: 15 | E102: =MMap!Q375*MMap!M375*$C$7 -> 0 | G102: SmComCAC | O102: 1 | P102: SmComWX
A103: Demand Control Ventilation-Retro-K-12 | B103: Demand Control Ventilation-DOAS-K-12-ElecHt-Vent-Retro | C103: =MMap!#REF!*MMap!M376*$C$7 ->  | D103: 15 | E103: =MMap!Q376*MMap!M376*$C$7 -> 0 | G103: SmComCAC | O103: 1 | P103: SmComWX
A104: Demand Control Ventilation-Retro-University | B104: Demand Control Ventilation-DOAS-University-ElecHt-Vent-Retro | C104: =MMap!#REF!*MMap!M377*$C$7 ->  | D104: 15 | E104: =MMap!Q377*MMap!M377*$C$7 -> 0 | G104: SmComCAC | O104: 1 | P104: SmComWX
A105: Demand Control Ventilation-Retro-Warehouse | B105: Demand Control Ventilation-DOAS-Warehouse-ElecHt-Vent-Retro | C105: =MMap!#REF!*MMap!M378*$C$7 ->  | D105: 15 | E105: =MMap!Q378*MMap!M378*$C$7 -> 0 | G105: SmComCAC | O105: 1 | P105: SmComWX
A106: Demand Control Ventilation-Retro-Supermarket | B106: Demand Control Ventilation-DOAS-Supermarket-ElecHt-Vent-Retro | C106: =MMap!#REF!*MMap!M379*$C$7 ->  | D106: 15 | E106: =MMap!Q379*MMap!M379*$C$7 -> 0 | G106: SmComCAC | O106: 1 | P106: SmComWX
A107: Demand Control Ventilation-Retro-MIniMart | B107: Demand Control Ventilation-DOAS-MIniMart-ElecHt-Vent-Retro | C107: =MMap!#REF!*MMap!M380*$C$7 ->  | D107: 15 | E107: =MMap!Q380*MMap!M380*$C$7 -> 0 | G107: SmComCAC | O107: 1 | P107: SmComWX
A108: Demand Control Ventilation-Retro-Restaurant | B108: Demand Control Ventilation-DOAS-Restaurant-ElecHt-Vent-Retro | C108: =MMap!#REF!*MMap!M381*$C$7 ->  | D108: 15 | E108: =MMap!Q381*MMap!M381*$C$7 -> 0 | G108: SmComCAC | O108: 1 | P108: SmComWX
A109: Demand Control Ventilation-Retro-Lodging | B109: Demand Control Ventilation-DOAS-Lodging-ElecHt-Vent-Retro | C109: =MMap!#REF!*MMap!M382*$C$7 ->  | D109: 15 | E109: =MMap!Q382*MMap!M382*$C$7 -> 0 | G109: SmComCAC | O109: 1 | P109: SmComWX
A110: Demand Control Ventilation-Retro-Hospital | B110: Demand Control Ventilation-DOAS-Hospital-ElecHt-Vent-Retro | C110: =MMap!#REF!*MMap!M383*$C$7 ->  | D110: 15 | E110: =MMap!Q383*MMap!M383*$C$7 -> 0 | G110: SmComCAC | O110: 1 | P110: SmComWX
A111: Demand Control Ventilation-Retro-OtherHealth | B111: Demand Control Ventilation-DOAS-OtherHealth-ElecHt-Vent-Retro | C111: =MMap!#REF!*MMap!M384*$C$7 ->  | D111: 15 | E111: =MMap!Q384*MMap!M384*$C$7 -> 0 | G111: SmComCAC | O111: 1 | P111: SmComWX
A112: Demand Control Ventilation-Retro-Other | B112: Demand Control Ventilation-DOAS-Other-ElecHt-Vent-Retro | C112: =MMap!#REF!*MMap!M385*$C$7 ->  | D112: 15 | E112: =MMap!Q385*MMap!M385*$C$7 -> 0 | G112: SmComCAC | O112: 1 | P112: SmComWX
A113: Demand Control Ventilation-Retro-Large Off | B113: Demand Control Ventilation-DOAS-Large Off-ElecHt-Heat-Retro | C113: =MMap!#REF!*MMap!M386*$C$7 ->  | D113: 15 | E113: =MMap!Q386*MMap!M386*$C$7 -> 0 | G113: ExCOMM | O113: 1 | P113: SmComWX
A114: Demand Control Ventilation-Retro-Medium Off | B114: Demand Control Ventilation-DOAS-Medium Off-ElecHt-Heat-Retro | C114: =MMap!#REF!*MMap!M387*$C$7 ->  | D114: 15 | E114: =MMap!Q387*MMap!M387*$C$7 -> 0 | G114: ExCOMM | O114: 1 | P114: SmComWX
A115: Demand Control Ventilation-Retro-Small Off | B115: Demand Control Ventilation-DOAS-Small Off-ElecHt-Heat-Retro | C115: =MMap!#REF!*MMap!M388*$C$7 ->  | D115: 15 | E115: =MMap!Q388*MMap!M388*$C$7 -> 0 | G115: ExCOMM | O115: 1 | P115: SmComWX
A116: Demand Control Ventilation-Retro-Big Box | B116: Demand Control Ventilation-DOAS-Big Box-ElecHt-Heat-Retro | C116: =MMap!#REF!*MMap!M389*$C$7 ->  | D116: 15 | E116: =MMap!Q389*MMap!M389*$C$7 -> 0 | G116: ExCOMM | O116: 1 | P116: SmComWX
A117: Demand Control Ventilation-Retro-Small Box | B117: Demand Control Ventilation-DOAS-Small Box-ElecHt-Heat-Retro | C117: =MMap!#REF!*MMap!M390*$C$7 ->  | D117: 15 | E117: =MMap!Q390*MMap!M390*$C$7 -> 0 | G117: ExCOMM | O117: 1 | P117: SmComWX
A118: Demand Control Ventilation-Retro-High End | B118: Demand Control Ventilation-DOAS-High End-ElecHt-Heat-Retro | C118: =MMap!#REF!*MMap!M391*$C$7 ->  | D118: 15 | E118: =MMap!Q391*MMap!M391*$C$7 -> 0 | G118: ExCOMM | O118: 1 | P118: SmComWX
A119: Demand Control Ventilation-Retro-Anchor | B119: Demand Control Ventilation-DOAS-Anchor-ElecHt-Heat-Retro | C119: =MMap!#REF!*MMap!M392*$C$7 ->  | D119: 15 | E119: =MMap!Q392*MMap!M392*$C$7 -> 26.21675263 | G119: ExCOMM | O119: 1 | P119: SmComWX
A120: Demand Control Ventilation-Retro-K-12 | B120: Demand Control Ventilation-DOAS-K-12-ElecHt-Heat-Retro | C120: =MMap!#REF!*MMap!M393*$C$7 ->  | D120: 15 | E120: =MMap!Q393*MMap!M393*$C$7 -> 3.515703831 | G120: ExCOMM | O120: 1 | P120: SmComWX
A121: Demand Control Ventilation-Retro-University | B121: Demand Control Ventilation-DOAS-University-ElecHt-Heat-Retro | C121: =MMap!#REF!*MMap!M394*$C$7 ->  | D121: 15 | E121: =MMap!Q394*MMap!M394*$C$7 -> 23.3686364 | G121: ExCOMM | O121: 1 | P121: SmComWX
A122: Demand Control Ventilation-Retro-Warehouse | B122: Demand Control Ventilation-DOAS-Warehouse-ElecHt-Heat-Retro | C122: =MMap!#REF!*MMap!M395*$C$7 ->  | D122: 15 | E122: =MMap!Q395*MMap!M395*$C$7 -> 31.5347409 | G122: ExCOMM | O122: 1 | P122: SmComWX
A123: Demand Control Ventilation-Retro-Supermarket | B123: Demand Control Ventilation-DOAS-Supermarket-ElecHt-Heat-Retro | C123: =MMap!#REF!*MMap!M396*$C$7 ->  | D123: 15 | E123: =MMap!Q396*MMap!M396*$C$7 -> 0 | G123: ExCOMM | O123: 1 | P123: SmComWX
A124: Demand Control Ventilation-Retro-MIniMart | B124: Demand Control Ventilation-DOAS-MIniMart-ElecHt-Heat-Retro | C124: =MMap!#REF!*MMap!M397*$C$7 ->  | D124: 15 | E124: =MMap!Q397*MMap!M397*$C$7 -> 0 | G124: ExCOMM | O124: 1 | P124: SmComWX
A125: Demand Control Ventilation-Retro-Restaurant | B125: Demand Control Ventilation-DOAS-Restaurant-ElecHt-Heat-Retro | C125: =MMap!#REF!*MMap!M398*$C$7 ->  | D125: 15 | E125: =MMap!Q398*MMap!M398*$C$7 -> 0 | G125: ExCOMM | O125: 1 | P125: SmComWX
A126: Demand Control Ventilation-Retro-Lodging | B126: Demand Control Ventilation-DOAS-Lodging-ElecHt-Heat-Retro | C126: =MMap!#REF!*MMap!M399*$C$7 ->  | D126: 15 | E126: =MMap!Q399*MMap!M399*$C$7 -> 18.11347137 | G126: ExCOMM | O126: 1 | P126: SmComWX
A127: Demand Control Ventilation-Retro-Hospital | B127: Demand Control Ventilation-DOAS-Hospital-ElecHt-Heat-Retro | C127: =MMap!#REF!*MMap!M400*$C$7 ->  | D127: 15 | E127: =MMap!Q400*MMap!M400*$C$7 -> 1.784106741 | G127: ExCOMM | O127: 1 | P127: SmComWX
A128: Demand Control Ventilation-Retro-OtherHealth | B128: Demand Control Ventilation-DOAS-OtherHealth-ElecHt-Heat-Retro | C128: =MMap!#REF!*MMap!M401*$C$7 ->  | D128: 15 | E128: =MMap!Q401*MMap!M401*$C$7 -> 6.460975866 | G128: ExCOMM | O128: 1 | P128: SmComWX
A129: Demand Control Ventilation-Retro-Other | B129: Demand Control Ventilation-DOAS-Other-ElecHt-Heat-Retro | C129: =MMap!#REF!*MMap!M402*$C$7 ->  | D129: 15 | E129: =MMap!Q402*MMap!M402*$C$7 -> 0 | G129: ExCOMM | O129: 1 | P129: SmComWX
A130: Demand Control Ventilation-Retro-Large Off | B130: Demand Control Ventilation-DOAS-Large Off-GasHt-Vent-Retro | C130: =MMap!#REF!*MMap!M403*$C$7 ->  | D130: 15 | E130: =MMap!Q403*MMap!M403*$C$7 -> 0 | G130: SmComCAC | O130: 1 | P130: SmComWX
A131: Demand Control Ventilation-Retro-Medium Off | B131: Demand Control Ventilation-DOAS-Medium Off-GasHt-Vent-Retro | C131: =MMap!#REF!*MMap!M404*$C$7 ->  | D131: 15 | E131: =MMap!Q404*MMap!M404*$C$7 -> 0 | G131: SmComCAC | O131: 1 | P131: SmComWX
A132: Demand Control Ventilation-Retro-Small Off | B132: Demand Control Ventilation-DOAS-Small Off-GasHt-Vent-Retro | C132: =MMap!#REF!*MMap!M405*$C$7 ->  | D132: 15 | E132: =MMap!Q405*MMap!M405*$C$7 -> 0 | G132: SmComCAC | O132: 1 | P132: SmComWX
A133: Demand Control Ventilation-Retro-Big Box | B133: Demand Control Ventilation-DOAS-Big Box-GasHt-Vent-Retro | C133: =MMap!#REF!*MMap!M406*$C$7 ->  | D133: 15 | E133: =MMap!Q406*MMap!M406*$C$7 -> 0 | G133: SmComCAC | O133: 1 | P133: SmComWX
A134: Demand Control Ventilation-Retro-Small Box | B134: Demand Control Ventilation-DOAS-Small Box-GasHt-Vent-Retro | C134: =MMap!#REF!*MMap!M407*$C$7 ->  | D134: 15 | E134: =MMap!Q407*MMap!M407*$C$7 -> 0 | G134: SmComCAC | O134: 1 | P134: SmComWX
A135: Demand Control Ventilation-Retro-High End | B135: Demand Control Ventilation-DOAS-High End-GasHt-Vent-Retro | C135: =MMap!#REF!*MMap!M408*$C$7 ->  | D135: 15 | E135: =MMap!Q408*MMap!M408*$C$7 -> 0 | G135: SmComCAC | O135: 1 | P135: SmComWX
A136: Demand Control Ventilation-Retro-Anchor | B136: Demand Control Ventilation-DOAS-Anchor-GasHt-Vent-Retro | C136: =MMap!#REF!*MMap!M409*$C$7 ->  | D136: 15 | E136: =MMap!Q409*MMap!M409*$C$7 -> 0 | G136: SmComCAC | O136: 1 | P136: SmComWX
A137: Demand Control Ventilation-Retro-K-12 | B137: Demand Control Ventilation-DOAS-K-12-GasHt-Vent-Retro | C137: =MMap!#REF!*MMap!M410*$C$7 ->  | D137: 15 | E137: =MMap!Q410*MMap!M410*$C$7 -> 0 | G137: SmComCAC | O137: 1 | P137: SmComWX
A138: Demand Control Ventilation-Retro-University | B138: Demand Control Ventilation-DOAS-University-GasHt-Vent-Retro | C138: =MMap!#REF!*MMap!M411*$C$7 ->  | D138: 15 | E138: =MMap!Q411*MMap!M411*$C$7 -> 0 | G138: SmComCAC | O138: 1 | P138: SmComWX
A139: Demand Control Ventilation-Retro-Warehouse | B139: Demand Control Ventilation-DOAS-Warehouse-GasHt-Vent-Retro | C139: =MMap!#REF!*MMap!M412*$C$7 ->  | D139: 15 | E139: =MMap!Q412*MMap!M412*$C$7 -> 0 | G139: SmComCAC | O139: 1 | P139: SmComWX
A140: Demand Control Ventilation-Retro-Supermarket | B140: Demand Control Ventilation-DOAS-Supermarket-GasHt-Vent-Retro | C140: =MMap!#REF!*MMap!M413*$C$7 ->  | D140: 15 | E140: =MMap!Q413*MMap!M413*$C$7 -> 0 | G140: SmComCAC | O140: 1 | P140: SmComWX
A141: Demand Control Ventilation-Retro-MIniMart | B141: Demand Control Ventilation-DOAS-MIniMart-GasHt-Vent-Retro | C141: =MMap!#REF!*MMap!M414*$C$7 ->  | D141: 15 | E141: =MMap!Q414*MMap!M414*$C$7 -> 0 | G141: SmComCAC | O141: 1 | P141: SmComWX
A142: Demand Control Ventilation-Retro-Restaurant | B142: Demand Control Ventilation-DOAS-Restaurant-GasHt-Vent-Retro | C142: =MMap!#REF!*MMap!M415*$C$7 ->  | D142: 15 | E142: =MMap!Q415*MMap!M415*$C$7 -> 0 | G142: SmComCAC | O142: 1 | P142: SmComWX
A143: Demand Control Ventilation-Retro-Lodging | B143: Demand Control Ventilation-DOAS-Lodging-GasHt-Vent-Retro | C143: =MMap!#REF!*MMap!M416*$C$7 ->  | D143: 15 | E143: =MMap!Q416*MMap!M416*$C$7 -> 0 | G143: SmComCAC | O143: 1 | P143: SmComWX
A144: Demand Control Ventilation-Retro-Hospital | B144: Demand Control Ventilation-DOAS-Hospital-GasHt-Vent-Retro | C144: =MMap!#REF!*MMap!M417*$C$7 ->  | D144: 15 | E144: =MMap!Q417*MMap!M417*$C$7 -> 0 | G144: SmComCAC | O144: 1 | P144: SmComWX
A145: Demand Control Ventilation-Retro-OtherHealth | B145: Demand Control Ventilation-DOAS-OtherHealth-GasHt-Vent-Retro | C145: =MMap!#REF!*MMap!M418*$C$7 ->  | D145: 15 | E145: =MMap!Q418*MMap!M418*$C$7 -> 0 | G145: SmComCAC | O145: 1 | P145: SmComWX
A146: Demand Control Ventilation-Retro-Other | B146: Demand Control Ventilation-DOAS-Other-GasHt-Vent-Retro | C146: =MMap!#REF!*MMap!M419*$C$7 ->  | D146: 15 | E146: =MMap!Q419*MMap!M419*$C$7 -> 0 | G146: SmComCAC | O146: 1 | P146: SmComWX
A147: Demand Control Ventilation-Retro-Large Off | B147: Demand Control Ventilation-DOAS-Large Off-HtPmpHt-Vent-Retro | C147: =MMap!#REF!*MMap!M420*$C$7 ->  | D147: 15 | E147: =MMap!Q420*MMap!M420*$C$7 -> 0 | G147: SmComHP | O147: 1 | P147: SmComWX
A148: Demand Control Ventilation-Retro-Medium Off | B148: Demand Control Ventilation-DOAS-Medium Off-HtPmpHt-Vent-Retro | C148: =MMap!#REF!*MMap!M421*$C$7 ->  | D148: 15 | E148: =MMap!Q421*MMap!M421*$C$7 -> 0 | G148: SmComHP | O148: 1 | P148: SmComWX
A149: Demand Control Ventilation-Retro-Small Off | B149: Demand Control Ventilation-DOAS-Small Off-HtPmpHt-Vent-Retro | C149: =MMap!#REF!*MMap!M422*$C$7 ->  | D149: 15 | E149: =MMap!Q422*MMap!M422*$C$7 -> 0 | G149: SmComHP | O149: 1 | P149: SmComWX
A150: Demand Control Ventilation-Retro-Big Box | B150: Demand Control Ventilation-DOAS-Big Box-HtPmpHt-Vent-Retro | C150: =MMap!#REF!*MMap!M423*$C$7 ->  | D150: 15 | E150: =MMap!Q423*MMap!M423*$C$7 -> 0 | G150: SmComHP | O150: 1 | P150: SmComWX
A151: Demand Control Ventilation-Retro-Small Box | B151: Demand Control Ventilation-DOAS-Small Box-HtPmpHt-Vent-Retro | C151: =MMap!#REF!*MMap!M424*$C$7 ->  | D151: 15 | E151: =MMap!Q424*MMap!M424*$C$7 -> 0 | G151: SmComHP | O151: 1 | P151: SmComWX
A152: Demand Control Ventilation-Retro-High End | B152: Demand Control Ventilation-DOAS-High End-HtPmpHt-Vent-Retro | C152: =MMap!#REF!*MMap!M425*$C$7 ->  | D152: 15 | E152: =MMap!Q425*MMap!M425*$C$7 -> 0 | G152: SmComHP | O152: 1 | P152: SmComWX
A153: Demand Control Ventilation-Retro-Anchor | B153: Demand Control Ventilation-DOAS-Anchor-HtPmpHt-Vent-Retro | C153: =MMap!#REF!*MMap!M426*$C$7 ->  | D153: 15 | E153: =MMap!Q426*MMap!M426*$C$7 -> 0 | G153: SmComHP | O153: 1 | P153: SmComWX
A154: Demand Control Ventilation-Retro-K-12 | B154: Demand Control Ventilation-DOAS-K-12-HtPmpHt-Vent-Retro | C154: =MMap!#REF!*MMap!M427*$C$7 ->  | D154: 15 | E154: =MMap!Q427*MMap!M427*$C$7 -> 0 | G154: SmComHP | O154: 1 | P154: SmComWX
A155: Demand Control Ventilation-Retro-University | B155: Demand Control Ventilation-DOAS-University-HtPmpHt-Vent-Retro | C155: =MMap!#REF!*MMap!M428*$C$7 ->  | D155: 15 | E155: =MMap!Q428*MMap!M428*$C$7 -> 453.1731333 | G155: SmComHP | O155: 1 | P155: SmComWX
A156: Demand Control Ventilation-Retro-Warehouse | B156: Demand Control Ventilation-DOAS-Warehouse-HtPmpHt-Vent-Retro | C156: =MMap!#REF!*MMap!M429*$C$7 ->  | D156: 15 | E156: =MMap!Q429*MMap!M429*$C$7 -> 326.3179422 | G156: SmComHP | O156: 1 | P156: SmComWX
A157: Demand Control Ventilation-Retro-Supermarket | B157: Demand Control Ventilation-DOAS-Supermarket-HtPmpHt-Vent-Retro | C157: =MMap!#REF!*MMap!M430*$C$7 ->  | D157: 15 | E157: =MMap!Q430*MMap!M430*$C$7 -> 157.6271235 | G157: SmComHP | O157: 1 | P157: SmComWX
A158: Demand Control Ventilation-Retro-MIniMart | B158: Demand Control Ventilation-DOAS-MIniMart-HtPmpHt-Vent-Retro | C158: =MMap!#REF!*MMap!M431*$C$7 ->  | D158: 15 | E158: =MMap!Q431*MMap!M431*$C$7 -> 65.44513893 | G158: SmComHP | O158: 1 | P158: SmComWX
A159: Demand Control Ventilation-Retro-Restaurant | B159: Demand Control Ventilation-DOAS-Restaurant-HtPmpHt-Vent-Retro | C159: =MMap!#REF!*MMap!M432*$C$7 ->  | D159: 15 | E159: =MMap!Q432*MMap!M432*$C$7 -> 0 | G159: SmComHP | O159: 1 | P159: SmComWX
A160: Demand Control Ventilation-Retro-Lodging | B160: Demand Control Ventilation-DOAS-Lodging-HtPmpHt-Vent-Retro | C160: =MMap!#REF!*MMap!M433*$C$7 ->  | D160: 15 | E160: =MMap!Q433*MMap!M433*$C$7 -> 0 | G160: SmComHP | O160: 1 | P160: SmComWX
A161: Demand Control Ventilation-Retro-Hospital | B161: Demand Control Ventilation-DOAS-Hospital-HtPmpHt-Vent-Retro | C161: =MMap!#REF!*MMap!M434*$C$7 ->  | D161: 15 | E161: =MMap!Q434*MMap!M434*$C$7 -> 0 | G161: SmComHP | O161: 1 | P161: SmComWX
A162: Demand Control Ventilation-Retro-OtherHealth | B162: Demand Control Ventilation-DOAS-OtherHealth-HtPmpHt-Vent-Retro | C162: =MMap!#REF!*MMap!M435*$C$7 ->  | D162: 15 | E162: =MMap!Q435*MMap!M435*$C$7 -> 217.0751868 | G162: SmComHP | O162: 1 | P162: SmComWX
A163: Demand Control Ventilation-Retro-Other | B163: Demand Control Ventilation-DOAS-Other-HtPmpHt-Vent-Retro | C163: =MMap!#REF!*MMap!M436*$C$7 ->  | D163: 15 | E163: =MMap!Q436*MMap!M436*$C$7 -> 156.1692858 | G163: SmComHP | O163: 1 | P163: SmComWX
A164: Demand Control Ventilation-Retro-Large Off | B164: Demand Control Ventilation-DOAS-Large Off-HtPmpHt-Heat-Retro | C164: =MMap!#REF!*MMap!M437*$C$7 ->  | D164: 15 | E164: =MMap!Q437*MMap!M437*$C$7 -> 170.6381711 | G164: SmComHP | O164: 1 | P164: SmComWX
A165: Demand Control Ventilation-Retro-Medium Off | B165: Demand Control Ventilation-DOAS-Medium Off-HtPmpHt-Heat-Retro | C165: =MMap!#REF!*MMap!M438*$C$7 ->  | D165: 15 | E165: =MMap!Q438*MMap!M438*$C$7 -> 0 | G165: SmComHP | O165: 1 | P165: SmComWX
A166: Demand Control Ventilation-Retro-Small Off | B166: Demand Control Ventilation-DOAS-Small Off-HtPmpHt-Heat-Retro | C166: =MMap!#REF!*MMap!M439*$C$7 ->  | D166: 15 | E166: =MMap!Q439*MMap!M439*$C$7 -> 0 | G166: SmComHP | O166: 1 | P166: SmComWX
A167: Demand Control Ventilation-Retro-Big Box | B167: Demand Control Ventilation-DOAS-Big Box-HtPmpHt-Heat-Retro | C167: =MMap!#REF!*MMap!M440*$C$7 ->  | D167: 15 | E167: =MMap!Q440*MMap!M440*$C$7 -> 0 | G167: SmComHP | O167: 1 | P167: SmComWX
A168: Demand Control Ventilation-Retro-Small Box | B168: Demand Control Ventilation-DOAS-Small Box-HtPmpHt-Heat-Retro | C168: =MMap!#REF!*MMap!M441*$C$7 ->  | D168: 15 | E168: =MMap!Q441*MMap!M441*$C$7 -> 0 | G168: SmComHP | O168: 1 | P168: SmComWX
A169: Demand Control Ventilation-Retro-High End | B169: Demand Control Ventilation-DOAS-High End-HtPmpHt-Heat-Retro | C169: =MMap!#REF!*MMap!M442*$C$7 ->  | D169: 15 | E169: =MMap!Q442*MMap!M442*$C$7 -> 0 | G169: SmComHP | O169: 1 | P169: SmComWX
A170: Demand Control Ventilation-Retro-Anchor | B170: Demand Control Ventilation-DOAS-Anchor-HtPmpHt-Heat-Retro | C170: =MMap!#REF!*MMap!M443*$C$7 ->  | D170: 15 | E170: =MMap!Q443*MMap!M443*$C$7 -> 0 | G170: SmComHP | O170: 1 | P170: SmComWX
A171: Demand Control Ventilation-Retro-K-12 | B171: Demand Control Ventilation-DOAS-K-12-HtPmpHt-Heat-Retro | C171: =MMap!#REF!*MMap!M444*$C$7 ->  | D171: 15 | E171: =MMap!Q444*MMap!M444*$C$7 -> 0 | G171: SmComHP | O171: 1 | P171: SmComWX
A172: Demand Control Ventilation-Retro-University | B172: Demand Control Ventilation-DOAS-University-HtPmpHt-Heat-Retro | C172: =MMap!#REF!*MMap!M445*$C$7 ->  | D172: 15 | E172: =MMap!Q445*MMap!M445*$C$7 -> 0 | G172: SmComHP | O172: 1 | P172: SmComWX
A173: Demand Control Ventilation-Retro-Warehouse | B173: Demand Control Ventilation-DOAS-Warehouse-HtPmpHt-Heat-Retro | C173: =MMap!#REF!*MMap!M446*$C$7 ->  | D173: 15 | E173: =MMap!Q446*MMap!M446*$C$7 -> 15.30426296 | G173: SmComHP | O173: 1 | P173: SmComWX
A174: Demand Control Ventilation-Retro-Supermarket | B174: Demand Control Ventilation-DOAS-Supermarket-HtPmpHt-Heat-Retro | C174: =MMap!#REF!*MMap!M447*$C$7 ->  | D174: 15 | E174: =MMap!Q447*MMap!M447*$C$7 -> 2.05232344 | G174: SmComHP | O174: 1 | P174: SmComWX
A175: Demand Control Ventilation-Retro-MIniMart | B175: Demand Control Ventilation-DOAS-MIniMart-HtPmpHt-Heat-Retro | C175: =MMap!#REF!*MMap!M448*$C$7 ->  | D175: 15 | E175: =MMap!Q448*MMap!M448*$C$7 -> 13.64164974 | G175: SmComHP | O175: 1 | P175: SmComWX
A176: Demand Control Ventilation-Retro-Restaurant | B176: Demand Control Ventilation-DOAS-Restaurant-HtPmpHt-Heat-Retro | C176: =MMap!#REF!*MMap!M449*$C$7 ->  | D176: 15 | E176: =MMap!Q449*MMap!M449*$C$7 -> 18.40868601 | G176: SmComHP | O176: 1 | P176: SmComWX
A177: Demand Control Ventilation-Retro-Lodging | B177: Demand Control Ventilation-DOAS-Lodging-HtPmpHt-Heat-Retro | C177: =MMap!#REF!*MMap!M450*$C$7 ->  | D177: 15 | E177: =MMap!Q450*MMap!M450*$C$7 -> 0 | G177: SmComHP | O177: 1 | P177: SmComWX
A178: Demand Control Ventilation-Retro-Hospital | B178: Demand Control Ventilation-DOAS-Hospital-HtPmpHt-Heat-Retro | C178: =MMap!#REF!*MMap!M451*$C$7 ->  | D178: 15 | E178: =MMap!Q451*MMap!M451*$C$7 -> 0 | G178: SmComHP | O178: 1 | P178: SmComWX
A179: Demand Control Ventilation-Retro-OtherHealth | B179: Demand Control Ventilation-DOAS-OtherHealth-HtPmpHt-Heat-Retro | C179: =MMap!#REF!*MMap!M452*$C$7 ->  | D179: 15 | E179: =MMap!Q452*MMap!M452*$C$7 -> 0 | G179: SmComHP | O179: 1 | P179: SmComWX
A180: =[6]MMap!D180 -> Demand Control Ventilation-New-Other | B180: =[6]MMap!A180 -> Demand Control Ventilation-DOAS-Other-HtPmpHt-Heat-New | C180: =MMap!#REF!*MMap!M453*$C$7 ->  | D180: 15 | E180: =MMap!Q453*MMap!M453*$C$7 -> 28.82222935 | G180: SmComHP | O180: 1 | P180: SmComWX
A184: ProCost Results
A185: Version: | B185: ProCost 2.3 - Build 257e
A186: Run Time: | B186: Saturday, 28 November , 2009 at 3:04 PM
A188: Regurgitation of ProData input parameters which were used for this run
B189: Run Parameters | G189: Marginal Cost & Conservation Load Shape Parameters | Q189: Sponsor Parameters | Y189: Program Parameters | AB189: Program | AD189: Utility System Parameters | AH189: Electric | AI189: Gas
B190: Run Type | D190: TRUE | E190: FALSE | G190: Marginal Costs and Savings Shape File | K190: Q:\CG\Main\ProCostGas\MC files\MC_AND_LOADSHAPE_6P.XLS | T190: Customer | U190: Wholesale Elec | V190: Retail Elec | W190: Nat Gas | Y190: Program Life (yrs) | AB190: 20 | AD190: Bulk System T&D Loss Factor by Time Segment | AH190: WECCTrans | AI190: Flat1.0
B191: Negative B/C Ratios | D191: TRUE | E191: FALSE | G191: Marginal Elec Avoided Cost Input Worksheet | K191: 6P MidC Final | Q191: Real After-Tax Cost of Capital | T191: 0.067 | U191: 0.044 | V191: 0.049 | W191: 0.05 | Y191: Program Start Date | AB191: 2010 | AD191: Bulk System T&D Credit ($/kw-yr)($/dailytherm-yr) | AH191: 0 | AI191: 0
B192: Admin Cost @ Category Level | D192: FALSE | E192: TRUE | G192: Elec Savings Shape Input Worksheet | K192: Conservation Load Shapes | Q192: Financial Life (years) | T192: 20 | U192: 1 | V192: 1 | W192: 1 | Y192: Present Value Time Zero | AB192: 2010 | AD192: Local System Dist Loss Factor by Time Segment | AH192: Flat5.0 | AI192: NoLoss
B193: Repeat Periodic Replacement | D193: FALSE | E193: TRUE | G193: Marginal Gas Avoided Cost Input Worksheet | K193: 6P_Gas_Final | T193: Customer | U193: Wholesale Elec | V193: Retail Elec | W193: Nat Gas | Y193: Input Cost Reference Year | AB193: 2006 | AD193: Local System Dist Credit ($/kw-yr)($/dailytherm-yr) | AH193: 23 | AI193: 0
G194: Gas Savings Shape Input Worksheet | K194: Conservation Load Shapes | Q194: Sponsor Share of Initial Capital Cost | T194: 0.35 | U194: 0.1 | V194: 0.55 | W194: 0 | Y194: Real Discount Rate | AB194: 0.05 | AD194: Risk-Mitigation Credit (mills/kWh)(mills/therm) | AH194: 0 | AI194: 0
B195: Run Type: | C195: Electric | G195: Marginal Elec CO2 per kWh Input Worksheet | K195: 6P CO2 lbs per kWh HCap | Q195: Sponsor Share of Annual O&M | T195: 1 | U195: 0 | V195: 0 | W195: 0 | Y195: Capital Real Escalation Rate | AB195: 0
B196: Negative B/C Ratios: | C196: False: (Converts Negative B/C Ratios) | G196: Marginal Gas CO2 per therm Input Worksheet | K196: CO2 lbs per therm | Q196: Sponsor Share of Periodic Replacement Cost | T196: 1 | U196: 0 | V196: 0 | W196: 0 | Y196: Admin Cost (As % of Initial Capital Cost) | AB196: 0.2
B197: Admin Cost / Category Level: | C197: True: Admin Costs added at Category Results | G197: Marginal Avoided Cost CO2 Input Worksheet | K197: Zero Dollars per ton CO2 | Q197: Sponsor Share of Admin Cost | U197: 0.5 | V197: 0.5 | W197: 0 | Y197: Regional Act Conservation Credit (%) | AB197: 0.1
B198: Periodic O&M Treatment: | C198: True: (Periodic O&M Repeats over measure life) | G198: Line Loss Shape Input Worksheet | K198: LineLossShapes | Q198: Last Year of non-Customer O&M & Period Repl | U198: 20 | Y198: Report Annual Carbon Saved for Year | AB198: 2020
A206: Measure Results; Sorted in same order as input
A207: Total Results | C207: Measure Input Data | L207: Savings | R207: PV Capital | V207: PV Admin | Z207: PV O&M | AD207: PV Periodic Repl. | AH207: Total PV Capital, O&M and Periodic Repl Costs | AM207: PV Wholesale Electric Utility Costs & Benefits | AT207: PV Retail Electric Utility Costs & Benefits | BA207: PV Electric Utility System Costs & Benefits | BG207: Electric Utility System Economics | BI207: Sponsor Levelized Cost (mills/kwh) | BN207: PV Regional Costs & Benefits | CD207: TRC Economics | CF207: Physical CO2 | CM207: Gas Inputs | CQ207: PV Gas Utility System Costs & Benefits | CV207: Gas Utility System Economics
A208: Category | B208: Measure | C208: Measure Life | D208: Site Savings (kWh) | E208: Site Savings (therms) | F208: Capital Cost ($/unit) | G208: Annual O&M Cost ($/unit) | H208: PV Per. Repl. Cost ($/unit) | I208: Load Shape (electric) | J208: Diversified Load Factor (electric) | K208: Wholesale Power Coincidence Factor (electric) | L208: Wholesale Electric Energy (kWh) | M208: Wholesale Electric Demand (kw) | N208: Retail Electric Demand (kW) | O208: Wholesale Gas Energy (therms/yr) | P208: Wholesale Gas Demand (therms/day) | Q208: Retail Gas Demand (therms/day) | R208: Wholesale Electric | S208: Retail Electric | T208: Natural Gas | U208: Customer | V208: Wholesale Electric | W208: Retail Electric | X208: Natural Gas | Y208: Customer | Z208: Wholesale Electric | AA208: Retail Electric | AB208: Natural Gas | AC208: Customer | AD208: Wholesale Electric | AE208: Retail Electric | AF208: Natural Gas | AG208: Customer | AH208: Wholesale Electric | AI208: Retail Electric | AJ208: Natural Gas | AK208: Customer | AL208: Total | AM208: Wholesale Utility System Energy | AN208: Wholesale Utility System T&D Def. Cap. | AO208: Wholesale Utility System Act C-E Credit | AP208: Wholesale Utility System Risk Mitigation Benefit | AQ208: Wholesale Utility System Total System Benefit | AR208: Wholesale Utility System Total Non-Consumer Cost | AS208: Wholesale Utility System B/C Ratio | AT208: Retail Utility System Energy | AU208: Retail Utility System T&D Def. Cap. | AV208: Retail Utility System Act C-E Credit | AW208: Retail Utility System Risk Mitigation Benefit | AX208: Retail Utility System Total System Benefit | AY208: Retail Utility System Total Non-Consumer Cost | AZ208: Retail Utility System System B/C Ratio | BA208: Utility System Energy | BB208: Utility System T&D Def. Cap. | BC208: Utility System Act C-E Credit | BD208: Utility System Total Risk Mitigation Benefit | BE208: Utility System Total System Benefit | BF208: Utility System Total Non-Consumer Cost | BG208: Utility System Net Levelized Cost (Net of Elec T&D Capacity Benefits, Act Credit & Risk-Mitigation Benefit) in mills/kwh | BH208: Utility System System B/C Ratio | BI208: Wholesale Electric Levelized Cost | BJ208: Retail Electric Levelized Cost | BK208: Natural Gas Levelized Cost | BL208: Customer Levelized Cost | BM208: Total Levelized Cost | BN208: PV Regional Electric Energy | BO208: PV Regional Gas Energy | BP208: PV Regional Electric T&D Def. Cap. | BQ208: PV Regional Gas T&D Def. Cap. | BR208: PV Regional Electric System CO2 | BS208: PV Regional Gas System CO2 | BT208: PV Regional Electric System Risk-Mitigation Benefit | BU208: PV Regional Gas System Risk-Mitigation Benefit | BV208: PV Regional Non-E Value | BW208: PV Regional Act Credit | BX208: PV Regional Capital Cost | BY208: PV Regional Admin Cost | BZ208: PV Regional Annual O&M Cost | CA208: PV Regional Periodic Replacement Cost | CB208: PV Total Regional Benefit | CC208: PV Total Regional Cost | CD208: TRC B/C Ratio | CE208: TRC Net Levelized Cost (Net of All Benefits) in mills/kWh | CF208: Electric System CO2 Avoided (Lifetime Tons) | CG208: Gas System CO2 Avoided (Lifetime Tons) | CH208: Total System CO2 Avoided (Lifetime Tons) | CI208: Electric System CO2 Avoided (Annual Tons in 2020) | CJ208: Gas System CO2 Avoided (Annual Tons in 2020) | CK208: Total System CO2 Avoided (Annual Tons in 2020) | CM208: Gas Site Savings (therms) | CN208: Load Shape (gas) | CO208: Diversitfied Load Factor (gas) | CP208: Wholesale Coincidence Factor (gas) | CQ208: Total Gas Utility System Energy | CR208: Gas Utility System T&D Def. Cap. | CS208: Gas Utility System Risk Mitigation Benefit | CT208: Gas Utility System Total System Benefit | CU208: Gas Utility System Total Non-Consumer Cost | CV208: Gas Utility System Net Levelized Cost (Net of Gas T&D Capacity Benefits & Risk-Mitigation Benefits) in cents/therm | CW208: Gas Utility System System B/C Ratio
A209: Demand Control Ventilation-New-Large Off | B209: Demand Control Ventilation-DCV Only-Large Off-ElecHt-Vent-New | C209: 15 | D209: 0.20664 | E209: 0 | F209: 5.4667 | G209: 0 | H209: 0 | I209: ComEconoMizer | J209: 0.400000006 | K209: 0.00661157025 | L209: 0.2251649193 | M209: 4.248555001e-07 | N209: 6.4259395e-05 | O209: 0 | P209: 0 | Q209: 0 | R209: 0.5435461998 | S209: 3.003821611 | T209: 0 | U209: 3.458863258 | V209: (na) | W209: (na) | X209: (na) | Y209: (na) | Z209: 0 | AA209: 0 | AB209: 0 | AC209: 0 | AD209: 0 | AE209: 0 | AF209: 0 | AG209: 0 | AH209: 0.5435461998 | AI209: 3.003821611 | AJ209: 0 | AK209: 3.458863258 | AL209: 7.00623107 | AM209: 0.1181765066 | AN209: 0 | AO209: 0.01181765087 | AP209: 0 | AQ209: 0.129994154 | AR209: 0.5435461998 | AS209: 0.2391593529 | AT209: 0.1181765066 | AU209: 0.01841873117 | AV209: 0.0136595238 | AW209: 0 | AX209: 0.1502547562 | AY209: 3.003821611 | AZ209: 0.05002119998 | BA209: 0.1181765066 | BB209: 0.01841873117 | BC209: 0.0136595238 | BD209: 0 | BE209: 0.1502547562 | BF209: 3.547367811 | BG209: 1252.752563 | BH209: 0.0423566908 | BI209: 193.7049255 | BJ209: 1070.47937 | BK209: 0 | BL209: 1232.643799 | BM209: 2496.828125 | BN209: 0.1181765066 | BO209: 0 | BP209: 0.01841873117 | BQ209: 0 | BR209: 0 | BS209: 0 | BT209: 0 | BU209: 0 | BV209: 0 | BW209: 0.0136595238 | BX209: 7.006231308 | BZ209: 0 | CA209: 0 | CB209: 0.1502547562 | CC209: 7.006231308 | CD209: 0.0214458751 | CE209: 2485.39624 | CF209: 0.001653978777 | CG209: 0 | CH209: 0.001653978777 | CI209: 7.989370784e-05 | CJ209: 0 | CK209: 7.989370784e-05 | CM209: 0 | CN209: SmComWX | CO209: 0 | CP209: 0 | CQ209: 0 | CR209: 0 | CS209: 0 | CT209: 0 | CU209: 0 | CV209: 9999 | CW209: 9999
A210: Demand Control Ventilation-New-Medium Off | B210: Demand Control Ventilation-DCV Only-Medium Off-ElecHt-Vent-New | C210: 15 | D210: 0.2268 | E210: 0 | F210: 6 | G210: 0 | H210: 0 | I210: ComEconoMizer | J210: 0.400000006 | K210: 0.00661157025 | L210: 0.2471322285 | M210: 4.663047832e-07 | N210: 7.052860019e-05 | O210: 0 | P210: 0 | Q210: 0 | R210: 0.5965714455 | S210: 3.296857357 | T210: 0 | U210: 3.796290398 | V210: (na) | W210: (na) | X210: (na) | Y210: (na) | Z210: 0 | AA210: 0 | AB210: 0 | AC210: 0 | AD210: 0 | AE210: 0 | AF210: 0 | AG210: 0 | AH210: 0.5965714455 | AI210: 3.296857357 | AJ210: 0 | AK210: 3.796290398 | AL210: 7.6897192 | AM210: 0.1297059218 | AN210: 0 | AO210: 0.01297059283 | AP210: 0 | AQ210: 0.1426765174 | AR210: 0.5965714455 | AS210: 0.2391608176 | AT210: 0.1297059218 | AU210: 0.02021567896 | AV210: 0.01499216072 | AW210: 0 | AX210: 0.1649137586 | AY210: 3.296857357 | AZ210: 0.05002150341 | BA210: 0.1297059218 | BB210: 0.02021567896 | BC210: 0.01499216072 | BD210: 0 | BE210: 0.1649137586 | BF210: 3.893428802 | BG210: 1252.744873 | BH210: 0.04235694805 | BI210: 193.7037354 | BJ210: 1070.4729 | BK210: 0 | BL210: 1232.63623 | BM210: 2496.812988 | BN210: 0.1297059218 | BO210: 0 | BP210: 0.02021567896 | BQ210: 0 | BR210: 0 | BS210: 0 | BT210: 0 | BU210: 0 | BV210: 0 | BW210: 0.01499216072 | BX210: 7.6897192 | BZ210: 0 | CA210: 0 | CB210: 0.1649137586 | CC210: 7.6897192 | CD210: 0.02144600567 | CE210: 2485.381104 | CF210: 0.00181534256 | CG210: 0 | CH210: 0.00181534256 | CI210: 8.768821592e-05 | CJ210: 0 | CK210: 8.768821592e-05 | CM210: 0 | CN210: SmComWX | CO210: 0 | CP210: 0 | CQ210: 0 | CR210: 0 | CS210: 0 | CT210: 0 | CU210: 0 | CV210: 9999 | CW210: 9999
A211: Demand Control Ventilation-New-Small Off | B211: Demand Control Ventilation-DCV Only-Small Off-ElecHt-Vent-New | C211: 15 | D211: 0.2394 | E211: 0 | F211: 6.3333 | G211: 0 | H211: 0 | I211: ComEconoMizer | J211: 0.400000006 | K211: 0.00661157025 | L211: 0.2608617968 | M211: 4.922106314e-07 | N211: 7.444685616e-05 | O211: 0 | P211: 0 | Q211: 0 | R211: 0.6297109723 | S211: 3.479997635 | T211: 0 | U211: 4.007174492 | V211: (na) | W211: (na) | X211: (na) | Y211: (na) | Z211: 0 | AA211: 0 | AB211: 0 | AC211: 0 | AD211: 0 | AE211: 0 | AF211: 0 | AG211: 0 | AH211: 0.6297109723 | AI211: 3.479997635 | AJ211: 0 | AK211: 4.007174492 | AL211: 8.116883099 | AM211: 0.1369118064 | AN211: 0 | AO211: 0.01369118039 | AP211: 0 | AQ211: 0.1506029814 | AR211: 0.6297109723 | AS211: 0.2391620813 | AT211: 0.1369118064 | AU211: 0.02133877203 | AV211: 0.0158250574 | AW211: 0 | AX211: 0.1740756333 | AY211: 3.479997635 | AZ211: 0.05002176843 | BA211: 0.1369118064 | BB211: 0.02133877203 | BC211: 0.0158250574 | BD211: 0 | BE211: 0.1740756333 | BF211: 4.109708786 | BG211: 1252.738159 | BH211: 0.04235717236 | BI211: 193.702713 | BJ211: 1070.467163 | BK211: 0 | BL211: 1232.629883 | BM211: 2496.799805 | BN211: 0.1369118064 | BO211: 0 | BP211: 0.02133877203 | BQ211: 0 | BR211: 0 | BS211: 0 | BT211: 0 | BU211: 0 | BV211: 0 | BW211: 0.0158250574 | BX211: 8.116883278 | BZ211: 0 | CA211: 0 | CB211: 0.1740756333 | CC211: 8.116883278 | CD211: 0.02144611791 | CE211: 2485.368164 | CF211: 0.001916194925 | CG211: 0 | CH211: 0.001916194925 | CI211: 9.255978348e-05 | CJ211: 0 | CK211: 9.255978348e-05 | CM211: 0 | CN211: SmComWX | CO211: 0 | CP211: 0 | CQ211: 0 | CR211: 0 | CS211: 0 | CT211: 0 | CU211: 0 | CV211: 9999 | CW211: 9999
A212: Demand Control Ventilation-New-Big Box | B212: Demand Control Ventilation-DCV Only-Big Box-ElecHt-Vent-New | C212: 15 | D212: 0.207856704 | E212: 0 | F212: 0.8906 | G212: 0 | H212: 0 | I212: ComEconoMizer | J212: 0.400000006 | K212: 0.00661157025 | L212: 0.2264906987 | M212: 4.273570369e-07 | N212: 6.463775208e-05 | O212: 0 | P212: 0 | Q212: 0 | R212: 0.08855108917 | S212: 0.4893635213 | T212: 0 | U212: 0.5634960532 | V212: (na) | W212: (na) | X212: (na) | Y212: (na) | Z212: 0 | AA212: 0 | AB212: 0 | AC212: 0 | AD212: 0 | AE212: 0 | AF212: 0 | AG212: 0 | AH212: 0.08855108917 | AI212: 0.4893635213 | AJ212: 0 | AK212: 0.5634960532 | AL212: 1.141410664 | AM212: 0.1188723342 | AN212: 0 | AO212: 0.0118872337 | AP212: 0 | AQ212: 0.130759567 | AR212: 0.08855108917 | AS212: 1.4766568 | AT212: 0.1188723342 | AU212: 0.01852718182 | AV212: 0.01373995189 | AW212: 0 | AX212: 0.151139468 | AY212: 0.4893635213 | AZ212: 0.3088490689 | BA212: 0.1188723342 | BB212: 0.01852718182 | BC212: 0.01373995189 | BD212: 0 | BE212: 0.151139468 | BF212: 0.5779145956 | BG212: 193.315506 | BH212: 0.2615256046 | BI212: 31.37244987 | BJ212: 173.3748627 | BK212: 0 | BL212: 199.6390076 | BM212: 404.386322 | BN212: 0.1188723342 | BO212: 0 | BP212: 0.01852718182 | BQ212: 0 | BR212: 0 | BS212: 0 | BT212: 0 | BU212: 0 | BV212: 0 | BW212: 0.01373995189 | BX212: 1.141410589 | BZ212: 0 | CA212: 0 | CB212: 0.151139468 | CC212: 1.141410589 | CD212: 0.1324146362 | CE212: 392.9544983 | CF212: 0.001663717466 | CG212: 0 | CH212: 0.001663717466 | CI212: 8.036412496e-05 | CJ212: 0 | CK212: 8.036412496e-05 | CM212: 0 | CN212: SmComWX | CO212: 0 | CP212: 0 | CQ212: 0 | CR212: 0 | CS212: 0 | CT212: 0 | CU212: 0 | CV212: 9999 | CW212: 9999
... 234 more rows

Sheet M-IO New (hidden)
A1: Data Set Name
A2: Measure Index Name
A3: Costs must be denominated in the same year as 'Input Cost Reference Year' = | C3: 2012
A5: Retrofit Data | C5: name | D5: column | E5: referenece
B6: Weighting Factor in MMap | C6: WT BTYPE | D6: =MATCH(C6,MMap!$A$9:$BP$9,0) -> 13 | E6: =LEFT(ADDRESS(11,MATCH(C6,MMap!$A$9:$BR$9,0),4,1),1) -> M
B7: Units are per thousand feet floor area for activity | C7: 1000
A8: 1 | B8: 2 | C8: 3 | D8: 4 | E8: 5 | F8: 6 | G8: 7 | H8: 8 | I8: 9 | J8: 10 | K8: 11 | L8: 12 | M8: 13 | N8: 14 | O8: 15 | P8: 16 | Q8: 17 | R8: 18 | S8: 19 | T8: 20 | U8: 21 | V8: 22 | W8: 23 | X8: 24 | Y8: 25 | Z8: 26 | AA8: 27 | AB8: 28 | AC8: 29 | AD8: 30 | AE8: 31 | AF8: 32 | AG8: 33 | AH8: 34 | AI8: 35 | AJ8: 36 | AK8: 37 | AL8: 38 | AM8: 39 | AN8: 40 | AO8: 41 | AP8: 42 | AQ8: 43 | AR8: 44 | AS8: 45 | AT8: 46 | AU8: 47 | AV8: 48 | AW8: 49 | AX8: 50 | AY8: 51 | AZ8: 52 | BA8: 53 | BB8: 54 | BC8: 55 | BD8: 56 | BE8: 57 | BF8: 58 | BG8: 59 | BH8: 60 | BI8: 61 | BJ8: 62 | BK8: 63 | BL8: 64 | BM8: 65 | BN8: 66 | BO8: 67 | BP8: 68 | BQ8: 69 | BR8: 70 | BS8: 71 | BT8: 72 | BU8: 73 | BV8: 74 | BW8: 75 | BX8: 76 | BY8: 77 | BZ8: 78 | CA8: 79 | CB8: 80 | CC8: 81 | CD8: 82 | CE8: 83 | CF8: 84 | CG8: 85 | CH8: 86 | CI8: 87 | CJ8: 88 | CK8: 89 | CL8: 90 | CM8: 91 | CN8: 92 | CO8: 93 | CP8: 94 | CQ8: 95 | CR8: 96 | CS8: 97 | CT8: 98 | CU8: 99 | CV8: 100 | CW8: 101 | CX8: 102 | CY8: 103 | CZ8: 104 | DA8: 105
A9: Input Data | I9: Periodic Replacement Costs and Savings and Replacement Period | O9: Gas Inputs | Q9: Retro or LO | R9: Early Retrofit Parameters
A10: Category Name | B10: Measure Name | C10: Savings (kwh/yr) | D10: Life (yrs) | E10: Capital Cost | F10: Annual O&M | G10: Shape Pointer | H10: Non-E Val ($/yr) | I10: Cost 1 ($) | J10: Period 1 | K10: Cost 2 ($) | L10: Period 2 | M10: Cost 3 ($) | N10: Period 3 | O10: Savings (therms/yr) | P10: Shape Pointer | Q10: R or L | R10: Savings 2 (kWh) | S10: Remaining Life (yrs) | T10: Salvage Value ($)
A11: Demand Control Ventilation-New-Large Off | B11: Demand Control Ventilation-DCV Only-Large Off-ElecHt-Vent-New | C11: =VLOOKUP(B11,MMap!$A$11:$O$460,14,FALSE) -> 1.004122689 | D11: 15 | E11: =VLOOKUP(B11,MMap!$A$11:$O$460,15,FALSE) -> 29.41581162 | G11: ComEconoMizer | O11: 1 | P11: SmComWX | Q11: R
A12: Demand Control Ventilation-New-Medium Off | B12: Demand Control Ventilation-DCV Only-Medium Off-ElecHt-Vent-New | C12: =VLOOKUP(B12,MMap!$A$11:$O$460,14,FALSE) -> 1.089375636 | D12: 16 | E12: =VLOOKUP(B12,MMap!$A$11:$O$460,15,FALSE) -> 31.91329991 | G12: ComEconoMizer | O12: 1 | P12: SmComWX | Q12: R
A13: Demand Control Ventilation-New-Small Off | B13: Demand Control Ventilation-DCV Only-Small Off-ElecHt-Vent-New | C13: =VLOOKUP(B13,MMap!$A$11:$O$460,14,FALSE) -> 1.407209655 | D13: 17 | E13: =VLOOKUP(B13,MMap!$A$11:$O$460,15,FALSE) -> 41.22425933 | G13: ComEconoMizer | O13: 1 | P13: SmComWX | Q13: R
A14: Demand Control Ventilation-New-Xlarge Ret | B14: Demand Control Ventilation-DCV Only-Xlarge Ret-ElecHt-Vent-New | C14: =VLOOKUP(B14,MMap!$A$11:$O$460,14,FALSE) -> 0.4878848533 | D14: 18 | E14: =VLOOKUP(B14,MMap!$A$11:$O$460,15,FALSE) -> 2.314740652 | G14: ComEconoMizer | O14: 1 | P14: SmComWX
A15: Demand Control Ventilation-New-Large Ret | B15: Demand Control Ventilation-DCV Only-Large Ret-ElecHt-Vent-New | C15: =VLOOKUP(B15,MMap!$A$11:$O$460,14,FALSE) -> 0.1017738603 | D15: 19 | E15: =VLOOKUP(B15,MMap!$A$11:$O$460,15,FALSE) -> 0.4828600235 | G15: ComEconoMizer | O15: 1 | P15: SmComWX
A16: Demand Control Ventilation-New-Medium Ret | B16: Demand Control Ventilation-DCV Only-Medium Ret-ElecHt-Vent-New | C16: =VLOOKUP(B16,MMap!$A$11:$O$460,14,FALSE) -> 1.034724426 | D16: 20 | E16: =VLOOKUP(B16,MMap!$A$11:$O$460,15,FALSE) -> 11.2333783 | G16: ComEconoMizer | O16: 1 | P16: SmComWX
A17: Demand Control Ventilation-New-Small Ret | B17: Demand Control Ventilation-DCV Only-Small Ret-ElecHt-Vent-New | C17: =VLOOKUP(B17,MMap!$A$11:$O$460,14,FALSE) -> 1.396305976 | D17: 21 | E17: =VLOOKUP(B17,MMap!$A$11:$O$460,15,FALSE) -> 15.15885087 | G17: ComEconoMizer | O17: 1 | P17: SmComWX
A18: Demand Control Ventilation-New-School K-12 | B18: Demand Control Ventilation-DCV Only-School K-12-ElecHt-Vent-New | C18: =VLOOKUP(B18,MMap!$A$11:$O$460,14,FALSE) -> 0 | D18: 22 | E18: =VLOOKUP(B18,MMap!$A$11:$O$460,15,FALSE) -> 0 | G18: ComEconoMizer | O18: 1 | P18: SmComWX
A19: Demand Control Ventilation-New-University | B19: Demand Control Ventilation-DCV Only-University-ElecHt-Vent-New | C19: =VLOOKUP(B19,MMap!$A$11:$O$460,14,FALSE) -> 0 | D19: 23 | E19: =VLOOKUP(B19,MMap!$A$11:$O$460,15,FALSE) -> 0 | G19: ComEconoMizer | O19: 1 | P19: SmComWX
A20: Demand Control Ventilation-New-Warehouse | B20: Demand Control Ventilation-DCV Only-Warehouse-ElecHt-Vent-New | C20: =VLOOKUP(B20,MMap!$A$11:$O$460,14,FALSE) -> 0.005851935602 | D20: 24 | E20: =VLOOKUP(B20,MMap!$A$11:$O$460,15,FALSE) -> 0.1714326718 | G20: ComEconoMizer | O20: 1 | P20: SmComWX
A21: Demand Control Ventilation-New-Supermarket | B21: Demand Control Ventilation-DCV Only-Supermarket-ElecHt-Vent-New | C21: =VLOOKUP(B21,MMap!$A$11:$O$460,14,FALSE) -> 0.05459226033 | D21: 25 | E21: =VLOOKUP(B21,MMap!$A$11:$O$460,15,FALSE) -> 1.599282303 | G21: ComEconoMizer | O21: 1 | P21: SmComWX
A22: Demand Control Ventilation-New-MiniMart | B22: Demand Control Ventilation-DCV Only-MiniMart-ElecHt-Vent-New | C22: =VLOOKUP(B22,MMap!$A$11:$O$460,14,FALSE) -> 0.02927546432 | D22: 26 | E22: =VLOOKUP(B22,MMap!$A$11:$O$460,15,FALSE) -> 0.8576258196 | G22: ComEconoMizer | O22: 1 | P22: SmComWX
A23: Demand Control Ventilation-New-Restaurant | B23: Demand Control Ventilation-DCV Only-Restaurant-ElecHt-Vent-New | C23: =VLOOKUP(B23,MMap!$A$11:$O$460,14,FALSE) -> 0.6546212944 | D23: 27 | E23: =VLOOKUP(B23,MMap!$A$11:$O$460,15,FALSE) -> 3.105811774 | G23: ComEconoMizer | O23: 1 | P23: SmComWX
A24: Demand Control Ventilation-New-Lodging | B24: Demand Control Ventilation-DCV Only-Lodging-ElecHt-Vent-New | C24: =VLOOKUP(B24,MMap!$A$11:$O$460,14,FALSE) -> 2.126603418 | D24: 28 | E24: =VLOOKUP(B24,MMap!$A$11:$O$460,15,FALSE) -> 62.29892648 | G24: ComEconoMizer | O24: 1 | P24: SmComWX
A25: Demand Control Ventilation-New-Hospital | B25: Demand Control Ventilation-DCV Only-Hospital-ElecHt-Vent-New | C25: =VLOOKUP(B25,MMap!$A$11:$O$460,14,FALSE) -> 0.38304 | D25: 29 | E25: =VLOOKUP(B25,MMap!$A$11:$O$460,15,FALSE) -> 11.22117109 | G25: ComEconoMizer | O25: 1 | P25: SmComWX
A26: Demand Control Ventilation-New-Residential Care | B26: Demand Control Ventilation-DCV Only-Residential Care-ElecHt-Vent-New | C26: =VLOOKUP(B26,MMap!$A$11:$O$460,14,FALSE) -> 1.442824061 | D26: 30 | E26: =VLOOKUP(B26,MMap!$A$11:$O$460,15,FALSE) -> 42.2675847 | G26: ComEconoMizer | O26: 1 | P26: SmComWX
A27: Demand Control Ventilation-New-Assembly | B27: Demand Control Ventilation-DCV Only-Assembly-ElecHt-Vent-New | C27: =VLOOKUP(B27,MMap!$A$11:$O$460,14,FALSE) -> 0.4889521798 | D27: 31 | E27: =VLOOKUP(B27,MMap!$A$11:$O$460,15,FALSE) -> 14.32387235 | G27: ComEconoMizer | O27: 1 | P27: SmComWX
A28: Demand Control Ventilation-New-Other | B28: Demand Control Ventilation-DCV Only-Other-ElecHt-Vent-New | C28: =VLOOKUP(B28,MMap!$A$11:$O$460,14,FALSE) -> 0.7488916139 | D28: 32 | E28: =VLOOKUP(B28,MMap!$A$11:$O$460,15,FALSE) -> 21.93880777 | G28: ExCOMM | O28: 1 | P28: SmComWX
A29: Demand Control Ventilation-New-Large Off | B29: Demand Control Ventilation-DCV Only-Large Off-ElecHt-Heat-New | C29: =VLOOKUP(B29,MMap!$A$11:$O$460,14,FALSE) -> 103.2520505 | D29: 33 | E29: =VLOOKUP(B29,MMap!$A$11:$O$460,15,FALSE) -> 0 | G29: ExCOMM | O29: 1 | P29: SmComWX
A30: Demand Control Ventilation-New-Medium Off | B30: Demand Control Ventilation-DCV Only-Medium Off-ElecHt-Heat-New | C30: =VLOOKUP(B30,MMap!$A$11:$O$460,14,FALSE) -> 112.018451 | D30: 34 | E30: =VLOOKUP(B30,MMap!$A$11:$O$460,15,FALSE) -> 0 | G30: ExCOMM | O30: 1 | P30: SmComWX
A31: Demand Control Ventilation-New-Small Off | B31: Demand Control Ventilation-DCV Only-Small Off-ElecHt-Heat-New | C31: =VLOOKUP(B31,MMap!$A$11:$O$460,14,FALSE) -> 144.7007263 | D31: 35 | E31: =VLOOKUP(B31,MMap!$A$11:$O$460,15,FALSE) -> 0 | G31: ExCOMM | O31: 1 | P31: SmComWX
A32: Demand Control Ventilation-New-Xlarge Ret | B32: Demand Control Ventilation-DCV Only-Xlarge Ret-ElecHt-Heat-New | C32: =VLOOKUP(B32,MMap!$A$11:$O$460,14,FALSE) -> 31.56636759 | D32: 36 | E32: =VLOOKUP(B32,MMap!$A$11:$O$460,15,FALSE) -> 0 | G32: ExCOMM | O32: 1 | P32: SmComWX
A33: Demand Control Ventilation-New-Large Ret | B33: Demand Control Ventilation-DCV Only-Large Ret-ElecHt-Heat-New | C33: =VLOOKUP(B33,MMap!$A$11:$O$460,14,FALSE) -> 6.584814149 | D33: 37 | E33: =VLOOKUP(B33,MMap!$A$11:$O$460,15,FALSE) -> 0 | G33: ExCOMM | O33: 1 | P33: SmComWX
A34: Demand Control Ventilation-New-Medium Ret | B34: Demand Control Ventilation-DCV Only-Medium Ret-ElecHt-Heat-New | C34: =VLOOKUP(B34,MMap!$A$11:$O$460,14,FALSE) -> 93.8583384 | D34: 38 | E34: =VLOOKUP(B34,MMap!$A$11:$O$460,15,FALSE) -> 0 | G34: ExCOMM | O34: 1 | P34: SmComWX
A35: Demand Control Ventilation-New-Small Ret | B35: Demand Control Ventilation-DCV Only-Small Ret-ElecHt-Heat-New | C35: =VLOOKUP(B35,MMap!$A$11:$O$460,14,FALSE) -> 126.6568717 | D35: 39 | E35: =VLOOKUP(B35,MMap!$A$11:$O$460,15,FALSE) -> 0 | G35: ExCOMM | O35: 1 | P35: SmComWX
A36: Demand Control Ventilation-New-School K-12 | B36: Demand Control Ventilation-DCV Only-School K-12-ElecHt-Heat-New | C36: =VLOOKUP(B36,MMap!$A$11:$O$460,14,FALSE) -> 0 | D36: 40 | E36: =VLOOKUP(B36,MMap!$A$11:$O$460,15,FALSE) -> 0 | G36: ExCOMM | O36: 1 | P36: SmComWX
A37: Demand Control Ventilation-New-University | B37: Demand Control Ventilation-DCV Only-University-ElecHt-Heat-New | C37: =VLOOKUP(B37,MMap!$A$11:$O$460,14,FALSE) -> 0 | D37: 41 | E37: =VLOOKUP(B37,MMap!$A$11:$O$460,15,FALSE) -> 0 | G37: ExCOMM | O37: 1 | P37: SmComWX
A38: Demand Control Ventilation-New-Warehouse | B38: Demand Control Ventilation-DCV Only-Warehouse-ElecHt-Heat-New | C38: =VLOOKUP(B38,MMap!$A$11:$O$460,14,FALSE) -> 0.601743549 | D38: 42 | E38: =VLOOKUP(B38,MMap!$A$11:$O$460,15,FALSE) -> 0 | G38: ExCOMM | O38: 1 | P38: SmComWX
A39: Demand Control Ventilation-New-Supermarket | B39: Demand Control Ventilation-DCV Only-Supermarket-ElecHt-Heat-New | C39: =VLOOKUP(B39,MMap!$A$11:$O$460,14,FALSE) -> 21.80958502 | D39: 43 | E39: =VLOOKUP(B39,MMap!$A$11:$O$460,15,FALSE) -> 0 | G39: ExCOMM | O39: 1 | P39: SmComWX
A40: Demand Control Ventilation-New-MiniMart | B40: Demand Control Ventilation-DCV Only-MiniMart-ElecHt-Heat-New | C40: =VLOOKUP(B40,MMap!$A$11:$O$460,14,FALSE) -> 11.69553568 | D40: 44 | E40: =VLOOKUP(B40,MMap!$A$11:$O$460,15,FALSE) -> 0 | G40: ExCOMM | O40: 1 | P40: SmComWX
A41: Demand Control Ventilation-New-Restaurant | B41: Demand Control Ventilation-DCV Only-Restaurant-ElecHt-Heat-New | C41: =VLOOKUP(B41,MMap!$A$11:$O$460,14,FALSE) -> 42.35428969 | D41: 45 | E41: =VLOOKUP(B41,MMap!$A$11:$O$460,15,FALSE) -> 0 | G41: ExCOMM | O41: 1 | P41: SmComWX
A42: Demand Control Ventilation-New-Lodging | B42: Demand Control Ventilation-DCV Only-Lodging-ElecHt-Heat-New | C42: =VLOOKUP(B42,MMap!$A$11:$O$460,14,FALSE) -> 218.6746361 | D42: 46 | E42: =VLOOKUP(B42,MMap!$A$11:$O$460,15,FALSE) -> 0 | G42: ExCOMM | O42: 1 | P42: SmComWX
A43: Demand Control Ventilation-New-Hospital | B43: Demand Control Ventilation-DCV Only-Hospital-ElecHt-Heat-New | C43: =VLOOKUP(B43,MMap!$A$11:$O$460,14,FALSE) -> 39.38728391 | D43: 47 | E43: =VLOOKUP(B43,MMap!$A$11:$O$460,15,FALSE) -> 0 | G43: ExCOMM | O43: 1 | P43: SmComWX
A44: Demand Control Ventilation-New-Residential Care | B44: Demand Control Ventilation-DCV Only-Residential Care-ElecHt-Heat-New | C44: =VLOOKUP(B44,MMap!$A$11:$O$460,14,FALSE) -> 148.3628888 | D44: 48 | E44: =VLOOKUP(B44,MMap!$A$11:$O$460,15,FALSE) -> 0 | G44: ExCOMM | O44: 1 | P44: SmComWX
A45: Demand Control Ventilation-New-Assembly | B45: Demand Control Ventilation-DCV Only-Assembly-ElecHt-Heat-New | C45: =VLOOKUP(B45,MMap!$A$11:$O$460,14,FALSE) -> 50.27803448 | D45: 49 | E45: =VLOOKUP(B45,MMap!$A$11:$O$460,15,FALSE) -> 0 | G45: ComEconoMizer | O45: 1 | P45: SmComWX
A46: Demand Control Ventilation-New-Other | B46: Demand Control Ventilation-DCV Only-Other-ElecHt-Heat-New | C46: =VLOOKUP(B46,MMap!$A$11:$O$460,14,FALSE) -> 77.00711836 | D46: 50 | E46: =VLOOKUP(B46,MMap!$A$11:$O$460,15,FALSE) -> 0 | G46: ComEconoMizer | O46: 1 | P46: SmComWX
A47: Demand Control Ventilation-New-Large Off | B47: Demand Control Ventilation-DCV Only-Large Off-GasHt-Vent-New | C47: =VLOOKUP(B47,MMap!$A$11:$O$460,14,FALSE) -> 2.590799406 | D47: 51 | E47: =VLOOKUP(B47,MMap!$A$11:$O$460,15,FALSE) -> 75.89756525 | G47: ComEconoMizer | O47: 1 | P47: SmComWX
A48: Demand Control Ventilation-New-Medium Off | B48: Demand Control Ventilation-DCV Only-Medium Off-GasHt-Vent-New | C48: =VLOOKUP(B48,MMap!$A$11:$O$460,14,FALSE) -> 2.531573818 | D48: 52 | E48: =VLOOKUP(B48,MMap!$A$11:$O$460,15,FALSE) -> 74.16254944 | G48: ComEconoMizer | O48: 1 | P48: SmComWX
A49: Demand Control Ventilation-New-Small Off | B49: Demand Control Ventilation-DCV Only-Small Off-GasHt-Vent-New | C49: =VLOOKUP(B49,MMap!$A$11:$O$460,14,FALSE) -> 1.50426231 | D49: 53 | E49: =VLOOKUP(B49,MMap!$A$11:$O$460,15,FALSE) -> 44.0674205 | G49: ComEconoMizer | O49: 1 | P49: SmComWX
A50: Demand Control Ventilation-New-Xlarge Ret | B50: Demand Control Ventilation-DCV Only-Xlarge Ret-GasHt-Vent-New | C50: =VLOOKUP(B50,MMap!$A$11:$O$460,14,FALSE) -> 8.433397942 | D50: 54 | E50: =VLOOKUP(B50,MMap!$A$11:$O$460,15,FALSE) -> 40.01175466 | G50: ComEconoMizer | O50: 1 | P50: SmComWX
A51: Demand Control Ventilation-New-Large Ret | B51: Demand Control Ventilation-DCV Only-Large Ret-GasHt-Vent-New | C51: =VLOOKUP(B51,MMap!$A$11:$O$460,14,FALSE) -> 9.446369276 | D51: 55 | E51: =VLOOKUP(B51,MMap!$A$11:$O$460,15,FALSE) -> 44.81773688 | G51: ComEconoMizer | O51: 1 | P51: SmComWX
A52: Demand Control Ventilation-New-Medium Ret | B52: Demand Control Ventilation-DCV Only-Medium Ret-GasHt-Vent-New | C52: =VLOOKUP(B52,MMap!$A$11:$O$460,14,FALSE) -> 6.979467353 | D52: 56 | E52: =VLOOKUP(B52,MMap!$A$11:$O$460,15,FALSE) -> 75.77186271 | G52: ComEconoMizer | O52: 1 | P52: SmComWX
A53: Demand Control Ventilation-New-Small Ret | B53: Demand Control Ventilation-DCV Only-Small Ret-GasHt-Vent-New | C53: =VLOOKUP(B53,MMap!$A$11:$O$460,14,FALSE) -> 2.897802106 | D53: 57 | E53: =VLOOKUP(B53,MMap!$A$11:$O$460,15,FALSE) -> 31.45968772 | G53: ComEconoMizer | O53: 1 | P53: SmComWX
A54: Demand Control Ventilation-New-School K-12 | B54: Demand Control Ventilation-DCV Only-School K-12-GasHt-Vent-New | C54: =VLOOKUP(B54,MMap!$A$11:$O$460,14,FALSE) -> 0 | D54: 58 | E54: =VLOOKUP(B54,MMap!$A$11:$O$460,15,FALSE) -> 0 | G54: ComEconoMizer | O54: 1 | P54: SmComWX
A55: Demand Control Ventilation-New-University | B55: Demand Control Ventilation-DCV Only-University-GasHt-Vent-New | C55: =VLOOKUP(B55,MMap!$A$11:$O$460,14,FALSE) -> 0 | D55: 59 | E55: =VLOOKUP(B55,MMap!$A$11:$O$460,15,FALSE) -> 0 | G55: ComEconoMizer | O55: 1 | P55: SmComWX
A56: Demand Control Ventilation-New-Warehouse | B56: Demand Control Ventilation-DCV Only-Warehouse-GasHt-Vent-New | C56: =VLOOKUP(B56,MMap!$A$11:$O$460,14,FALSE) -> 0.9034820557 | D56: 60 | E56: =VLOOKUP(B56,MMap!$A$11:$O$460,15,FALSE) -> 26.46754053 | G56: ComEconoMizer | O56: 1 | P56: SmComWX
A57: Demand Control Ventilation-New-Supermarket | B57: Demand Control Ventilation-DCV Only-Supermarket-GasHt-Vent-New | C57: =VLOOKUP(B57,MMap!$A$11:$O$460,14,FALSE) -> 0.6542437323 | D57: 61 | E57: =VLOOKUP(B57,MMap!$A$11:$O$460,15,FALSE) -> 19.16609455 | G57: ComEconoMizer | O57: 1 | P57: SmComWX
A58: Demand Control Ventilation-New-MiniMart | B58: Demand Control Ventilation-DCV Only-MiniMart-GasHt-Vent-New | C58: =VLOOKUP(B58,MMap!$A$11:$O$460,14,FALSE) -> 2.562586783 | D58: 62 | E58: =VLOOKUP(B58,MMap!$A$11:$O$460,15,FALSE) -> 75.07107542 | G58: ComEconoMizer | O58: 1 | P58: SmComWX
A59: Demand Control Ventilation-New-Restaurant | B59: Demand Control Ventilation-DCV Only-Restaurant-GasHt-Vent-New | C59: =VLOOKUP(B59,MMap!$A$11:$O$460,14,FALSE) -> 17.28893324 | D59: 63 | E59: =VLOOKUP(B59,MMap!$A$11:$O$460,15,FALSE) -> 82.0263149 | G59: ComEconoMizer | O59: 1 | P59: SmComWX
A60: Demand Control Ventilation-New-Lodging | B60: Demand Control Ventilation-DCV Only-Lodging-GasHt-Vent-New | C60: =VLOOKUP(B60,MMap!$A$11:$O$460,14,FALSE) -> 1.187157018 | D60: 64 | E60: =VLOOKUP(B60,MMap!$A$11:$O$460,15,FALSE) -> 34.77780915 | G60: ComEconoMizer | O60: 1 | P60: SmComWX
A61: Demand Control Ventilation-New-Hospital | B61: Demand Control Ventilation-DCV Only-Hospital-GasHt-Vent-New | C61: =VLOOKUP(B61,MMap!$A$11:$O$460,14,FALSE) -> 4.35708 | D61: 65 | E61: =VLOOKUP(B61,MMap!$A$11:$O$460,15,FALSE) -> 127.6408212 | G61: ComEconoMizer | O61: 1 | P61: SmComWX
A62: Demand Control Ventilation-New-Residential Care | B62: Demand Control Ventilation-DCV Only-Residential Care-GasHt-Vent-New | C62: =VLOOKUP(B62,MMap!$A$11:$O$460,14,FALSE) -> 1.721785464 | D62: 66 | E62: =VLOOKUP(B62,MMap!$A$11:$O$460,15,FALSE) -> 50.43976942 | G62: ComEconoMizer | O62: 1 | P62: SmComWX
A63: Demand Control Ventilation-New-Assembly | B63: Demand Control Ventilation-DCV Only-Assembly-GasHt-Vent-New | C63: =VLOOKUP(B63,MMap!$A$11:$O$460,14,FALSE) -> 3.575876009 | D63: 67 | E63: =VLOOKUP(B63,MMap!$A$11:$O$460,15,FALSE) -> 104.7554211 | G63: ComEconoMizer | O63: 1 | P63: SmComWX
A64: Demand Control Ventilation-New-Other | B64: Demand Control Ventilation-DCV Only-Other-GasHt-Vent-New | C64: =VLOOKUP(B64,MMap!$A$11:$O$460,14,FALSE) -> 3.208372253 | D64: 68 | E64: =VLOOKUP(B64,MMap!$A$11:$O$460,15,FALSE) -> 93.98938486 | G64: ComEconoMizer | O64: 1 | P64: SmComWX
A65: Demand Control Ventilation-New-Large Off | B65: Demand Control Ventilation-DCV Only-Large Off-HtPmpHt-Vent-New | C65: =VLOOKUP(B65,MMap!$A$11:$O$460,14,FALSE) -> 1.199564128 | D65: 69 | E65: =VLOOKUP(B65,MMap!$A$11:$O$460,15,FALSE) -> 35.14127589 | G65: ComEconoMizer | O65: 1 | P65: SmComWX
A66: Demand Control Ventilation-New-Medium Off | B66: Demand Control Ventilation-DCV Only-Medium Off-HtPmpHt-Vent-New | C66: =VLOOKUP(B66,MMap!$A$11:$O$460,14,FALSE) -> 1.301410625 | D66: 70 | E66: =VLOOKUP(B66,MMap!$A$11:$O$460,15,FALSE) -> 38.1248728 | G66: ComEconoMizer | O66: 1 | P66: SmComWX
A67: Demand Control Ventilation-New-Small Off | B67: Demand Control Ventilation-DCV Only-Small Off-HtPmpHt-Vent-New | C67: =VLOOKUP(B67,MMap!$A$11:$O$460,14,FALSE) -> 1.68110754 | D67: 71 | E67: =VLOOKUP(B67,MMap!$A$11:$O$460,15,FALSE) -> 49.24810809 | G67: ComEconoMizer | O67: 1 | P67: SmComWX
A68: Demand Control Ventilation-New-Xlarge Ret | B68: Demand Control Ventilation-DCV Only-Xlarge Ret-HtPmpHt-Vent-New | C68: =VLOOKUP(B68,MMap!$A$11:$O$460,14,FALSE) -> 0.2848071306 | D68: 72 | E68: =VLOOKUP(B68,MMap!$A$11:$O$460,15,FALSE) -> 1.351250482 | G68: ComEconoMizer | O68: 1 | P68: SmComWX
A69: Demand Control Ventilation-New-Large Ret | B69: Demand Control Ventilation-DCV Only-Large Ret-HtPmpHt-Vent-New | C69: =VLOOKUP(B69,MMap!$A$11:$O$460,14,FALSE) -> 0.05941139785 | D69: 73 | E69: =VLOOKUP(B69,MMap!$A$11:$O$460,15,FALSE) -> 0.2818738415 | G69: ComEconoMizer | O69: 1 | P69: SmComWX
A70: Demand Control Ventilation-New-Medium Ret | B70: Demand Control Ventilation-DCV Only-Medium Ret-HtPmpHt-Vent-New | C70: =VLOOKUP(B70,MMap!$A$11:$O$460,14,FALSE) -> 0.6040296039 | D70: 74 | E70: =VLOOKUP(B70,MMap!$A$11:$O$460,15,FALSE) -> 6.557584684 | G70: ComEconoMizer | O70: 1 | P70: SmComWX
A71: Demand Control Ventilation-New-Small Ret | B71: Demand Control Ventilation-DCV Only-Small Ret-HtPmpHt-Vent-New | C71: =VLOOKUP(B71,MMap!$A$11:$O$460,14,FALSE) -> 0.8151060561 | D71: 75 | E71: =VLOOKUP(B71,MMap!$A$11:$O$460,15,FALSE) -> 8.849114273 | G71: ComEconoMizer | O71: 1 | P71: SmComWX
A72: Demand Control Ventilation-New-School K-12 | B72: Demand Control Ventilation-DCV Only-School K-12-HtPmpHt-Vent-New | C72: =VLOOKUP(B72,MMap!$A$11:$O$460,14,FALSE) -> 0 | D72: 76 | E72: =VLOOKUP(B72,MMap!$A$11:$O$460,15,FALSE) -> 0 | G72: ComEconoMizer | O72: 1 | P72: SmComWX
A73: Demand Control Ventilation-New-University | B73: Demand Control Ventilation-DCV Only-University-HtPmpHt-Vent-New | C73: =VLOOKUP(B73,MMap!$A$11:$O$460,14,FALSE) -> 0 | D73: 77 | E73: =VLOOKUP(B73,MMap!$A$11:$O$460,15,FALSE) -> 0 | G73: ComEconoMizer | O73: 1 | P73: SmComWX
A74: Demand Control Ventilation-New-Warehouse | B74: Demand Control Ventilation-DCV Only-Warehouse-HtPmpHt-Vent-New | C74: =VLOOKUP(B74,MMap!$A$11:$O$460,14,FALSE) -> 0.006044484823 | D74: 78 | E74: =VLOOKUP(B74,MMap!$A$11:$O$460,15,FALSE) -> 0.1770734084 | G74: ComEconoMizer | O74: 1 | P74: SmComWX
A75: Demand Control Ventilation-New-Supermarket | B75: Demand Control Ventilation-DCV Only-Supermarket-HtPmpHt-Vent-New | C75: =VLOOKUP(B75,MMap!$A$11:$O$460,14,FALSE) -> 0.08686742681 | D75: 79 | E75: =VLOOKUP(B75,MMap!$A$11:$O$460,15,FALSE) -> 2.544784509 | G75: ComEconoMizer | O75: 1 | P75: SmComWX
A76: Demand Control Ventilation-New-MiniMart | B76: Demand Control Ventilation-DCV Only-MiniMart-HtPmpHt-Vent-New | C76: =VLOOKUP(B76,MMap!$A$11:$O$460,14,FALSE) -> 0.04658323798 | D76: 80 | E76: =VLOOKUP(B76,MMap!$A$11:$O$460,15,FALSE) -> 1.364657694 | G76: ComEconoMizer | O76: 1 | P76: SmComWX
A77: Demand Control Ventilation-New-Restaurant | B77: Demand Control Ventilation-DCV Only-Restaurant-HtPmpHt-Vent-New | C77: =VLOOKUP(B77,MMap!$A$11:$O$460,14,FALSE) -> 3.840444921 | D77: 81 | E77: =VLOOKUP(B77,MMap!$A$11:$O$460,15,FALSE) -> 18.22076238 | G77: ComEconoMizer | O77: 1 | P77: SmComWX
A78: Demand Control Ventilation-New-Lodging | B78: Demand Control Ventilation-DCV Only-Lodging-HtPmpHt-Vent-New | C78: =VLOOKUP(B78,MMap!$A$11:$O$460,14,FALSE) -> 1.445958061 | D78: 82 | E78: =VLOOKUP(B78,MMap!$A$11:$O$460,15,FALSE) -> 42.35939535 | G78: ComEconoMizer | O78: 1 | P78: SmComWX
A79: Demand Control Ventilation-New-Hospital | B79: Demand Control Ventilation-DCV Only-Hospital-HtPmpHt-Vent-New | C79: =VLOOKUP(B79,MMap!$A$11:$O$460,14,FALSE) -> 0.04788 | D79: 83 | E79: =VLOOKUP(B79,MMap!$A$11:$O$460,15,FALSE) -> 1.402646386 | G79: SmComHP | O79: 1 | P79: SmComWX
A80: Demand Control Ventilation-New-Residential Care | B80: Demand Control Ventilation-DCV Only-Residential Care-HtPmpHt-Vent-New | C80: =VLOOKUP(B80,MMap!$A$11:$O$460,14,FALSE) -> 1.080777321 | D80: 84 | E80: =VLOOKUP(B80,MMap!$A$11:$O$460,15,FALSE) -> 31.66141194 | G80: SmComHP | O80: 1 | P80: SmComWX
A81: Demand Control Ventilation-New-Assembly | B81: Demand Control Ventilation-DCV Only-Assembly-HtPmpHt-Vent-New | C81: =VLOOKUP(B81,MMap!$A$11:$O$460,14,FALSE) -> 0.5305044411 | D81: 85 | E81: =VLOOKUP(B81,MMap!$A$11:$O$460,15,FALSE) -> 15.5411474 | G81: SmComHP | O81: 1 | P81: SmComWX
A82: Demand Control Ventilation-New-Other | B82: Demand Control Ventilation-DCV Only-Other-HtPmpHt-Vent-New | C82: =VLOOKUP(B82,MMap!$A$11:$O$460,14,FALSE) -> 0.4637108142 | D82: 86 | E82: =VLOOKUP(B82,MMap!$A$11:$O$460,15,FALSE) -> 13.5844256 | G82: SmComHP | O82: 1 | P82: SmComWX
A83: Demand Control Ventilation-New-Large Off | B83: Demand Control Ventilation-DCV Only-Large Off-HtPmpHt-Heat-New | C83: =VLOOKUP(B83,MMap!$A$11:$O$460,14,FALSE) -> 58.73758415 | D83: 87 | E83: =VLOOKUP(B83,MMap!$A$11:$O$460,15,FALSE) -> 0 | G83: SmComHP | O83: 1 | P83: SmComWX
A84: Demand Control Ventilation-New-Medium Off | B84: Demand Control Ventilation-DCV Only-Medium Off-HtPmpHt-Heat-New | C84: =VLOOKUP(B84,MMap!$A$11:$O$460,14,FALSE) -> 63.72457652 | D84: 88 | E84: =VLOOKUP(B84,MMap!$A$11:$O$460,15,FALSE) -> 0 | G84: SmComHP | O84: 1 | P84: SmComWX
A85: Demand Control Ventilation-New-Small Off | B85: Demand Control Ventilation-DCV Only-Small Off-HtPmpHt-Heat-New | C85: =VLOOKUP(B85,MMap!$A$11:$O$460,14,FALSE) -> 82.31672926 | D85: 89 | E85: =VLOOKUP(B85,MMap!$A$11:$O$460,15,FALSE) -> 0 | G85: SmComHP | O85: 1 | P85: SmComWX
A86: Demand Control Ventilation-New-Xlarge Ret | B86: Demand Control Ventilation-DCV Only-Xlarge Ret-HtPmpHt-Heat-New | C86: =VLOOKUP(B86,MMap!$A$11:$O$460,14,FALSE) -> 8.774832556 | D86: 90 | E86: =VLOOKUP(B86,MMap!$A$11:$O$460,15,FALSE) -> 0 | G86: SmComHP | O86: 1 | P86: SmComWX
A87: Demand Control Ventilation-New-Large Ret | B87: Demand Control Ventilation-DCV Only-Large Ret-HtPmpHt-Heat-New | C87: =VLOOKUP(B87,MMap!$A$11:$O$460,14,FALSE) -> 1.830449494 | D87: 91 | E87: =VLOOKUP(B87,MMap!$A$11:$O$460,15,FALSE) -> 0 | G87: SmComHP | O87: 1 | P87: SmComWX
A88: Demand Control Ventilation-New-Medium Ret | B88: Demand Control Ventilation-DCV Only-Medium Ret-HtPmpHt-Heat-New | C88: =VLOOKUP(B88,MMap!$A$11:$O$460,14,FALSE) -> 26.09078162 | D88: 92 | E88: =VLOOKUP(B88,MMap!$A$11:$O$460,15,FALSE) -> 0 | G88: SmComHP | O88: 1 | P88: SmComWX
A89: Demand Control Ventilation-New-Small Ret | B89: Demand Control Ventilation-DCV Only-Small Ret-HtPmpHt-Heat-New | C89: =VLOOKUP(B89,MMap!$A$11:$O$460,14,FALSE) -> 35.20813214 | D89: 93 | E89: =VLOOKUP(B89,MMap!$A$11:$O$460,15,FALSE) -> 0 | G89: SmComHP | O89: 1 | P89: SmComWX
A90: Demand Control Ventilation-New-School K-12 | B90: Demand Control Ventilation-DCV Only-School K-12-HtPmpHt-Heat-New | C90: =VLOOKUP(B90,MMap!$A$11:$O$460,14,FALSE) -> 0 | D90: 94 | E90: =VLOOKUP(B90,MMap!$A$11:$O$460,15,FALSE) -> 0 | G90: SmComHP | O90: 1 | P90: SmComWX
A91: Demand Control Ventilation-New-University | B91: Demand Control Ventilation-DCV Only-University-HtPmpHt-Heat-New | C91: =VLOOKUP(B91,MMap!$A$11:$O$460,14,FALSE) -> 0 | D91: 95 | E91: =VLOOKUP(B91,MMap!$A$11:$O$460,15,FALSE) -> 0 | G91: SmComHP | O91: 1 | P91: SmComWX
A92: Demand Control Ventilation-New-Warehouse | B92: Demand Control Ventilation-DCV Only-Warehouse-HtPmpHt-Heat-New | C92: =VLOOKUP(B92,MMap!$A$11:$O$460,14,FALSE) -> 0.2959728685 | D92: 96 | E92: =VLOOKUP(B92,MMap!$A$11:$O$460,15,FALSE) -> 0 | G92: SmComHP | O92: 1 | P92: SmComWX
A93: Demand Control Ventilation-New-Supermarket | B93: Demand Control Ventilation-DCV Only-Supermarket-HtPmpHt-Heat-New | C93: =VLOOKUP(B93,MMap!$A$11:$O$460,14,FALSE) -> 16.5254764 | D93: 97 | E93: =VLOOKUP(B93,MMap!$A$11:$O$460,15,FALSE) -> 0 | G93: SmComHP | O93: 1 | P93: SmComWX
A94: Demand Control Ventilation-New-MiniMart | B94: Demand Control Ventilation-DCV Only-MiniMart-HtPmpHt-Heat-New | C94: =VLOOKUP(B94,MMap!$A$11:$O$460,14,FALSE) -> 8.861897126 | D94: 98 | E94: =VLOOKUP(B94,MMap!$A$11:$O$460,15,FALSE) -> 0 | G94: SmComHP | O94: 1 | P94: SmComWX
A95: Demand Control Ventilation-New-Restaurant | B95: Demand Control Ventilation-DCV Only-Restaurant-HtPmpHt-Heat-New | C95: =VLOOKUP(B95,MMap!$A$11:$O$460,14,FALSE) -> 118.3230948 | D95: 99 | E95: =VLOOKUP(B95,MMap!$A$11:$O$460,15,FALSE) -> 0 | G95: SmComHP | O95: 1 | P95: SmComWX
A96: Demand Control Ventilation-New-Lodging | B96: Demand Control Ventilation-DCV Only-Lodging-HtPmpHt-Heat-New | C96: =VLOOKUP(B96,MMap!$A$11:$O$460,14,FALSE) -> 70.8024534 | D96: 100 | E96: =VLOOKUP(B96,MMap!$A$11:$O$460,15,FALSE) -> 0 | G96: SmComCAC | O96: 1 | P96: SmComWX
A97: Demand Control Ventilation-New-Hospital | B97: Demand Control Ventilation-DCV Only-Hospital-HtPmpHt-Heat-New | C97: =VLOOKUP(B97,MMap!$A$11:$O$460,14,FALSE) -> 2.344481185 | D97: 101 | E97: =VLOOKUP(B97,MMap!$A$11:$O$460,15,FALSE) -> 0 | G97: SmComCAC | O97: 1 | P97: SmComWX
A98: Demand Control Ventilation-New-Residential Care | B98: Demand Control Ventilation-DCV Only-Residential Care-HtPmpHt-Heat-New | C98: =VLOOKUP(B98,MMap!$A$11:$O$460,14,FALSE) -> 52.92109638 | D98: 102 | E98: =VLOOKUP(B98,MMap!$A$11:$O$460,15,FALSE) -> 0 | G98: SmComCAC | O98: 1 | P98: SmComWX
A99: Demand Control Ventilation-New-Assembly | B99: Demand Control Ventilation-DCV Only-Assembly-HtPmpHt-Heat-New | C99: =VLOOKUP(B99,MMap!$A$11:$O$460,14,FALSE) -> 25.97655975 | D99: 103 | E99: =VLOOKUP(B99,MMap!$A$11:$O$460,15,FALSE) -> 0 | G99: SmComCAC | O99: 1 | P99: SmComWX
A100: Demand Control Ventilation-New-Other | B100: Demand Control Ventilation-DCV Only-Other-HtPmpHt-Heat-New | C100: =VLOOKUP(B100,MMap!$A$11:$O$460,14,FALSE) -> 22.70595822 | D100: 104 | E100: =VLOOKUP(B100,MMap!$A$11:$O$460,15,FALSE) -> 0 | G100: SmComCAC | O100: 1 | P100: SmComWX
A101: Demand Control Ventilation-New-Large Off | B101: Demand Control Ventilation-DOAS-Large Off-ElecHt-Vent-New | C101: =VLOOKUP(B101,MMap!$A$11:$O$460,14,FALSE) -> 0 | D101: 105 | E101: =VLOOKUP(B101,MMap!$A$11:$O$460,15,FALSE) -> 0 | G101: SmComCAC | O101: 1 | P101: SmComWX
A102: Demand Control Ventilation-New-Medium Off | B102: Demand Control Ventilation-DOAS-Medium Off-ElecHt-Vent-New | C102: =VLOOKUP(B102,MMap!$A$11:$O$460,14,FALSE) -> 0 | D102: 106 | E102: =VLOOKUP(B102,MMap!$A$11:$O$460,15,FALSE) -> 0 | G102: SmComCAC | O102: 1 | P102: SmComWX
A103: Demand Control Ventilation-New-Small Off | B103: Demand Control Ventilation-DOAS-Small Off-ElecHt-Vent-New | C103: =VLOOKUP(B103,MMap!$A$11:$O$460,14,FALSE) -> 0 | D103: 107 | E103: =VLOOKUP(B103,MMap!$A$11:$O$460,15,FALSE) -> 0 | G103: SmComCAC | O103: 1 | P103: SmComWX
A104: Demand Control Ventilation-New-Xlarge Ret | B104: Demand Control Ventilation-DOAS-Xlarge Ret-ElecHt-Vent-New | C104: =VLOOKUP(B104,MMap!$A$11:$O$460,14,FALSE) -> 20.8684593 | D104: 108 | E104: =VLOOKUP(B104,MMap!$A$11:$O$460,15,FALSE) -> 24.19135456 | G104: SmComCAC | O104: 1 | P104: SmComWX
A105: Demand Control Ventilation-New-Large Ret | B105: Demand Control Ventilation-DOAS-Large Ret-ElecHt-Vent-New | C105: =VLOOKUP(B105,MMap!$A$11:$O$460,14,FALSE) -> 2.798490087 | D105: 109 | E105: =VLOOKUP(B105,MMap!$A$11:$O$460,15,FALSE) -> 3.244095068 | G105: SmComCAC | O105: 1 | P105: SmComWX
A106: Demand Control Ventilation-New-Medium Ret | B106: Demand Control Ventilation-DOAS-Medium Ret-ElecHt-Vent-New | C106: =VLOOKUP(B106,MMap!$A$11:$O$460,14,FALSE) -> 17.44577983 | D106: 110 | E106: =VLOOKUP(B106,MMap!$A$11:$O$460,15,FALSE) -> 21.56327203 | G106: SmComCAC | O106: 1 | P106: SmComWX
A107: Demand Control Ventilation-New-Small Ret | B107: Demand Control Ventilation-DOAS-Small Ret-ElecHt-Vent-New | C107: =VLOOKUP(B107,MMap!$A$11:$O$460,14,FALSE) -> 23.5421587 | D107: 111 | E107: =VLOOKUP(B107,MMap!$A$11:$O$460,15,FALSE) -> 29.09849701 | G107: SmComCAC | O107: 1 | P107: SmComWX
A108: Demand Control Ventilation-New-School K-12 | B108: Demand Control Ventilation-DOAS-School K-12-ElecHt-Vent-New | C108: =VLOOKUP(B108,MMap!$A$11:$O$460,14,FALSE) -> 0 | D108: 112 | E108: =VLOOKUP(B108,MMap!$A$11:$O$460,15,FALSE) -> 0 | G108: SmComCAC | O108: 1 | P108: SmComWX
A109: Demand Control Ventilation-New-University | B109: Demand Control Ventilation-DOAS-University-ElecHt-Vent-New | C109: =VLOOKUP(B109,MMap!$A$11:$O$460,14,FALSE) -> 0 | D109: 113 | E109: =VLOOKUP(B109,MMap!$A$11:$O$460,15,FALSE) -> 0 | G109: SmComCAC | O109: 1 | P109: SmComWX
A110: Demand Control Ventilation-New-Warehouse | B110: Demand Control Ventilation-DOAS-Warehouse-ElecHt-Vent-New | C110: =VLOOKUP(B110,MMap!$A$11:$O$460,14,FALSE) -> 0 | D110: 114 | E110: =VLOOKUP(B110,MMap!$A$11:$O$460,15,FALSE) -> 0 | G110: SmComCAC | O110: 1 | P110: SmComWX
A111: Demand Control Ventilation-New-Supermarket | B111: Demand Control Ventilation-DOAS-Supermarket-ElecHt-Vent-New | C111: =VLOOKUP(B111,MMap!$A$11:$O$460,14,FALSE) -> 14.41827085 | D111: 115 | E111: =VLOOKUP(B111,MMap!$A$11:$O$460,15,FALSE) -> 16.71409935 | G111: SmComCAC | O111: 1 | P111: SmComWX
A112: Demand Control Ventilation-New-MiniMart | B112: Demand Control Ventilation-DOAS-MiniMart-ElecHt-Vent-New | C112: =VLOOKUP(B112,MMap!$A$11:$O$460,14,FALSE) -> 1.420143808 | D112: 116 | E112: =VLOOKUP(B112,MMap!$A$11:$O$460,15,FALSE) -> 1.64627402 | G112: SmComCAC | O112: 1 | P112: SmComWX
A113: Demand Control Ventilation-New-Restaurant | B113: Demand Control Ventilation-DOAS-Restaurant-ElecHt-Vent-New | C113: =VLOOKUP(B113,MMap!$A$11:$O$460,14,FALSE) -> 5.142918112 | D113: 117 | E113: =VLOOKUP(B113,MMap!$A$11:$O$460,15,FALSE) -> 5.961827545 | G113: ExCOMM | O113: 1 | P113: SmComWX
A114: Demand Control Ventilation-New-Lodging | B114: Demand Control Ventilation-DOAS-Lodging-ElecHt-Vent-New | C114: =VLOOKUP(B114,MMap!$A$11:$O$460,14,FALSE) -> 0 | D114: 118 | E114: =VLOOKUP(B114,MMap!$A$11:$O$460,15,FALSE) -> 0 | G114: ExCOMM | O114: 1 | P114: SmComWX
A115: Demand Control Ventilation-New-Hospital | B115: Demand Control Ventilation-DOAS-Hospital-ElecHt-Vent-New | C115: =VLOOKUP(B115,MMap!$A$11:$O$460,14,FALSE) -> 0 | D115: 119 | E115: =VLOOKUP(B115,MMap!$A$11:$O$460,15,FALSE) -> 0 | G115: ExCOMM | O115: 1 | P115: SmComWX
A116: Demand Control Ventilation-New-Residential Care | B116: Demand Control Ventilation-DOAS-Residential Care-ElecHt-Vent-New | C116: =VLOOKUP(B116,MMap!$A$11:$O$460,14,FALSE) -> 0 | D116: 120 | E116: =VLOOKUP(B116,MMap!$A$11:$O$460,15,FALSE) -> 0 | G116: ExCOMM | O116: 1 | P116: SmComWX
A117: Demand Control Ventilation-New-Assembly | B117: Demand Control Ventilation-DOAS-Assembly-ElecHt-Vent-New | C117: =VLOOKUP(B117,MMap!$A$11:$O$460,14,FALSE) -> 0 | D117: 121 | E117: =VLOOKUP(B117,MMap!$A$11:$O$460,15,FALSE) -> 0 | G117: ExCOMM | O117: 1 | P117: SmComWX
A118: Demand Control Ventilation-New-Other | B118: Demand Control Ventilation-DOAS-Other-ElecHt-Vent-New | C118: =VLOOKUP(B118,MMap!$A$11:$O$460,14,FALSE) -> 0 | D118: 122 | E118: =VLOOKUP(B118,MMap!$A$11:$O$460,15,FALSE) -> 0 | G118: ExCOMM | O118: 1 | P118: SmComWX
A119: Demand Control Ventilation-New-Large Off | B119: Demand Control Ventilation-DOAS-Large Off-ElecHt-Heat-New | C119: =VLOOKUP(B119,MMap!$A$11:$O$460,14,FALSE) -> 0 | D119: 123 | E119: =VLOOKUP(B119,MMap!$A$11:$O$460,15,FALSE) -> 0 | G119: ExCOMM | O119: 1 | P119: SmComWX
A120: Demand Control Ventilation-New-Medium Off | B120: Demand Control Ventilation-DOAS-Medium Off-ElecHt-Heat-New | C120: =VLOOKUP(B120,MMap!$A$11:$O$460,14,FALSE) -> 0 | D120: 124 | E120: =VLOOKUP(B120,MMap!$A$11:$O$460,15,FALSE) -> 0 | G120: ExCOMM | O120: 1 | P120: SmComWX
A121: Demand Control Ventilation-New-Small Off | B121: Demand Control Ventilation-DOAS-Small Off-ElecHt-Heat-New | C121: =VLOOKUP(B121,MMap!$A$11:$O$460,14,FALSE) -> 0 | D121: 125 | E121: =VLOOKUP(B121,MMap!$A$11:$O$460,15,FALSE) -> 0 | G121: ExCOMM | O121: 1 | P121: SmComWX
A122: Demand Control Ventilation-New-Xlarge Ret | B122: Demand Control Ventilation-DOAS-Xlarge Ret-ElecHt-Heat-New | C122: =VLOOKUP(B122,MMap!$A$11:$O$460,14,FALSE) -> 119.2968609 | D122: 126 | E122: =VLOOKUP(B122,MMap!$A$11:$O$460,15,FALSE) -> 0 | G122: ExCOMM | O122: 1 | P122: SmComWX
A123: Demand Control Ventilation-New-Large Ret | B123: Demand Control Ventilation-DOAS-Large Ret-ElecHt-Heat-New | C123: =VLOOKUP(B123,MMap!$A$11:$O$460,14,FALSE) -> 15.9978788 | D123: 127 | E123: =VLOOKUP(B123,MMap!$A$11:$O$460,15,FALSE) -> 0 | G123: ExCOMM | O123: 1 | P123: SmComWX
A124: Demand Control Ventilation-New-Medium Ret | B124: Demand Control Ventilation-DOAS-Medium Ret-ElecHt-Heat-New | C124: =VLOOKUP(B124,MMap!$A$11:$O$460,14,FALSE) -> 51.91111814 | D124: 128 | E124: =VLOOKUP(B124,MMap!$A$11:$O$460,15,FALSE) -> 0 | G124: ExCOMM | O124: 1 | P124: SmComWX
A125: Demand Control Ventilation-New-Small Ret | B125: Demand Control Ventilation-DOAS-Small Ret-ElecHt-Heat-New | C125: =VLOOKUP(B125,MMap!$A$11:$O$460,14,FALSE) -> 70.05131288 | D125: 129 | E125: =VLOOKUP(B125,MMap!$A$11:$O$460,15,FALSE) -> 0 | G125: ExCOMM | O125: 1 | P125: SmComWX
A126: Demand Control Ventilation-New-School K-12 | B126: Demand Control Ventilation-DOAS-School K-12-ElecHt-Heat-New | C126: =VLOOKUP(B126,MMap!$A$11:$O$460,14,FALSE) -> 0 | D126: 130 | E126: =VLOOKUP(B126,MMap!$A$11:$O$460,15,FALSE) -> 0 | G126: ExCOMM | O126: 1 | P126: SmComWX
A127: Demand Control Ventilation-New-University | B127: Demand Control Ventilation-DOAS-University-ElecHt-Heat-New | C127: =VLOOKUP(B127,MMap!$A$11:$O$460,14,FALSE) -> 0 | D127: 131 | E127: =VLOOKUP(B127,MMap!$A$11:$O$460,15,FALSE) -> 0 | G127: ExCOMM | O127: 1 | P127: SmComWX
A128: Demand Control Ventilation-New-Warehouse | B128: Demand Control Ventilation-DOAS-Warehouse-ElecHt-Heat-New | C128: =VLOOKUP(B128,MMap!$A$11:$O$460,14,FALSE) -> 0 | D128: 132 | E128: =VLOOKUP(B128,MMap!$A$11:$O$460,15,FALSE) -> 0 | G128: ExCOMM | O128: 1 | P128: SmComWX
A129: Demand Control Ventilation-New-Supermarket | B129: Demand Control Ventilation-DOAS-Supermarket-ElecHt-Heat-New | C129: =VLOOKUP(B129,MMap!$A$11:$O$460,14,FALSE) -> 82.42364358 | D129: 133 | E129: =VLOOKUP(B129,MMap!$A$11:$O$460,15,FALSE) -> 0 | G129: ExCOMM | O129: 1 | P129: SmComWX
A130: Demand Control Ventilation-New-MiniMart | B130: Demand Control Ventilation-DOAS-MiniMart-ElecHt-Heat-New | C130: =VLOOKUP(B130,MMap!$A$11:$O$460,14,FALSE) -> 8.118409506 | D130: 134 | E130: =VLOOKUP(B130,MMap!$A$11:$O$460,15,FALSE) -> 0 | G130: SmComCAC | O130: 1 | P130: SmComWX
A131: Demand Control Ventilation-New-Restaurant | B131: Demand Control Ventilation-DOAS-Restaurant-ElecHt-Heat-New | C131: =VLOOKUP(B131,MMap!$A$11:$O$460,14,FALSE) -> 29.40006149 | D131: 135 | E131: =VLOOKUP(B131,MMap!$A$11:$O$460,15,FALSE) -> 0 | G131: SmComCAC | O131: 1 | P131: SmComWX
A132: Demand Control Ventilation-New-Lodging | B132: Demand Control Ventilation-DOAS-Lodging-ElecHt-Heat-New | C132: =VLOOKUP(B132,MMap!$A$11:$O$460,14,FALSE) -> 0 | D132: 136 | E132: =VLOOKUP(B132,MMap!$A$11:$O$460,15,FALSE) -> 0 | G132: SmComCAC | O132: 1 | P132: SmComWX
A133: Demand Control Ventilation-New-Hospital | B133: Demand Control Ventilation-DOAS-Hospital-ElecHt-Heat-New | C133: =VLOOKUP(B133,MMap!$A$11:$O$460,14,FALSE) -> 0 | D133: 137 | E133: =VLOOKUP(B133,MMap!$A$11:$O$460,15,FALSE) -> 0 | G133: SmComCAC | O133: 1 | P133: SmComWX
A134: Demand Control Ventilation-New-Residential Care | B134: Demand Control Ventilation-DOAS-Residential Care-ElecHt-Heat-New | C134: =VLOOKUP(B134,MMap!$A$11:$O$460,14,FALSE) -> 0 | D134: 138 | E134: =VLOOKUP(B134,MMap!$A$11:$O$460,15,FALSE) -> 0 | G134: SmComCAC | O134: 1 | P134: SmComWX
A135: Demand Control Ventilation-New-Assembly | B135: Demand Control Ventilation-DOAS-Assembly-ElecHt-Heat-New | C135: =VLOOKUP(B135,MMap!$A$11:$O$460,14,FALSE) -> 0 | D135: 139 | E135: =VLOOKUP(B135,MMap!$A$11:$O$460,15,FALSE) -> 0 | G135: SmComCAC | O135: 1 | P135: SmComWX
A136: Demand Control Ventilation-New-Other | B136: Demand Control Ventilation-DOAS-Other-ElecHt-Heat-New | C136: =VLOOKUP(B136,MMap!$A$11:$O$460,14,FALSE) -> 0 | D136: 140 | E136: =VLOOKUP(B136,MMap!$A$11:$O$460,15,FALSE) -> 0 | G136: SmComCAC | O136: 1 | P136: SmComWX
A137: Demand Control Ventilation-New-Large Off | B137: Demand Control Ventilation-DOAS-Large Off-GasHt-Vent-New | C137: =VLOOKUP(B137,MMap!$A$11:$O$460,14,FALSE) -> 0 | D137: 141 | E137: =VLOOKUP(B137,MMap!$A$11:$O$460,15,FALSE) -> 0 | G137: SmComCAC | O137: 1 | P137: SmComWX
A138: Demand Control Ventilation-New-Medium Off | B138: Demand Control Ventilation-DOAS-Medium Off-GasHt-Vent-New | C138: =VLOOKUP(B138,MMap!$A$11:$O$460,14,FALSE) -> 0 | D138: 142 | E138: =VLOOKUP(B138,MMap!$A$11:$O$460,15,FALSE) -> 0 | G138: SmComCAC | O138: 1 | P138: SmComWX
A139: Demand Control Ventilation-New-Small Off | B139: Demand Control Ventilation-DOAS-Small Off-GasHt-Vent-New | C139: =VLOOKUP(B139,MMap!$A$11:$O$460,14,FALSE) -> 0 | D139: 143 | E139: =VLOOKUP(B139,MMap!$A$11:$O$460,15,FALSE) -> 0 | G139: SmComCAC | O139: 1 | P139: SmComWX
A140: Demand Control Ventilation-New-Xlarge Ret | B140: Demand Control Ventilation-DOAS-Xlarge Ret-GasHt-Vent-New | C140: =VLOOKUP(B140,MMap!$A$11:$O$460,14,FALSE) -> 360.7245041 | D140: 144 | E140: =VLOOKUP(B140,MMap!$A$11:$O$460,15,FALSE) -> 418.162848 | G140: SmComCAC | O140: 1 | P140: SmComWX
A141: Demand Control Ventilation-New-Large Ret | B141: Demand Control Ventilation-DOAS-Large Ret-GasHt-Vent-New | C141: =VLOOKUP(B141,MMap!$A$11:$O$460,14,FALSE) -> 259.7481387 | D141: 145 | E141: =VLOOKUP(B141,MMap!$A$11:$O$460,15,FALSE) -> 301.1079652 | G141: SmComCAC | O141: 1 | P141: SmComWX
A142: Demand Control Ventilation-New-Medium Ret | B142: Demand Control Ventilation-DOAS-Medium Ret-GasHt-Vent-New | C142: =VLOOKUP(B142,MMap!$A$11:$O$460,14,FALSE) -> 117.6760186 | D142: 146 | E142: =VLOOKUP(B142,MMap!$A$11:$O$460,15,FALSE) -> 145.4495028 | G142: SmComCAC | O142: 1 | P142: SmComWX
A143: Demand Control Ventilation-New-Small Ret | B143: Demand Control Ventilation-DOAS-Small Ret-GasHt-Vent-New | C143: =VLOOKUP(B143,MMap!$A$11:$O$460,14,FALSE) -> 48.85785653 | D143: 147 | E143: =VLOOKUP(B143,MMap!$A$11:$O$460,15,FALSE) -> 60.38911769 | G143: SmComCAC | O143: 1 | P143: SmComWX
A144: Demand Control Ventilation-New-School K-12 | B144: Demand Control Ventilation-DOAS-School K-12-GasHt-Vent-New | C144: =VLOOKUP(B144,MMap!$A$11:$O$460,14,FALSE) -> 0 | D144: 148 | E144: =VLOOKUP(B144,MMap!$A$11:$O$460,15,FALSE) -> 0 | G144: SmComCAC | O144: 1 | P144: SmComWX
A145: Demand Control Ventilation-New-University | B145: Demand Control Ventilation-DOAS-University-GasHt-Vent-New | C145: =VLOOKUP(B145,MMap!$A$11:$O$460,14,FALSE) -> 0 | D145: 149 | E145: =VLOOKUP(B145,MMap!$A$11:$O$460,15,FALSE) -> 0 | G145: SmComCAC | O145: 1 | P145: SmComWX
A146: Demand Control Ventilation-New-Warehouse | B146: Demand Control Ventilation-DOAS-Warehouse-GasHt-Vent-New | C146: =VLOOKUP(B146,MMap!$A$11:$O$460,14,FALSE) -> 0 | D146: 150 | E146: =VLOOKUP(B146,MMap!$A$11:$O$460,15,FALSE) -> 0 | G146: SmComCAC | O146: 1 | P146: SmComWX
A147: Demand Control Ventilation-New-Supermarket | B147: Demand Control Ventilation-DOAS-Supermarket-GasHt-Vent-New | C147: =VLOOKUP(B147,MMap!$A$11:$O$460,14,FALSE) -> 172.7912212 | D147: 151 | E147: =VLOOKUP(B147,MMap!$A$11:$O$460,15,FALSE) -> 200.3048541 | G147: SmComHP | O147: 1 | P147: SmComWX
A148: Demand Control Ventilation-New-MiniMart | B148: Demand Control Ventilation-DOAS-MiniMart-GasHt-Vent-New | C148: =VLOOKUP(B148,MMap!$A$11:$O$460,14,FALSE) -> 124.3103 | D148: 152 | E148: =VLOOKUP(B148,MMap!$A$11:$O$460,15,FALSE) -> 144.1042915 | G148: SmComHP | O148: 1 | P148: SmComWX
A149: Demand Control Ventilation-New-Restaurant | B149: Demand Control Ventilation-DOAS-Restaurant-GasHt-Vent-New | C149: =VLOOKUP(B149,MMap!$A$11:$O$460,14,FALSE) -> 135.8274909 | D149: 153 | E149: =VLOOKUP(B149,MMap!$A$11:$O$460,15,FALSE) -> 157.4553705 | G149: SmComHP | O149: 1 | P149: SmComWX
A150: Demand Control Ventilation-New-Lodging | B150: Demand Control Ventilation-DOAS-Lodging-GasHt-Vent-New | C150: =VLOOKUP(B150,MMap!$A$11:$O$460,14,FALSE) -> 0 | D150: 154 | E150: =VLOOKUP(B150,MMap!$A$11:$O$460,15,FALSE) -> 0 | G150: SmComHP | O150: 1 | P150: SmComWX
A151: Demand Control Ventilation-New-Hospital | B151: Demand Control Ventilation-DOAS-Hospital-GasHt-Vent-New | C151: =VLOOKUP(B151,MMap!$A$11:$O$460,14,FALSE) -> 0 | D151: 155 | E151: =VLOOKUP(B151,MMap!$A$11:$O$460,15,FALSE) -> 0 | G151: SmComHP | O151: 1 | P151: SmComWX
A152: Demand Control Ventilation-New-Residential Care | B152: Demand Control Ventilation-DOAS-Residential Care-GasHt-Vent-New | C152: =VLOOKUP(B152,MMap!$A$11:$O$460,14,FALSE) -> 0 | D152: 156 | E152: =VLOOKUP(B152,MMap!$A$11:$O$460,15,FALSE) -> 0 | G152: SmComHP | O152: 1 | P152: SmComWX
A153: Demand Control Ventilation-New-Assembly | B153: Demand Control Ventilation-DOAS-Assembly-GasHt-Vent-New | C153: =VLOOKUP(B153,MMap!$A$11:$O$460,14,FALSE) -> 0 | D153: 157 | E153: =VLOOKUP(B153,MMap!$A$11:$O$460,15,FALSE) -> 0 | G153: SmComHP | O153: 1 | P153: SmComWX
A154: Demand Control Ventilation-New-Other | B154: Demand Control Ventilation-DOAS-Other-GasHt-Vent-New | C154: =VLOOKUP(B154,MMap!$A$11:$O$460,14,FALSE) -> 0 | D154: 158 | E154: =VLOOKUP(B154,MMap!$A$11:$O$460,15,FALSE) -> 0 | G154: SmComHP | O154: 1 | P154: SmComWX
A155: Demand Control Ventilation-New-Large Off | B155: Demand Control Ventilation-DOAS-Large Off-HtPmpHt-Vent-New | C155: =VLOOKUP(B155,MMap!$A$11:$O$460,14,FALSE) -> 0 | D155: 159 | E155: =VLOOKUP(B155,MMap!$A$11:$O$460,15,FALSE) -> 0 | G155: SmComHP | O155: 1 | P155: SmComWX
A156: Demand Control Ventilation-New-Medium Off | B156: Demand Control Ventilation-DOAS-Medium Off-HtPmpHt-Vent-New | C156: =VLOOKUP(B156,MMap!$A$11:$O$460,14,FALSE) -> 0 | D156: 160 | E156: =VLOOKUP(B156,MMap!$A$11:$O$460,15,FALSE) -> 0 | G156: SmComHP | O156: 1 | P156: SmComWX
A157: Demand Control Ventilation-New-Small Off | B157: Demand Control Ventilation-DOAS-Small Off-HtPmpHt-Vent-New | C157: =VLOOKUP(B157,MMap!$A$11:$O$460,14,FALSE) -> 0 | D157: 161 | E157: =VLOOKUP(B157,MMap!$A$11:$O$460,15,FALSE) -> 0 | G157: SmComHP | O157: 1 | P157: SmComWX
A158: Demand Control Ventilation-New-Xlarge Ret | B158: Demand Control Ventilation-DOAS-Xlarge Ret-HtPmpHt-Vent-New | C158: =VLOOKUP(B158,MMap!$A$11:$O$460,14,FALSE) -> 11.74929471 | D158: 162 | E158: =VLOOKUP(B158,MMap!$A$11:$O$460,15,FALSE) -> 14.12191879 | G158: SmComHP | O158: 1 | P158: SmComWX
A159: Demand Control Ventilation-New-Large Ret | B159: Demand Control Ventilation-DOAS-Large Ret-HtPmpHt-Vent-New | C159: =VLOOKUP(B159,MMap!$A$11:$O$460,14,FALSE) -> 1.575597139 | D159: 163 | E159: =VLOOKUP(B159,MMap!$A$11:$O$460,15,FALSE) -> 1.893769404 | G159: SmComHP | O159: 1 | P159: SmComWX
A160: Demand Control Ventilation-New-Medium Ret | B160: Demand Control Ventilation-DOAS-Medium Ret-HtPmpHt-Vent-New | C160: =VLOOKUP(B160,MMap!$A$11:$O$460,14,FALSE) -> 10.4728835 | D160: 164 | E160: =VLOOKUP(B160,MMap!$A$11:$O$460,15,FALSE) -> 12.5877522 | G160: SmComHP | O160: 1 | P160: SmComWX
A161: Demand Control Ventilation-New-Small Ret | B161: Demand Control Ventilation-DOAS-Small Ret-HtPmpHt-Vent-New | C161: =VLOOKUP(B161,MMap!$A$11:$O$460,14,FALSE) -> 14.13260329 | D161: 165 | E161: =VLOOKUP(B161,MMap!$A$11:$O$460,15,FALSE) -> 16.98650693 | G161: SmComHP | O161: 1 | P161: SmComWX
A162: Demand Control Ventilation-New-School K-12 | B162: Demand Control Ventilation-DOAS-School K-12-HtPmpHt-Vent-New | C162: =VLOOKUP(B162,MMap!$A$11:$O$460,14,FALSE) -> 0 | D162: 166 | E162: =VLOOKUP(B162,MMap!$A$11:$O$460,15,FALSE) -> 0 | G162: SmComHP | O162: 1 | P162: SmComWX
A163: Demand Control Ventilation-New-University | B163: Demand Control Ventilation-DOAS-University-HtPmpHt-Vent-New | C163: =VLOOKUP(B163,MMap!$A$11:$O$460,14,FALSE) -> 0 | D163: 167 | E163: =VLOOKUP(B163,MMap!$A$11:$O$460,15,FALSE) -> 0 | G163: SmComHP | O163: 1 | P163: SmComWX
A164: Demand Control Ventilation-New-Warehouse | B164: Demand Control Ventilation-DOAS-Warehouse-HtPmpHt-Vent-New | C164: =VLOOKUP(B164,MMap!$A$11:$O$460,14,FALSE) -> 0 | D164: 168 | E164: =VLOOKUP(B164,MMap!$A$11:$O$460,15,FALSE) -> 0 | G164: SmComHP | O164: 1 | P164: SmComWX
A165: Demand Control Ventilation-New-Supermarket | B165: Demand Control Ventilation-DOAS-Supermarket-HtPmpHt-Vent-New | C165: =VLOOKUP(B165,MMap!$A$11:$O$460,14,FALSE) -> 22.12722479 | D165: 169 | E165: =VLOOKUP(B165,MMap!$A$11:$O$460,15,FALSE) -> 26.59554291 | G165: SmComHP | O165: 1 | P165: SmComWX
A166: Demand Control Ventilation-New-MiniMart | B166: Demand Control Ventilation-DOAS-MiniMart-HtPmpHt-Vent-New | C166: =VLOOKUP(B166,MMap!$A$11:$O$460,14,FALSE) -> 2.1794459 | D166: 170 | E166: =VLOOKUP(B166,MMap!$A$11:$O$460,15,FALSE) -> 2.61955792 | G166: SmComHP | O166: 1 | P166: SmComWX
A167: Demand Control Ventilation-New-Restaurant | B167: Demand Control Ventilation-DOAS-Restaurant-HtPmpHt-Vent-New | C167: =VLOOKUP(B167,MMap!$A$11:$O$460,14,FALSE) -> 29.09972665 | D167: 171 | E167: =VLOOKUP(B167,MMap!$A$11:$O$460,15,FALSE) -> 34.97605488 | G167: SmComHP | O167: 1 | P167: SmComWX
A168: Demand Control Ventilation-New-Lodging | B168: Demand Control Ventilation-DOAS-Lodging-HtPmpHt-Vent-New | C168: =VLOOKUP(B168,MMap!$A$11:$O$460,14,FALSE) -> 0 | D168: 172 | E168: =VLOOKUP(B168,MMap!$A$11:$O$460,15,FALSE) -> 0 | G168: SmComHP | O168: 1 | P168: SmComWX
A169: Demand Control Ventilation-New-Hospital | B169: Demand Control Ventilation-DOAS-Hospital-HtPmpHt-Vent-New | C169: =VLOOKUP(B169,MMap!$A$11:$O$460,14,FALSE) -> 0 | D169: 173 | E169: =VLOOKUP(B169,MMap!$A$11:$O$460,15,FALSE) -> 0 | G169: SmComHP | O169: 1 | P169: SmComWX
A170: Demand Control Ventilation-New-Residential Care | B170: Demand Control Ventilation-DOAS-Residential Care-HtPmpHt-Vent-New | C170: =VLOOKUP(B170,MMap!$A$11:$O$460,14,FALSE) -> 0 | D170: 174 | E170: =VLOOKUP(B170,MMap!$A$11:$O$460,15,FALSE) -> 0 | G170: SmComHP | O170: 1 | P170: SmComWX
A171: Demand Control Ventilation-New-Assembly | B171: Demand Control Ventilation-DOAS-Assembly-HtPmpHt-Vent-New | C171: =VLOOKUP(B171,MMap!$A$11:$O$460,14,FALSE) -> 0 | D171: 175 | E171: =VLOOKUP(B171,MMap!$A$11:$O$460,15,FALSE) -> 0 | G171: SmComHP | O171: 1 | P171: SmComWX
A172: Demand Control Ventilation-New-Other | B172: Demand Control Ventilation-DOAS-Other-HtPmpHt-Vent-New | C172: =VLOOKUP(B172,MMap!$A$11:$O$460,14,FALSE) -> 0 | D172: 176 | E172: =VLOOKUP(B172,MMap!$A$11:$O$460,15,FALSE) -> 0 | G172: SmComHP | O172: 1 | P172: SmComWX
A173: Demand Control Ventilation-New-Large Off | B173: Demand Control Ventilation-DOAS-Large Off-HtPmpHt-Heat-New | C173: =VLOOKUP(B173,MMap!$A$11:$O$460,14,FALSE) -> 0 | D173: 177 | E173: =VLOOKUP(B173,MMap!$A$11:$O$460,15,FALSE) -> 0 | G173: SmComHP | O173: 1 | P173: SmComWX
A174: Demand Control Ventilation-New-Medium Off | B174: Demand Control Ventilation-DOAS-Medium Off-HtPmpHt-Heat-New | C174: =VLOOKUP(B174,MMap!$A$11:$O$460,14,FALSE) -> 0 | D174: 178 | E174: =VLOOKUP(B174,MMap!$A$11:$O$460,15,FALSE) -> 0 | G174: SmComHP | O174: 1 | P174: SmComWX
A175: Demand Control Ventilation-New-Small Off | B175: Demand Control Ventilation-DOAS-Small Off-HtPmpHt-Heat-New | C175: =VLOOKUP(B175,MMap!$A$11:$O$460,14,FALSE) -> 0 | D175: 179 | E175: =VLOOKUP(B175,MMap!$A$11:$O$460,15,FALSE) -> 0 | G175: SmComHP | O175: 1 | P175: SmComWX
A176: Demand Control Ventilation-New-Xlarge Ret | B176: Demand Control Ventilation-DOAS-Xlarge Ret-HtPmpHt-Heat-New | C176: =VLOOKUP(B176,MMap!$A$11:$O$460,14,FALSE) -> 33.16219315 | D176: 180 | E176: =VLOOKUP(B176,MMap!$A$11:$O$460,15,FALSE) -> 0 | G176: SmComHP | O176: 1 | P176: SmComWX
A177: Demand Control Ventilation-New-Large Ret | B177: Demand Control Ventilation-DOAS-Large Ret-HtPmpHt-Heat-New | C177: =VLOOKUP(B177,MMap!$A$11:$O$460,14,FALSE) -> 4.447097288 | D177: 181 | E177: =VLOOKUP(B177,MMap!$A$11:$O$460,15,FALSE) -> 0 | G177: SmComHP | O177: 1 | P177: SmComWX
A178: Demand Control Ventilation-New-Medium Ret | B178: Demand Control Ventilation-DOAS-Medium Ret-HtPmpHt-Heat-New | C178: =VLOOKUP(B178,MMap!$A$11:$O$460,14,FALSE) -> 14.43027514 | D178: 182 | E178: =VLOOKUP(B178,MMap!$A$11:$O$460,15,FALSE) -> 0 | G178: SmComHP | O178: 1 | P178: SmComWX
A179: Demand Control Ventilation-New-Small Ret | B179: Demand Control Ventilation-DOAS-Small Ret-HtPmpHt-Heat-New | C179: =VLOOKUP(B179,MMap!$A$11:$O$460,14,FALSE) -> 19.47289434 | D179: 183 | E179: =VLOOKUP(B179,MMap!$A$11:$O$460,15,FALSE) -> 0 | G179: SmComHP | O179: 1 | P179: SmComWX
A180: Demand Control Ventilation-New-School K-12 | B180: Demand Control Ventilation-DOAS-School K-12-HtPmpHt-Heat-New | C180: =VLOOKUP(B180,MMap!$A$11:$O$460,14,FALSE) -> 0 | D180: 184 | E180: =VLOOKUP(B180,MMap!$A$11:$O$460,15,FALSE) -> 0 | G180: SmComHP | O180: 1 | P180: SmComWX
A181: Demand Control Ventilation-New-University | B181: Demand Control Ventilation-DOAS-University-HtPmpHt-Heat-New | C181: =VLOOKUP(B181,MMap!$A$11:$O$460,14,FALSE) -> 0 | D181: 185 | E181: =VLOOKUP(B181,MMap!$A$11:$O$460,15,FALSE) -> 0
A182: Demand Control Ventilation-New-Warehouse | B182: Demand Control Ventilation-DOAS-Warehouse-HtPmpHt-Heat-New | C182: =VLOOKUP(B182,MMap!$A$11:$O$460,14,FALSE) -> 0 | D182: 186 | E182: =VLOOKUP(B182,MMap!$A$11:$O$460,15,FALSE) -> 0
A183: Demand Control Ventilation-New-Supermarket | B183: Demand Control Ventilation-DOAS-Supermarket-HtPmpHt-Heat-New | C183: =VLOOKUP(B183,MMap!$A$11:$O$460,14,FALSE) -> 62.45373196 | D183: 187 | E183: =VLOOKUP(B183,MMap!$A$11:$O$460,15,FALSE) -> 0
A184: Demand Control Ventilation-New-MiniMart | B184: Demand Control Ventilation-DOAS-MiniMart-HtPmpHt-Heat-New | C184: =VLOOKUP(B184,MMap!$A$11:$O$460,14,FALSE) -> 6.151450593 | D184: 188 | E184: =VLOOKUP(B184,MMap!$A$11:$O$460,15,FALSE) -> 0
A185: Demand Control Ventilation-New-Restaurant | B185: Demand Control Ventilation-DOAS-Restaurant-HtPmpHt-Heat-New | C185: =VLOOKUP(B185,MMap!$A$11:$O$460,14,FALSE) -> 82.13350499 | D185: 189 | E185: =VLOOKUP(B185,MMap!$A$11:$O$460,15,FALSE) -> 0
A186: Demand Control Ventilation-New-Lodging | B186: Demand Control Ventilation-DOAS-Lodging-HtPmpHt-Heat-New | C186: =VLOOKUP(B186,MMap!$A$11:$O$460,14,FALSE) -> 0 | D186: 190 | E186: =VLOOKUP(B186,MMap!$A$11:$O$460,15,FALSE) -> 0
A187: Demand Control Ventilation-New-Hospital | B187: Demand Control Ventilation-DOAS-Hospital-HtPmpHt-Heat-New | C187: =VLOOKUP(B187,MMap!$A$11:$O$460,14,FALSE) -> 0 | D187: 191 | E187: =VLOOKUP(B187,MMap!$A$11:$O$460,15,FALSE) -> 0
A188: Demand Control Ventilation-New-Residential Care | B188: Demand Control Ventilation-DOAS-Residential Care-HtPmpHt-Heat-New | C188: =VLOOKUP(B188,MMap!$A$11:$O$460,14,FALSE) -> 0 | D188: 192 | E188: =VLOOKUP(B188,MMap!$A$11:$O$460,15,FALSE) -> 0
A189: Demand Control Ventilation-New-Assembly | B189: Demand Control Ventilation-DOAS-Assembly-HtPmpHt-Heat-New | C189: =VLOOKUP(B189,MMap!$A$11:$O$460,14,FALSE) -> 0 | D189: 193 | E189: =VLOOKUP(B189,MMap!$A$11:$O$460,15,FALSE) -> 0 | G189: Marginal Cost & Conservation Load Shape Parameters | Q189: Sponsor Parameters | Y189: Program Parameters | AB189: Program | AD189: Utility System Parameters | AH189: Electric | AI189: Gas
A190: Demand Control Ventilation-New-Other | B190: Demand Control Ventilation-DOAS-Other-HtPmpHt-Heat-New | C190: =VLOOKUP(B190,MMap!$A$11:$O$460,14,FALSE) -> 0 | D190: 194 | E190: =VLOOKUP(B190,MMap!$A$11:$O$460,15,FALSE) -> 0 | G190: Marginal Costs and Savings Shape File | K190: Q:\CG\Main\ProCostGas\MC files\MC_AND_LOADSHAPE_6P.XLS | T190: Customer | U190: Wholesale Elec | V190: Retail Elec | W190: Nat Gas | Y190: Program Life (yrs) | AB190: 20 | AD190: Bulk System T&D Loss Factor by Time Segment | AH190: WECCTrans | AI190: Flat1.0
A206: Measure Results; Sorted in same order as input
A207: Total Results | C207: Measure Input Data | L207: Savings | R207: PV Capital | V207: PV Admin | Z207: PV O&M | AD207: PV Periodic Repl. | AH207: Total PV Capital, O&M and Periodic Repl Costs | AM207: PV Wholesale Electric Utility Costs & Benefits | AT207: PV Retail Electric Utility Costs & Benefits | BA207: PV Electric Utility System Costs & Benefits | BG207: Electric Utility System Economics | BI207: Sponsor Levelized Cost (mills/kwh) | BN207: PV Regional Costs & Benefits | CD207: TRC Economics | CF207: Physical CO2 | CM207: Gas Inputs | CQ207: PV Gas Utility System Costs & Benefits | CV207: Gas Utility System Economics
A208: Category | B208: Measure | C208: Measure Life | D208: Site Savings (kWh) | E208: Site Savings (therms) | F208: Capital Cost ($/unit) | G208: Annual O&M Cost ($/unit) | H208: PV Per. Repl. Cost ($/unit) | I208: Load Shape (electric) | J208: Diversified Load Factor (electric) | K208: Wholesale Power Coincidence Factor (electric) | L208: Wholesale Electric Energy (kWh) | M208: Wholesale Electric Demand (kw) | N208: Retail Electric Demand (kW) | O208: Wholesale Gas Energy (therms/yr) | P208: Wholesale Gas Demand (therms/day) | Q208: Retail Gas Demand (therms/day) | R208: Wholesale Electric | S208: Retail Electric | T208: Natural Gas | U208: Customer | V208: Wholesale Electric | W208: Retail Electric | X208: Natural Gas | Y208: Customer | Z208: Wholesale Electric | AA208: Retail Electric | AB208: Natural Gas | AC208: Customer | AD208: Wholesale Electric | AE208: Retail Electric | AF208: Natural Gas | AG208: Customer | AH208: Wholesale Electric | AI208: Retail Electric | AJ208: Natural Gas | AK208: Customer | AL208: Total | AM208: Wholesale Utility System Energy | AN208: Wholesale Utility System T&D Def. Cap. | AO208: Wholesale Utility System Act C-E Credit | AP208: Wholesale Utility System Risk Mitigation Benefit | AQ208: Wholesale Utility System Total System Benefit | AR208: Wholesale Utility System Total Non-Consumer Cost | AS208: Wholesale Utility System B/C Ratio | AT208: Retail Utility System Energy | AU208: Retail Utility System T&D Def. Cap. | AV208: Retail Utility System Act C-E Credit | AW208: Retail Utility System Risk Mitigation Benefit | AX208: Retail Utility System Total System Benefit | AY208: Retail Utility System Total Non-Consumer Cost | AZ208: Retail Utility System System B/C Ratio | BA208: Utility System Energy | BB208: Utility System T&D Def. Cap. | BC208: Utility System Act C-E Credit | BD208: Utility System Total Risk Mitigation Benefit | BE208: Utility System Total System Benefit | BF208: Utility System Total Non-Consumer Cost | BG208: Utility System Net Levelized Cost (Net of Elec T&D Capacity Benefits, Act Credit & Risk-Mitigation Benefit) in mills/kwh | BH208: Utility System System B/C Ratio | BI208: Wholesale Electric Levelized Cost | BJ208: Retail Electric Levelized Cost | BK208: Natural Gas Levelized Cost | BL208: Customer Levelized Cost | BM208: Total Levelized Cost | BN208: PV Regional Electric Energy | BO208: PV Regional Gas Energy | BP208: PV Regional Electric T&D Def. Cap. | BQ208: PV Regional Gas T&D Def. Cap. | BR208: PV Regional Electric System CO2 | BS208: PV Regional Gas System CO2 | BT208: PV Regional Electric System Risk-Mitigation Benefit | BU208: PV Regional Gas System Risk-Mitigation Benefit | BV208: PV Regional Non-E Value | BW208: PV Regional Act Credit | BX208: PV Regional Capital Cost | BY208: PV Regional Admin Cost | BZ208: PV Regional Annual O&M Cost | CA208: PV Regional Periodic Replacement Cost | CB208: PV Total Regional Benefit | CC208: PV Total Regional Cost | CD208: TRC B/C Ratio | CE208: TRC Net Levelized Cost (Net of All Benefits) in mills/kWh | CF208: Electric System CO2 Avoided (Lifetime Tons) | CG208: Gas System CO2 Avoided (Lifetime Tons) | CH208: Total System CO2 Avoided (Lifetime Tons) | CI208: Electric System CO2 Avoided (Annual Tons in 2020) | CJ208: Gas System CO2 Avoided (Annual Tons in 2020) | CK208: Total System CO2 Avoided (Annual Tons in 2020) | CM208: Gas Site Savings (therms) | CN208: Load Shape (gas) | CO208: Diversitfied Load Factor (gas) | CP208: Wholesale Coincidence Factor (gas) | CQ208: Total Gas Utility System Energy | CR208: Gas Utility System T&D Def. Cap. | CS208: Gas Utility System Risk Mitigation Benefit | CT208: Gas Utility System Total System Benefit | CU208: Gas Utility System Total Non-Consumer Cost | CV208: Gas Utility System Net Levelized Cost (Net of Gas T&D Capacity Benefits & Risk-Mitigation Benefits) in cents/therm | CW208: Gas Utility System System B/C Ratio
A209: Demand Control Ventilation-New-Large Off | B209: Demand Control Ventilation-DCV Only-Large Off-ElecHt-Vent-New | C209: 15 | D209: 0.20664 | E209: 0 | F209: 5.4667 | G209: 0 | H209: 0 | I209: ComEconoMizer | J209: 0.400000006 | K209: 0.00661157025 | L209: 0.2251649193 | M209: 4.248555001e-07 | N209: 6.4259395e-05 | O209: 0 | P209: 0 | Q209: 0 | R209: 0.5435461998 | S209: 3.003821611 | T209: 0 | U209: 3.458863258 | V209: (na) | W209: (na) | X209: (na) | Y209: (na) | Z209: 0 | AA209: 0 | AB209: 0 | AC209: 0 | AD209: 0 | AE209: 0 | AF209: 0 | AG209: 0 | AH209: 0.5435461998 | AI209: 3.003821611 | AJ209: 0 | AK209: 3.458863258 | AL209: 7.00623107 | AM209: 0.1181765066 | AN209: 0 | AO209: 0.01181765087 | AP209: 0 | AQ209: 0.129994154 | AR209: 0.5435461998 | AS209: 0.2391593529 | AT209: 0.1181765066 | AU209: 0.01841873117 | AV209: 0.0136595238 | AW209: 0 | AX209: 0.1502547562 | AY209: 3.003821611 | AZ209: 0.05002119998 | BA209: 0.1181765066 | BB209: 0.01841873117 | BC209: 0.0136595238 | BD209: 0 | BE209: 0.1502547562 | BF209: 3.547367811 | BG209: 1252.752563 | BH209: 0.0423566908 | BI209: 193.7049255 | BJ209: 1070.47937 | BK209: 0 | BL209: 1232.643799 | BM209: 2496.828125 | BN209: 0.1181765066 | BO209: 0 | BP209: 0.01841873117 | BQ209: 0 | BR209: 0 | BS209: 0 | BT209: 0 | BU209: 0 | BV209: 0 | BW209: 0.0136595238 | BX209: 7.006231308 | BZ209: 0 | CA209: 0 | CB209: 0.1502547562 | CC209: 7.006231308 | CD209: 0.0214458751 | CE209: 2485.39624 | CF209: 0.001653978777 | CG209: 0 | CH209: 0.001653978777 | CI209: 7.989370784e-05 | CJ209: 0 | CK209: 7.989370784e-05 | CM209: 0 | CN209: SmComWX | CO209: 0 | CP209: 0 | CQ209: 0 | CR209: 0 | CS209: 0 | CT209: 0 | CU209: 0 | CV209: 9999 | CW209: 9999
A210: Demand Control Ventilation-New-Medium Off | B210: Demand Control Ventilation-DCV Only-Medium Off-ElecHt-Vent-New | C210: 15 | D210: 0.2268 | E210: 0 | F210: 6 | G210: 0 | H210: 0 | I210: ComEconoMizer | J210: 0.400000006 | K210: 0.00661157025 | L210: 0.2471322285 | M210: 4.663047832e-07 | N210: 7.052860019e-05 | O210: 0 | P210: 0 | Q210: 0 | R210: 0.5965714455 | S210: 3.296857357 | T210: 0 | U210: 3.796290398 | V210: (na) | W210: (na) | X210: (na) | Y210: (na) | Z210: 0 | AA210: 0 | AB210: 0 | AC210: 0 | AD210: 0 | AE210: 0 | AF210: 0 | AG210: 0 | AH210: 0.5965714455 | AI210: 3.296857357 | AJ210: 0 | AK210: 3.796290398 | AL210: 7.6897192 | AM210: 0.1297059218 | AN210: 0 | AO210: 0.01297059283 | AP210: 0 | AQ210: 0.1426765174 | AR210: 0.5965714455 | AS210: 0.2391608176 | AT210: 0.1297059218 | AU210: 0.02021567896 | AV210: 0.01499216072 | AW210: 0 | AX210: 0.1649137586 | AY210: 3.296857357 | AZ210: 0.05002150341 | BA210: 0.1297059218 | BB210: 0.02021567896 | BC210: 0.01499216072 | BD210: 0 | BE210: 0.1649137586 | BF210: 3.893428802 | BG210: 1252.744873 | BH210: 0.04235694805 | BI210: 193.7037354 | BJ210: 1070.4729 | BK210: 0 | BL210: 1232.63623 | BM210: 2496.812988 | BN210: 0.1297059218 | BO210: 0 | BP210: 0.02021567896 | BQ210: 0 | BR210: 0 | BS210: 0 | BT210: 0 | BU210: 0 | BV210: 0 | BW210: 0.01499216072 | BX210: 7.6897192 | BZ210: 0 | CA210: 0 | CB210: 0.1649137586 | CC210: 7.6897192 | CD210: 0.02144600567 | CE210: 2485.381104 | CF210: 0.00181534256 | CG210: 0 | CH210: 0.00181534256 | CI210: 8.768821592e-05 | CJ210: 0 | CK210: 8.768821592e-05 | CM210: 0 | CN210: SmComWX | CO210: 0 | CP210: 0 | CQ210: 0 | CR210: 0 | CS210: 0 | CT210: 0 | CU210: 0 | CV210: 9999 | CW210: 9999
A211: Demand Control Ventilation-New-Small Off | B211: Demand Control Ventilation-DCV Only-Small Off-ElecHt-Vent-New | C211: 15 | D211: 0.2394 | E211: 0 | F211: 6.3333 | G211: 0 | H211: 0 | I211: ComEconoMizer | J211: 0.400000006 | K211: 0.00661157025 | L211: 0.2608617968 | M211: 4.922106314e-07 | N211: 7.444685616e-05 | O211: 0 | P211: 0 | Q211: 0 | R211: 0.6297109723 | S211: 3.479997635 | T211: 0 | U211: 4.007174492 | V211: (na) | W211: (na) | X211: (na) | Y211: (na) | Z211: 0 | AA211: 0 | AB211: 0 | AC211: 0 | AD211: 0 | AE211: 0 | AF211: 0 | AG211: 0 | AH211: 0.6297109723 | AI211: 3.479997635 | AJ211: 0 | AK211: 4.007174492 | AL211: 8.116883099 | AM211: 0.1369118064 | AN211: 0 | AO211: 0.01369118039 | AP211: 0 | AQ211: 0.1506029814 | AR211: 0.6297109723 | AS211: 0.2391620813 | AT211: 0.1369118064 | AU211: 0.02133877203 | AV211: 0.0158250574 | AW211: 0 | AX211: 0.1740756333 | AY211: 3.479997635 | AZ211: 0.05002176843 | BA211: 0.1369118064 | BB211: 0.02133877203 | BC211: 0.0158250574 | BD211: 0 | BE211: 0.1740756333 | BF211: 4.109708786 | BG211: 1252.738159 | BH211: 0.04235717236 | BI211: 193.702713 | BJ211: 1070.467163 | BK211: 0 | BL211: 1232.629883 | BM211: 2496.799805 | BN211: 0.1369118064 | BO211: 0 | BP211: 0.02133877203 | BQ211: 0 | BR211: 0 | BS211: 0 | BT211: 0 | BU211: 0 | BV211: 0 | BW211: 0.0158250574 | BX211: 8.116883278 | BZ211: 0 | CA211: 0 | CB211: 0.1740756333 | CC211: 8.116883278 | CD211: 0.02144611791 | CE211: 2485.368164 | CF211: 0.001916194925 | CG211: 0 | CH211: 0.001916194925 | CI211: 9.255978348e-05 | CJ211: 0 | CK211: 9.255978348e-05 | CM211: 0 | CN211: SmComWX | CO211: 0 | CP211: 0 | CQ211: 0 | CR211: 0 | CS211: 0 | CT211: 0 | CU211: 0 | CV211: 9999 | CW211: 9999
A212: Demand Control Ventilation-New-Big Box | B212: Demand Control Ventilation-DCV Only-Big Box-ElecHt-Vent-New | C212: 15 | D212: 0.207856704 | E212: 0 | F212: 0.8906 | G212: 0 | H212: 0 | I212: ComEconoMizer | J212: 0.400000006 | K212: 0.00661157025 | L212: 0.2264906987 | M212: 4.273570369e-07 | N212: 6.463775208e-05 | O212: 0 | P212: 0 | Q212: 0 | R212: 0.08855108917 | S212: 0.4893635213 | T212: 0 | U212: 0.5634960532 | V212: (na) | W212: (na) | X212: (na) | Y212: (na) | Z212: 0 | AA212: 0 | AB212: 0 | AC212: 0 | AD212: 0 | AE212: 0 | AF212: 0 | AG212: 0 | AH212: 0.08855108917 | AI212: 0.4893635213 | AJ212: 0 | AK212: 0.5634960532 | AL212: 1.141410664 | AM212: 0.1188723342 | AN212: 0 | AO212: 0.0118872337 | AP212: 0 | AQ212: 0.130759567 | AR212: 0.08855108917 | AS212: 1.4766568 | AT212: 0.1188723342 | AU212: 0.01852718182 | AV212: 0.01373995189 | AW212: 0 | AX212: 0.151139468 | AY212: 0.4893635213 | AZ212: 0.3088490689 | BA212: 0.1188723342 | BB212: 0.01852718182 | BC212: 0.01373995189 | BD212: 0 | BE212: 0.151139468 | BF212: 0.5779145956 | BG212: 193.315506 | BH212: 0.2615256046 | BI212: 31.37244987 | BJ212: 173.3748627 | BK212: 0 | BL212: 199.6390076 | BM212: 404.386322 | BN212: 0.1188723342 | BO212: 0 | BP212: 0.01852718182 | BQ212: 0 | BR212: 0 | BS212: 0 | BT212: 0 | BU212: 0 | BV212: 0 | BW212: 0.01373995189 | BX212: 1.141410589 | BZ212: 0 | CA212: 0 | CB212: 0.151139468 | CC212: 1.141410589 | CD212: 0.1324146362 | CE212: 392.9544983 | CF212: 0.001663717466 | CG212: 0 | CH212: 0.001663717466 | CI212: 8.036412496e-05 | CJ212: 0 | CK212: 8.036412496e-05 | CM212: 0 | CN212: SmComWX | CO212: 0 | CP212: 0 | CQ212: 0 | CR212: 0 | CS212: 0 | CT212: 0 | CU212: 0 | CV212: 9999 | CW212: 9999
A213: Demand Control Ventilation-New-Small Box | B213: Demand Control Ventilation-DCV Only-Small Box-ElecHt-Vent-New | C213: 15 | D213: 0.270569728 | E213: 0 | F213: 1.1593 | G213: 0 | H213: 0 | I213: ComEconoMizer | J213: 0.400000006 | K213: 0.00661157025 | L213: 0.2948258371 | M213: 5.562961292e-07 | N213: 8.413979231e-05 | O213: 0 | P213: 0 | Q213: 0 | R213: 0.115267545 | S213: 0.6370077729 | T213: 0 | U213: 0.7335065603 | V213: (na) | W213: (na) | X213: (na) | Y213: (na) | Z213: 0 | AA213: 0 | AB213: 0 | AC213: 0 | AD213: 0 | AE213: 0 | AF213: 0 | AG213: 0 | AH213: 0.115267545 | AI213: 0.6370077729 | AJ213: 0 | AK213: 0.7335065603 | AL213: 1.485781878 | AM213: 0.1547376367 | AN213: 0 | AO213: 0.01547376346 | AP213: 0 | AQ213: 0.1702114046 | AR213: 0.115267545 | AS213: 1.476663706 | AT213: 0.1547376367 | AU213: 0.02411706746 | AV213: 0.01788547076 | AW213: 0 | AX213: 0.1967401803 | AY213: 0.6370077729 | AZ213: 0.308850509 | BA213: 0.1547376367 | BB213: 0.02411706746 | BC213: 0.01788547076 | BD213: 0 | BE213: 0.1967401803 | BF213: 0.7522753477 | BG213: 193.3145447 | BH213: 0.2615268243 | BI213: 31.37230492 | BJ213: 173.374054 | BK213: 0 | BL213: 199.6380615 | BM213: 404.3844299 | BN213: 0.1547376367 | BO213: 0 | BP213: 0.02411706746 | BQ213: 0 | BR213: 0 | BS213: 0 | BT213: 0 | BU213: 0 | BV213: 0 | BW213: 0.01788547076 | BX213: 1.485781908 | BZ213: 0 | CA213: 0 | CB213: 0.1967401803 | CC213: 1.485781908 | CD213: 0.1324152447 | CE213: 392.9526367 | CF213: 0.002165682287 | CG213: 0 | CH213: 0.002165682287 | CI213: 0.0001046110085 | CJ213: 0 | CK213: 0.0001046110085 | CM213: 0 | CN213: SmComWX | CO213: 0 | CP213: 0 | CQ213: 0 | CR213: 0 | CS213: 0 | CT213: 0 | CU213: 0 | CV213: 9999 | CW213: 9999
A214: Demand Control Ventilation-New-High End | B214: Demand Control Ventilation-DCV Only-High End-ElecHt-Vent-New | C214: 15 | D214: 0.20692672 | E214: 0 | F214: 2.0287 | G214: 0 | H214: 0 | I214: ComEconoMizer | J214: 0.400000006 | K214: 0.00661157025 | L214: 0.2254773433 | M214: 4.254449948e-07 | N214: 6.434855459e-05 | O214: 0 | P214: 0 | Q214: 0 | R214: 0.2017107457 | S214: 1.114722371 | T214: 0 | U214: 1.283589125 | V214: (na) | W214: (na) | X214: (na) | Y214: (na) | Z214: 0 | AA214: 0 | AB214: 0 | AC214: 0 | AD214: 0 | AE214: 0 | AF214: 0 | AG214: 0 | AH214: 0.2017107457 | AI214: 1.114722371 | AJ214: 0 | AK214: 1.283589125 | AL214: 2.600022241 | AM214: 0.1183404805 | AN214: 0 | AO214: 0.01183404867 | AP214: 0 | AQ214: 0.1301745325 | AR214: 0.2017107457 | AS214: 0.6453524759 | AT214: 0.1183404805 | AU214: 0.01844428852 | AV214: 0.01367847715 | AW214: 0 | AX214: 0.1504632533 | AY214: 1.114722371 | AZ214: 0.1349782242 | BA214: 0.1183404805 | BB214: 0.01844428852 | BC214: 0.01367847715 | BD214: 0 | BE214: 0.1504632533 | BF214: 1.316433072 | BG214: 457.0587158 | BH214: 0.114296157 | BI214: 71.78455353 | BJ214: 396.7059631 | BK214: 0 | BL214: 456.8020325 | BM214: 925.2925415 | BN214: 0.1183404805 | BO214: 0 | BP214: 0.01844428852 | BQ214: 0 | BR214: 0 | BS214: 0 | BT214: 0 | BU214: 0 | BV214: 0 | BW214: 0.01367847715 | BX214: 2.600022316 | BZ214: 0 | CA214: 0 | CB214: 0.1504632533 | CC214: 2.600022316 | CD214: 0.05786998258 | CE214: 913.8607788 | CF214: 0.001656273729 | CG214: 0 | CH214: 0.001656273729 | CI214: 8.000456307e-05 | CJ214: 0 | CK214: 8.000456307e-05 | CM214: 0 | CN214: SmComWX | CO214: 0 | CP214: 0 | CQ214: 0 | CR214: 0 | CS214: 0 | CT214: 0 | CU214: 0 | CV214: 9999 | CW214: 9999
A215: Demand Control Ventilation-New-Anchor | B215: Demand Control Ventilation-DCV Only-Anchor-ElecHt-Vent-New | C215: 15 | D215: 0.20692672 | E215: 0 | F215: 2.0287 | G215: 0 | H215: 0 | I215: ComEconoMizer | J215: 0.400000006 | K215: 0.00661157025 | L215: 0.2254773433 | M215: 4.254449948e-07 | N215: 6.434855459e-05 | O215: 0 | P215: 0 | Q215: 0 | R215: 0.2017107457 | S215: 1.114722371 | T215: 0 | U215: 1.283589125 | V215: (na) | W215: (na) | X215: (na) | Y215: (na) | Z215: 0 | AA215: 0 | AB215: 0 | AC215: 0 | AD215: 0 | AE215: 0 | AF215: 0 | AG215: 0 | AH215: 0.2017107457 | AI215: 1.114722371 | AJ215: 0 | AK215: 1.283589125 | AL215: 2.600022241 | AM215: 0.1183404805 | AN215: 0 | AO215: 0.01183404867 | AP215: 0 | AQ215: 0.1301745325 | AR215: 0.2017107457 | AS215: 0.6453524759 | AT215: 0.1183404805 | AU215: 0.01844428852 | AV215: 0.01367847715 | AW215: 0 | AX215: 0.1504632533 | AY215: 1.114722371 | AZ215: 0.1349782242 | BA215: 0.1183404805 | BB215: 0.01844428852 | BC215: 0.01367847715 | BD215: 0 | BE215: 0.1504632533 | BF215: 1.316433072 | BG215: 457.0587158 | BH215: 0.114296157 | BI215: 71.78455353 | BJ215: 396.7059631 | BK215: 0 | BL215: 456.8020325 | BM215: 925.2925415 | BN215: 0.1183404805 | BO215: 0 | BP215: 0.01844428852 | BQ215: 0 | BR215: 0 | BS215: 0 | BT215: 0 | BU215: 0 | BV215: 0 | BW215: 0.01367847715 | BX215: 2.600022316 | BZ215: 0 | CA215: 0 | CB215: 0.1504632533 | CC215: 2.600022316 | CD215: 0.05786998258 | CE215: 913.8607788 | CF215: 0.001656273729 | CG215: 0 | CH215: 0.001656273729 | CI215: 8.000456307e-05 | CJ215: 0 | CK215: 8.000456307e-05 | CM215: 0 | CN215: SmComWX | CO215: 0 | CP215: 0 | CQ215: 0 | CR215: 0 | CS215: 0 | CT215: 0 | CU215: 0 | CV215: 9999 | CW215: 9999
A216: Demand Control Ventilation-New-K-12 | B216: Demand Control Ventilation-DCV Only-K-12-ElecHt-Vent-New | C216: 15 | D216: 0 | E216: 0 | F216: 2.6671 | G216: 0 | H216: 0 | I216: ComEconoMizer | J216: 0 | K216: 0 | L216: 0 | M216: 0 | N216: 0 | O216: 0 | P216: 0 | Q216: 0 | R216: 0.2651859522 | S216: 1.465507984 | T216: 0 | U216: 1.687514305 | V216: (na) | W216: (na) | X216: (na) | Y216: (na) | Z216: 0 | AA216: 0 | AB216: 0 | AC216: 0 | AD216: 0 | AE216: 0 | AF216: 0 | AG216: 0 | AH216: 0.2651859522 | AI216: 1.465507984 | AJ216: 0 | AK216: 1.687514305 | AL216: 3.418208241 | AM216: 0 | AN216: 0 | AO216: 0 | AP216: 0 | AQ216: 0 | AR216: 0.2651859522 | AS216: 0 | AT216: 0 | AU216: 0 | AV216: 0 | AW216: 0 | AX216: 0 | AY216: 1.465507984 | AZ216: 0 | BA216: 0 | BB216: 0 | BC216: 0 | BD216: 0 | BE216: 0 | BF216: 1.730693936 | BG216: 9999 | BH216: 0 | BI216: 9999 | BJ216: 9999 | BK216: 9999 | BL216: 9999 | BM216: 9999 | BN216: 0 | BO216: 0 | BP216: 0 | BQ216: 0 | BR216: 0 | BS216: 0 | BT216: 0 | BU216: 0 | BV216: 0 | BW216: 0 | BX216: 3.418208122 | BZ216: 0 | CA216: 0 | CB216: 0 | CC216: 3.418208122 | CD216: 0 | CE216: 9999 | CF216: 0 | CG216: 0 | CH216: 0 | CI216: 0 | CJ216: 0 | CK216: 0 | CM216: 0 | CN216: SmComWX | CO216: 0 | CP216: 0 | CQ216: 0 | CR216: 0 | CS216: 0 | CT216: 0 | CU216: 0 | CV216: 9999 | CW216: 9999
... 230 more rows

Sheet M-IO NR (hidden)
A1: Data Set Name
A2: Measure Index Name
A3: Costs must be denominated in the same year as 'Input Cost Reference Year' = | C3: 2012
A5: Retrofit Data | C5: name | D5: column | E5: referenece
B6: Weighting Factor in MMap | C6: WT BTYPE | D6: =MATCH(C6,MMap!$A$9:$BP$9,0) -> 13 | E6: =LEFT(ADDRESS(11,MATCH(C6,MMap!$A$9:$BR$9,0),4,1),1) -> M
B7: Units are per thousand feet floor area for activity | C7: 1000
